Workbook

Sheet Disclaimer
L2: Copyright © 2025 Society of Actuaries Research Institute
B3: A Tool for Examining Mortality Trends in the U.S. General Population
B4: The workbook is released in tandem with Quarterly Mortality Monitoring Report (QMMR). The SOA Research Institute updates the workbook every three months with fresh data.
B5: This version uses death count data that was downloaded on June 4, 2025, and is effectively complete through November 2024. The workbook contains monthly data from Jan 2001 through Mar 2025.
B7: Disclaimer
B9: This workbook is made available free of charge with the understanding that neither the author nor the Society of Actuaries Research Institute
B10: accepts any liability for its use. It may be used for any personal, research or commercial use provided that the user does not represent it as
B11: his or her own work and does not distribute it to others for a fee. The workbook and the results it produces are for informational purposes only,
B12: and should not be construed as professional or financial advice. The Society of Actuaries Research Institute does not recommend or endorse any
B13: particular use of the information provided by this workbook. The Society of Actuaries Research Institute makes no warranty, express or implied,
B14: and assums no liability in connection with the use of this workbook.

Sheet Contents
B2: A Tool for Examining Mortality Trends in the U.S. General Population
B4: Tab | C4: Description | J4: Workbook Settings
J5: Yes | K5: Enable automatic alert if incomplete data is used for a data query
B6: 1 | C6: Outputs: a time series of death rates or death counts for user-specified ages or age groups | J6: No | K6: Hide Excel ribbon to create larger viewing window
B7: 2 | C7: Outputs: a time series of period life expectancies for user-specified ages or age groups | J7: 100 | K7: Select the zoom % that you wish to apply across all worksheets
B8: 3 | C8: Outputs: a time series of deaths and/or exposure counts for user-specified ages or age groups
B9: 4 | C9: Outputs: death rates across a series of ages, for user-specified years | J9: VBA Macros
B10: 5 | C10: Outputs: regression analysis to estimate rates of improvement by age and sex | J10: This tool uses VBA macros. Your operating system may automatically deactivate these macros.
B11: 6 | C11: Outputs: a dynamic graph that shows changes in population counts across time | J11: To activate them, first copy the file to your local hard-drive, and then, in Windows Explorer,
B12: 7 | C12: Data: exposure counts | J12: right-click on the file name, and then click "Properties". Lastly, check the "unblock" box.
B13: 8 | C13: Data: death counts from CDC WONDER, by year, sex, age, and category of death
B14: 9 | C14: Data: the MP-2021 mortality improvement rate scale | J14: Reporting Lag
B15: 10 | C15: Data: information about each source of data | J15: The death count data in this tool was downloaded on June 4, 2025. The SOA estimates that the
B16: 11 | C16: An example that illustrates the importance of age-standardization | J16: data is effectively complete through Nov 2024. More recent data has a lower level of
B17: 12 | C17: User guide | J17: completeness. For example, data for Dec 2024 is about 99.8% complete, and 99.7%, 99.5%,
J18: and 98.2% for January, February and March of 2025, respectively. The rate of data maturation
B19: The tool disaggregates death counts into the following mutually-exclusive categories: | J19: varies by both age and cause of death. Roughly speaking, data for older ages matures at a
J20: faster rate than for younger ages. In addition, data for deaths caused by accidents, assaults,
B21: # | C21: Category | D21: Abbreviation | F21: ICD Codes | J21: and suicides matures at a slow rate than for other causes of death.
B23: 0 | C23: Total | D23: Total | F23: All codes | J23: This tool places no restrictions on using data that is incomplete. In addition, the tool provides
B24: 1 | C24: Alzheimer's/Dementia | D24: Alz/Dem | F24: G30 | J24: the ability to estimate final death counts by dividing by estimated completion rates. However,
B25: 2 | C25: Cancer | D25: Cancer | F25: C00-C97 | J25: keep in mind that the more recent data, the greater the level of uncertainty associated with the
B26: 3 | C26: COVID | D26: COVID | F26: U071 | J26: estimated final counts. If you wish, this tool will automatically alert you if you use incomplete data.
B27: 4 | C27: Diabetes | D27: Diabetes | F27: E10-E14 | J27: To enable automatic alerts, set cell J5 of this worksheet to "Yes".
B28: 5 | C28: Flu/Pneumonia | D28: Flu/Pneum | F28: J09-J18
B29: 6 | C29: Heart Disease | D29: Heart | F29: I00-I09, I11, I13, I20-I51
B30: 7 | C30: Hypertension | D30: Hyperten | F30: I10, I12, I15
B31: 8 | C31: Chronic Liver Disease and Cirrhosis | D31: Liver | F31: K70, K73-K74
B32: 9 | C32: Pulmonary | D32: =C32 -> Pulmonary | F32: J40-J47
B33: 10 | C33: Stroke | D33: Stroke | F33: I60-I69
B34: 11 | C34: Accidents | D34: Accidents | F34: V01-X59, Y85-Y86
B35: 12 | C35: Assault | D35: Assault | F35: U01-U02, X85-Y09, Y87.1
B36: 13 | C36: Suicide | D36: Suicide | F36: U03, X60-X84, Y87.0
B37: 14 | C37: Other | D37: Other | F37: Contains all other ICD codes not listed above

Sheet 1 Time Series - Death Rates
B2: Time Series of Death Rates for User-Specified Ages or Age Groups
B3: You may specify up to 100 different age-sex groups in the table of parameters that begins on row 21. You may leave rows blank if you wish. For example, if you only wish to run a single case, then use row 21, and leave all subsequent rows blank.
M6: List of Available Metrics
B7: Specify the Time Period Across Which to Produce Output | M7: A | N7: actual death rate
B8: 2019 | C8: 12 | D8: First year/month to output | M8: E | N8: expected death rate, using data from specified base year
B9: 2025 | C9: 3 | D9: Last year/month to output | M9: (A / E) - 1 | N9: actual divided by expected death rate, minus 1.00
C10: 1 | D10: Across this date range, produce output every N months | M10: A_MI | N10: actual rate of mortality improvement (1 - A / A_lag) | R10: A_lag = same as A, but lagged by 12 months
M11: E_MI | N11: expected rate of mortality improvement (1 - E / E_lag) | R11: E_lag = same as E, but lagged by 12 months
M12: A_MI_tot | N12: total mortality improvement (1 - A / A_base) | R12: A_base = the value of A in the base year
M13: E_MI_tot | N13: total expected mortality improvement (1 - E / E_base) | R13: E_base = the value of E in the base year
M14: % of Total | N14: actual death rate as % of actual death rate for all causes
L17: Trailing
E18: Parameters for | L18: Period | M18: Parameters for
E19: Age-Standardization | L19: (Months) | M19: Expected Death Rates
E20: Use | I20: Use Data | L20: Used to | M20: Base | N20: Base
C21: Age | D21: Age | E21: Standardized | F21: Standard | H21: Causes of | I21: Completion | J21: Exposure | K21: Mortality | L21: Calculate | M21: Period | N21: Period | O21: Mort | P21: Show on | Q21: Graph
B22: Case | C22: Min | D22: Max | E22: Population | F22: Year | G22: Sex | H22: Death | I22: Factors? | J22: Source | K22: Metric | L22: the Metric | M22: First Yr | N22: Last Yr | O22: Improve | P22: Graph? | Q22: Label | R22: 2019-12-16 | S22: 2020-01-16 | T22: 2020-02-16 | U22: 2020-03-16 | V22: 2020-04-16 | W22: 2020-05-16 | X22: 2020-06-16 | Y22: 2020-07-16 | Z22: 2020-08-16 | AA22: 2020-09-16 | AB22: 2020-10-16 | AC22: 2020-11-16 | AD22: 2020-12-16 | AE22: 2021-01-16 | AF22: 2021-02-16 | AG22: 2021-03-16 | AH22: 2021-04-16 | AI22: 2021-05-16 | AJ22: 2021-06-16 | AK22: 2021-07-16 | AL22: 2021-08-16 | AM22: 2021-09-16 | AN22: 2021-10-16 | AO22: 2021-11-16 | AP22: 2021-12-16 | AQ22: 2022-01-16 | AR22: 2022-02-16 | AS22: 2022-03-16 | AT22: 2022-04-16 | AU22: 2022-05-16 | AV22: 2022-06-16 | AW22: 2022-07-16 | AX22: 2022-08-16 | AY22: 2022-09-16 | AZ22: 2022-10-16 | BA22: 2022-11-16 | BB22: 2022-12-16 | BC22: 2023-01-16 | BD22: 2023-02-16 | BE22: 2023-03-16 | BF22: 2023-04-16 | BG22: 2023-05-16 | BH22: 2023-06-16 | BI22: 2023-07-16 | BJ22: 2023-08-16 | BK22: 2023-09-16 | BL22: 2023-10-16 | BM22: 2023-11-16 | BN22: 2023-12-16 | BO22: 2024-01-16 | BP22: 2024-02-16 | BQ22: 2024-03-16 | BR22: 2024-04-16 | BS22: 2024-05-16 | BT22: 2024-06-16 | BU22: 2024-07-16 | BV22: 2024-08-16 | BW22: 2024-09-16 | BX22: 2024-10-16 | BY22: 2024-11-16 | BZ22: 2024-12-16 | CA22: 2025-01-16 | CB22: 2025-02-16 | CC22: 2025-03-16
B24: 1 | C24: 0 | D24: 99 | E24: Y | F24: 2019 | G24: T | H24: Total | I24: Y | J24: HMD | K24: (A / E) - 1 | L24: 12 | M24: 2019 | N24: 2019 | O24: None | P24: Y | Q24: Total | R24: 0 | S24: 0.0007615262875 | T24: 0.003372939536 | U24: 0.006996712647 | V24: 0.03566756845 | W24: 0.04936558008 | X24: 0.05678687617 | Y24: 0.07274576277 | Z24: 0.0888010934 | AA24: 0.09956422448 | AB24: 0.1109979972 | AC24: 0.1318545043 | AD24: 0.1691129804 | AE24: 0.2059580684 | AF24: 0.2181220353 | AG24: 0.2177225798 | AH24: 0.1944222003 | AI24: 0.1858221889 | AJ24: 0.1828116477 | AK24: 0.1744096279 | AL24: 0.1823627055 | AM24: 0.2001005709 | AN24: 0.2077382505 | AO24: 0.2017053068 | AP24: 0.184238255 | AQ24: 0.1814921349 | AR24: 0.1827608645 | AS24: 0.1804132313 | AT24: 0.1752389967 | AU24: 0.1723531634 | AV24: 0.1718776971 | AW24: 0.1711506397 | AX24: 0.1543429196 | AY24: 0.1319051683 | AZ24: 0.1184524521 | BA24: 0.1098440737 | BB24: 0.1017238796 | BC24: 0.0730715096 | BD24: 0.05749653652 | BE24: 0.05596304685 | BF24: 0.0562158376 | BG24: 0.05377599597 | BH24: 0.04958629608 | BI24: 0.04327021912 | BJ24: 0.03845805675 | BK24: 0.03448037058 | BL24: 0.0303275343 | BM24: 0.02495792508 | BN24: 0.01747226529 | BO24: 0.0173429884 | BP24: 0.01749009639 | BQ24: 0.01364049688 | BR24: 0.01067539398 | BS24: 0.00791687239 | BT24: 0.006295747589 | BU24: 0.004735292867 | BV24: 0.002794292523 | BW24: -9.926805069e-05 | BX24: -0.003265734296 | BY24: -0.008296874352 | BZ24: -0.01290963124 | CA24: -0.01320787054 | CB24: -0.01090807002 | CC24: -0.008051476441
B25: 2 | C25: 0 | D25: 19 | E25: Y | F25: 2019 | G25: T | H25: Total | I25: Y | J25: HMD | K25: (A / E) - 1 | L25: 12 | M25: 2019 | N25: 2019 | O25: None | P25: N | Q25: 0 to 19 | R25: 0 | S25: 0.006026775576 | T25: 0.01125684194 | U25: 0.008099914528 | V25: 0.003719781293 | W25: 0.00449235132 | X25: 0.006284887437 | Y25: 0.01285803225 | Z25: 0.01687619649 | AA25: 0.01967174374 | AB25: 0.02297633141 | AC25: 0.02629034035 | AD25: 0.02287129685 | AE25: 0.02184238099 | AF25: 0.01703657396 | AG25: 0.02380966209 | AH25: 0.03467909992 | AI25: 0.04067431763 | AJ25: 0.04426999018 | AK25: 0.04589225724 | AL25: 0.05120757595 | AM25: 0.05971490964 | AN25: 0.06850414723 | AO25: 0.07131970674 | AP25: 0.0820427835 | AQ25: 0.08349360526 | AR25: 0.08771877736 | AS25: 0.088292934 | AT25: 0.08507972211 | AU25: 0.08528460562 | AV25: 0.08600972593 | AW25: 0.08968640864 | AX25: 0.09163955599 | AY25: 0.08799066395 | AZ25: 0.08943182975 | BA25: 0.09604866058 | BB25: 0.09691990912 | BC25: 0.1026567742 | BD25: 0.1016431674 | BE25: 0.1056001037 | BF25: 0.1099809408 | BG25: 0.1084922031 | BH25: 0.1070661098 | BI25: 0.1028182134 | BJ25: 0.09996932745 | BK25: 0.09598589689 | BL25: 0.09052468091 | BM25: 0.08066084981 | BN25: 0.07926419377 | BO25: 0.07537519932 | BP25: 0.07933484018 | BQ25: 0.07549719512 | BR25: 0.06914612651 | BS25: 0.06675446779 | BT25: 0.06250786781 | BU25: 0.06108153984 | BV25: 0.05433000252 | BW25: 0.05251956731 | BX25: 0.04864376411 | BY25: 0.04897959158 | BZ25: 0.03936444595 | CA25: 0.03390688449 | CB25: 0.02782229148 | CC25: 0.0246531181
B26: 3 | C26: 20 | D26: 49 | E26: Y | F26: 2019 | G26: T | H26: Total | I26: Y | J26: HMD | K26: (A / E) - 1 | L26: 12 | M26: 2019 | N26: 2019 | O26: None | P26: N | Q26: 20 to 49 | R26: 0 | S26: 0.005484207533 | T26: 0.01211812254 | U26: 0.02049957775 | V26: 0.04571539164 | W26: 0.06998544931 | X26: 0.09139428288 | Y26: 0.1202137992 | Z26: 0.1454017013 | AA26: 0.163445875 | AB26: 0.1816226244 | AC26: 0.2013694048 | AD26: 0.2276104093 | AE26: 0.2594899833 | AF26: 0.275690943 | AG26: 0.2892665863 | AH26: 0.2898046374 | AI26: 0.291166544 | AJ26: 0.2929618657 | AK26: 0.290936321 | AL26: 0.3192737103 | AM26: 0.3613210618 | AN26: 0.3865513206 | AO26: 0.3950321972 | AP26: 0.4025209546 | AQ26: 0.4099006355 | AR26: 0.4122325182 | AS26: 0.4081674516 | AT26: 0.3974769115 | AU26: 0.38825351 | AV26: 0.3820944428 | AW26: 0.3748623729 | AX26: 0.3377790749 | AY26: 0.2940154374 | AZ26: 0.2664347887 | BA26: 0.2533244789 | BB26: 0.2373489439 | BC26: 0.2106676996 | BD26: 0.1983416677 | BE26: 0.1924085617 | BF26: 0.1911009997 | BG26: 0.1890341043 | BH26: 0.1835066229 | BI26: 0.1778660417 | BJ26: 0.1742485911 | BK26: 0.1676824242 | BL26: 0.1597875059 | BM26: 0.1503642946 | BN26: 0.138913244 | BO26: 0.1322581172 | BP26: 0.1283075064 | BQ26: 0.1196944565 | BR26: 0.1118599847 | BS26: 0.1021759883 | BT26: 0.09352967143 | BU26: 0.08107770979 | BV26: 0.06883520633 | BW26: 0.05741024762 | BX26: 0.04863195866 | BY26: 0.03926322237 | BZ26: 0.03080354072 | CA26: 0.02560305223 | CB26: 0.01960225962 | CC26: 0.01685180329
B27: 4 | C27: 50 | D27: 59 | E27: Y | F27: 2019 | G27: T | H27: Total | I27: Y | J27: HMD | K27: (A / E) - 1 | L27: 12 | M27: 2019 | N27: 2019 | O27: None | P27: N | Q27: 50 to 59 | R27: 0 | S27: -0.0008883092669 | T27: 0.001856073504 | U27: 0.004693594296 | V27: 0.02927051485 | W27: 0.04387070611 | X27: 0.05580776185 | Y27: 0.07499939203 | Z27: 0.09445387125 | AA27: 0.1067239195 | AB27: 0.1194360033 | AC27: 0.1356048435 | AD27: 0.1660930067 | AE27: 0.1999733001 | AF27: 0.2153025866 | AG27: 0.2218033522 | AH27: 0.2109838724 | AI27: 0.2089153826 | AJ27: 0.2077325135 | AK27: 0.199783057 | AL27: 0.223126471 | AM27: 0.2619561553 | AN27: 0.2835273147 | AO27: 0.2891263068 | AP27: 0.2878828943 | AQ27: 0.293409884 | AR27: 0.2938790023 | AS27: 0.2879357338 | AT27: 0.2763835192 | AU27: 0.2676380873 | AV27: 0.2619916201 | AW27: 0.2561239898 | AX27: 0.2194982022 | AY27: 0.1745583713 | AZ27: 0.1458087415 | BA27: 0.1299444139 | BB27: 0.1099832803 | BC27: 0.07225501537 | BD27: 0.05363410339 | BE27: 0.04907446355 | BF27: 0.04946310818 | BG27: 0.04597913846 | BH27: 0.04113130271 | BI27: 0.03601695225 | BJ27: 0.03164933994 | BK27: 0.02542200312 | BL27: 0.01979127526 | BM27: 0.01284308825 | BN27: 0.004200072028 | BO27: 0.00258733891 | BP27: 0.001635823166 | BQ27: -0.003324745921 | BR27: -0.01027689688 | BS27: -0.01541021373 | BT27: -0.01833690889 | BU27: -0.02435083874 | BV27: -0.0288891755 | BW27: -0.03302060068 | BX27: -0.03732500598 | BY27: -0.04261256382 | BZ27: -0.04835664853 | CA27: -0.04998189583 | CB27: -0.04927418754 | CC27: -0.04904383048
B28: 5 | C28: 60 | D28: 99 | E28: Y | F28: 2019 | G28: T | H28: Total | I28: Y | J28: HMD | K28: (A / E) - 1 | L28: 12 | M28: 2019 | N28: 2019 | O28: None | P28: Y | Q28: 60+ | R28: 0 | S28: 0.0003862997401 | T28: 0.002540168585 | U28: 0.005902967881 | V28: 0.03595801815 | W28: 0.04874204844 | X28: 0.05437911302 | Y28: 0.06887495518 | Z28: 0.08386312425 | AA28: 0.0938821137 | AB28: 0.1046517491 | AC28: 0.1264528185 | AD28: 0.1662759483 | AE28: 0.204612866 | AF28: 0.2163267583 | AG28: 0.2136507779 | AH28: 0.1859989166 | AI28: 0.1754279733 | AJ28: 0.1716218591 | AK28: 0.1623627096 | AL28: 0.1666325331 | AM28: 0.1797798425 | AN28: 0.1841046363 | AO28: 0.175183475 | AP28: 0.1529430598 | AQ28: 0.1481989026 | AR28: 0.1494000405 | AS28: 0.147571817 | AT28: 0.1436196119 | AU28: 0.141958952 | AV28: 0.1426001191 | AW28: 0.1430113465 | AX28: 0.1300847977 | AY28: 0.1119322926 | AZ28: 0.1013176963 | BA28: 0.09369450808 | BB28: 0.08751288801 | BC28: 0.05907076597 | BD28: 0.04325752705 | BE28: 0.04239833727 | BF28: 0.04271677509 | BG28: 0.04034029692 | BH28: 0.03630686924 | BI28: 0.02975313179 | BJ28: 0.02473850921 | BK28: 0.02126801386 | BL28: 0.01767252758 | BM28: 0.01295857411 | BN28: 0.005885198247 | BO28: 0.00663179718 | BP28: 0.007238380611 | BQ28: 0.003982083872 | BR28: 0.002002998255 | BS28: 0.0001866499224 | BT28: -0.0005495737423 | BU28: -0.0005409269943 | BV28: -0.001090798876 | BW28: -0.00302349031 | BX28: -0.005497108679 | BY28: -0.01016723271 | BZ28: -0.01418557484 | CA28: -0.01376009453 | CB28: -0.01031536143 | CC28: -0.006505555008
B29: 6
B30: 7
B31: 8
B32: 9
B33: 10
B34: 11
B35: 12
B36: 13
B37: 14
B38: 15
B39: 16
B40: 17
B41: 18
B42: 19
B43: 20
B44: 21
B45: 22
B46: 23
B47: 24
B48: 25
B49: 26
B50: 27
B51: 28
B52: 29
B53: 30
B54: 31
B55: 32
B56: 33
B57: 34
B58: 35
B59: 36
B60: 37
B61: 38
B62: 39
B63: 40
B64: 41
B65: 42
B66: 43
B67: 44
B68: 45
B69: 46
B70: 47
B71: 48
B72: 49
B73: 50
B74: 51
B75: 52
B76: 53
B77: 54
B78: 55
B79: 56
B80: 57
B81: 58
B82: 59
B83: 60
B84: 61
B85: 62
B86: 63
B87: 64
B88: 65
B89: 66
B90: 67
B91: 68
B92: 69
B93: 70
B94: 71
B95: 72
B96: 73
B97: 74
B98: 75
B99: 76
B100: 77
B101: 78
B102: 79
B103: 80
B104: 81
B105: 82
B106: 83
B107: 84
B108: 85
B109: 86
B110: 87
B111: 88
B112: 89
B113: 90
B114: 91
B115: 92
B116: 93
B117: 94
B118: 95
B119: 96
B120: 97
B121: 98
B122: 99
B123: 100
AC126: Manually Set Range of Y-Axis
R127: This graph is redrawn each time you press the RUN button | AD127: Min | AE127: Leave one or both of these cells blank if you want
AD128: Max | AE128: Excel to automatically set the Y-axis range.
R149: 2019-12-16 | S149: 2020-01-16 | T149: 2020-02-16 | U149: 2020-03-16 | V149: 2020-04-16 | W149: 2020-05-16 | X149: 2020-06-16 | Y149: 2020-07-16 | Z149: 2020-08-16 | AA149: 2020-09-16 | AB149: 2020-10-16 | AC149: 2020-11-16 | AD149: 2020-12-16 | AE149: 2021-01-16 | AF149: 2021-02-16 | AG149: 2021-03-16 | AH149: 2021-04-16 | AI149: 2021-05-16 | AJ149: 2021-06-16 | AK149: 2021-07-16 | AL149: 2021-08-16 | AM149: 2021-09-16 | AN149: 2021-10-16 | AO149: 2021-11-16 | AP149: 2021-12-16 | AQ149: 2022-01-16 | AR149: 2022-02-16 | AS149: 2022-03-16 | AT149: 2022-04-16 | AU149: 2022-05-16 | AV149: 2022-06-16 | AW149: 2022-07-16 | AX149: 2022-08-16 | AY149: 2022-09-16 | AZ149: 2022-10-16 | BA149: 2022-11-16 | BB149: 2022-12-16 | BC149: 2023-01-16 | BD149: 2023-02-16 | BE149: 2023-03-16 | BF149: 2023-04-16 | BG149: 2023-05-16 | BH149: 2023-06-16 | BI149: 2023-07-16 | BJ149: 2023-08-16 | BK149: 2023-09-16 | BL149: 2023-10-16 | BM149: 2023-11-16 | BN149: 2023-12-16 | BO149: 2024-01-16 | BP149: 2024-02-16 | BQ149: 2024-03-16 | BR149: 2024-04-16 | BS149: 2024-05-16 | BT149: 2024-06-16 | BU149: 2024-07-16 | BV149: 2024-08-16 | BW149: 2024-09-16 | BX149: 2024-10-16 | BY149: 2024-11-16 | BZ149: 2024-12-16 | CA149: 2025-01-16 | CB149: 2025-02-16 | CC149: 2025-03-16
Q150: Total | R150: 0 | S150: 0.0007615262875 | T150: 0.003372939536 | U150: 0.006996712647 | V150: 0.03566756845 | W150: 0.04936558008 | X150: 0.05678687617 | Y150: 0.07274576277 | Z150: 0.0888010934 | AA150: 0.09956422448 | AB150: 0.1109979972 | AC150: 0.1318545043 | AD150: 0.1691129804 | AE150: 0.2059580684 | AF150: 0.2181220353 | AG150: 0.2177225798 | AH150: 0.1944222003 | AI150: 0.1858221889 | AJ150: 0.1828116477 | AK150: 0.1744096279 | AL150: 0.1823627055 | AM150: 0.2001005709 | AN150: 0.2077382505 | AO150: 0.2017053068 | AP150: 0.184238255 | AQ150: 0.1814921349 | AR150: 0.1827608645 | AS150: 0.1804132313 | AT150: 0.1752389967 | AU150: 0.1723531634 | AV150: 0.1718776971 | AW150: 0.1711506397 | AX150: 0.1543429196 | AY150: 0.1319051683 | AZ150: 0.1184524521 | BA150: 0.1098440737 | BB150: 0.1017238796 | BC150: 0.0730715096 | BD150: 0.05749653652 | BE150: 0.05596304685 | BF150: 0.0562158376 | BG150: 0.05377599597 | BH150: 0.04958629608 | BI150: 0.04327021912 | BJ150: 0.03845805675 | BK150: 0.03448037058 | BL150: 0.0303275343 | BM150: 0.02495792508 | BN150: 0.01747226529 | BO150: 0.0173429884 | BP150: 0.01749009639 | BQ150: 0.01364049688 | BR150: 0.01067539398 | BS150: 0.00791687239 | BT150: 0.006295747589 | BU150: 0.004735292867 | BV150: 0.002794292523 | BW150: -9.926805069e-05 | BX150: -0.003265734296 | BY150: -0.008296874352 | BZ150: -0.01290963124 | CA150: -0.01320787054 | CB150: -0.01090807002 | CC150: -0.008051476441
Q151: 60+ | R151: 0 | S151: 0.0003862997401 | T151: 0.002540168585 | U151: 0.005902967881 | V151: 0.03595801815 | W151: 0.04874204844 | X151: 0.05437911302 | Y151: 0.06887495518 | Z151: 0.08386312425 | AA151: 0.0938821137 | AB151: 0.1046517491 | AC151: 0.1264528185 | AD151: 0.1662759483 | AE151: 0.204612866 | AF151: 0.2163267583 | AG151: 0.2136507779 | AH151: 0.1859989166 | AI151: 0.1754279733 | AJ151: 0.1716218591 | AK151: 0.1623627096 | AL151: 0.1666325331 | AM151: 0.1797798425 | AN151: 0.1841046363 | AO151: 0.175183475 | AP151: 0.1529430598 | AQ151: 0.1481989026 | AR151: 0.1494000405 | AS151: 0.147571817 | AT151: 0.1436196119 | AU151: 0.141958952 | AV151: 0.1426001191 | AW151: 0.1430113465 | AX151: 0.1300847977 | AY151: 0.1119322926 | AZ151: 0.1013176963 | BA151: 0.09369450808 | BB151: 0.08751288801 | BC151: 0.05907076597 | BD151: 0.04325752705 | BE151: 0.04239833727 | BF151: 0.04271677509 | BG151: 0.04034029692 | BH151: 0.03630686924 | BI151: 0.02975313179 | BJ151: 0.02473850921 | BK151: 0.02126801386 | BL151: 0.01767252758 | BM151: 0.01295857411 | BN151: 0.005885198247 | BO151: 0.00663179718 | BP151: 0.007238380611 | BQ151: 0.003982083872 | BR151: 0.002002998255 | BS151: 0.0001866499224 | BT151: -0.0005495737423 | BU151: -0.0005409269943 | BV151: -0.001090798876 | BW151: -0.00302349031 | BX151: -0.005497108679 | BY151: -0.01016723271 | BZ151: -0.01418557484 | CA151: -0.01376009453 | CB151: -0.01031536143 | CC151: -0.006505555008

Sheet 2 Time Series - Life Expectancy
B2: Time Series of Period Life Expectancies for User-Specified Ages
B3: You may specify up to 100 different age-sex groups. For each group, this tool computes a time series of period life expectancies based on mortality rates computed from the trailing 12 months of data.
B7: Specify the Time Period Across Which to Produce Output
B8: 2019 | C8: 12 | D8: First year/month to output
B9: 2025 | C9: 3 | D9: Last year/month to output
C10: 1 | D10: Across this date range, produce output every N months
I16: Parameters for
I17: Expected Death Rates
F18: Use Data | I18: Base | J18: Base
F19: Completion | G19: Exposure | H19: Life | I19: Period | J19: Period | K19: Mort | L19: Show on | M19: Graph
B20: Case | C20: Age | D20: Sex | E20: Cause | F20: Factors? | G20: Source | H20: Expectancy | I20: First Yr | J20: Last Yr | K20: Improve | L20: Graph? | M20: Label | N20: 2019-12-16 | O20: 2020-01-16 | P20: 2020-02-16 | Q20: 2020-03-16 | R20: 2020-04-16 | S20: 2020-05-16 | T20: 2020-06-16 | U20: 2020-07-16 | V20: 2020-08-16 | W20: 2020-09-16 | X20: 2020-10-16 | Y20: 2020-11-16 | Z20: 2020-12-16 | AA20: 2021-01-16 | AB20: 2021-02-16 | AC20: 2021-03-16 | AD20: 2021-04-16 | AE20: 2021-05-16 | AF20: 2021-06-16 | AG20: 2021-07-16 | AH20: 2021-08-16 | AI20: 2021-09-16 | AJ20: 2021-10-16 | AK20: 2021-11-16 | AL20: 2021-12-16 | AM20: 2022-01-16 | AN20: 2022-02-16 | AO20: 2022-03-16 | AP20: 2022-04-16 | AQ20: 2022-05-16 | AR20: 2022-06-16 | AS20: 2022-07-16 | AT20: 2022-08-16 | AU20: 2022-09-16 | AV20: 2022-10-16 | AW20: 2022-11-16 | AX20: 2022-12-16 | AY20: 2023-01-16 | AZ20: 2023-02-16 | BA20: 2023-03-16 | BB20: 2023-04-16 | BC20: 2023-05-16 | BD20: 2023-06-16 | BE20: 2023-07-16 | BF20: 2023-08-16 | BG20: 2023-09-16 | BH20: 2023-10-16 | BI20: 2023-11-16 | BJ20: 2023-12-16 | BK20: 2024-01-16 | BL20: 2024-02-16 | BM20: 2024-03-16 | BN20: 2024-04-16 | BO20: 2024-05-16 | BP20: 2024-06-16 | BQ20: 2024-07-16 | BR20: 2024-08-16 | BS20: 2024-09-16 | BT20: 2024-10-16 | BU20: 2024-11-16 | BV20: 2024-12-16 | BW20: 2025-01-16 | BX20: 2025-02-16 | BY20: 2025-03-16
B22: 1 | C22: 65 | D22: F | E22: Total | F22: Y | G22: HMD | H22: Actual | I22: 2019 | J22: 2019 | K22: None | L22: Y | M22: F | N22: 20.58967209 | O22: 20.58255577 | P22: 20.55924034 | Q22: 20.53712654 | R22: 20.33281136 | S22: 20.23887444 | T22: 20.1982975 | U22: 20.09902191 | V22: 19.99238968 | W22: 19.92073059 | X22: 19.84617805 | Y22: 19.70862961 | Z22: 19.47291565 | AA22: 19.25230408 | AB22: 19.19205856 | AC22: 19.20106888 | AD22: 19.35836792 | AE22: 19.42152977 | AF22: 19.44304276 | AG22: 19.49264336 | AH22: 19.46657372 | AI22: 19.38462639 | AJ22: 19.35249138 | AK22: 19.401968 | AL22: 19.52734184 | AM22: 19.55340958 | AN22: 19.53999329 | AO22: 19.5498848 | AP22: 19.57040787 | AQ22: 19.58065414 | AR22: 19.57411766 | AS22: 19.5737114 | AT22: 19.650774 | AU22: 19.76566696 | AV22: 19.83526802 | AW22: 19.87759972 | AX22: 19.9141922 | AY22: 20.09075546 | AZ22: 20.19410515 | BA22: 20.20108795 | BB22: 20.19714355 | BC22: 20.21424103 | BD22: 20.24121666 | BE22: 20.28921509 | BF22: 20.32579803 | BG22: 20.35268593 | BH22: 20.3789978 | BI22: 20.41320419 | BJ22: 20.46076393 | BK22: 20.45298958 | BL22: 20.44216156 | BM22: 20.46178627 | BN22: 20.4749279 | BO22: 20.48375893 | BP22: 20.49027443 | BQ22: 20.48604393 | BR22: 20.49178123 | BS22: 20.5022068 | BT22: 20.51593399 | BU22: 20.54890251 | BV22: 20.58213043 | BW22: 20.57880211 | BX22: 20.55280113 | BY22: 20.51920891
B23: 2 | C23: 65 | D23: M | E23: Total | F23: Y | G23: HMD | H23: Actual | I23: 2019 | J23: 2019 | K23: None | L23: Y | M23: M | N23: 18.01511955 | O23: 18.01159477 | P23: 18.00014496 | Q23: 17.96834946 | R23: 17.7340889 | S23: 17.65107727 | T23: 17.61110687 | U23: 17.50085258 | V23: 17.39248085 | W23: 17.32290268 | X23: 17.24589157 | Y23: 17.08444595 | Z23: 16.79260445 | AA23: 16.51853371 | AB23: 16.42146683 | AC23: 16.43286705 | AD23: 16.60098457 | AE23: 16.65949249 | AF23: 16.68215752 | AG23: 16.75152588 | AH23: 16.71878624 | AI23: 16.62473106 | AJ23: 16.59331512 | AK23: 16.65492249 | AL23: 16.8103199 | AM23: 16.85033417 | AN23: 16.84716606 | AO23: 16.86499405 | AP23: 16.90225029 | AQ23: 16.91701317 | AR23: 16.9210701 | AS23: 16.92139053 | AT23: 17.02124214 | AU23: 17.15770149 | AV23: 17.24116325 | AW23: 17.30734062 | AX23: 17.36676025 | AY23: 17.596838 | AZ23: 17.73247337 | BA23: 17.74445724 | BB23: 17.74520493 | BC23: 17.76312447 | BD23: 17.79153061 | BE23: 17.83654785 | BF23: 17.87447166 | BG23: 17.89782524 | BH23: 17.92211342 | BI23: 17.95555687 | BJ23: 18.00836754 | BK23: 18.0014286 | BL23: 17.9992981 | BM23: 18.02576256 | BN23: 18.04180717 | BO23: 18.05801392 | BP23: 18.06391335 | BQ23: 18.06561661 | BR23: 18.06760025 | BS23: 18.08614159 | BT23: 18.10718536 | BU23: 18.1438427 | BV23: 18.16939926 | BW23: 18.16641617 | BX23: 18.14267731 | BY23: 18.11476135
B24: 3
B25: 4
B26: 5
B27: 6
B28: 7
B29: 8
B30: 9
B31: 10
B32: 11
B33: 12
B34: 13
B35: 14
B36: 15
B37: 16
B38: 17
B39: 18
B40: 19
B41: 20
B42: 21
B43: 22
B44: 23
B45: 24
B46: 25
B47: 26
B48: 27
B49: 28
B50: 29
B51: 30
B52: 31
B53: 32
B54: 33
B55: 34
B56: 35
B57: 36
B58: 37
B59: 38
B60: 39
B61: 40
B62: 41
B63: 42
B64: 43
B65: 44
B66: 45
B67: 46
B68: 47
B69: 48
B70: 49
B71: 50
B72: 51
B73: 52
B74: 53
B75: 54
B76: 55
B77: 56
B78: 57
B79: 58
B80: 59
B81: 60
B82: 61
B83: 62
B84: 63
B85: 64
B86: 65
B87: 66
B88: 67
B89: 68
B90: 69
B91: 70
B92: 71
B93: 72
B94: 73
B95: 74
B96: 75
B97: 76
B98: 77
B99: 78
B100: 79
B101: 80
B102: 81
B103: 82
B104: 83
B105: 84
B106: 85
B107: 86
B108: 87
B109: 88
B110: 89
B111: 90
B112: 91
B113: 92
B114: 93
B115: 94
B116: 95
B117: 96
B118: 97
B119: 98
B120: 99
B121: 100
N124: This graph is redrawn each time you press the RUN button
Y126: Manually Set Range of Y-Axis
Y127: 15 | Z127: Min | AA127: Leave one or both of these cells blank if you want
Z128: Max | AA128: Excel to automatically set the Y-axis range.
N148: 2019-12-16 | O148: 2020-01-16 | P148: 2020-02-16 | Q148: 2020-03-16 | R148: 2020-04-16 | S148: 2020-05-16 | T148: 2020-06-16 | U148: 2020-07-16 | V148: 2020-08-16 | W148: 2020-09-16 | X148: 2020-10-16 | Y148: 2020-11-16 | Z148: 2020-12-16 | AA148: 2021-01-16 | AB148: 2021-02-16 | AC148: 2021-03-16 | AD148: 2021-04-16 | AE148: 2021-05-16 | AF148: 2021-06-16 | AG148: 2021-07-16 | AH148: 2021-08-16 | AI148: 2021-09-16 | AJ148: 2021-10-16 | AK148: 2021-11-16 | AL148: 2021-12-16 | AM148: 2022-01-16 | AN148: 2022-02-16 | AO148: 2022-03-16 | AP148: 2022-04-16 | AQ148: 2022-05-16 | AR148: 2022-06-16 | AS148: 2022-07-16 | AT148: 2022-08-16 | AU148: 2022-09-16 | AV148: 2022-10-16 | AW148: 2022-11-16 | AX148: 2022-12-16 | AY148: 2023-01-16 | AZ148: 2023-02-16 | BA148: 2023-03-16 | BB148: 2023-04-16 | BC148: 2023-05-16 | BD148: 2023-06-16 | BE148: 2023-07-16 | BF148: 2023-08-16 | BG148: 2023-09-16 | BH148: 2023-10-16 | BI148: 2023-11-16 | BJ148: 2023-12-16 | BK148: 2024-01-16 | BL148: 2024-02-16 | BM148: 2024-03-16 | BN148: 2024-04-16 | BO148: 2024-05-16 | BP148: 2024-06-16 | BQ148: 2024-07-16 | BR148: 2024-08-16 | BS148: 2024-09-16 | BT148: 2024-10-16 | BU148: 2024-11-16 | BV148: 2024-12-16 | BW148: 2025-01-16 | BX148: 2025-02-16 | BY148: 2025-03-16
M149: F | N149: 20.58967209 | O149: 20.58255577 | P149: 20.55924034 | Q149: 20.53712654 | R149: 20.33281136 | S149: 20.23887444 | T149: 20.1982975 | U149: 20.09902191 | V149: 19.99238968 | W149: 19.92073059 | X149: 19.84617805 | Y149: 19.70862961 | Z149: 19.47291565 | AA149: 19.25230408 | AB149: 19.19205856 | AC149: 19.20106888 | AD149: 19.35836792 | AE149: 19.42152977 | AF149: 19.44304276 | AG149: 19.49264336 | AH149: 19.46657372 | AI149: 19.38462639 | AJ149: 19.35249138 | AK149: 19.401968 | AL149: 19.52734184 | AM149: 19.55340958 | AN149: 19.53999329 | AO149: 19.5498848 | AP149: 19.57040787 | AQ149: 19.58065414 | AR149: 19.57411766 | AS149: 19.5737114 | AT149: 19.650774 | AU149: 19.76566696 | AV149: 19.83526802 | AW149: 19.87759972 | AX149: 19.9141922 | AY149: 20.09075546 | AZ149: 20.19410515 | BA149: 20.20108795 | BB149: 20.19714355 | BC149: 20.21424103 | BD149: 20.24121666 | BE149: 20.28921509 | BF149: 20.32579803 | BG149: 20.35268593 | BH149: 20.3789978 | BI149: 20.41320419 | BJ149: 20.46076393 | BK149: 20.45298958 | BL149: 20.44216156 | BM149: 20.46178627 | BN149: 20.4749279 | BO149: 20.48375893 | BP149: 20.49027443 | BQ149: 20.48604393 | BR149: 20.49178123 | BS149: 20.5022068 | BT149: 20.51593399 | BU149: 20.54890251 | BV149: 20.58213043 | BW149: 20.57880211 | BX149: 20.55280113 | BY149: 20.51920891
M150: M | N150: 18.01511955 | O150: 18.01159477 | P150: 18.00014496 | Q150: 17.96834946 | R150: 17.7340889 | S150: 17.65107727 | T150: 17.61110687 | U150: 17.50085258 | V150: 17.39248085 | W150: 17.32290268 | X150: 17.24589157 | Y150: 17.08444595 | Z150: 16.79260445 | AA150: 16.51853371 | AB150: 16.42146683 | AC150: 16.43286705 | AD150: 16.60098457 | AE150: 16.65949249 | AF150: 16.68215752 | AG150: 16.75152588 | AH150: 16.71878624 | AI150: 16.62473106 | AJ150: 16.59331512 | AK150: 16.65492249 | AL150: 16.8103199 | AM150: 16.85033417 | AN150: 16.84716606 | AO150: 16.86499405 | AP150: 16.90225029 | AQ150: 16.91701317 | AR150: 16.9210701 | AS150: 16.92139053 | AT150: 17.02124214 | AU150: 17.15770149 | AV150: 17.24116325 | AW150: 17.30734062 | AX150: 17.36676025 | AY150: 17.596838 | AZ150: 17.73247337 | BA150: 17.74445724 | BB150: 17.74520493 | BC150: 17.76312447 | BD150: 17.79153061 | BE150: 17.83654785 | BF150: 17.87447166 | BG150: 17.89782524 | BH150: 17.92211342 | BI150: 17.95555687 | BJ150: 18.00836754 | BK150: 18.0014286 | BL150: 17.9992981 | BM150: 18.02576256 | BN150: 18.04180717 | BO150: 18.05801392 | BP150: 18.06391335 | BQ150: 18.06561661 | BR150: 18.06760025 | BS150: 18.08614159 | BT150: 18.10718536 | BU150: 18.1438427 | BV150: 18.16939926 | BW150: 18.16641617 | BX150: 18.14267731 | BY150: 18.11476135

Sheet 3 Time Series - Counts
B2: Time Series of Deaths and Exposure Counts
B3: You may specify up to 100 different age-sex groups. Note that the CDC supresses specific death counts below 10. In these cases, we impute assign a value of "4" to the supressed data cell.
B7: Specify the Time Period Across Which to Produce Output
B8: 2024 | C8: 1 | D8: First year/month to output
B9: 2025 | C9: 3 | D9: Last year/month to output
C10: 1 | D10: Across this date range, produce output every N months
G14: Use Data | J14: Trailing | CI14: =CI18/CI19 -> 
C15: Age | D15: Age | F15: Cause of | G15: Completion | H15: Exposure | I15: Data to | J15: Period | K15: Show on | L15: Graph
B16: Case | C16: Min | D16: Max | E16: Sex | F16: Death | G16: Factors? | H16: Source | I16: Output | J16: (Months) | K16: Graph? | L16: Label | M16: 2024-01-15 | N16: 2024-02-15 | O16: 2024-03-15 | P16: 2024-04-15 | Q16: 2024-05-15 | R16: 2024-06-15 | S16: 2024-07-15 | T16: 2024-08-15 | U16: 2024-09-15 | V16: 2024-10-15 | W16: 2024-11-15 | X16: 2024-12-15 | Y16: 2025-01-15 | Z16: 2025-02-15 | AA16: 2025-03-15
B18: 1 | C18: 0 | D18: 99 | E18: T | F18: Alz/Dem | G18: N | H18: HMD | I18: Deaths | J18: 1 | M18: 11175 | N18: 9392 | O18: 9466 | P18: 9217 | Q18: 8896 | R18: 8634 | S18: 8924 | T18: 9203 | U18: 8966 | V18: 9283 | W18: 9395 | X18: 10717 | Y18: 11514 | Z18: 10263 | AA18: 10245
B19: 2 | C19: 0 | D19: 99 | E19: T | F19: Cancer | G19: N | H19: HMD | I19: Deaths | J19: 1 | M19: 53071 | N19: 49363 | O19: 52081 | P19: 49988 | Q19: 51189 | R19: 49810 | S19: 52129 | T19: 52570 | U19: 50766 | V19: 52325 | W19: 51041 | X19: 53602 | Y19: 54646 | Z19: 48836 | AA19: 52705
B20: 3 | C20: 0 | D20: 99 | E20: T | F20: COVID | G20: N | H20: HMD | I20: Deaths | J20: 1 | M20: 6975 | N20: 3954 | O20: 2656 | P20: 1338 | Q20: 950 | R20: 1095 | S20: 2255 | T20: 3607 | U20: 3274 | V20: 2235 | W20: 1406 | X20: 1876 | Y20: 3010 | Z20: 2076 | AA20: 1517
B21: 4 | C21: 0 | D21: 99 | E21: T | F21: Diabetes | G21: N | H21: HMD | I21: Deaths | J21: 1 | M21: 9352 | N21: 7989 | O21: 8071 | P21: 7626 | Q21: 7538 | R21: 7375 | S21: 7512 | T21: 7452 | U21: 7210 | V21: 7694 | W21: 7627 | X21: 8636 | Y21: 9570 | Z21: 8387 | AA21: 8225
B22: 5 | C22: 0 | D22: 99 | E22: T | F22: Flu/Pneum | G22: N | H22: HMD | I22: Deaths | J22: 1 | M22: 7195 | N22: 4957 | O22: 4708 | P22: 3855 | Q22: 3474 | R22: 3096 | S22: 3150 | T22: 2981 | U22: 2963 | V22: 3351 | W22: 3328 | X22: 4962 | Y22: 8575 | Z22: 9560 | AA22: 6617
B23: 6 | C23: 0 | D23: 99 | E23: T | F23: Heart | G23: N | H23: HMD | I23: Deaths | J23: 1 | M23: 65006 | N23: 55813 | O23: 58085 | P23: 54773 | Q23: 55295 | R23: 52783 | S23: 53743 | T23: 53567 | U23: 51917 | V23: 55199 | W23: 54491 | X23: 61435 | Y23: 66395 | Z23: 58505 | AA23: 59147
B24: 7 | C24: 0 | D24: 99 | E24: T | F24: Hyperten | G24: N | H24: HMD | I24: Deaths | J24: 1 | M24: 4141 | N24: 3487 | O24: 3701 | P24: 3299 | Q24: 3269 | R24: 3246 | S24: 3416 | T24: 3317 | U24: 3104 | V24: 3433 | W24: 3307 | X24: 3895 | Y24: 4244 | Z24: 3687 | AA24: 3855
B25: 8 | C25: 0 | D25: 99 | E25: T | F25: Liver | G25: N | H25: HMD | I25: Deaths | J25: 1 | M25: 4815 | N25: 4260 | O25: 4338 | P25: 4244 | Q25: 4116 | R25: 4102 | S25: 4215 | T25: 4301 | U25: 4221 | V25: 4566 | W25: 4323 | X25: 4729 | Y25: 4712 | Z25: 4313 | AA25: 4484
B26: 9 | C26: 0 | D26: 99 | E26: T | F26: Pulmonary | G26: N | H26: HMD | I26: Deaths | J26: 1 | M26: 14810 | N26: 12591 | O26: 13070 | P26: 12239 | Q26: 12206 | R26: 11635 | S26: 11314 | T26: 11156 | U26: 10700 | V26: 11519 | W26: 11355 | X26: 13186 | Y26: 15361 | Z26: 13919 | AA26: 14192
B27: 10 | C27: 0 | D27: 99 | E27: T | F27: Stroke | G27: N | H27: HMD | I27: Deaths | J27: 1 | M27: 15579 | N27: 13629 | O27: 13989 | P27: 13488 | Q27: 13415 | R27: 12851 | S27: 12821 | T27: 13175 | U27: 12908 | V27: 13877 | W27: 13503 | X27: 15132 | Y27: 15908 | Z27: 14259 | AA27: 14900
B28: 11 | C28: 0 | D28: 99 | E28: T | F28: Accidents | G28: N | H28: HMD | I28: Deaths | J28: 1 | M28: 17859 | N28: 16001 | O28: 16610 | P28: 16276 | Q28: 16893 | R28: 16913 | S28: 17141 | T28: 16461 | U28: 15177 | V28: 15754 | W28: 14663 | X28: 0 | Y28: 0 | Z28: 0 | AA28: 0
B29: 12 | C29: 0 | D29: 99 | E29: T | F29: Assault | G29: N | H29: HMD | I29: Deaths | J29: 1 | M29: 1703 | N29: 1604 | O29: 1665 | P29: 1663 | Q29: 1828 | R29: 1844 | S29: 1858 | T29: 1745 | U29: 1676 | V29: 1741 | W29: 1545 | X29: 0 | Y29: 0 | Z29: 0 | AA29: 0
B30: 13 | C30: 0 | D30: 99 | E30: T | F30: Suicide | G30: N | H30: HMD | I30: Deaths | J30: 1 | M30: 4035 | N30: 3837 | O30: 4068 | P30: 4170 | Q30: 4336 | R30: 4122 | S30: 4355 | T30: 4411 | U30: 4046 | V30: 4002 | W30: 3787 | X30: 0 | Y30: 0 | Z30: 0 | AA30: 0
B31: 14 | C31: 0 | D31: 99 | E31: T | F31: Other | G31: N | H31: HMD | I31: Deaths | J31: 1 | M31: 75358 | N31: 65272 | O31: 67643 | P31: 63977 | Q31: 63796 | R31: 61993 | S31: 62848 | T31: 63741 | U31: 62242 | V31: 66677 | W31: 65164 | X31: 93649 | Y31: 101656 | Z31: 90353 | AA31: 94760
B32: 15 | C32: 0 | D32: 99 | E32: T | F32: Total | G32: N | H32: HMD | I32: Deaths | J32: 1 | M32: 291074 | N32: 252149 | O32: 260151 | P32: 246153 | Q32: 247201 | R32: 239499 | S32: 245681 | T32: 247687 | U32: 239170 | V32: 251656 | W32: 244935 | X32: 271819 | Y32: 295591 | Z32: 264158 | AA32: 270647
B33: 16 | C33: 0 | D33: 99 | E33: T | F33: Total Exc COVID | G33: N | H33: HMD | I33: Deaths | J33: 1 | M33: 284099 | N33: 248195 | O33: 257495 | P33: 244815 | Q33: 246251 | R33: 238404 | S33: 243426 | T33: 244080 | U33: 235896 | V33: 249421 | W33: 243529 | X33: 269943 | Y33: 292581 | Z33: 262082 | AA33: 269130
B34: 17
B35: 18
B36: 19
B37: 20
B38: 21
B39: 22
B40: 23
B41: 24
B42: 25
B43: 26
B44: 27
B45: 28
B46: 29
B47: 30
B48: 31
B49: 32
B50: 33
B51: 34
B52: 35
B53: 36
B54: 37
B55: 38
B56: 39
B57: 40
B58: 41
B59: 42
B60: 43
B61: 44
B62: 45
B63: 46
B64: 47
B65: 48
B66: 49
B67: 50
B68: 51
B69: 52
B70: 53
B71: 54
B72: 55
B73: 56
B74: 57
B75: 58
B76: 59
B77: 60
B78: 61
B79: 62
B80: 63
B81: 64
B82: 65
B83: 66
B84: 67
B85: 68
B86: 69
B87: 70
B88: 71
B89: 72
B90: 73
B91: 74
B92: 75
B93: 76
B94: 77
B95: 78
B96: 79
B97: 80
B98: 81
B99: 82
B100: 83
B101: 84
B102: 85
B103: 86
B104: 87
B105: 88
B106: 89
B107: 90
B108: 91
B109: 92
B110: 93
B111: 94
B112: 95
B113: 96
B114: 97
B115: 98
B116: 99
B117: 100
M123: This graph is redrawn each time you press the RUN button
X125: Manually Set Range of Y-Axis
Y126: Min | Z126: Leave one or both of these cells blank if you want
Y127: Max | Z127: Excel to automatically set the Y-axis range.

Sheet 4 Age Series -- Death Rates
B2: Death Rates Across a Series of Ages, for a User-Specified Year
B3: You may specify up to 100 different age-sex groups. For each group, this tool computes death rates by single age or age groups, for a user-specified year.
K6: List of Available Metrics
B7: Specify the Age Range Across Which to Produce Outputs | K7: A | L7: actual death rate
B8: 20 | C8: First age to output | K8: E | L8: expected death rate, using data from specified base year
B9: 99 | C9: Last age to output | K9: (A / E) - 1 | L9: actual divided by expected death rate, minus 1.00
B10: 5 | C10: Produce output every Nth age | K10: A_MI | L10: actual rate of mortality improvement (1 - A / A_lag) | P10: A_lag = same as A, but lagged by 12 months
B11: Yes | C11: Use age groups? "No" = single ages; "Yes" = use groupings of N-ages. | K11: E_MI | L11: expected rate of mortality improvement (1 - E / E_lag) | P11: E_lag = same as E, but lagged by 12 months
B12: Yes | C12: If using age groups, also use age-standardization? | K12: A_MI_tot | L12: total mortality improvement (1 - A / A_base) | P12: A_base = the value of A in the base year
K13: E_MI_tot | L13: total expected mortality improvement (1 - E / E_base) | P13: E_base = the value of E in the base year
K14: % of Total | L14: actual death rate as % of actual death rate for all causes
K17: Parameters for
K18: Expected Death Rates | P18: The age labels below are the lower boundaries of each age group
E19: Trailing | H19: Use Data | K19: Base | L19: Base
E20: Period | G20: Causes of | H20: Completion | I20: Exposure | J20: Mortality | K20: Period | L20: Period | M20: Mort | N20: Show on | O20: Graph
B21: Case | C21: Year | D21: Month | E21: (Months) | F21: Sex | G21: Death | H21: Factors? | I21: Source | J21: Metric | K21: First Yr | L21: Last Yr | M21: Improve | N21: Graph? | O21: Label | P21: 20 | Q21: 25 | R21: 30 | S21: 35 | T21: 40 | U21: 45 | V21: 50 | W21: 55 | X21: 60 | Y21: 65 | Z21: 70 | AA21: 75 | AB21: 80 | AC21: 85 | AD21: 90 | AE21: 95
B23: 1 | C23: 2023 | D23: 3 | E23: 12 | F23: T | G23: Total | H23: Y | I23: HMD | J23: (A / E) - 1 | K23: 2019 | L23: 2019 | M23: None | N23: Y | O23: =C23 -> 2023 | P23: 0.1254129559 | Q23: 0.1842375845 | R23: 0.2495411783 | S23: 0.226907298 | T23: 0.2409849763 | U23: 0.1338955462 | V23: 0.07009694725 | W23: 0.03620406985 | X23: 0.05457527936 | Y23: 0.06560535729 | Z23: 0.03476398066 | AA23: 0.04595372826 | AB23: 0.05977265909 | AC23: 0.03179075569 | AD23: 0.01928830333 | AE23: 0.02660673484
B24: 2 | C24: 2024 | D24: 3 | E24: 12 | F24: T | G24: Total | H24: Y | I24: HMD | J24: (A / E) - 1 | K24: 2019 | L24: 2019 | M24: None | N24: Y | O24: 2024 | P24: 0.04005596414 | Q24: 0.05908198655 | R24: 0.1513537318 | S24: 0.1581067145 | T24: 0.188384518 | U24: 0.08393384516 | V24: 0.02058376931 | W24: -0.01796217076 | X24: 0.01173328981 | Y24: 0.0346917361 | Z24: 0.004327123985 | AA24: -0.006910739001 | AB24: 0.02644441277 | AC24: 0.004295536783 | AD24: -0.02603730746 | AE24: -0.02801574394
B25: 3 | C25: 2025 | D25: 3 | E25: 12 | F25: T | G25: Total | H25: Y | I25: HMD | J25: (A / E) - 1 | K25: 2019 | L25: 2019 | M25: None | N25: Y | O25: =C25 -> 2025 | P25: -0.07820002735 | Q25: -0.08818857372 | R25: -0.01383938361 | S25: 0.05048334599 | T25: 0.100343205 | U25: 0.02856904082 | V25: -0.02292465419 | W25: -0.06503450125 | X25: -0.01016512606 | Y25: 0.02158564515 | Z25: -0.004234530497 | AA25: -0.01988703012 | AB25: 0.0172117278 | AC25: -0.003324776655 | AD25: -0.0295310095 | AE25: -0.04121099412
B26: 4
B27: 5
B28: 6
B29: 7
B30: 8
B31: 9
B32: 10
B33: 11
B34: 12
B35: 13
B36: 14
B37: 15
B38: 16
B39: 17
B40: 18
B41: 19
B42: 20
B43: 21
B44: 22
B45: 23
B46: 24
B47: 25
B48: 26
B49: 27
B50: 28
B51: 29
B52: 30
B53: 31
B54: 32
B55: 33
B56: 34
B57: 35
B58: 36
B59: 37
B60: 38
B61: 39
B62: 40
B63: 41
B64: 42
B65: 43
B66: 44
B67: 45
B68: 46
B69: 47
B70: 48
B71: 49
B72: 50
B73: 51
B74: 52
B75: 53
B76: 54
B77: 55
B78: 56
B79: 57
B80: 58
B81: 59
B82: 60
B83: 61
B84: 62
B85: 63
B86: 64
B87: 65
B88: 66
B89: 67
B90: 68
B91: 69
B92: 70
B93: 71
B94: 72
B95: 73
B96: 74
B97: 75
B98: 76
B99: 77
B100: 78
B101: 79
B102: 80
B103: 81
B104: 82
B105: 83
B106: 84
B107: 85
B108: 86
B109: 87
B110: 88
B111: 89
B112: 90
B113: 91
B114: 92
B115: 93
B116: 94
B117: 95
B118: 96
B119: 97
B120: 98
B121: 99
B122: 100
P126: This graph is redrawn each time you press the RUN button
AA128: Manually Set Range of Y-Axis
AB129: Min | AC129: Leave one or both of these cells blank if you want
AB130: Max | AC130: Excel to automatically set the Y-axis range.
P149: 20 | Q149: 25 | R149: 30 | S149: 35 | T149: 40 | U149: 45 | V149: 50 | W149: 55 | X149: 60 | Y149: 65 | Z149: 70 | AA149: 75 | AB149: 80 | AC149: 85 | AD149: 90 | AE149: 95
O150: 2023 | P150: 0.1254129559 | Q150: 0.1842375845 | R150: 0.2495411783 | S150: 0.226907298 | T150: 0.2409849763 | U150: 0.1338955462 | V150: 0.07009694725 | W150: 0.03620406985 | X150: 0.05457527936 | Y150: 0.06560535729 | Z150: 0.03476398066 | AA150: 0.04595372826 | AB150: 0.05977265909 | AC150: 0.03179075569 | AD150: 0.01928830333 | AE150: 0.02660673484
O151: 2024 | P151: 0.04005596414 | Q151: 0.05908198655 | R151: 0.1513537318 | S151: 0.1581067145 | T151: 0.188384518 | U151: 0.08393384516 | V151: 0.02058376931 | W151: -0.01796217076 | X151: 0.01173328981 | Y151: 0.0346917361 | Z151: 0.004327123985 | AA151: -0.006910739001 | AB151: 0.02644441277 | AC151: 0.004295536783 | AD151: -0.02603730746 | AE151: -0.02801574394
O152: 2025 | P152: -0.07820002735 | Q152: -0.08818857372 | R152: -0.01383938361 | S152: 0.05048334599 | T152: 0.100343205 | U152: 0.02856904082 | V152: -0.02292465419 | W152: -0.06503450125 | X152: -0.01016512606 | Y152: 0.02158564515 | Z152: -0.004234530497 | AA152: -0.01988703012 | AB152: 0.0172117278 | AC152: -0.003324776655 | AD152: -0.0295310095 | AE152: -0.04121099412

Sheet 5 Improvement Rates
B2: Calculate Rates of Mortality Improvement Using Regression Analysis
B3: This tool estimates annualized rates of mortality improvement, by age and sex, across a user-specified time period.
B4: Linear regression is applied to logged death rates. The slope of the regression line is the rate of geometric rate of mortality improvement multiplied by negative 1 (a slope of negative 1% indicates an improvement rate of positive 1%).
B5: Prior to running the regression, crude death rates can be smoothed using the "smoothing radius" parameter.
B6: For example, a smoothing radius of "2" means that the death rate for age 50 will be computed as the average rate across ages 48 to 52.
N10: SSA | O10: Exposure Dataset | R10: Metric #1
N11: M | O11: Sex | R11: The annualized rate of mortality improvement is
N12: 2011 | O12: First year in time period | R12: estimated using linear regression applied to the full time series
N13: 2019 | O13: Final year in time period | R13: of data from the first to the final year of the specified period.
N14: 20 | O14: Age range: lower boundary
N15: 90 | O15: Age range: upper boundary | R15: Metric #2
N16: 3 | O16: Age Radius | R16: Similar to metric #1, except only the first and final years
N17: Y | O17: Plot MP-2021 | R17: of data are used to determine the rate of mortality improvement
N18: 1 | O18: Select a Metric to Plot
O19: 1 = improvement rates, method 1
O20: 2 = improvement rates, method 2
O21: 3 = mort rates in final year as % of initial year
O22: 4 = mort rates in final year as % of initial year, minus 1.00
N24: Data on Graph
O25: M | P25: MP2021-M
N26: 20 | O26: -0.006599999964 | P26: -0.004876738154
N27: 21 | O27: -0.009100000374 | P27: -0.006488030379
N28: 22 | O28: -0.01260000002 | P28: -0.008583884216
N29: 23 | O29: -0.01669999957 | P29: -0.01125171962
N30: 24 | O30: -0.02109999955 | P30: -0.01436770361
N31: 25 | O31: -0.02539999969 | P31: -0.0177818919
N32: 26 | O32: -0.03009999916 | P32: -0.02132031435
N33: 27 | O33: -0.03420000151 | P33: -0.02479585531
N34: 28 | O34: -0.03680000082 | P34: -0.02810864511
N35: 29 | O35: -0.03889999911 | P35: -0.03113317726
N36: 30 | O36: -0.04050000012 | P36: -0.03375736445
N37: 31 | O37: -0.04140000045 | P37: -0.03594314728
N38: 32 | O38: -0.04199999943 | P38: -0.03761488934
N39: 33 | O39: -0.04239999875 | P39: -0.03872251972
N40: 34 | O40: -0.04199999943 | P40: -0.03922808593
N41: 35 | O41: -0.04190000147 | P41: -0.03898186057
N42: 36 | O42: -0.04060000181 | P42: -0.03797168814
N43: 37 | O43: -0.0390000008 | P43: -0.03616064057
N44: 38 | O44: -0.03610000014 | P44: -0.03357487844
N45: 39 | O45: -0.03220000118 | P45: -0.03029015067
N46: 40 | O46: -0.02810000069 | P46: -0.02640876252
N47: 41 | O47: -0.02410000004 | P47: -0.02214331799
N48: 42 | O48: -0.01970000006 | P48: -0.01765731991
N49: 43 | O49: -0.01549999975 | P49: -0.01317638507
N50: 44 | O50: -0.01040000003 | P50: -0.008862269003
N51: 45 | O51: -0.006000000052 | P51: -0.004914029993
N52: 46 | O52: -0.002499999944 | P52: -0.001504805831
N53: 47 | O53: 0.000699999975 | P53: 0.001353895057
N54: 48 | O54: 0.003500000108 | P54: 0.003576921919
N55: 49 | O55: 0.005900000222 | P55: 0.005115168646
N56: 50 | O56: 0.007499999832 | P56: 0.006019605688
N57: 51 | O57: 0.007400000002 | P57: 0.006289880991
N58: 52 | O58: 0.007199999876 | P58: 0.0060004507
N59: 53 | O59: 0.007100000046 | P59: 0.005237809423
N60: 54 | O60: 0.006000000052 | P60: 0.004063520566
N61: 55 | O61: 0.005200000014 | P61: 0.002614440582
N62: 56 | O62: 0.003800000064 | P62: 0.0009526753775
N63: 57 | O63: 0.0027999999 | P63: -0.0007594638772
N64: 58 | O64: 0.001700000023 | P64: -0.002384528342
N65: 59 | O65: 0.0005000000237 | P65: -0.00373485882
N66: 60 | O66: -0.0008999999845 | P66: -0.004722976561
N67: 61 | O67: -0.002099999925 | P67: -0.005210994458
N68: 62 | O68: -0.002899999963 | P68: -0.00514875442
N69: 63 | O69: -0.002899999963 | P69: -0.004548376811
N70: 64 | O70: -0.002400000114 | P70: -0.003447499923
N71: 65 | O71: -0.001099999994 | P71: -0.00198375252
N72: 66 | O72: 0.0001999999949 | P72: -0.0002449788402
N73: 67 | O73: 0.002000000095 | P73: 0.001580673498
N74: 68 | O74: 0.003800000064 | P74: 0.003405646118
N75: 69 | O75: 0.005299999844 | P75: 0.00506757354
N76: 70 | O76: 0.005299999844 | P76: 0.006529128157
N77: 71 | O77: 0.004999999888 | P77: 0.007690607185
N78: 72 | O78: 0.004600000102 | P78: 0.008589753247
N79: 73 | O79: 0.004600000102 | P79: 0.009189204332
N80: 74 | O80: 0.004499999806 | P80: 0.009526328641
N81: 75 | O81: 0.004900000058 | P81: 0.009651151684
N82: 76 | O82: 0.005100000184 | P82: 0.009601095808
N83: 77 | O83: 0.006099999882 | P83: 0.009426082831
N84: 78 | O84: 0.007199999876 | P84: 0.009176146549
N85: 79 | O85: 0.00820000004 | P85: 0.008888668661
N86: 80 | O86: 0.008799999952 | P86: 0.008563794396
N87: 81 | O87: 0.009100000374 | P87: 0.00820143623
N88: 82 | O88: 0.008600000292 | P88: 0.007801499059
N89: 83 | O89: 0.00810000021 | P89: 0.007439117009
N90: 84 | O90: 0.007199999876 | P90: 0.007064167373
N91: 85 | O91: 0.00549999997 | P91: 0.006651704357
N92: 86 | O92: 0.003800000064 | P92: 0.006289232659
N93: 87 | O93: 0.002400000114 | P93: 0.00597680347
N94: 88 | O94: 0.00139999995 | P94: 0.005676722244
N95: 89 | O95: 0.0003999999899 | P95: 0.005414159268
N96: 90 | O96: -0.0001999999949 | P96: 0.005239049007

Sheet 6 Population Graph
B2: A Graph that Depicts Changes in the Population Across Time
B3: Each time you change the graph's parameters, you must press "Load Data", after which you may use the plus/minus buttons to go forwards or backwards in time. Population counts are in 1000s.
W6: Data Plotted on Graph
W7: SSA | X7: HMD
V8: 0 | W8: 3821 | X8: 3763 | Y8: 3763
A9: 2019 | P9: 0 | Q9: First age to include | V9: 1 | W9: 3907 | X9: 3837 | Y9: 3837
P10: 99 | Q10: Last age to include | V10: 2 | W10: 3978 | X10: 3918 | Y10: 3918
F11: 2019 | P11: 1 | Q11: Size of age groups (1 = single age) | V11: 3 | W11: 4078 | X11: 3996 | Y11: 3996
P12: T | Q12: Sex | V12: 4 | W12: 4114 | X12: 4038 | Y12: 4038
P13: Y | Q13: Show SSA | V13: 5 | W13: 4097 | X13: 4038 | Y13: 4038
P14: Y | Q14: Show HMD | V14: 6 | W14: 4087 | X14: 4032 | Y14: 4032
P15: Line | Q15: Chart Type | V15: 7 | W15: 4095 | X15: 4042 | Y15: 4042
P16: 1 | Q16: Metric (1 = counts; 2 = counts as % of 2019 levels) | V16: 8 | W16: 4158 | X16: 4065 | Y16: 4065
P17: MOY | Q17: Beginning, middle or end-of-year data | V17: 9 | W17: 4224 | X17: 4074 | Y17: 4074
V18: 10 | W18: 4354 | X18: 4127 | Y18: 4127
V19: 11 | W19: 4502 | X19: 4218 | Y19: 4218
V20: 12 | W20: 4498 | X20: 4260 | Y20: 4260
V21: 13 | W21: 4395 | X21: 4237 | Y21: 4237
V22: 14 | W22: 4370 | X22: 4214 | Y22: 4214
V23: 15 | W23: 4384 | X23: 4201 | Y23: 4201
V24: 16 | W24: 4356 | X24: 4191 | Y24: 4191
V25: 17 | W25: 4339 | X25: 4204 | Y25: 4204
B26: Population counts are in 1000s | V26: 18 | W26: 4415 | X26: 4275 | Y26: 4275
V27: 19 | W27: 4418 | X27: 4317 | Y27: 4317
V28: 20 | W28: 4366 | X28: 4289 | Y28: 4289
V29: 21 | W29: 4355 | X29: 4280 | Y29: 4280
V30: 22 | W30: 4360 | X30: 4298 | Y30: 4298
V31: 23 | W31: 4382 | X31: 4348 | Y31: 4348
V32: 24 | W32: 4455 | X32: 4431 | Y32: 4431
V33: 25 | W33: 4523 | X33: 4517 | Y33: 4517
V34: 26 | W34: 4620 | X34: 4608 | Y34: 4608
V35: 27 | W35: 4734 | X35: 4711 | Y35: 4711
V36: 28 | W36: 4792 | X36: 4778 | Y36: 4778
V37: 29 | W37: 4817 | X37: 4742 | Y37: 4742
V38: 30 | W38: 4686 | X38: 4622 | Y38: 4622
V39: 31 | W39: 4589 | X39: 4513 | Y39: 4513
V40: 32 | W40: 4544 | X40: 4456 | Y40: 4456
V41: 33 | W41: 4557 | X41: 4456 | Y41: 4456
V42: 34 | W42: 4551 | X42: 4437 | Y42: 4437
V43: 35 | W43: 4433 | X43: 4378 | Y43: 4378
V44: 36 | W44: 4534 | X44: 4380 | Y44: 4380
V45: 37 | W45: 4516 | X45: 4378 | Y45: 4378
V46: 38 | W46: 4478 | X46: 4367 | Y46: 4367
V47: 39 | W47: 4432 | X47: 4320 | Y47: 4320
V48: 40 | W48: 4274 | X48: 4155 | Y48: 4155
V49: 41 | W49: 4153 | X49: 4056 | Y49: 4056
V50: 42 | W50: 4135 | X50: 3979 | Y50: 3979
V51: 43 | W51: 3974 | X51: 3935 | Y51: 3935
V52: 44 | W52: 4035 | X52: 3925 | Y52: 3925
V53: 45 | W53: 3924 | X53: 3884 | Y53: 3884
V54: 46 | W54: 4018 | X54: 3933 | Y54: 3933
V55: 47 | W55: 4181 | X55: 4088 | Y55: 4088
V56: 48 | W56: 4482 | X56: 4260 | Y56: 4260
V57: 49 | W57: 4379 | X57: 4288 | Y57: 4288
V58: 50 | W58: 4239 | X58: 4132 | Y58: 4132
V59: 51 | W59: 4125 | X59: 4045 | Y59: 4045
V60: 52 | W60: 4161 | X60: 4040 | Y60: 4040
V61: 53 | W61: 4232 | X61: 4137 | Y61: 4137
V62: 54 | W62: 4397 | X62: 4290 | Y62: 4290
V63: 55 | W63: 4506 | X63: 4362 | Y63: 4362
V64: 56 | W64: 4526 | X64: 4377 | Y64: 4377
V65: 57 | W65: 4511 | X65: 4380 | Y65: 4380
V66: 58 | W66: 4564 | X66: 4414 | Y66: 4414
V67: 59 | W67: 4437 | X67: 4387 | Y67: 4387
V68: 60 | W68: 4380 | X68: 4278 | Y68: 4278
V69: 61 | W69: 4346 | X69: 4225 | Y69: 4225
V70: 62 | W70: 4286 | X70: 4147 | Y70: 4147
V71: 63 | W71: 4105 | X71: 4037 | Y71: 4037
V72: 64 | W72: 4015 | X72: 3925 | Y72: 3925
V73: 65 | W73: 3874 | X73: 3775 | Y73: 3775
V74: 66 | W74: 3728 | X74: 3624 | Y74: 3624
V75: 67 | W75: 3575 | X75: 3478 | Y75: 3478
V76: 68 | W76: 3448 | X76: 3363 | Y76: 3363
V77: 69 | W77: 3271 | X77: 3247 | Y77: 3247
V78: 70 | W78: 3203 | X78: 3138 | Y78: 3138
V79: 71 | W79: 3128 | X79: 3121 | Y79: 3121
V80: 72 | W80: 3318 | X80: 2942 | Y80: 2942
V81: 73 | W81: 2342 | X81: 2540 | Y81: 2540
V82: 74 | W82: 2276 | X82: 2263 | Y82: 2263
V83: 75 | W83: 2201 | X83: 2204 | Y83: 2204
V84: 76 | W84: 2250 | X84: 2123 | Y84: 2123
V85: 77 | W85: 1909 | X85: 1923 | Y85: 1923
V86: 78 | W86: 1727 | X86: 1721 | Y86: 1721
V87: 79 | W87: 1581 | X87: 1583 | Y87: 1583
V88: 80 | W88: 1474 | X88: 1463 | Y88: 1463
V89: 81 | W89: 1373 | X89: 1354 | Y89: 1354
V90: 82 | W90: 1227 | X90: 1238 | Y90: 1238
V91: 83 | W91: 1137 | X91: 1138 | Y91: 1138
V92: 84 | W92: 1043 | X92: 1036 | Y92: 1036
V93: 85 | W93: 897 | X93: 903 | Y93: 903
V94: 86 | W94: 828 | X94: 815 | Y94: 815
V95: 87 | W95: 752 | X95: 739 | Y95: 739
V96: 88 | W96: 682 | X96: 664 | Y96: 664
V97: 89 | W97: 594 | X97: 581 | Y97: 581
V98: 90 | W98: 507 | X98: 497 | Y98: 497
V99: 91 | W99: 437 | X99: 425 | Y99: 425
V100: 92 | W100: 362 | X100: 352 | Y100: 352
V101: 93 | W101: 294 | X101: 284 | Y101: 284
V102: 94 | W102: 237 | X102: 226 | Y102: 226
V103: 95 | W103: 185 | X103: 174 | Y103: 174
V104: 96 | W104: 139 | X104: 129 | Y104: 129
V105: 97 | W105: 103 | X105: 94 | Y105: 94
V106: 98 | W106: 73 | X106: 66 | Y106: 66
V107: 99 | W107: 50 | X107: 43 | Y107: 43
C199: 0
C200: 0
C201: 0
C202: 0
C203: 0
C204: 0
C205: 0
C206: 0
C207: 0
C208: 0
C209: 0
C210: 0
C211: 0
C212: 0
C213: 0
C214: 0
C215: 0
C216: 0
C217: 0
C218: 0
C219: 0
C220: 0
C221: 0
C222: 0
C223: 0
C224: 0
C225: 0
C226: 0
C227: 0
C228: 0
C229: 0
C230: 0
C231: 0
C232: 0
C233: 0
C234: 0
C235: 0
C236: 0
C237: 0
C238: 0
C239: 0
C240: 0
C241: 0
C242: 0
C243: 0
C244: 0
C245: 0
C246: 0
C247: 0
C248: 0
C249: 0
C250: 0
C251: 0
C252: 0
C253: 0
C254: 0
C255: 0
C256: 0
C257: 0
C258: 0
C259: 0
C260: 0
C261: 0
C262: 0
C263: 0
C264: 0
C265: 0
C266: 0
C267: 0
C268: 0
C269: 0
C270: 0
C271: 0
C272: 0
C273: 0
C274: 0
C275: 0
C276: 0
C277: 0
C278: 0
C279: 0
C280: 0
C281: 0
C282: 0
C283: 0
C284: 0
C285: 0
C286: 0
C287: 0
C288: 0
C289: 0
C290: 0
C291: 0
C292: 0
C293: 0
C294: 0
... 4206 more rows

Sheet 7 Exposure Counts
B2: Population Counts by Sex, Age and Year
B4: SSA | C4: Counts from the Social Security Administration's 2024 Trustees Report. Unlike HMD and the Census, these counts include Puerto Rico and Guam.
B5: HMD | C5: Counts from the Human Mortality Database. The data for 2025 is imputed (imputed data appears in red font).
B10: Source | C10: Sex | D10: Year | E10: Total | F10: 0 | G10: 1 | H10: 2 | I10: 3 | J10: 4 | K10: 5 | L10: 6 | M10: 7 | N10: 8 | O10: 9 | P10: 10 | Q10: 11 | R10: 12 | S10: 13 | T10: 14 | U10: 15 | V10: 16 | W10: 17 | X10: 18 | Y10: 19 | Z10: 20 | AA10: 21 | AB10: 22 | AC10: 23 | AD10: 24 | AE10: 25 | AF10: 26 | AG10: 27 | AH10: 28 | AI10: 29 | AJ10: 30 | AK10: 31 | AL10: 32 | AM10: 33 | AN10: 34 | AO10: 35 | AP10: 36 | AQ10: 37 | AR10: 38 | AS10: 39 | AT10: 40 | AU10: 41 | AV10: 42 | AW10: 43 | AX10: 44 | AY10: 45 | AZ10: 46 | BA10: 47 | BB10: 48 | BC10: 49 | BD10: 50 | BE10: 51 | BF10: 52 | BG10: 53 | BH10: 54 | BI10: 55 | BJ10: 56 | BK10: 57 | BL10: 58 | BM10: 59 | BN10: 60 | BO10: 61 | BP10: 62 | BQ10: 63 | BR10: 64 | BS10: 65 | BT10: 66 | BU10: 67 | BV10: 68 | BW10: 69 | BX10: 70 | BY10: 71 | BZ10: 72 | CA10: 73 | CB10: 74 | CC10: 75 | CD10: 76 | CE10: 77 | CF10: 78 | CG10: 79 | CH10: 80 | CI10: 81 | CJ10: 82 | CK10: 83 | CL10: 84 | CM10: 85 | CN10: 86 | CO10: 87 | CP10: 88 | CQ10: 89 | CR10: 90 | CS10: 91 | CT10: 92 | CU10: 93 | CV10: 94 | CW10: 95 | CX10: 96 | CY10: 97 | CZ10: 98 | DA10: 99 | DB10: 100+
B12: SSA | C12: F | D12: 2000 | E12: =SUM(F12:DB12) -> 145467724 | F12: 1976921 | G12: 1947220 | H12: 1941614 | I12: 1947367 | J12: 1955962 | K12: 1991114 | L12: 2018018 | M12: 2047331 | N12: 2095388 | O12: 2116413 | P12: 2124101 | Q12: 2058668 | R12: 2006518 | S12: 1981881 | T12: 1980757 | U12: 1971701 | V12: 1923029 | W12: 1971739 | X12: 1972983 | Y12: 1960388 | Z12: 1963070 | AA12: 1911392 | AB12: 1868218 | AC12: 1865088 | AD12: 1799470 | AE12: 1842226 | AF12: 1817930 | AG12: 1874160 | AH12: 1976187 | AI12: 2138850 | AJ12: 2095217 | AK12: 2053822 | AL12: 2015171 | AM12: 2050538 | AN12: 2093169 | AO12: 2203147 | AP12: 2288813 | AQ12: 2319550 | AR12: 2331614 | AS12: 2361267 | AT12: 2321070 | AU12: 2328979 | AV12: 2313842 | AW12: 2299008 | AX12: 2221396 | AY12: 2184290 | AZ12: 2141227 | BA12: 2079739 | BB12: 2016579 | BC12: 1964260 | BD12: 1890414 | BE12: 1893071 | BF12: 1866491 | BG12: 1995672 | BH12: 1446816 | BI12: 1472194 | BJ12: 1479408 | BK12: 1541361 | BL12: 1345710 | BM12: 1266116 | BN12: 1209031 | BO12: 1191056 | BP12: 1169074 | BQ12: 1102514 | BR12: 1084889 | BS12: 1079132 | BT12: 1017663 | BU12: 1016902 | BV12: 1023273 | BW12: 1035773 | BX12: 1017056 | BY12: 1010118 | BZ12: 1001839 | CA12: 980460 | CB12: 962245 | CC12: 945940 | CD12: 918605 | CE12: 883365 | CF12: 849269 | CG12: 801574 | CH12: 736125 | CI12: 675959 | CJ12: 622630 | CK12: 570841 | CL12: 526979 | CM12: 487189 | CN12: 442943 | CO12: 392342 | CP12: 339224 | CQ12: 290161 | CR12: 248245 | CS12: 207971 | CT12: 169894 | CU12: 136014 | CV12: 107099 | CW12: 82639 | CX12: 61538 | CY12: 45012 | CZ12: 32565 | DA12: 23591 | DB12: 43330
B13: SSA | C13: F | D13: 2001 | E13: 146807281 | F13: 1992143 | G13: 1984274 | H13: 1959111 | I13: 1951955 | J13: 1956129 | K13: 1964321 | L13: 1998357 | M13: 2024547 | N13: 2054366 | O13: 2102222 | P13: 2124257 | Q13: 2133277 | R13: 2068027 | S13: 2017061 | T13: 1992859 | U13: 1992003 | V13: 1984397 | W13: 1936171 | X13: 1986058 | Y13: 1990009 | Z13: 1979217 | AA13: 1981080 | AB13: 1928468 | AC13: 1885564 | AD13: 1884899 | AE13: 1820337 | AF13: 1862610 | AG13: 1836273 | AH13: 1892868 | AI13: 1992813 | AJ13: 2153968 | AK13: 2109721 | AL13: 2065685 | AM13: 2025497 | AN13: 2059899 | AO13: 2102499 | AP13: 2211070 | AQ13: 2293790 | AR13: 2323533 | AS13: 2333955 | AT13: 2365100 | AU13: 2323934 | AV13: 2328323 | AW13: 2313471 | AX13: 2298409 | AY13: 2220681 | AZ13: 2183362 | BA13: 2138315 | BB13: 2076607 | BC13: 2012623 | BD13: 1961828 | BE13: 1887340 | BF13: 1886408 | BG13: 1860145 | BH13: 1989812 | BI13: 1442628 | BJ13: 1466645 | BK13: 1471895 | BL13: 1534143 | BM13: 1339369 | BN13: 1259766 | BO13: 1202388 | BP13: 1182396 | BQ13: 1159672 | BR13: 1092730 | BS13: 1074054 | BT13: 1066437 | BU13: 1003110 | BV13: 1001915 | BW13: 1006210 | BX13: 1016879 | BY13: 997077 | BZ13: 987092 | CA13: 977980 | CB13: 955030 | CC13: 935060 | CD13: 917402 | CE13: 888171 | CF13: 850847 | CG13: 814489 | CH13: 765017 | CI13: 698654 | CJ13: 637475 | CK13: 583001 | CL13: 530192 | CM13: 485007 | CN13: 443835 | CO13: 398993 | CP13: 349020 | CQ13: 297616 | CR13: 250641 | CS13: 210748 | CT13: 173235 | CU13: 138613 | CV13: 108583 | CW13: 83568 | CX13: 63002 | CY13: 45801 | CZ13: 32700 | DA13: 23071 | DB13: 43476
B14: SSA | C14: F | D14: 2002 | E14: 148154376 | F14: 1973427 | G14: 1998055 | H14: 1993813 | I14: 1970702 | J14: 1962657 | K14: 1965596 | L14: 1973232 | M14: 2005742 | N14: 2031216 | O14: 2061872 | P14: 2109811 | Q14: 2132983 | R14: 2143258 | S14: 2077868 | T14: 2027811 | U14: 2004292 | V14: 2004172 | W14: 1998377 | X14: 1951016 | Y14: 2002889 | Z14: 2009869 | AA14: 1999971 | AB14: 2000401 | AC14: 1947437 | AD14: 1904958 | AE14: 1906098 | AF14: 1842265 | AG14: 1884110 | AH14: 1855111 | AI14: 1911550 | AJ14: 2009337 | AK14: 2168881 | AL14: 2123978 | AM14: 2077246 | AN14: 2035514 | AO14: 2068997 | AP14: 2111597 | AQ14: 2218724 | AR14: 2298445 | AS14: 2327147 | AT14: 2335902 | AU14: 2368517 | AV14: 2326315 | AW14: 2327117 | AX14: 2312507 | AY14: 2297198 | AZ14: 2219372 | BA14: 2181832 | BB14: 2134811 | BC14: 2072927 | BD14: 2008197 | BE14: 1958957 | BF14: 1883820 | BG14: 1879277 | BH14: 1853286 | BI14: 1983385 | BJ14: 1438059 | BK14: 1460699 | BL14: 1463933 | BM14: 1526407 | BN14: 1332559 | BO14: 1252964 | BP14: 1195289 | BQ14: 1173257 | BR14: 1149715 | BS14: 1082356 | BT14: 1062608 | BU14: 1053121 | BV14: 987955 | BW14: 986228 | BX14: 988344 | BY14: 997007 | BZ14: 975978 | CA14: 962843 | CB14: 952711 | CC14: 928083 | CD14: 906240 | CE14: 887067 | CF14: 855826 | CG14: 816341 | CH14: 777639 | CI14: 726371 | CJ14: 659179 | CK14: 597131 | CL14: 541717 | CM14: 488181 | CN14: 442033 | CO14: 399911 | CP14: 354964 | CQ14: 306163 | CR14: 257052 | CS14: 212763 | CT14: 175515 | CU14: 141331 | CV14: 110603 | CW14: 84658 | CX14: 63601 | CY14: 46797 | CZ14: 33189 | DA14: 23104 | DB14: 43039
B15: SSA | C15: F | D15: 2003 | E15: 149465614 | F15: 1995296 | G15: 1980049 | H15: 2005935 | I15: 2002628 | J15: 1982149 | K15: 1973486 | L15: 1974933 | M15: 1981598 | N15: 2012517 | O15: 2037500 | P15: 2069188 | Q15: 2117269 | R15: 2141421 | S15: 2152665 | T15: 2086862 | U15: 2037657 | V15: 2015063 | W15: 2015993 | X15: 2012304 | Y15: 1966309 | Z15: 2020580 | AA15: 2030110 | AB15: 2020442 | AC15: 2019573 | AD15: 1966078 | AE15: 1923233 | AF15: 1925412 | AG15: 1861949 | AH15: 1903257 | AI15: 1871428 | AJ15: 1927498 | AK15: 2023133 | AL15: 2181043 | AM15: 2135625 | AN15: 2086279 | AO15: 2043119 | AP15: 2075761 | AQ15: 2118486 | AR15: 2224255 | AS15: 2301090 | AT15: 2328891 | AU15: 2336098 | AV15: 2370227 | AW15: 2327051 | AX15: 2324303 | AY15: 2310003 | AZ15: 2294473 | BA15: 2216603 | BB15: 2178924 | BC15: 2130024 | BD15: 2068044 | BE15: 2002634 | BF15: 1954960 | BG15: 1879220 | BH15: 1871095 | BI15: 1845399 | BJ15: 1975824 | BK15: 1432591 | BL15: 1453780 | BM15: 1454971 | BN15: 1517569 | BO15: 1324709 | BP15: 1245096 | BQ15: 1187089 | BR15: 1162984 | BS15: 1138651 | BT15: 1070966 | BU15: 1050158 | BV15: 1038766 | BW15: 971794 | BX15: 969434 | BY15: 969304 | BZ15: 975830 | CA15: 953458 | CB15: 937123 | CC15: 925818 | CD15: 899414 | CE15: 875583 | CF15: 854767 | CG15: 821498 | CH15: 779857 | CI15: 738785 | CJ15: 685745 | CK15: 617859 | CL15: 555166 | CM15: 499120 | CN15: 445229 | CO15: 398538 | CP15: 355971 | CQ15: 311518 | CR15: 264499 | CS15: 218230 | CT15: 177145 | CU15: 143086 | CV15: 112700 | CW15: 86173 | CX15: 64408 | CY15: 47212 | CZ15: 33899 | DA15: 23436 | DB15: 42739
B16: SSA | C16: F | D16: 2004 | E16: 150801878 | F16: 2027389 | G16: 2001803 | H16: 1988651 | I16: 2012982 | J16: 2011350 | K16: 1993897 | L16: 1984419 | M16: 1983944 | N16: 1989542 | O16: 2019074 | P16: 2043720 | Q16: 2076583 | R16: 2124754 | S16: 2149633 | T16: 2161767 | U16: 2095714 | V16: 2047513 | W16: 2025933 | X16: 2028121 | Y16: 2026902 | Z16: 1982440 | AA16: 2038519 | AB16: 2050337 | AC16: 2041037 | AD16: 2038562 | AE16: 1984005 | AF16: 1940295 | AG16: 1943246 | AH16: 1880054 | AI16: 1920684 | AJ16: 1886303 | AK16: 1942266 | AL16: 2035709 | AM16: 2191949 | AN16: 2146068 | AO16: 2094144 | AP16: 2049647 | AQ16: 2081501 | AR16: 2124382 | AS16: 2228814 | AT16: 2302802 | AU16: 2329741 | AV16: 2335421 | AW16: 2371045 | AX16: 2326915 | AY16: 2320636 | AZ16: 2306661 | BA16: 2290940 | BB16: 2213063 | BC16: 2175262 | BD16: 2124520 | BE16: 2062455 | BF16: 1996359 | BG16: 1950231 | BH16: 1873883 | BI16: 1862165 | BJ16: 1836744 | BK16: 1967359 | BL16: 1426374 | BM16: 1446042 | BN16: 1445153 | BO16: 1507754 | BP16: 1315921 | BQ16: 1236232 | BR16: 1177827 | BS16: 1151655 | BT16: 1126565 | BU16: 1058601 | BV16: 1036733 | BW16: 1023440 | BX16: 954715 | BY16: 951613 | BZ16: 949174 | CA16: 953444 | CB16: 929674 | CC16: 910190 | CD16: 897652 | CE16: 869473 | CF16: 843638 | CG16: 821090 | CH16: 785743 | CI16: 741938 | CJ16: 698567 | CK16: 643946 | CL16: 575665 | CM16: 512669 | CN16: 456357 | CO16: 402537 | CP16: 355826 | CQ16: 313438 | CR16: 270119 | CS16: 225460 | CT16: 182530 | CU16: 145137 | CV16: 114709 | CW16: 88351 | CX16: 66001 | CY16: 48178 | CZ16: 34473 | DA16: 24153 | DB16: 43266
B17: SSA | C17: F | D17: 2005 | E17: 152302976 | F17: 2034752 | G17: 2034619 | H17: 2011017 | I17: 1997497 | J17: 2021448 | K17: 2022277 | L17: 2007842 | M17: 1997287 | N17: 1994933 | O17: 1999709 | P17: 2028104 | Q17: 2052675 | R17: 2086894 | S17: 2135114 | T17: 2160727 | U17: 2174058 | V17: 2107957 | W17: 2060881 | X17: 2040544 | Y17: 2044411 | Z17: 2046034 | AA17: 2002761 | AB17: 2060325 | AC17: 2074900 | AD17: 2066373 | AE17: 2061974 | AF17: 2005846 | AG17: 1960874 | AH17: 1964442 | AI17: 1901262 | AJ17: 1940972 | AK17: 1903764 | AL17: 1959561 | AM17: 2050700 | AN17: 2205191 | AO17: 2158652 | AP17: 2104016 | AQ17: 2058129 | AR17: 2089245 | AS17: 2132249 | AT17: 2235243 | AU17: 2306244 | AV17: 2332182 | AW17: 2336163 | AX17: 2373123 | AY17: 2327904 | AZ17: 2318027 | BA17: 2304305 | BB17: 2288312 | BC17: 2210338 | BD17: 2172384 | BE17: 2119796 | BF17: 2057647 | BG17: 1990895 | BH17: 1946325 | BI17: 1869285 | BJ17: 1853864 | BK17: 1828553 | BL17: 1959297 | BM17: 1420515 | BN17: 1438671 | BO17: 1435577 | BP17: 1498037 | BQ17: 1307143 | BR17: 1227291 | BS17: 1168441 | BT17: 1140192 | BU17: 1114245 | BV17: 1045906 | BW17: 1022878 | BX17: 1007607 | BY17: 937128 | BZ17: 933156 | CA17: 928302 | CB17: 930176 | CC17: 904923 | CD17: 882232 | CE17: 868244 | CF17: 838165 | CG17: 810236 | CH17: 785839 | CI17: 748371 | CJ17: 702439 | CK17: 656849 | CL17: 600809 | CM17: 532406 | CN17: 469460 | CO17: 413291 | CP17: 360014 | CQ17: 313829 | CR17: 272241 | CS17: 230711 | CT17: 189036 | CU17: 149990 | CV17: 116723 | CW17: 90218 | CX17: 67924 | CY17: 49567 | CZ17: 35343 | DA17: 24680 | DB17: 44268
B18: SSA | C18: F | D18: 2006 | E18: 153912250 | F18: 2068296 | G18: 2042270 | H18: 2044870 | I18: 2020768 | J18: 2007959 | K18: 2032368 | L18: 2035691 | M18: 2023963 | N18: 2012305 | O18: 2008331 | P18: 2012523 | Q18: 2039998 | R18: 2064633 | S18: 2100104 | T18: 2148293 | U18: 2174847 | V18: 2189647 | W18: 2123553 | X18: 2077678 | Y18: 2058903 | Z18: 2064781 | AA18: 2069019 | AB18: 2026451 | AC18: 2085274 | AD18: 2101923 | AE18: 2093561 | AF18: 2086977 | AG18: 2029074 | AH18: 1982737 | AI18: 1986907 | AJ18: 1922772 | AK18: 1959717 | AL18: 1918907 | AM18: 1974672 | AN18: 2063669 | AO18: 2216567 | AP18: 2169647 | AQ18: 2112471 | AR18: 2065374 | AS18: 2095953 | AT18: 2139298 | AU18: 2241016 | AV18: 2309161 | AW18: 2334170 | AX18: 2336498 | AY18: 2374879 | AZ18: 2328668 | BA18: 2315269 | BB18: 2301830 | BC18: 2285578 | BD18: 2207562 | BE18: 2169516 | BF18: 2115139 | BG18: 2052932 | BH18: 1985542 | BI18: 1942572 | BJ18: 1864862 | BK18: 1845699 | BL18: 1820390 | BM18: 1951215 | BN18: 1414713 | BO18: 1431398 | BP18: 1426029 | BQ18: 1488228 | BR18: 1298176 | BS18: 1218112 | BT18: 1158790 | BU18: 1128392 | BV18: 1101505 | BW18: 1032724 | BX18: 1008418 | BY18: 991089 | BZ18: 918850 | CA18: 913853 | CB18: 906499 | CC18: 905849 | CD18: 878982 | CE18: 852990 | CF18: 837342 | CG18: 805261 | CH18: 775132 | CI18: 748753 | CJ18: 709178 | CK18: 661240 | CL18: 613595 | CM18: 556377 | CN18: 488180 | CO18: 425660 | CP18: 370056 | CQ18: 317812 | CR18: 272716 | CS18: 232540 | CT18: 193427 | CU18: 155336 | CV18: 120654 | CW18: 91815 | CX18: 69348 | CY18: 51003 | CZ18: 36344 | DA18: 25294 | DB18: 45341
B19: SSA | C19: F | D19: 2007 | E19: 155367974 | F19: 2134595 | G19: 2075013 | H19: 2052598 | I19: 2055143 | J19: 2031233 | K19: 2019613 | L19: 2044144 | M19: 2049276 | N19: 2040021 | O19: 2027337 | P19: 2021762 | Q19: 2025398 | R19: 2051870 | S19: 2076285 | T19: 2112781 | U19: 2160946 | V19: 2188503 | W19: 2204733 | X19: 2138616 | Y19: 2094079 | Z19: 2077004 | AA19: 2084500 | AB19: 2090284 | AC19: 2047527 | AD19: 2106890 | AE19: 2124498 | AF19: 2114715 | AG19: 2104188 | AH19: 2042857 | AI19: 1993656 | AJ19: 1996637 | AK19: 1931098 | AL19: 1965280 | AM19: 1921494 | AN19: 1977705 | AO19: 2065325 | AP19: 2217237 | AQ19: 2171110 | AR19: 2112173 | AS19: 2064525 | AT19: 2094899 | AU19: 2139115 | AV19: 2240141 | AW19: 2306031 | AX19: 2330663 | AY19: 2331849 | AZ19: 2372095 | BA19: 2325413 | BB19: 2308810 | BC19: 2295977 | BD19: 2279768 | BE19: 2202017 | BF19: 2164051 | BG19: 2108004 | BH19: 2045846 | BI19: 1977939 | BJ19: 1936677 | BK19: 1858494 | BL19: 1835736 | BM19: 1810568 | BN19: 1941403 | BO19: 1407612 | BP19: 1422805 | BQ19: 1415228 | BR19: 1477068 | BS19: 1287977 | BT19: 1207756 | BU19: 1147957 | BV19: 1115379 | BW19: 1087518 | BX19: 1018308 | BY19: 992690 | BZ19: 973247 | CA19: 899284 | CB19: 893128 | CC19: 883222 | CD19: 879940 | CE19: 851422 | CF19: 822233 | CG19: 804930 | CH19: 770906 | CI19: 738543 | CJ19: 710104 | CK19: 668484 | CL19: 618703 | CM19: 569261 | CN19: 511267 | CO19: 443777 | CP19: 382213 | CQ19: 327752 | CR19: 277168 | CS19: 233835 | CT19: 195754 | CU19: 159635 | CV19: 125518 | CW19: 95373 | CX19: 70936 | CY19: 52348 | CZ19: 37621 | DA19: 26177 | DB19: 46750
B20: SSA | C20: F | D20: 2008 | E20: 156462102 | F20: 2135645 | G20: 2140891 | H20: 2084131 | I20: 2062542 | J20: 2065279 | K20: 2041617 | L20: 2030589 | M20: 2054234 | N20: 2060631 | O20: 2053735 | P20: 2039801 | Q20: 2032310 | R20: 2034972 | S20: 2059841 | T20: 2083492 | U20: 2120635 | V20: 2168443 | W20: 2196607 | X20: 2213783 | Y20: 2147508 | Z20: 2103841 | AA20: 2086911 | AB20: 2093958 | AC20: 2099705 | AD20: 2055708 | AE20: 2114358 | AF20: 2132304 | AG20: 2121021 | AH20: 2106722 | AI20: 2042167 | AJ20: 1990438 | AK20: 1992157 | AL20: 1926460 | AM20: 1959566 | AN20: 1914162 | AO20: 1971291 | AP20: 2058213 | AQ20: 2209608 | AR20: 2165159 | AS20: 2105046 | AT20: 2057290 | AU20: 2087583 | AV20: 2132955 | AW20: 2233647 | AX20: 2297696 | AY20: 2322409 | AZ20: 2322867 | BA20: 2365300 | BB20: 2318555 | BC20: 2298983 | BD20: 2287002 | BE20: 2271050 | BF20: 2193760 | BG20: 2155998 | BH20: 2098387 | BI20: 2036370 | BJ20: 1968069 | BK20: 1928590 | BL20: 1850066 | BM20: 1823803 | BN20: 1798888 | BO20: 1929585 | BP20: 1398873 | BQ20: 1412414 | BR20: 1402621 | BS20: 1464006 | BT20: 1276085 | BU20: 1195706 | BV20: 1135393 | BW20: 1100621 | BX20: 1071756 | BY20: 1002123 | BZ20: 975107 | CA20: 953476 | CB20: 877878 | CC20: 870452 | CD20: 857960 | CE20: 851972 | CF20: 821812 | CG20: 789524 | CH20: 770473 | CI20: 734451 | CJ20: 699782 | CK20: 669212 | CL20: 625646 | CM20: 574233 | CN20: 523294 | CO20: 464934 | CP20: 398663 | CQ20: 338641 | CR20: 285975 | CS20: 237740 | CT20: 196867 | CU20: 161539 | CV20: 128941 | CW20: 99110 | CX20: 73562 | CY20: 53415 | CZ20: 38483 | DA20: 27000 | DB20: 48028
B21: SSA | C21: F | D21: 2009 | E21: 157494448 | F21: 2068667 | G21: 2145083 | H21: 2150706 | I21: 2094228 | J21: 2073897 | K21: 2077213 | L21: 2053532 | M21: 2042320 | N21: 2064736 | O21: 2072563 | P21: 2068084 | Q21: 2052820 | R21: 2043153 | S21: 2044381 | T21: 2067234 | U21: 2089888 | V21: 2127550 | W21: 2174930 | X21: 2203548 | Y21: 2221340 | Z21: 2154523 | AA21: 2110766 | AB21: 2092524 | AC21: 2098026 | AD21: 2103412 | AE21: 2058134 | AF21: 2115625 | AG21: 2133714 | AH21: 2121890 | AI21: 2105638 | AJ21: 2039699 | AK21: 1987262 | AL21: 1989559 | AM21: 1924546 | AN21: 1956615 | AO21: 1909517 | AP21: 1967545 | AQ21: 2053627 | AR21: 2204335 | AS21: 2161290 | AT21: 2099807 | AU21: 2051749 | AV21: 2081840 | AW21: 2128204 | AX21: 2228345 | AY21: 2290333 | AZ21: 2314915 | BA21: 2314465 | BB21: 2358952 | BC21: 2312002 | BD21: 2289342 | BE21: 2278090 | BF21: 2262278 | BG21: 2185374 | BH21: 2147780 | BI21: 2088610 | BJ21: 2026710 | BK21: 1957947 | BL21: 1920140 | BM21: 1841161 | BN21: 1811312 | BO21: 1786568 | BP21: 1916925 | BQ21: 1389377 | BR21: 1401137 | BS21: 1389099 | BT21: 1449926 | BU21: 1263179 | BV21: 1182573 | BW21: 1121728 | BX21: 1084755 | BY21: 1054805 | BZ21: 984682 | CA21: 956152 | CB21: 932262 | CC21: 855115 | CD21: 846344 | CE21: 831286 | CF21: 822549 | CG21: 790747 | CH21: 755428 | CI21: 734484 | CJ21: 696437 | CK21: 659497 | CL21: 626816 | CM21: 581459 | CN21: 528724 | CO21: 476746 | CP21: 418616 | CQ21: 354224 | CR21: 296417 | CS21: 246181 | CT21: 200880 | CU21: 163033 | CV21: 130978 | CW21: 102254 | CX21: 76807 | CY21: 55682 | CZ21: 39482 | DA21: 27767 | DB21: 49851
B22: SSA | C22: F | D22: 2010 | E22: 158706104 | F22: 1996004 | G22: 2076282 | H22: 2152908 | I22: 2157190 | J22: 2101383 | K22: 2082273 | L22: 2086159 | M22: 2062681 | N22: 2051453 | O22: 2074259 | P22: 2082584 | Q22: 2078469 | R22: 2063223 | S22: 2053231 | T22: 2054163 | U22: 2076703 | V22: 2099410 | W22: 2137711 | X22: 2185653 | Y22: 2214939 | Z22: 2233630 | AA22: 2167264 | AB22: 2123275 | AC22: 2104590 | AD22: 2110424 | AE22: 2116005 | AF22: 2069645 | AG22: 2126185 | AH22: 2143228 | AI22: 2130938 | AJ22: 2113431 | AK22: 2046270 | AL22: 1993283 | AM22: 1995327 | AN22: 1929998 | AO22: 1961371 | AP22: 1913007 | AQ22: 1970954 | AR22: 2056152 | AS22: 2206127 | AT22: 2163233 | AU22: 2100733 | AV22: 2052090 | AW22: 2081827 | AX22: 2128176 | AY22: 2227699 | AZ22: 2288343 | BA22: 2312394 | BB22: 2311350 | BC22: 2356103 | BD22: 2308341 | BE22: 2284396 | BF22: 2273420 | BG22: 2257367 | BH22: 2180397 | BI22: 2142837 | BJ22: 2082852 | BK22: 2020682 | BL22: 1951462 | BM22: 1913623 | BN22: 1833946 | BO22: 1802443 | BP22: 1777105 | BQ22: 1906310 | BR22: 1380564 | BS22: 1389741 | BT22: 1375637 | BU22: 1435048 | BV22: 1249007 | BW22: 1167723 | BX22: 1106028 | BY22: 1067339 | BZ22: 1035809 | CA22: 965030 | CB22: 935117 | CC22: 909150 | CD22: 831053 | CE22: 820389 | CF22: 802933 | CG22: 791439 | CH22: 757838 | CI22: 719980 | CJ22: 696573 | CK22: 656402 | CL22: 617162 | CM22: 582186 | CN22: 535337 | CO22: 481836 | CP22: 429440 | CQ22: 372249 | CR22: 310508 | CS22: 255703 | CT22: 208650 | CU22: 166978 | CV22: 132764 | CW22: 104441 | CX22: 79806 | CY22: 58648 | CZ22: 41592 | DA22: 28851 | DB22: 52242
B23: SSA | C23: F | D23: 2011 | E23: 159886545 | F23: 1951019 | G23: 1998178 | H23: 2079362 | I23: 2155955 | J23: 2159375 | K23: 2104456 | L23: 2085935 | M23: 2089885 | N23: 2067059 | O23: 2056253 | P23: 2080764 | Q23: 2088369 | R23: 2082351 | S23: 2068169 | T23: 2059582 | U23: 2061431 | V23: 2085377 | W23: 2109099 | X23: 2147853 | Y23: 2197195 | Z23: 2227393 | AA23: 2246942 | AB23: 2181970 | AC23: 2138157 | AD23: 2119880 | AE23: 2126846 | AF23: 2132146 | AG23: 2084617 | AH23: 2140184 | AI23: 2154782 | AJ23: 2142008 | AK23: 2123899 | AL23: 2055686 | AM23: 2002446 | AN23: 2003412 | AO23: 1936968 | AP23: 1967972 | AQ23: 1918998 | AR23: 1976073 | AS23: 2060713 | AT23: 2210182 | AU23: 2166664 | AV23: 2103786 | AW23: 2054500 | AX23: 2083801 | AY23: 2129342 | AZ23: 2228476 | BA23: 2288810 | BB23: 2312208 | BC23: 2311113 | BD23: 2354567 | BE23: 2305674 | BF23: 2282425 | BG23: 2271444 | BH23: 2254931 | BI23: 2177573 | BJ23: 2139936 | BK23: 2079916 | BL23: 2017159 | BM23: 1947566 | BN23: 1908091 | BO23: 1827547 | BP23: 1796305 | BQ23: 1769602 | BR23: 1896746 | BS23: 1371716 | BT23: 1377525 | BU23: 1361521 | BV23: 1418675 | BW23: 1233001 | BX23: 1150624 | BY23: 1087768 | BZ23: 1047822 | CA23: 1014227 | CB23: 942636 | CC23: 911436 | CD23: 883552 | CE23: 805081 | CF23: 791960 | CG23: 772192 | CH23: 757823 | CI23: 722192 | CJ23: 682253 | CK23: 655923 | CL23: 613643 | CM23: 572151 | CN23: 534743 | CO23: 486670 | CP23: 432902 | CQ23: 380681 | CR23: 325123 | CS23: 266795 | CT23: 215778 | CU23: 172705 | CV23: 135388 | CW23: 105355 | CX23: 81076 | CY23: 60587 | CZ23: 43539 | DA23: 30202 | DB23: 54157
B24: SSA | C24: F | D24: 2012 | E24: 160996163 | F24: 1935356 | G24: 1955550 | H24: 2003751 | I24: 2083300 | J24: 2159459 | K24: 2162015 | L24: 2107805 | M24: 2089544 | N24: 2093502 | O24: 2071491 | P24: 2061164 | Q24: 2087341 | R24: 2094124 | S24: 2085889 | T24: 2072512 | U24: 2065318 | V24: 2068172 | W24: 2093575 | X24: 2118198 | Y24: 2157545 | Z24: 2208746 | AA24: 2239783 | AB24: 2259652 | AC24: 2195909 | AD24: 2152363 | AE24: 2134077 | AF24: 2141256 | AG24: 2145729 | AH24: 2097181 | AI24: 2151952 | AJ24: 2164222 | AK24: 2151073 | AL24: 2132405 | AM24: 2063174 | AN24: 2009745 | AO24: 2009634 | AP24: 1942124 | AQ24: 1972763 | AR24: 1923249 | AS24: 1979477 | AT24: 2063634 | AU24: 2212648 | AV24: 2168637 | AW24: 2105448 | AX24: 2055537 | AY24: 2084385 | AZ24: 2129156 | BA24: 2227927 | BB24: 2287995 | BC24: 2310767 | BD24: 2309654 | BE24: 2351877 | BF24: 2301961 | BG24: 2279456 | BH24: 2268467 | BI24: 2251460 | BJ24: 2173691 | BK24: 2135949 | BL24: 2075910 | BM24: 2012553 | BN24: 1942559 | BO24: 1901416 | BP24: 1819975 | BQ24: 1788907 | BR24: 1760752 | BS24: 1885622 | BT24: 1361655 | BU24: 1363982 | BV24: 1346000 | BW24: 1400793 | BX24: 1215647 | BY24: 1132223 | BZ24: 1068220 | CA24: 1026948 | CB24: 991182 | CC24: 918682 | CD24: 886055 | CE24: 856179 | CF24: 777380 | CG24: 761700 | CH24: 739535 | CI24: 722180 | CJ24: 684504 | CK24: 642556 | CL24: 613411 | CM24: 569236 | CN24: 525769 | CO24: 486215 | CP24: 437258 | CQ24: 383726 | CR24: 332427 | CS24: 279372 | CT24: 225218 | CU24: 178603 | CV24: 139999 | CW24: 107367 | CX24: 81676 | CY24: 61431 | CZ24: 44875 | DA24: 31531 | DB24: 56160
B25: SSA | C25: F | D25: 2013 | E25: 162119829 | F25: 1939478 | G25: 1939977 | H25: 1963614 | I25: 2010394 | J25: 2087892 | K25: 2163633 | L25: 2165266 | M25: 2111537 | N25: 2093565 | O25: 2097812 | P25: 2076751 | Q25: 2066933 | R25: 2094784 | S25: 2100574 | T25: 2089871 | U25: 2077289 | V25: 2071690 | W25: 2075671 | X25: 2102505 | Y25: 2128101 | Z25: 2168432 | AA25: 2221598 | AB25: 2252981 | AC25: 2273022 | AD25: 2210689 | AE25: 2167182 | AF25: 2148396 | AG25: 2155423 | AH25: 2159060 | AI25: 2109686 | AJ25: 2163776 | AK25: 2173772 | AL25: 2160266 | AM25: 2141031 | AN25: 2070773 | AO25: 2017123 | AP25: 2015885 | AQ25: 1947299 | AR25: 1977568 | AS25: 1927465 | AT25: 1982757 | AU25: 2066370 | AV25: 2214921 | AW25: 2170405 | AX25: 2106864 | AY25: 2056322 | AZ25: 2084692 | BA25: 2128609 | BB25: 2226888 | BC25: 2286581 | BD25: 2308692 | BE25: 2307568 | BF25: 2348535 | BG25: 2297567 | BH25: 2275744 | BI25: 2264666 | BJ25: 2247078 | BK25: 2168839 | BL25: 2130953 | BM25: 2070864 | BN25: 2006850 | BO25: 1936397 | BP25: 1893504 | BQ25: 1811086 | BR25: 1780075 | BS25: 1750436 | BT25: 1872878 | BU25: 1350298 | BV25: 1349012 | BW25: 1328981 | BX25: 1381276 | BY25: 1196811 | BZ25: 1112350 | CA25: 1047146 | CB25: 1004449 | CC25: 966460 | CD25: 893039 | CE25: 858886 | CF25: 826953 | CG25: 747886 | CH25: 729579 | CI25: 704978 | CJ25: 684587 | CK25: 644880 | CL25: 600982 | CM25: 569130 | CN25: 523327 | CO25: 478245 | CP25: 437032 | CQ25: 387856 | CR25: 335356 | CS25: 285830 | CT25: 236032 | CU25: 186628 | CV25: 144864 | CW25: 111023 | CX25: 83184 | CY25: 61803 | CZ25: 45411 | DA25: 32425 | DB25: 58225
B26: SSA | C26: F | D26: 2014 | E26: 163467241 | F26: 1952595 | G26: 1945315 | H26: 1948448 | I26: 1973259 | J26: 2018349 | K26: 2094001 | L26: 2169523 | M26: 2170221 | N26: 2117219 | O26: 2100106 | P26: 2105103 | Q26: 2085424 | R26: 2076383 | S26: 2105975 | T26: 2110871 | U26: 2098088 | V26: 2086881 | W26: 2083320 | X26: 2088725 | Y26: 2117548 | Z26: 2145053 | AA26: 2186916 | AB26: 2242298 | AC26: 2274290 | AD26: 2294653 | AE26: 2233463 | AF26: 2189733 | AG26: 2170502 | AH26: 2177725 | AI26: 2180119 | AJ26: 2128534 | AK26: 2180791 | AL26: 2187179 | AM26: 2172534 | AN26: 2152587 | AO26: 2081222 | AP26: 2027326 | AQ26: 2025010 | AR26: 1955292 | AS26: 1985191 | AT26: 1934357 | AU26: 1988610 | AV26: 2071535 | AW26: 2219482 | AX26: 2174159 | AY26: 2110089 | AZ26: 2058815 | BA26: 2086676 | BB26: 2129607 | BC26: 2227177 | BD26: 2286239 | BE26: 2307483 | BF26: 2306186 | BG26: 2345678 | BH26: 2293418 | BI26: 2272099 | BJ26: 2260768 | BK26: 2242488 | BL26: 2163688 | BM26: 2125554 | BN26: 2065345 | BO26: 2000603 | BP26: 1929606 | BQ26: 1884837 | BR26: 1801321 | BS26: 1770253 | BT26: 1738989 | BU26: 1858727 | BV26: 1337873 | BW26: 1332960 | BX26: 1310788 | BY26: 1360351 | BZ26: 1176596 | CA26: 1091046 | CB26: 1024533 | CC26: 980304 | CD26: 940090 | CE26: 865797 | CF26: 830036 | CG26: 795970 | CH26: 716691 | CI26: 695721 | CJ26: 668695 | CK26: 645277 | CL26: 603641 | CM26: 558000 | CN26: 523725 | CO26: 476732 | CP26: 430599 | CQ26: 388344 | CR26: 339598 | CS26: 288824 | CT26: 241783 | CU26: 195874 | CV26: 151722 | CW26: 115203 | CX26: 86312 | CY26: 63188 | CZ26: 45868 | DA26: 32943 | DB26: 60596
B27: SSA | C27: F | D27: 2015 | E27: 164969273 | F27: 1976353 | G27: 1958942 | H27: 1954917 | I27: 1958510 | J27: 1984160 | K27: 2027592 | L27: 2101404 | M27: 2176595 | N27: 2176434 | O27: 2124466 | P27: 2108474 | Q27: 2114468 | R27: 2096373 | S27: 2088018 | T27: 2119235 | U27: 2123333 | V27: 2108783 | W27: 2099277 | X27: 2097876 | Y27: 2104947 | Z27: 2136253 | AA27: 2165934 | AB27: 2209291 | AC27: 2267155 | AD27: 2300020 | AE27: 2320326 | AF27: 2259685 | AG27: 2215414 | AH27: 2195610 | AI27: 2203132 | AJ27: 2204408 | AK27: 2150564 | AL27: 2201008 | AM27: 2203696 | AN27: 2187749 | AO27: 2166971 | AP27: 2094437 | AQ27: 2040202 | AR27: 2036787 | AS27: 1965803 | AT27: 1995299 | AU27: 1943629 | AV27: 1996747 | AW27: 2078799 | AX27: 2225939 | AY27: 2179518 | AZ27: 2114743 | BA27: 2062601 | BB27: 2089911 | BC27: 2131740 | BD27: 2228424 | BE27: 2286698 | BF27: 2306909 | BG27: 2305264 | BH27: 2343089 | BI27: 2289361 | BJ27: 2268417 | BK27: 2256710 | BL27: 2237617 | BM27: 2158205 | BN27: 2119771 | BO27: 2059331 | BP27: 1993731 | BQ27: 1922057 | BR27: 1875312 | BS27: 1790699 | BT27: 1759516 | BU27: 1726443 | BV27: 1843170 | BW27: 1324349 | BX27: 1315731 | BY27: 1291253 | BZ27: 1337809 | CA27: 1154809 | CB27: 1068120 | CC27: 1000229 | CD27: 954360 | CE27: 911864 | CF27: 836718 | CG27: 799272 | CH27: 763023 | CI27: 683595 | CJ27: 659857 | CK27: 630364 | CL27: 603972 | CM27: 560613 | CN27: 513522 | CO27: 477131 | CP27: 429365 | CQ27: 382719 | CR27: 340070 | CS27: 292483 | CT27: 244234 | CU27: 200506 | CV27: 159213 | CW27: 120795 | CX27: 89765 | CY27: 65803 | CZ27: 47127 | DA27: 33470 | DB27: 62880
B28: SSA | C28: F | D28: 2016 | E28: 166292583 | F28: 1972062 | G28: 1982392 | H28: 1968699 | I28: 1965644 | J28: 1969243 | K28: 1995594 | L28: 2037090 | M28: 2108657 | N28: 2183250 | O28: 2182194 | P28: 2131233 | Q28: 2116258 | R28: 2123132 | S28: 2106299 | T28: 2098346 | U28: 2131102 | V28: 2134375 | W28: 2117980 | X28: 2109971 | Y28: 2110722 | Z28: 2119565 | AA28: 2152904 | AB28: 2183902 | AC28: 2228458 | AD28: 2288781 | AE28: 2322223 | AF28: 2342057 | AG28: 2280794 | AH28: 2234197 | AI28: 2212060 | AJ28: 2218145 | AK28: 2218259 | AL28: 2163797 | AM28: 2213720 | AN28: 2214150 | AO28: 2197790 | AP28: 2176439 | AQ28: 2102938 | AR28: 2048543 | AS28: 2044045 | AT28: 1972019 | AU28: 2001228 | AV28: 1948974 | AW28: 2001134 | AX28: 2082547 | AY28: 2229006 | AZ28: 2181814 | BA28: 2116555 | BB28: 2063701 | BC28: 2090462 | BD28: 2131283 | BE28: 2227254 | BF28: 2284950 | BG28: 2304296 | BH28: 2302405 | BI28: 2338664 | BJ28: 2283622 | BK28: 2263136 | BL28: 2251109 | BM28: 2231240 | BN28: 2151254 | BO28: 2112461 | BP28: 2051716 | BQ28: 1985202 | BR28: 1912812 | BS28: 1864112 | BT28: 1778436 | BU28: 1747000 | BV28: 1712063 | BW28: 1825560 | BX28: 1309214 | BY28: 1296760 | BZ28: 1269841 | CA28: 1313120 | CB28: 1130979 | CC28: 1043154 | CD28: 973925 | CE28: 926382 | CF28: 881563 | CG28: 805581 | CH28: 766397 | CI28: 727966 | CJ28: 648557 | CK28: 622093 | CL28: 590200 | CM28: 560937 | CN28: 516104 | CO28: 467881 | CP28: 429738 | CQ28: 381681 | CR28: 335130 | CS28: 292878 | CT28: 247393 | CU28: 202567 | CV28: 162866 | CW28: 126595 | CX28: 93970 | CY28: 68279 | CZ28: 48950 | DA28: 34289 | DB28: 64568
B29: SSA | C29: F | D29: 2017 | E29: 167483879 | F29: 1932776 | G29: 1977425 | H29: 1991861 | I29: 1979549 | J29: 1976930 | K29: 1980336 | L29: 2007151 | M29: 2046392 | N29: 2115626 | O29: 2189698 | P29: 2187736 | Q29: 2137801 | R29: 2123860 | S29: 2131459 | T29: 2115706 | U29: 2108169 | V29: 2142567 | W29: 2145028 | X29: 2126678 | Y29: 2120212 | Z29: 2123240 | AA29: 2133452 | AB29: 2168090 | AC29: 2200118 | AD29: 2246074 | AE29: 2308733 | AF29: 2342317 | AG29: 2360484 | AH29: 2297641 | AI29: 2248746 | AJ29: 2224409 | AK29: 2229199 | AL29: 2228258 | AM29: 2173335 | AN29: 2222778 | AO29: 2221124 | AP29: 2204590 | AQ29: 2182820 | AR29: 2108506 | AS29: 2054145 | AT29: 2048657 | AU29: 1975745 | AV29: 2004734 | AW29: 1952096 | AX29: 2003424 | AY29: 2084297 | AZ29: 2230119 | BA29: 2182336 | BB29: 2116734 | BC29: 2063241 | BD29: 2089447 | BE29: 2129306 | BF29: 2224643 | BG29: 2281821 | BH29: 2300309 | BI29: 2298153 | BJ29: 2332801 | BK29: 2276472 | BL29: 2256423 | BM29: 2244047 | BN29: 2223364 | BO29: 2142773 | BP29: 2103529 | BQ29: 2042401 | BR29: 1974953 | BS29: 1901908 | BT29: 1851252 | BU29: 1764374 | BV29: 1732512 | BW29: 1695671 | BX29: 1805688 | BY29: 1292306 | BZ29: 1275898 | CA29: 1246451 | CB29: 1286225 | CC29: 1105080 | CD29: 1016148 | CE29: 945579 | CF29: 896310 | CG29: 849182 | CH29: 772431 | CI29: 731453 | CJ29: 690833 | CK29: 611607 | CL29: 582536 | CM29: 548447 | CN29: 516549 | CO29: 470586 | CP29: 421692 | CQ29: 382332 | CR29: 334605 | CS29: 288907 | CT29: 247947 | CU29: 205441 | CV29: 164782 | CW29: 129642 | CX29: 98558 | CY29: 71521 | CZ29: 50797 | DA29: 35616 | DB29: 66169
B30: SSA | C30: F | D30: 2018 | E30: 168583998 | F30: 1907986 | G30: 1936995 | H30: 1985725 | I30: 2001953 | J30: 1990443 | K30: 1988049 | L30: 1991034 | M30: 2018009 | N30: 2054951 | O30: 2121889 | P30: 2195377 | Q30: 2192511 | R30: 2143563 | S30: 2130422 | T30: 2138458 | U30: 2123622 | V30: 2116407 | W30: 2152309 | X30: 2153728 | Y30: 2133319 | Z30: 2128338 | AA30: 2133046 | AB30: 2143769 | AC30: 2179231 | AD30: 2212360 | AE30: 2259496 | AF30: 2323691 | AG30: 2356762 | AH30: 2372803 | AI30: 2309186 | AJ30: 2259699 | AK30: 2234870 | AL30: 2240072 | AM30: 2238890 | AN30: 2183493 | AO30: 2232519 | AP30: 2228905 | AQ30: 2212240 | AR30: 2190016 | AS30: 2114886 | AT30: 2060568 | AU30: 2054122 | AV30: 1980276 | AW30: 2008978 | AX30: 1955864 | AY30: 2006242 | AZ30: 2086416 | BA30: 2231457 | BB30: 2182934 | BC30: 2116865 | BD30: 2062658 | BE30: 2088276 | BF30: 2127097 | BG30: 2221645 | BH30: 2278125 | BI30: 2295594 | BJ30: 2293053 | BK30: 2325959 | BL30: 2268225 | BM30: 2248492 | BN30: 2235668 | BO30: 2214050 | BP30: 2132756 | BQ30: 2092967 | BR30: 2031442 | BS30: 1963119 | BT30: 1889439 | BU30: 1836684 | BV30: 1748503 | BW30: 1716118 | BX30: 1677281 | BY30: 1783451 | BZ30: 1273502 | CA30: 1252984 | CB30: 1220898 | CC30: 1256946 | CD30: 1076998 | CE30: 986997 | CF30: 915094 | CG30: 864055 | CH30: 814614 | CI30: 737150 | CJ30: 694361 | CK30: 651593 | CL30: 572741 | CM30: 541140 | CN30: 505028 | CO30: 470742 | CP30: 423987 | CQ30: 374923 | CR30: 334991 | CS30: 288397 | CT30: 244451 | CU30: 205679 | CV30: 166893 | CW30: 130957 | CX30: 100730 | CY30: 74863 | CZ30: 53103 | DA30: 36876 | DB30: 67959
B31: SSA | C31: F | D31: 2019 | E31: 169472116 | F31: 1867019 | G31: 1910272 | H31: 1943277 | I31: 1993724 | J31: 2011114 | K31: 2000157 | L31: 1997703 | M31: 1999945 | N31: 2026994 | O31: 2061660 | P31: 2126166 | Q31: 2198931 | R31: 2195088 | S31: 2146967 | T31: 2134419 | U31: 2142723 | V31: 2128633 | W31: 2121560 | X31: 2158711 | Y31: 2158889 | Z31: 2136282 | AA31: 2132293 | AB31: 2138008 | AC31: 2148935 | AD31: 2185194 | AE31: 2219373 | AF31: 2267171 | AG31: 2332259 | AH31: 2364590 | AI31: 2379340 | AJ31: 2316053 | AK31: 2266221 | AL31: 2241024 | AM31: 2246717 | AN31: 2245435 | AO31: 2189853 | AP31: 2238622 | AQ31: 2233198 | AR31: 2216577 | AS31: 2194109 | AT31: 2118395 | AU31: 2064348 | AV31: 2057046 | AW31: 1982414 | AX31: 2010862 | AY31: 1957367 | AZ31: 2006819 | BA31: 2086374 | BB31: 2230663 | BC31: 2181505 | BD31: 2115027 | BE31: 2060199 | BF31: 2085249 | BG31: 2123044 | BH31: 2216761 | BI31: 2272543 | BJ31: 2289029 | BK31: 2286127 | BL31: 2317266 | BM31: 2258149 | BN31: 2238690 | BO31: 2225387 | BP31: 2202797 | BQ31: 2120788 | BR31: 2080482 | BS31: 2018719 | BT31: 1949631 | BU31: 1875215 | BV31: 1820230 | BW31: 1730714 | BX31: 1697693 | BY31: 1656743 | BZ31: 1758677 | CA31: 1252719 | CB31: 1228074 | CC31: 1193346 | CD31: 1225486 | CE31: 1046908 | CF31: 955865 | CG31: 882649 | CH31: 829824 | CI31: 778096 | CJ31: 700013 | CK31: 655468 | CL31: 610735 | CM31: 532571 | CN31: 498661 | CO31: 460800 | CP31: 424504 | CQ31: 377453 | CR31: 328846 | CS31: 289142 | CT31: 244553 | CU31: 203230 | CV31: 167415 | CW31: 132862 | CX31: 101887 | CY31: 76570 | CZ31: 55623 | DA31: 38582 | DB31: 70075
B32: SSA | C32: F | D32: 2020 | E32: 170247148 | F32: 1844766 | G32: 1867768 | H32: 1914386 | I32: 1949235 | J32: 2000868 | K32: 2019209 | L32: 2008608 | M32: 2005887 | N32: 2007407 | O32: 2034703 | P32: 2067107 | Q32: 2129209 | R32: 2201502 | S32: 2196875 | T32: 2149702 | U32: 2137942 | V32: 2146718 | W32: 2133504 | X32: 2126565 | Y32: 2164984 | Z32: 2164002 | AA32: 2139081 | AB32: 2135910 | AC32: 2142786 | AD32: 2154227 | AE32: 2191539 | AF32: 2226852 | AG32: 2275341 | AH32: 2341551 | AI32: 2372622 | AJ32: 2385605 | AK32: 2322906 | AL32: 2272892 | AM32: 2247420 | AN32: 2253696 | AO32: 2252417 | AP32: 2196777 | AQ32: 2245407 | AR32: 2238248 | AS32: 2221691 | AT32: 2198977 | AU32: 2122694 | AV32: 2068927 | AW32: 2060823 | AX32: 1985408 | AY32: 2013619 | AZ32: 1959708 | BA32: 2008115 | BB32: 2086899 | BC32: 2230291 | BD32: 2180329 | BE32: 2113375 | BF32: 2057864 | BG32: 2082236 | BH32: 2118796 | BI32: 2211372 | BJ32: 2266162 | BK32: 2281426 | BL32: 2277926 | BM32: 2306978 | BN32: 2246212 | BO32: 2226774 | BP32: 2212749 | BQ32: 2188950 | BR32: 2106138 | BS32: 2065262 | BT32: 2003204 | BU32: 1933171 | BV32: 1857850 | BW32: 1800462 | BX32: 1709420 | BY32: 1675389 | BZ32: 1631988 | CA32: 1728922 | CB32: 1228062 | CC32: 1199142 | CD32: 1161597 | CE32: 1189292 | CF32: 1012324 | CG32: 920170 | CH32: 845550 | CI32: 790815 | CJ32: 736818 | CK32: 658297 | CL32: 611935 | CM32: 565251 | CN32: 488168 | CO32: 452120 | CP32: 412828 | CQ32: 375000 | CR32: 328397 | CS32: 281179 | CT32: 242665 | CU32: 201110 | CV32: 163476 | CW32: 131601 | CX32: 101992 | CY32: 76343 | CZ32: 56004 | DA32: 39733 | DB32: 70948
B33: SSA | C33: F | D33: 2021 | E33: 170942447 | F33: 1767777 | G33: 1842631 | H33: 1870806 | I33: 1918889 | J33: 1955243 | K33: 2007981 | L33: 2027226 | M33: 2016950 | N33: 2014107 | O33: 2015182 | P33: 2042926 | Q33: 2073239 | R33: 2133449 | S33: 2205806 | T33: 2200603 | U33: 2154483 | V33: 2143637 | W33: 2152984 | X33: 2140574 | Y33: 2133845 | Z33: 2173817 | AA33: 2171786 | AB33: 2144644 | AC33: 2142683 | AD33: 2151197 | AE33: 2163485 | AF33: 2202055 | AG33: 2238476 | AH33: 2287619 | AI33: 2354910 | AJ33: 2384537 | AK33: 2395605 | AL33: 2333238 | AM33: 2282814 | AN33: 2256900 | AO33: 2263583 | AP33: 2262125 | AQ33: 2206199 | AR33: 2254551 | AS33: 2245468 | AT33: 2228782 | AU33: 2205642 | AV33: 2128581 | AW33: 2074833 | AX33: 2065715 | AY33: 1989311 | AZ33: 2017108 | BA33: 1962538 | BB33: 2009622 | BC33: 2087315 | BD33: 2229477 | BE33: 2178502 | BF33: 2110927 | BG33: 2054586 | BH33: 2078089 | BI33: 2113166 | BJ33: 2204259 | BK33: 2257721 | BL33: 2271460 | BM33: 2267090 | BN33: 2293750 | BO33: 2231132 | BP33: 2211447 | BQ33: 2196452 | BR33: 2171283 | BS33: 2087696 | BT33: 2046151 | BU33: 1983572 | BV33: 1912403 | BW33: 1836083 | BX33: 1776190 | BY33: 1683576 | BZ33: 1648279 | CA33: 1602189 | CB33: 1693360 | CC33: 1198930 | CD33: 1165503 | CE33: 1124928 | CF33: 1147678 | CG33: 972805 | CH33: 879715 | CI33: 803876 | CJ33: 747371 | CK33: 691360 | CL33: 612798 | CM33: 564799 | CN33: 516446 | CO33: 441039 | CP33: 403347 | CQ33: 363248 | CR33: 324661 | CS33: 279405 | CT33: 234522 | CU33: 198127 | CV33: 160486 | CW33: 127330 | CX33: 100010 | CY33: 75597 | CZ33: 55178 | DA33: 39480 | DB33: 71491
B34: SSA | C34: F | D34: 2022 | E34: 171753419 | F34: 1814797 | G34: 1761477 | H34: 1847978 | I34: 1877706 | J34: 1926065 | K34: 1963248 | L34: 2016759 | M34: 2036467 | N34: 2026460 | O34: 2023767 | P34: 2024859 | Q34: 2053175 | R34: 2082760 | S34: 2142400 | T34: 2215175 | U34: 2209876 | V34: 2164530 | W34: 2154505 | X34: 2164210 | Y34: 2152287 | Z34: 2146450 | AA34: 2188015 | AB34: 2185770 | AC34: 2157815 | AD34: 2156833 | AE34: 2166351 | AF34: 2178881 | AG34: 2217722 | AH34: 2253963 | AI34: 2302502 | AJ34: 2369321 | AK34: 2397579 | AL34: 2407329 | AM34: 2344400 | AN34: 2293108 | AO34: 2266263 | AP34: 2272442 | AQ34: 2270353 | AR34: 2213804 | AS34: 2261555 | AT34: 2250986 | AU34: 2233810 | AV34: 2210126 | AW34: 2132340 | AX34: 2078164 | AY34: 2068082 | AZ34: 1990756 | BA34: 2017912 | BB34: 1962685 | BC34: 2008733 | BD34: 2085398 | BE34: 2226372 | BF34: 2174616 | BG34: 2106407 | BH34: 2049209 | BI34: 2071685 | BJ34: 2105359 | BK34: 2194808 | BL34: 2246715 | BM34: 2258848 | BN34: 2253270 | BO34: 2277836 | BP34: 2213706 | BQ34: 2193099 | BR34: 2176822 | BS34: 2150268 | BT34: 2065967 | BU34: 2023426 | BV34: 1959963 | BW34: 1887596 | BX34: 1810160 | BY34: 1748202 | BZ34: 1654151 | CA34: 1616854 | CB34: 1568059 | CC34: 1652988 | CD34: 1166557 | CE34: 1129452 | CF34: 1086067 | CG34: 1103760 | CH34: 931435 | CI34: 837900 | CJ34: 761230 | CK34: 703128 | CL34: 645536 | CM34: 567284 | CN34: 517928 | CO34: 468429 | CP34: 395178 | CQ34: 356499 | CR34: 316350 | CS34: 277936 | CT34: 234848 | CU34: 193083 | CV34: 159600 | CW34: 126342 | CX34: 97858 | CY34: 75026 | CZ34: 55364 | DA34: 39443 | DB34: 72851
B35: SSA | C35: F | D35: 2023 | E35: 172737115 | F35: 1825931 | G35: 1821002 | H35: 1772244 | I35: 1860148 | J35: 1889011 | K35: 1937183 | L35: 1974597 | M35: 2028306 | N35: 2048056 | O35: 2038248 | P35: 2035921 | Q35: 2037485 | R35: 2066470 | S35: 2096573 | T35: 2156689 | U35: 2230123 | V35: 2225404 | W35: 2180724 | X35: 2171502 | Y35: 2181737 | Z35: 2170686 | AA35: 2166094 | AB35: 2208412 | AC35: 2206489 | AD35: 2178894 | AE35: 2178231 | AF35: 2187628 | AG35: 2199393 | AH35: 2237200 | AI35: 2271915 | AJ35: 2318746 | AK35: 2383896 | AL35: 2410535 | AM35: 2419141 | AN35: 2355027 | AO35: 2302630 | AP35: 2274727 | AQ35: 2279921 | AR35: 2277061 | AS35: 2219745 | AT35: 2266835 | AU35: 2255480 | AV35: 2237579 | AW35: 2213310 | AX35: 2134925 | AY35: 2079983 | AZ35: 2069143 | BA35: 1991091 | BB35: 2017574 | BC35: 1961798 | BD35: 2007209 | BE35: 2083023 | BF35: 2222945 | BG35: 2170538 | BH35: 2101659 | BI35: 2043572 | BJ35: 2064844 | BK35: 2097123 | BL35: 2184783 | BM35: 2235016 | BN35: 2245648 | BO35: 2238701 | BP35: 2261616 | BQ35: 2196407 | BR35: 2174465 | BS35: 2156817 | BT35: 2128886 | BU35: 2043665 | BV35: 1999622 | BW35: 1934747 | BX35: 1860865 | BY35: 1781895 | BZ35: 1717988 | CA35: 1622358 | CB35: 1582268 | CC35: 1530771 | CD35: 1609272 | CE35: 1132236 | CF35: 1092367 | CG35: 1046270 | CH35: 1058611 | CI35: 888893 | CJ35: 795049 | CK35: 717648 | CL35: 658062 | CM35: 599443 | CN35: 521935 | CO35: 471481 | CP35: 421305 | CQ35: 350623 | CR35: 311476 | CS35: 271852 | CT35: 234348 | CU35: 194112 | CV35: 156129 | CW35: 126193 | CX35: 97615 | CY35: 73835 | CZ35: 55295 | DA35: 39859 | DB35: 74332
B36: SSA | C36: F | D36: 2024 | E36: 173869466 | F36: 1840153 | G36: 1833287 | H36: 1833544 | I36: 1785923 | J36: 1873461 | K36: 1901805 | L36: 1950381 | M36: 1987804 | N36: 2041529 | O36: 2061444 | P36: 2051992 | Q36: 2050223 | R36: 2052401 | S36: 2082054 | T36: 2112703 | U36: 2173516 | V36: 2247863 | W36: 2243974 | X36: 2199993 | Y36: 2191635 | Z36: 2203072 | AA36: 2193060 | AB36: 2188706 | AC36: 2231031 | AD36: 2229299 | AE36: 2201876 | AF36: 2201101 | AG36: 2209822 | AH36: 2220284 | AI36: 2256700 | AJ36: 2289709 | AK36: 2334727 | AL36: 2398270 | AM36: 2423423 | AN36: 2430930 | AO36: 2365636 | AP36: 2312257 | AQ36: 2283544 | AR36: 2287964 | AS36: 2284432 | AT36: 2226415 | AU36: 2272929 | AV36: 2260817 | AW36: 2242194 | AX36: 2217302 | AY36: 2138246 | AZ36: 2082479 | BA36: 2070916 | BB36: 1992205 | BC36: 2018077 | BD36: 1961726 | BE36: 2006470 | BF36: 2081366 | BG36: 2220091 | BH36: 2166819 | BI36: 2097151 | BJ36: 2038109 | BK36: 2058053 | BL36: 2088837 | BM36: 2174704 | BN36: 2223366 | BO36: 2232680 | BP36: 2224468 | BQ36: 2245822 | BR36: 2179680 | BS36: 2156532 | BT36: 2137549 | BU36: 2108157 | BV36: 2021817 | BW36: 1976002 | BX36: 1909393 | BY36: 1833639 | BZ36: 1752758 | CA36: 1686546 | CB36: 1589179 | CC36: 1546274 | CD36: 1492133 | CE36: 1564221 | CF36: 1097069 | CG36: 1054444 | CH36: 1005496 | CI36: 1012264 | CJ36: 845203 | CK36: 751087 | CL36: 673132 | CM36: 612411 | CN36: 553177 | CO36: 476872 | CP36: 425846 | CQ36: 375612 | CR36: 308070 | CS36: 269173 | CT36: 230769 | CU36: 194964 | CV36: 158192 | CW36: 124438 | CX36: 98354 | CY36: 74378 | CZ36: 54988 | DA36: 40260 | DB36: 76617
B37: SSA | C37: F | D37: 2025 | E37: 175025418 | F37: 1883915 | G37: 1846732 | H37: 1844939 | I37: 1846743 | J37: 1798267 | K37: 1885782 | L37: 1914275 | M37: 1963053 | N37: 2000312 | O37: 2054240 | P37: 2074490 | Q37: 2065513 | R37: 2064347 | S37: 2067060 | T37: 2097312 | U37: 2128555 | V37: 2190121 | W37: 2265427 | X37: 2262282 | Y37: 2218867 | Z37: 2211569 | AA37: 2224037 | AB37: 2213988 | AC37: 2209208 | AD37: 2251685 | AE37: 2250277 | AF37: 2222773 | AG37: 2221476 | AH37: 2229234 | AI37: 2238319 | AJ37: 2273420 | AK37: 2304876 | AL37: 2348308 | AM37: 2410483 | AN37: 2434300 | AO37: 2440828 | AP37: 2374643 | AQ37: 2320578 | AR37: 2291229 | AS37: 2295006 | AT37: 2290925 | AU37: 2232259 | AV37: 2278179 | AW37: 2265375 | AX37: 2246090 | AY37: 2220548 | AZ37: 2140812 | BA37: 2084334 | BB37: 2072225 | BC37: 1992999 | BD37: 2018308 | BE37: 1961422 | BF37: 2005492 | BG37: 2079390 | BH37: 2216786 | BI37: 2162568 | BJ37: 2092094 | BK37: 2032103 | BL37: 2050727 | BM37: 2080085 | BN37: 2164255 | BO37: 2211425 | BP37: 2219437 | BQ37: 2209940 | BR37: 2229741 | BS37: 2162708 | BT37: 2138261 | BU37: 2117708 | BV37: 2086630 | BW37: 1999001 | BX37: 1951202 | BY37: 1882644 | BZ37: 1804833 | CA37: 1721932 | CB37: 1653421 | CC37: 1554431 | CD37: 1508740 | CE37: 1451913 | CF37: 1517306 | CG37: 1060399 | CH37: 1014902 | CI37: 963077 | CJ37: 964222 | CK37: 800147 | CL37: 706059 | CM37: 627906 | CN37: 566309 | CO37: 506637 | CP37: 431878 | CQ37: 380804 | CR37: 331133 | CS37: 267323 | CT37: 229450 | CU37: 193035 | CV37: 159727 | CW37: 126927 | CX37: 97661 | CY37: 75515 | CZ37: 55879 | DA37: 40414 | DB37: 79296
B38: SSA | C38: F | D38: 2026 | E38: 176140587 | F38: 1924363 | G38: 1889849 | H38: 1857499 | I38: 1857039 | J38: 1858292 | K38: 1809338 | L38: 1897437 | M38: 1925881 | N38: 1974677 | O38: 2011974 | P38: 2066275 | Q38: 2086983 | R38: 2078529 | S38: 2077883 | T38: 2081057 | U38: 2111938 | V38: 2143820 | W38: 2206168 | X38: 2282313 | Y38: 2279737 | Z38: 2237077 | AA38: 2230625 | AB38: 2243001 | AC38: 2232289 | AD38: 2227326 | AE38: 2270104 | AF38: 2268732 | AG38: 2240728 | AH38: 2238599 | AI38: 2245335 | AJ38: 2253157 | AK38: 2287010 | AL38: 2317089 | AM38: 2359170 | AN38: 2420091 | AO38: 2442736 | AP38: 2448565 | AQ38: 2381807 | AR38: 2327242 | AS38: 2297397 | AT38: 2300658 | AU38: 2296070 | AV38: 2236766 | AW38: 2282129 | AX38: 2268694 | AY38: 2248717 | AZ38: 2222489 | BA38: 2142180 | BB38: 2085177 | BC38: 2072636 | BD38: 1992959 | BE38: 2017722 | BF38: 1960313 | BG38: 2003615 | BH38: 2076378 | BI38: 2212281 | BJ38: 2157096 | BK38: 2085817 | BL38: 2024898 | BM38: 2042254 | BN38: 2070278 | BO38: 2152791 | BP38: 2198451 | BQ38: 2205114 | BR38: 2194331 | BS38: 2212586 | BT38: 2144634 | BU38: 2118745 | BV38: 2096431 | BW38: 2063459 | BX38: 1974342 | BY38: 1924307 | BZ38: 1853582 | CA38: 1773576 | CB38: 1688660 | CC38: 1617899 | CD38: 1517348 | CE38: 1468776 | CF38: 1409087 | CG38: 1467309 | CH38: 1021317 | CI38: 972839 | CJ38: 918120 | CK38: 913578 | CL38: 752964 | CM38: 659280 | CN38: 581260 | CO38: 519082 | CP38: 459360 | CQ38: 386690 | CR38: 336177 | CS38: 287765 | CT38: 228332 | CU38: 192271 | CV38: 158578 | CW38: 128438 | CX38: 99932 | CY38: 75213 | CZ38: 56921 | DA38: 41228 | DB38: 81555
B39: SSA | C39: F | D39: 2027 | E39: 177225570 | F39: 1962195 | G39: 1930055 | H39: 1900298 | I39: 1869204 | J39: 1868141 | K39: 1869115 | L39: 1820215 | M39: 1908704 | N39: 1936962 | O39: 1985971 | P39: 2023499 | Q39: 2078329 | R39: 2099585 | S39: 2091617 | T39: 2091456 | U39: 2095142 | V39: 2126705 | W39: 2159281 | X39: 2222325 | Y39: 2299137 | Z39: 2297339 | AA39: 2255329 | AB39: 2248859 | AC39: 2260742 | AD39: 2249730 | AE39: 2244776 | AF39: 2287549 | AG39: 2285742 | AH39: 2256881 | AI39: 2253778 | AJ39: 2259494 | AK39: 2265996 | AL39: 2298570 | AM39: 2327370 | AN39: 2368136 | AO39: 2427867 | AP39: 2449567 | AQ39: 2454916 | AR39: 2387712 | AS39: 2332729 | AT39: 2302459 | AU39: 2305192 | AV39: 2300026 | AW39: 2240099 | AX39: 2284869 | AY39: 2270704 | AZ39: 2249956 | BA39: 2223092 | BB39: 2142353 | BC39: 2084926 | BD39: 2071966 | BE39: 1991869 | BF39: 2016042 | BG39: 1958045 | BH39: 2000434 | BI39: 2071924 | BJ39: 2206217 | BK39: 2150072 | BL39: 2078004 | BM39: 2016246 | BN39: 2032415 | BO39: 2059165 | BP39: 2139989 | BQ39: 2184088 | BR39: 2189390 | BS39: 2177335 | BT39: 2193971 | BU39: 2124983 | BV39: 2097458 | BW39: 2073165 | BX39: 2038046 | BY39: 1947216 | BZ39: 1894694 | CA39: 1821651 | CB39: 1739439 | CC39: 1652570 | CD39: 1579569 | CE39: 1477432 | CF39: 1425760 | CG39: 1362971 | CH39: 1413488 | CI39: 979310 | CJ39: 927777 | CK39: 870223 | CL39: 859977 | CM39: 703401 | CN39: 610562 | CO39: 533129 | CP39: 470837 | CQ39: 411596 | CR39: 341647 | CS39: 292397 | CT39: 246004 | CU39: 191586 | CV39: 158099 | CW39: 127745 | CX39: 101233 | CY39: 77113 | CZ39: 56785 | DA39: 42072 | DB39: 83769
B41: SSA | C41: M | D41: 2000 | E41: =SUM(F41:DB41) -> 142150753 | F41: 2070685 | G41: 2036805 | H41: 2028711 | I41: 2030947 | J41: 2043376 | K41: 2082938 | L41: 2114203 | M41: 2148033 | N41: 2190562 | O41: 2217789 | P41: 2227596 | Q41: 2157363 | R41: 2100798 | S41: 2073333 | T41: 2073133 | U41: 2067397 | V41: 2024949 | W41: 2091480 | X41: 2108011 | Y41: 2102992 | Z41: 2100756 | AA41: 2042756 | AB41: 1990170 | AC41: 1983485 | AD41: 1900263 | AE41: 1941545 | AF41: 1906689 | AG41: 1954455 | AH41: 2053062 | AI41: 2226220 | AJ41: 2176534 | AK41: 2131387 | AL41: 2091056 | AM41: 2118889 | AN41: 2163795 | AO41: 2262149 | AP41: 2358693 | AQ41: 2375896 | AR41: 2377189 | AS41: 2404032 | AT41: 2353498 | AU41: 2346471 | AV41: 2331174 | AW41: 2312180 | AX41: 2221170 | AY41: 2179551 | AZ41: 2127969 | BA41: 2061503 | BB41: 1992242 | BC41: 1929610 | BD41: 1856148 | BE41: 1853160 | BF41: 1829085 | BG41: 1951334 | BH41: 1399462 | BI41: 1417151 | BJ41: 1422407 | BK41: 1480409 | BL41: 1282885 | BM41: 1197269 | BN41: 1137300 | BO41: 1112933 | BP41: 1085836 | BQ41: 1015655 | BR41: 990015 | BS41: 971346 | BT41: 904535 | BU41: 890855 | BV41: 881193 | BW41: 883364 | BX41: 851862 | BY41: 826199 | BZ41: 801517 | CA41: 766412 | CB41: 731522 | CC41: 698545 | CD41: 661188 | CE41: 620463 | CF41: 580404 | CG41: 530736 | CH41: 469455 | CI41: 414190 | CJ41: 367316 | CK41: 322682 | CL41: 282215 | CM41: 248604 | CN41: 215089 | CO41: 178737 | CP41: 145000 | CQ41: 115526 | CR41: 92012 | CS41: 72115 | CT41: 54866 | CU41: 40903 | CV41: 29909 | CW41: 21533 | CX41: 15037 | CY41: 10232 | CZ41: 6868 | DA41: 4634 | DB41: 7150
B42: SSA | C42: M | D42: 2001 | E42: 143614670 | F42: 2080226 | G42: 2075223 | H42: 2047008 | I42: 2038386 | J42: 2039050 | K42: 2050716 | L42: 2089012 | M42: 2119399 | N42: 2154442 | O42: 2197782 | P42: 2225854 | Q42: 2236126 | R42: 2165320 | S42: 2109499 | T42: 2082825 | U42: 2083697 | V42: 2080543 | W42: 2040847 | X42: 2111176 | Y42: 2130359 | Z42: 2125735 | AA42: 2122448 | AB42: 2062224 | AC42: 2007852 | AD42: 2002212 | AE42: 1919431 | AF42: 1960971 | AG42: 1923926 | AH42: 1971698 | AI42: 2068204 | AJ42: 2239837 | AK42: 2189821 | AL42: 2141463 | AM42: 2099393 | AN42: 2126574 | AO42: 2171454 | AP42: 2268036 | AQ42: 2360565 | AR42: 2377164 | AS42: 2377062 | AT42: 2404935 | AU42: 2353511 | AV42: 2342302 | AW42: 2327260 | AX42: 2307644 | AY42: 2216652 | AZ42: 2174940 | BA42: 2120101 | BB42: 2053321 | BC42: 1983626 | BD42: 1922052 | BE42: 1847929 | BF42: 1841352 | BG42: 1817562 | BH42: 1939567 | BI42: 1390625 | BJ42: 1406415 | BK42: 1409226 | BL42: 1467118 | BM42: 1271261 | BN42: 1185543 | BO42: 1125189 | BP42: 1099079 | BQ42: 1071224 | BR42: 1000497 | BS42: 973255 | BT42: 951962 | BU42: 883511 | BV42: 869274 | BW42: 857483 | BX42: 857187 | BY42: 824244 | BZ42: 796101 | CA42: 770616 | CB42: 734330 | CC42: 698248 | CD42: 665018 | CE42: 627265 | CF42: 585483 | CG42: 544408 | CH42: 494480 | CI42: 434033 | CJ42: 379630 | CK42: 333487 | CL42: 289886 | CM42: 250551 | CN42: 217811 | CO42: 185776 | CP42: 151983 | CQ42: 121249 | CR42: 94875 | CS42: 74089 | CT42: 56844 | CU42: 42237 | CV42: 30707 | CW42: 21875 | CX42: 15336 | CY42: 10427 | CZ42: 6912 | DA42: 4517 | DB42: 7089
B43: SSA | C43: M | D43: 2002 | E43: 145037516 | F43: 2061658 | G43: 2083649 | H43: 2083517 | I43: 2058026 | J43: 2049008 | K43: 2048261 | L43: 2058868 | M43: 2095480 | N43: 2125392 | O43: 2162191 | P43: 2206060 | Q43: 2234171 | R43: 2244479 | S43: 2173299 | T43: 2118638 | U43: 2093444 | V43: 2096607 | W43: 2097193 | X43: 2059046 | Y43: 2130515 | Z43: 2149966 | AA43: 2143787 | AB43: 2139217 | AC43: 2078320 | AD43: 2023323 | AE43: 2019100 | AF43: 1937060 | AG43: 1978931 | AH43: 1939856 | AI43: 1987670 | AJ43: 2081892 | AK43: 2251725 | AL43: 2201291 | AM43: 2149689 | AN43: 2105993 | AO43: 2132649 | AP43: 2177623 | AQ43: 2272453 | AR43: 2360939 | AS43: 2376953 | AT43: 2375516 | AU43: 2404452 | AV43: 2352235 | AW43: 2336950 | AX43: 2322219 | AY43: 2302027 | AZ43: 2211150 | BA43: 2169430 | BB43: 2111434 | BC43: 2044420 | BD43: 1974347 | BE43: 1913832 | BF43: 1839034 | BG43: 1828850 | BH43: 1805291 | BI43: 1926922 | BJ43: 1381150 | BK43: 1395061 | BL43: 1395406 | BM43: 1453071 | BN43: 1258930 | BO43: 1173085 | BP43: 1112287 | BQ43: 1084410 | BR43: 1055801 | BS43: 984615 | BT43: 955840 | BU43: 931960 | BV43: 861909 | BW43: 847019 | BX43: 833090 | BY43: 830303 | BZ43: 795968 | CA43: 765428 | CB43: 739070 | CC43: 701574 | CD43: 664277 | CE43: 630727 | CF43: 592599 | CG43: 549899 | CH43: 507950 | CI43: 457921 | CJ43: 398515 | CK43: 345222 | CL43: 300068 | CM43: 257768 | CN43: 219878 | CO43: 188375 | CP43: 158158 | CQ43: 127175 | CR43: 99595 | CS43: 76374 | CT43: 58343 | CU43: 43729 | CV43: 31693 | CW43: 22456 | CX43: 15578 | CY43: 10635 | CZ43: 7041 | DA43: 4545 | DB43: 6970
B44: SSA | C44: M | D44: 2003 | E44: 146420531 | F44: 2089699 | G44: 2065876 | H44: 2090588 | I44: 2092303 | J44: 2069527 | K44: 2060125 | L44: 2057579 | M44: 2066680 | N44: 2101939 | O44: 2131902 | P44: 2170280 | Q44: 2214148 | R44: 2241991 | S44: 2252345 | T44: 2181005 | U44: 2127886 | V44: 2104761 | W44: 2110961 | X44: 2115225 | Y44: 2076881 | Z44: 2147636 | AA44: 2166257 | AB44: 2158443 | AC44: 2153693 | AD44: 2092819 | AE44: 2037230 | AF44: 2034402 | AG44: 1953104 | AH44: 1994244 | AI44: 1952266 | AJ44: 2000097 | AK44: 2092110 | AL44: 2260188 | AM44: 2209550 | AN44: 2154845 | AO44: 2109701 | AP44: 2135959 | AQ44: 2181184 | AR44: 2274394 | AS44: 2358954 | AT44: 2374515 | AU44: 2371875 | AV44: 2401933 | AW44: 2349028 | AX44: 2329750 | AY44: 2315386 | AZ44: 2294649 | BA44: 2203937 | BB44: 2162226 | BC44: 2101135 | BD44: 2033933 | BE44: 1963553 | BF44: 1904126 | BG44: 1828666 | BH44: 1814862 | BI44: 1791519 | BJ44: 1912648 | BK44: 1370481 | BL44: 1382473 | BM44: 1380334 | BN44: 1437638 | BO44: 1245304 | BP44: 1159351 | BQ44: 1098137 | BR44: 1068498 | BS44: 1039150 | BT44: 967608 | BU44: 937334 | BV44: 910900 | BW44: 839364 | BX44: 823806 | BY44: 807780 | BZ44: 802484 | CA44: 766784 | CB44: 733932 | CC44: 706661 | CD44: 667993 | CE44: 629548 | CF44: 595652 | CG44: 557179 | CH44: 513710 | CI44: 471076 | CJ44: 421214 | CK44: 363166 | CL44: 311285 | CM44: 267406 | CN44: 226694 | CO44: 190542 | CP44: 160600 | CQ44: 132501 | CR44: 104526 | CS44: 80194 | CT44: 60144 | CU44: 44865 | CV44: 32820 | CW44: 23201 | CX44: 16031 | CY44: 10834 | CZ44: 7210 | DA44: 4649 | DB44: 6954
B45: SSA | C45: M | D45: 2004 | E45: 147876973 | F45: 2121891 | G45: 2093852 | H45: 2073660 | I45: 2098088 | J45: 2101723 | K45: 2081738 | L45: 2071627 | M45: 2066822 | N45: 2074732 | O45: 2109278 | P45: 2139251 | Q45: 2178857 | R45: 2222696 | S45: 2250423 | T45: 2261071 | U45: 2190023 | V45: 2139068 | W45: 2118755 | X45: 2127993 | Y45: 2134646 | Z45: 2096056 | AA45: 2166535 | AB45: 2184135 | AC45: 2175437 | AD45: 2171116 | AE45: 2110214 | AF45: 2053834 | AG45: 2052269 | AH45: 1970308 | AI45: 2009207 | AJ45: 1963940 | AK45: 2011686 | AL45: 2101520 | AM45: 2267860 | AN45: 2217064 | AO45: 2159276 | AP45: 2112717 | AQ45: 2138552 | AR45: 2184025 | AS45: 2275641 | AT45: 2356288 | AU45: 2371419 | AV45: 2367582 | AW45: 2398748 | AX45: 2345150 | AY45: 2321835 | AZ45: 2307794 | BA45: 2286483 | BB45: 2195916 | BC45: 2154166 | BD45: 2089951 | BE45: 2022501 | BF45: 1951790 | BG45: 1893446 | BH45: 1817393 | BI45: 1800008 | BJ45: 1776847 | BK45: 1897347 | BL45: 1358997 | BM45: 1369007 | BN45: 1364374 | BO45: 1421186 | BP45: 1230723 | BQ45: 1144699 | BR45: 1083083 | BS45: 1051711 | BT45: 1021626 | BU45: 949749 | BV45: 917998 | BW45: 889106 | BX45: 816242 | BY45: 800022 | BZ45: 781953 | CA45: 774136 | CB45: 737080 | CC45: 702008 | CD45: 673846 | CE45: 634127 | CF45: 594647 | CG45: 560404 | CH45: 521635 | CI45: 477571 | CJ45: 434473 | CK45: 385046 | CL45: 328661 | CM45: 278525 | CN45: 236264 | CO45: 197469 | CP45: 163364 | CQ45: 135311 | CR45: 109582 | CS45: 84712 | CT45: 63590 | CU45: 46583 | CV45: 33897 | CW45: 24181 | CX45: 16661 | CY45: 11222 | CZ45: 7395 | DA45: 4795 | DB45: 7062
B46: SSA | C46: M | D46: 2005 | E46: 149547953 | F46: 2131532 | G46: 2127094 | H46: 2102421 | I46: 2083083 | J46: 2107666 | K46: 2113649 | L46: 2096372 | M46: 2085308 | N46: 2078688 | O46: 2086048 | P46: 2119907 | Q46: 2149596 | R46: 2190492 | S46: 2234489 | T46: 2262336 | U46: 2273919 | V46: 2203960 | W46: 2156230 | X46: 2139480 | Y46: 2150825 | Z46: 2158729 | AA46: 2119743 | AB46: 2189933 | AC46: 2206779 | AD46: 2197567 | AE46: 2193517 | AF46: 2132266 | AG46: 2074782 | AH46: 2074365 | AI46: 1991347 | AJ46: 2028574 | AK46: 1980464 | AL46: 2027923 | AM46: 2115059 | AN46: 2279170 | AO46: 2227720 | AP46: 2166562 | AQ46: 2118424 | AR46: 2143830 | AS46: 2189441 | AT46: 2279211 | AU46: 2355700 | AV46: 2370191 | AW46: 2364946 | AX46: 2397031 | AY46: 2342568 | AZ46: 2315145 | BA46: 2301358 | BB46: 2279397 | BC46: 2188913 | BD46: 2147121 | BE46: 2079789 | BF46: 2012063 | BG46: 1940973 | BH46: 1883664 | BI46: 1806969 | BJ46: 1785984 | BK46: 1762860 | BL46: 1882651 | BM46: 1348003 | BN46: 1356067 | BO46: 1348841 | BP46: 1405015 | BQ46: 1216308 | BR46: 1130130 | BS46: 1068082 | BT46: 1035007 | BU46: 1004139 | BV46: 931876 | BW46: 898603 | BX46: 867260 | BY46: 793091 | BZ46: 776096 | CA46: 755964 | CB46: 745611 | CC46: 707237 | CD46: 670031 | CE46: 640913 | CF46: 600159 | CG46: 559693 | CH46: 525071 | CI46: 486049 | CJ46: 441575 | CK46: 398218 | CL46: 349453 | CM46: 294981 | CN46: 246878 | CO46: 206542 | CP46: 169970 | CQ46: 138206 | CR46: 112319 | CS46: 89143 | CT46: 67406 | CU46: 49397 | CV46: 35258 | CW46: 24963 | CX46: 17323 | CY46: 11610 | CZ46: 7613 | DA46: 4882 | DB46: 7146
B47: SSA | C47: M | D47: 2006 | E47: 151337034 | F47: 2165006 | G47: 2137529 | H47: 2137128 | I47: 2112950 | J47: 2094746 | K47: 2119874 | L47: 2128136 | M47: 2113299 | N47: 2101623 | O47: 2093718 | P47: 2100448 | Q47: 2133166 | R47: 2162418 | S47: 2204736 | T47: 2248990 | U47: 2277357 | V47: 2290681 | W47: 2222613 | X47: 2178234 | Y47: 2163313 | Z47: 2174770 | AA47: 2183191 | AB47: 2143167 | AC47: 2212827 | AD47: 2229153 | AE47: 2219173 | AF47: 2214990 | AG47: 2153156 | AH47: 2094433 | AI47: 2095034 | AJ47: 2011999 | AK47: 2048578 | AL47: 1997669 | AM47: 2044841 | AN47: 2129130 | AO47: 2290863 | AP47: 2238699 | AQ47: 2174146 | AR47: 2124451 | AS47: 2149540 | AT47: 2195347 | AU47: 2283244 | AV47: 2355556 | AW47: 2369353 | AX47: 2362596 | AY47: 2395518 | AZ47: 2340144 | BA47: 2308609 | BB47: 2295026 | BC47: 2272355 | BD47: 2181933 | BE47: 2140128 | BF47: 2069765 | BG47: 2001808 | BH47: 1930375 | BI47: 1874105 | BJ47: 1796721 | BK47: 1772054 | BL47: 1748802 | BM47: 1867833 | BN47: 1337063 | BO47: 1343252 | BP47: 1333345 | BQ47: 1388700 | BR47: 1201608 | BS47: 1115197 | BT47: 1052703 | BU47: 1017917 | BV47: 986258 | BW47: 913663 | BX47: 878883 | BY47: 845100 | BZ47: 769647 | CA47: 751728 | CB47: 729478 | CC47: 716546 | CD47: 676895 | CE47: 637690 | CF47: 607597 | CG47: 565821 | CH47: 524370 | CI47: 489323 | CJ47: 450148 | CK47: 405545 | CL47: 362266 | CM47: 314481 | CN47: 262196 | CO47: 216384 | CP47: 178265 | CQ47: 144220 | CR47: 115068 | CS47: 91573 | CT47: 71067 | CU47: 52442 | CV47: 37435 | CW47: 25991 | CX47: 17889 | CY47: 12072 | CZ47: 7873 | DA47: 5023 | DB47: 7265
B48: SSA | C48: M | D48: 2007 | E48: 152928520 | F48: 2235685 | G48: 2170077 | H48: 2148126 | I48: 2148499 | J48: 2124646 | K48: 2107517 | L48: 2132657 | M48: 2142571 | N48: 2130283 | O48: 2118185 | P48: 2108535 | Q48: 2113905 | R48: 2145095 | S48: 2173882 | T48: 2217495 | U48: 2261998 | V48: 2291272 | W48: 2306804 | X48: 2240129 | Y48: 2196530 | Z48: 2180511 | AA48: 2190516 | AB48: 2198213 | AC48: 2156486 | AD48: 2225219 | AE48: 2240754 | AF48: 2229759 | AG48: 2225184 | AH48: 2162526 | AI48: 2102376 | AJ48: 2103447 | AK48: 2020574 | AL48: 2056522 | AM48: 2003458 | AN48: 2050925 | AO48: 2133513 | AP48: 2293892 | AQ48: 2242205 | AR48: 2174947 | AS48: 2124209 | AT48: 2149233 | AU48: 2195634 | AV48: 2282171 | AW48: 2350783 | AX48: 2364261 | AY48: 2356322 | AZ48: 2390367 | BA48: 2334420 | BB48: 2298892 | BC48: 2285556 | BD48: 2262253 | BE48: 2171999 | BF48: 2130164 | BG48: 2056828 | BH48: 1988686 | BI48: 1916978 | BJ48: 1861799 | BK48: 1783871 | BL48: 1755629 | BM48: 1732379 | BN48: 1850562 | BO48: 1324269 | BP48: 1328506 | BQ48: 1315975 | BR48: 1370410 | BS48: 1185210 | BT48: 1098699 | BU48: 1035775 | BV48: 999290 | BW48: 966857 | BX48: 894024 | BY48: 857799 | BZ48: 821665 | CA48: 745065 | CB48: 726178 | CC48: 701899 | CD48: 686456 | CE48: 645633 | CF48: 604603 | CG48: 573612 | CH48: 530966 | CI48: 488703 | CJ48: 453326 | CK48: 414129 | CL48: 369643 | CM48: 326764 | CN48: 280373 | CO48: 230681 | CP48: 187524 | CQ48: 151929 | CR48: 120662 | CS48: 94351 | CT48: 73456 | CU48: 55694 | CV48: 40075 | CW48: 27866 | CX48: 18832 | CY48: 12614 | CZ48: 8292 | DA48: 5267 | DB48: 7534
B49: SSA | C49: M | D49: 2008 | E49: 154100345 | F49: 2231483 | G49: 2240250 | H49: 2179032 | I49: 2159132 | J49: 2159930 | K49: 2136209 | L49: 2119501 | M49: 2143844 | N49: 2155316 | O49: 2145524 | P49: 2132297 | Q49: 2120085 | R49: 2123728 | S49: 2153402 | T49: 2181648 | U49: 2226519 | V49: 2271905 | W49: 2302478 | X49: 2318408 | Y49: 2250366 | Z49: 2205497 | AA49: 2187208 | AB49: 2194568 | AC49: 2200192 | AD49: 2156410 | AE49: 2223539 | AF49: 2237905 | AG49: 2225854 | AH49: 2220627 | AI49: 2156762 | AJ49: 2094865 | AK49: 2095606 | AL49: 2013124 | AM49: 2048569 | AN49: 1994345 | AO49: 2043031 | AP49: 2125570 | AQ49: 2286043 | AR49: 2236434 | AS49: 2167397 | AT49: 2116235 | AU49: 2141429 | AV49: 2188880 | AW49: 2274716 | AX49: 2340233 | AY49: 2353905 | AZ49: 2345202 | BA49: 2380682 | BB49: 2324519 | BC49: 2285159 | BD49: 2272208 | BE49: 2248397 | BF49: 2158401 | BG49: 2116474 | BH49: 2040143 | BI49: 1971851 | BJ49: 1899994 | BK49: 1845990 | BL49: 1767687 | BM49: 1736026 | BN49: 1712991 | BO49: 1830123 | BP49: 1308956 | BQ49: 1311074 | BR49: 1296008 | BS49: 1349530 | BT49: 1166661 | BU49: 1080183 | BV49: 1016882 | BW49: 978713 | BX49: 945463 | BY49: 872404 | BZ49: 834670 | CA49: 796208 | CB49: 718657 | CC49: 698807 | CD49: 672634 | CE49: 654760 | CF49: 612880 | CG49: 570203 | CH49: 538404 | CI49: 495148 | CJ49: 452351 | CK49: 416769 | CL49: 377681 | CM49: 333545 | CN49: 291370 | CO49: 246764 | CP49: 200084 | CQ49: 159981 | CR49: 127270 | CS49: 99064 | CT49: 75782 | CU49: 57606 | CV49: 42590 | CW49: 29845 | CX49: 20200 | CY49: 13289 | CZ49: 8669 | DA49: 5552 | DB49: 7840
B50: SSA | C50: M | D50: 2009 | E50: 155207050 | F50: 2163963 | G50: 2238743 | H50: 2249554 | I50: 2189468 | J50: 2171607 | K50: 2173044 | L50: 2149143 | M50: 2132249 | N50: 2155826 | O50: 2169035 | P50: 2161134 | Q50: 2146014 | R50: 2131042 | S50: 2133098 | T50: 2161488 | U50: 2189250 | V50: 2235483 | W50: 2282199 | X50: 2313520 | Y50: 2328278 | Z50: 2257920 | AA50: 2211978 | AB50: 2191691 | AC50: 2196666 | AD50: 2200844 | AE50: 2155421 | AF50: 2221132 | AG50: 2234569 | AH50: 2221719 | AI50: 2216016 | AJ50: 2151057 | AK50: 2087508 | AL50: 2088005 | AM50: 2005940 | AN50: 2040879 | AO50: 1985521 | AP50: 2035483 | AQ50: 2117915 | AR50: 2278332 | AS50: 2230691 | AT50: 2159820 | AU50: 2108167 | AV50: 2133475 | AW50: 2181935 | AX50: 2266996 | AY50: 2329326 | AZ50: 2343130 | BA50: 2333630 | BB50: 2370426 | BC50: 2313928 | BD50: 2270654 | BE50: 2258007 | BF50: 2233646 | BG50: 2143928 | BH50: 2101927 | BI50: 2022653 | BJ50: 1954195 | BK50: 1882175 | BL50: 1829295 | BM50: 1750582 | BN50: 1715502 | BO50: 1692601 | BP50: 1808475 | BQ50: 1292696 | BR50: 1292635 | BS50: 1275099 | BT50: 1327672 | BU50: 1147151 | BV50: 1060670 | BW50: 996983 | BX50: 957120 | BY50: 922983 | BZ50: 849680 | CA50: 810433 | CB50: 769747 | CC50: 691420 | CD50: 670535 | CE50: 642467 | CF50: 622171 | CG50: 579368 | CH50: 535269 | CI50: 502749 | CJ50: 459089 | CK50: 415983 | CL50: 380329 | CM50: 341566 | CN50: 298161 | CO50: 257101 | CP50: 214647 | CQ50: 171251 | CR50: 134446 | CS50: 104831 | CT50: 79823 | CU50: 59637 | CV50: 44213 | CW50: 31859 | CX50: 21739 | CY50: 14329 | CZ50: 9183 | DA50: 5835 | DB50: 8282
B51: SSA | C51: M | D51: 2010 | E51: 156416736 | F51: 2089079 | G51: 2170302 | H51: 2246106 | I51: 2256164 | J51: 2196927 | K51: 2180563 | L51: 2182543 | M51: 2158786 | N51: 2142101 | O51: 2166270 | P51: 2179895 | Q51: 2171842 | R51: 2156202 | S51: 2140696 | T51: 2142612 | U51: 2170890 | V51: 2198766 | W51: 2245804 | X51: 2293209 | Y51: 2324584 | Z51: 2339142 | AA51: 2268233 | AB51: 2221425 | AC51: 2200307 | AD51: 2204603 | AE51: 2207743 | AF51: 2160969 | AG51: 2225757 | AH51: 2237835 | AI51: 2224608 | AJ51: 2218219 | AK51: 2152149 | AL51: 2087943 | AM51: 2088060 | AN51: 2005943 | AO51: 2040483 | AP51: 1984271 | AQ51: 2034444 | AR51: 2116567 | AS51: 2276525 | AT51: 2229168 | AU51: 2157126 | AV51: 2104781 | AW51: 2129464 | AX51: 2177584 | AY51: 2261531 | AZ51: 2321891 | BA51: 2335255 | BB51: 2325297 | BC51: 2362001 | BD51: 2304762 | BE51: 2260038 | BF51: 2247166 | BG51: 2221957 | BH51: 2131888 | BI51: 2089558 | BJ51: 2008960 | BK51: 1939999 | BL51: 1867500 | BM51: 1814124 | BN51: 1734781 | BO51: 1698280 | BP51: 1674973 | BQ51: 1789270 | BR51: 1277343 | BS51: 1274173 | BT51: 1254434 | BU51: 1304965 | BV51: 1126153 | BW51: 1039308 | BX51: 974860 | BY51: 933426 | BZ51: 897935 | CA51: 824685 | CB51: 784445 | CC51: 742097 | CD51: 663618 | CE51: 641256 | CF51: 611476 | CG51: 588948 | CH51: 545346 | CI51: 500263 | CJ51: 466785 | CK51: 422848 | CL51: 379636 | CM51: 343831 | CN51: 305529 | CO51: 263329 | CP51: 223868 | CQ51: 184006 | CR51: 144254 | CS51: 111044 | CT51: 84735 | CU51: 63020 | CV51: 45944 | CW51: 33229 | CX51: 23363 | CY51: 15552 | CZ51: 10006 | DA51: 6263 | DB51: 8842
B52: SSA | C52: M | D52: 2011 | E52: 157534936 | F52: 2046821 | G52: 2090810 | H52: 2173602 | I52: 2249926 | J52: 2259122 | K52: 2200538 | L52: 2184677 | M52: 2186744 | N52: 2163839 | O52: 2148011 | P52: 2174018 | Q52: 2186898 | R52: 2176996 | S52: 2162397 | T52: 2148629 | U52: 2151917 | V52: 2181313 | W52: 2210004 | X52: 2257328 | Y52: 2305222 | Z52: 2336990 | AA52: 2351986 | AB52: 2281549 | AC52: 2234530 | AD52: 2213760 | AE52: 2218713 | AF52: 2220971 | AG52: 2172901 | AH52: 2237062 | AI52: 2246059 | AJ52: 2230537 | AK52: 2220865 | AL52: 2151342 | AM52: 2085281 | AN52: 2082403 | AO52: 1999268 | AP52: 2033888 | AQ52: 1978120 | AR52: 2028349 | AS52: 2111535 | AT52: 2272067 | AU52: 2224809 | AV52: 2153145 | AW52: 2100426 | AX52: 2123931 | AY52: 2170778 | AZ52: 2253950 | BA52: 2314187 | BB52: 2326988 | BC52: 2317216 | BD52: 2352703 | BE52: 2294648 | BF52: 2251092 | BG52: 2237638 | BH52: 2211364 | BI52: 2120349 | BJ52: 2077394 | BK52: 1997069 | BL52: 1927375 | BM52: 1854247 | BN52: 1798923 | BO52: 1718862 | BP52: 1682961 | BQ52: 1658818 | BR52: 1771231 | BS52: 1262057 | BT52: 1254848 | BU52: 1233045 | BV52: 1280392 | BW52: 1102813 | BX52: 1015291 | BY52: 949736 | BZ52: 906851 | CA52: 869613 | CB52: 796790 | CC52: 756049 | CD52: 712547 | CE52: 634561 | CF52: 610363 | CG52: 579073 | CH52: 554425 | CI52: 510038 | CJ52: 464351 | CK52: 429779 | CL52: 385820 | CM52: 342833 | CN52: 306946 | CO52: 269346 | CP52: 228848 | CQ52: 191425 | CR52: 154535 | CS52: 118762 | CT52: 89456 | CU52: 66706 | CV52: 48398 | CW52: 34387 | CX52: 24229 | CY52: 16607 | CZ52: 10782 | DA52: 6772 | DB52: 9370
B53: SSA | C53: M | D53: 2012 | E53: 158588184 | F53: 2026431 | G53: 2051331 | H53: 2096749 | I53: 2178104 | J53: 2254462 | K53: 2262735 | L53: 2204563 | M53: 2188849 | N53: 2190994 | O53: 2169154 | P53: 2154288 | Q53: 2182137 | R53: 2194138 | S53: 2182040 | T53: 2168280 | U53: 2156343 | V53: 2161126 | W53: 2191684 | X53: 2221048 | Y53: 2268805 | Z53: 2317555 | AA53: 2349412 | AB53: 2364099 | AC53: 2293887 | AD53: 2246839 | AE53: 2226120 | AF53: 2231390 | AG53: 2232736 | AH53: 2183310 | AI53: 2246728 | AJ53: 2252577 | AK53: 2234727 | AL53: 2221698 | AM53: 2148681 | AN53: 2080792 | AO53: 2074918 | AP53: 1990853 | AQ53: 2025545 | AR53: 1970282 | AS53: 2020616 | AT53: 2105019 | AU53: 2266248 | AV53: 2219217 | AW53: 2147987 | AX53: 2094893 | AY53: 2117152 | AZ53: 2162726 | BA53: 2245161 | BB53: 2305280 | BC53: 2317487 | BD53: 2307832 | BE53: 2342045 | BF53: 2283187 | BG53: 2240791 | BH53: 2226702 | BI53: 2199286 | BJ53: 2107306 | BK53: 2063699 | BL53: 1983660 | BM53: 1913271 | BN53: 1839551 | BO53: 1782260 | BP53: 1701419 | BQ53: 1666006 | BR53: 1640954 | BS53: 1751327 | BT53: 1245446 | BU53: 1234138 | BV53: 1210205 | BW53: 1254260 | BX53: 1078083 | BY53: 989973 | BZ53: 923350 | CA53: 879019 | CB53: 840072 | CC53: 767693 | CD53: 726415 | CE53: 681802 | CF53: 604422 | CG53: 578411 | CH53: 545655 | CI53: 518944 | CJ53: 473905 | CK53: 427813 | CL53: 392401 | CM53: 348752 | CN53: 306378 | CO53: 270825 | CP53: 234343 | CQ53: 195973 | CR53: 161011 | CS53: 127435 | CT53: 95820 | CU53: 70481 | CV53: 51279 | CW53: 36263 | CX53: 25094 | CY53: 17221 | CZ53: 11510 | DA53: 7293 | DB53: 10007
B54: SSA | C54: M | D54: 2013 | E54: 159648138 | F54: 2029458 | G54: 2030584 | H54: 2060138 | I54: 2104082 | J54: 2183474 | K54: 2259785 | L54: 2266991 | M54: 2208917 | N54: 2193333 | O54: 2195804 | P54: 2175094 | Q54: 2161059 | R54: 2190408 | S54: 2201030 | T54: 2186423 | U54: 2173460 | V54: 2163388 | W54: 2169676 | X54: 2201212 | Y54: 2231298 | Z54: 2279829 | AA54: 2329048 | AB54: 2360021 | AC54: 2373567 | AD54: 2303185 | AE54: 2255825 | AF54: 2234608 | AG54: 2239535 | AH54: 2239471 | AI54: 2188471 | AJ54: 2250745 | AK54: 2254287 | AL54: 2236091 | AM54: 2221662 | AN54: 2147146 | AO54: 2079457 | AP54: 2072745 | AQ54: 1988411 | AR54: 2022870 | AS54: 1967559 | AT54: 2017480 | AU54: 2102317 | AV54: 2263532 | AW54: 2216022 | AX54: 2144789 | AY54: 2091015 | AZ54: 2111828 | BA54: 2155850 | BB54: 2237194 | BC54: 2296860 | BD54: 2308180 | BE54: 2298424 | BF54: 2331190 | BG54: 2271380 | BH54: 2229971 | BI54: 2215074 | BJ54: 2186398 | BK54: 2093411 | BL54: 2049109 | BM54: 1969290 | BN54: 1898119 | BO54: 1823712 | BP54: 1764356 | BQ54: 1682616 | BR54: 1647515 | BS54: 1621499 | BT54: 1729606 | BU54: 1227382 | BV54: 1211908 | BW54: 1185836 | BX54: 1226495 | BY54: 1051908 | BZ54: 963291 | CA54: 895637 | CB54: 849860 | CC54: 809211 | CD54: 737248 | CE54: 695365 | CF54: 649691 | CG54: 573038 | CH54: 545227 | CI54: 511098 | CJ54: 482510 | CK54: 437102 | CL54: 390902 | CM54: 354917 | CN54: 311873 | CO54: 270461 | CP54: 235659 | CQ54: 200737 | CR54: 164940 | CS54: 132866 | CT54: 102918 | CU54: 75601 | CV54: 54230 | CW54: 38458 | CX54: 26501 | CY54: 17868 | CZ54: 11956 | DA54: 7802 | DB54: 10758
B55: SSA | C55: M | D55: 2014 | E55: 160980367 | F55: 2048566 | G55: 2034755 | H55: 2039410 | I55: 2070849 | J55: 2112951 | K55: 2190491 | L55: 2266874 | M55: 2272957 | N55: 2215202 | O55: 2200309 | P55: 2203540 | Q55: 2184244 | R55: 2171106 | S55: 2201888 | T55: 2211162 | U55: 2194327 | V55: 2182559 | W55: 2174696 | X55: 2182701 | Y55: 2215617 | Z55: 2247260 | AA55: 2296814 | AB55: 2346252 | AC55: 2376321 | AD55: 2388952 | AE55: 2318787 | AF55: 2271464 | AG55: 2250206 | AH55: 2255439 | AI55: 2254492 | AJ55: 2202028 | AK55: 2263373 | AL55: 2264424 | AM55: 2245504 | AN55: 2229472 | AO55: 2153317 | AP55: 2085651 | AQ55: 2078148 | AR55: 1993191 | AS55: 2027213 | AT55: 1971293 | AU55: 2020295 | AV55: 2104746 | AW55: 2265169 | AX55: 2216378 | AY55: 2144676 | AZ55: 2089925 | BA55: 2109130 | BB55: 2151288 | BC55: 2231086 | BD55: 2289875 | BE55: 2299979 | BF55: 2289883 | BG55: 2320930 | BH55: 2259852 | BI55: 2219193 | BJ55: 2203308 | BK55: 2173266 | BL55: 2079259 | BM55: 2034226 | BN55: 1954562 | BO55: 1882522 | BP55: 1807346 | BQ55: 1745858 | BR55: 1663123 | BS55: 1628256 | BT55: 1601170 | BU55: 1706716 | BV55: 1208470 | BW55: 1188879 | BX55: 1160537 | BY55: 1197557 | BZ55: 1024556 | CA55: 935382 | CB55: 866663 | CC55: 819407 | CD55: 777069 | CE55: 705568 | CF55: 663110 | CG55: 616465 | CH55: 540667 | CI55: 511115 | CJ55: 475733 | CK55: 445453 | CL55: 399971 | CM55: 354018 | CN55: 317791 | CO55: 275693 | CP55: 235648 | CQ55: 202077 | CR55: 169170 | CS55: 136322 | CT55: 107454 | CU55: 81310 | CV55: 58289 | CW55: 40778 | CX55: 28200 | CY55: 18949 | CZ55: 12468 | DA55: 8143 | DB55: 11633
B56: SSA | C56: M | D56: 2015 | E56: 162488808 | F56: 2068895 | G56: 2054425 | H56: 2044653 | I56: 2050159 | J56: 2083088 | K56: 2123352 | L56: 2199034 | M56: 2275392 | N56: 2280458 | O56: 2223393 | P56: 2209583 | Q56: 2213849 | R56: 2196067 | S56: 2183769 | T56: 2216094 | U56: 2224385 | V56: 2205711 | W56: 2195429 | X56: 2189903 | Y56: 2199775 | Z56: 2234679 | AA56: 2267981 | AB56: 2318342 | AC56: 2368226 | AD56: 2397625 | AE56: 2409868 | AF56: 2340323 | AG56: 2293263 | AH56: 2272380 | AI56: 2278433 | AJ56: 2277000 | AK56: 2221917 | AL56: 2280117 | AM56: 2277427 | AN56: 2257673 | AO56: 2239986 | AP56: 2162141 | AQ56: 2094429 | AR56: 2086140 | AS56: 2000437 | AT56: 2033947 | AU56: 1977247 | AV56: 2025160 | AW56: 2108899 | AX56: 2268213 | AY56: 2217834 | AZ56: 2145489 | BA56: 2089647 | BB56: 2107169 | BC56: 2147280 | BD56: 2225264 | BE56: 2282943 | BF56: 2291676 | BG56: 2281088 | BH56: 2310214 | BI56: 2247724 | BJ56: 2207757 | BK56: 2190845 | BL56: 2159388 | BM56: 2064357 | BN56: 2018562 | BO56: 1938982 | BP56: 1865974 | BQ56: 1789932 | BR56: 1726240 | BS56: 1642559 | BT56: 1607907 | BU56: 1579585 | BV56: 1682287 | BW56: 1188447 | BX56: 1164722 | BY56: 1133999 | BZ56: 1167191 | CA56: 995855 | CB56: 906112 | CC56: 836322 | CD56: 787575 | CE56: 743586 | CF56: 672607 | CG56: 629570 | CH56: 581961 | CI56: 507144 | CJ56: 476020 | CK56: 439630 | CL56: 407925 | CM56: 362652 | CN56: 317261 | CO56: 281172 | CP56: 240479 | CQ56: 202293 | CR56: 170415 | CS56: 139915 | CT56: 110322 | CU56: 84919 | CV56: 62699 | CW56: 43843 | CX56: 29904 | CY56: 20172 | CZ56: 13230 | DA56: 8500 | DB56: 12396
B57: SSA | C57: M | D57: 2016 | E57: 163741318 | F57: 2062749 | G57: 2074098 | H57: 2064390 | I57: 2055834 | J57: 2061662 | K57: 2095902 | L57: 2133963 | M57: 2207364 | N57: 2283465 | O57: 2287442 | P57: 2230988 | Q57: 2218067 | R57: 2223003 | S57: 2206192 | T57: 2194370 | U57: 2228090 | V57: 2235324 | W57: 2214691 | X57: 2205581 | Y57: 2202079 | Z57: 2213531 | AA57: 2249605 | AB57: 2283598 | AC57: 2334080 | AD57: 2383721 | AE57: 2412112 | AF57: 2423821 | AG57: 2354687 | AH57: 2307696 | AI57: 2286996 | AJ57: 2293561 | AK57: 2291299 | AL57: 2233536 | AM57: 2288358 | AN57: 2282037 | AO57: 2261705 | AP57: 2242522 | AQ57: 2163167 | AR57: 2095645 | AS57: 2086566 | AT57: 2000468 | AU57: 2033636 | AV57: 1976671 | AW57: 2023884 | AX57: 2107547 | AY57: 2266291 | AZ57: 2214969 | BA57: 2142301 | BB57: 2085590 | BC57: 2101512 | BD57: 2139723 | BE57: 2216110 | BF57: 2272889 | BG57: 2280430 | BH57: 2269448 | BI57: 2296748 | BJ57: 2233060 | BK57: 2193857 | BL57: 2175963 | BM57: 2143117 | BN57: 2047076 | BO57: 2000447 | BP57: 1920945 | BQ57: 1846981 | BR57: 1770054 | BS57: 1704269 | BT57: 1619780 | BU57: 1585226 | BV57: 1555592 | BW57: 1655143 | BX57: 1166334 | BY57: 1138414 | BZ57: 1105285 | CA57: 1134509 | CB57: 965069 | CC57: 874875 | CD57: 804166 | CE57: 754055 | CF57: 708529 | CG57: 638145 | CH57: 594526 | CI57: 546105 | CJ57: 472544 | CK57: 440057 | CL57: 402916 | CM57: 370082 | CN57: 325355 | CO57: 280891 | CP57: 245350 | CQ57: 206498 | CR57: 170627 | CS57: 140942 | CT57: 113285 | CU57: 87258 | CV57: 65514 | CW57: 47155 | CX57: 32136 | CY57: 21359 | CZ57: 14051 | DA57: 8997 | DB57: 13065
B58: SSA | C58: M | D58: 2017 | E58: 164820126 | F58: 2024481 | G58: 2067601 | H58: 2083392 | I58: 2075573 | J58: 2067615 | K58: 2073550 | L58: 2108799 | M58: 2144280 | N58: 2215314 | O58: 2291174 | P58: 2293944 | Q58: 2237958 | R58: 2225644 | S58: 2230821 | T58: 2214687 | U58: 2203184 | V58: 2238248 | W58: 2244391 | X58: 2221544 | Y58: 2213326 | Z58: 2211397 | AA58: 2223571 | AB58: 2259979 | AC58: 2294158 | AD58: 2344195 | AE58: 2393301 | AF58: 2420758 | AG58: 2431734 | AH58: 2362959 | AI58: 2316068 | AJ58: 2295495 | AK58: 2302380 | AL58: 2299024 | AM58: 2239729 | AN58: 2293430 | AO58: 2284678 | AP58: 2263825 | AQ58: 2243216 | AR58: 2162451 | AS58: 2095185 | AT58: 2085328 | AU58: 1998975 | AV58: 2031870 | AW58: 1974686 | AX58: 2021154 | AY58: 2104714 | AZ58: 2262821 | BA58: 2210578 | BB58: 2137616 | BC58: 2080086 | BD58: 2094399 | BE58: 2130694 | BF58: 2205462 | BG58: 2261298 | BH58: 2267601 | BI58: 2256192 | BJ58: 2281630 | BK58: 2216754 | BL58: 2178253 | BM58: 2159315 | BN58: 2125046 | BO58: 2027983 | BP58: 1980427 | BQ58: 1900961 | BR58: 1826052 | BS58: 1748381 | BT58: 1680637 | BU58: 1595244 | BV58: 1560594 | BW58: 1529535 | BX58: 1625554 | BY58: 1142373 | BZ58: 1110233 | CA58: 1074659 | CB58: 1099768 | CC58: 932434 | CD58: 841888 | CE58: 770341 | CF58: 718900 | CG58: 671904 | CH58: 602202 | CI58: 558082 | CJ58: 509057 | CK58: 437039 | CL58: 403403 | CM58: 365762 | CN58: 332122 | CO58: 288318 | CP58: 245267 | CQ58: 210819 | CR58: 174294 | CS58: 141175 | CT58: 114136 | CU58: 89720 | CV58: 67506 | CW58: 49464 | CX58: 34739 | CY58: 23101 | CZ58: 14985 | DA58: 9629 | DB58: 13907
B59: SSA | C59: M | D59: 2018 | E59: 165791448 | F59: 1995399 | G59: 2028497 | H59: 2075988 | I59: 2093364 | J59: 2086796 | K59: 2079250 | L59: 2085050 | M59: 2121033 | N59: 2154001 | O59: 2222787 | P59: 2298272 | Q59: 2299681 | R59: 2244015 | S59: 2231997 | T59: 2237311 | U59: 2222197 | V59: 2211523 | W59: 2248439 | X59: 2253068 | Y59: 2227403 | Z59: 2219935 | AA59: 2218872 | AB59: 2230839 | AC59: 2267179 | AD59: 2301336 | AE59: 2350924 | AF59: 2399833 | AG59: 2426574 | AH59: 2436990 | AI59: 2368782 | AJ59: 2322128 | AK59: 2301792 | AL59: 2309098 | AM59: 2304752 | AN59: 2244115 | AO59: 2296854 | AP59: 2285864 | AQ59: 2264668 | AR59: 2242773 | AS59: 2160738 | AT59: 2093888 | AU59: 2083351 | AV59: 1996837 | AW59: 2029490 | AX59: 1972116 | AY59: 2017816 | AZ59: 2101188 | BA59: 2258486 | BB59: 2205261 | BC59: 2132025 | BD59: 2073680 | BE59: 2086351 | BF59: 2120683 | BG59: 2193719 | BH59: 2248492 | BI59: 2253477 | BJ59: 2241576 | BK59: 2265045 | BL59: 2198919 | BM59: 2161070 | BN59: 2141045 | BO59: 2105238 | BP59: 2007078 | BQ59: 1958514 | BR59: 1879049 | BS59: 1803297 | BT59: 1725007 | BU59: 1655255 | BV59: 1568882 | BW59: 1534007 | BX59: 1501395 | BY59: 1593519 | BZ59: 1116553 | CA59: 1080162 | CB59: 1042084 | CC59: 1062919 | CD59: 897944 | CE59: 807221 | CF59: 734979 | CG59: 682262 | CH59: 633863 | CI59: 564927 | CJ59: 520364 | CK59: 470903 | CL59: 400679 | CM59: 366142 | CN59: 328330 | CO59: 294267 | CP59: 251816 | CQ59: 210692 | CR59: 177908 | CS59: 144234 | CT59: 114298 | CU59: 90258 | CV59: 69283 | CW59: 50883 | CX59: 36382 | CY59: 24941 | CZ59: 16196 | DA59: 10264 | DB59: 14821
B60: SSA | C60: M | D60: 2019 | E60: 166535858 | F60: 1953500 | G60: 1997197 | H60: 2035220 | I60: 2084201 | J60: 2102430 | K60: 2096813 | L60: 2089359 | M60: 2094673 | N60: 2131352 | O60: 2161885 | P60: 2228301 | Q60: 2303281 | R60: 2303218 | S60: 2247669 | T60: 2235666 | U60: 2241045 | V60: 2227111 | W60: 2217515 | X60: 2256279 | Y60: 2258797 | Z60: 2229746 | AA60: 2222489 | AB60: 2221790 | AC60: 2233524 | AD60: 2269579 | AE60: 2303569 | AF60: 2352827 | AG60: 2401525 | AH60: 2427559 | AI60: 2437374 | AJ60: 2369729 | AK60: 2323221 | AL60: 2302996 | AM60: 2310673 | AN60: 2305383 | AO60: 2243634 | AP60: 2295500 | AQ60: 2282506 | AR60: 2261268 | AS60: 2238283 | AT60: 2155185 | AU60: 2089004 | AV60: 2077889 | AW60: 1991412 | AX60: 2023899 | AY60: 1966552 | AZ60: 2011642 | BA60: 2095043 | BB60: 2251650 | BC60: 2197638 | BD60: 2124185 | BE60: 2065060 | BF60: 2076119 | BG60: 2108559 | BH60: 2179863 | BI60: 2233547 | BJ60: 2237252 | BK60: 2224864 | BL60: 2246337 | BM60: 2179012 | BN60: 2141781 | BO60: 2120586 | BP60: 2083156 | BQ60: 1983898 | BR60: 1934298 | BS60: 1854956 | BT60: 1778529 | BU60: 1699606 | BV60: 1627853 | BW60: 1540545 | BX60: 1505307 | BY60: 1471031 | BZ60: 1558906 | CA60: 1088789 | CB60: 1048190 | CC60: 1007638 | CD60: 1024090 | CE60: 861724 | CF60: 770999 | CG60: 698252 | CH60: 644419 | CI60: 594801 | CJ60: 526772 | CK60: 481898 | CL60: 432256 | CM60: 364142 | CN60: 329028 | CO60: 291423 | CP60: 257456 | CQ60: 216894 | CR60: 178221 | CS60: 147593 | CT60: 117119 | CU60: 90633 | CV60: 69791 | CW60: 52229 | CX60: 37385 | CY60: 26057 | CZ60: 17430 | DA60: 11052 | DB60: 15726
B61: SSA | C61: M | D61: 2020 | E61: 167154076 | F61: 1927702 | G61: 1953059 | H61: 2001509 | I61: 2041786 | J61: 2091654 | K61: 2110500 | L61: 2105616 | M61: 2098016 | N61: 2102852 | O61: 2140414 | P61: 2168624 | Q61: 2232816 | R61: 2307560 | S61: 2306218 | T61: 2250871 | U61: 2238919 | V61: 2244359 | W61: 2231551 | X61: 2222760 | Y61: 2262874 | Z61: 2263239 | AA61: 2230854 | AB61: 2223713 | AC61: 2223788 | AD61: 2235970 | AE61: 2272360 | AF61: 2306701 | AG61: 2356014 | AH61: 2404754 | AI61: 2430146 | AJ61: 2439284 | AK61: 2372080 | AL61: 2325625 | AM61: 2305530 | AN61: 2313765 | AO61: 2307758 | AP61: 2244960 | AQ61: 2295968 | AR61: 2280926 | AS61: 2259514 | AT61: 2235393 | AU61: 2151257 | AV61: 2085711 | AW61: 2074064 | AX61: 1987519 | AY61: 2019673 | AZ61: 1962087 | BA61: 2006150 | BB61: 2088952 | BC61: 2244283 | BD61: 2189135 | BE61: 2115286 | BF61: 2055299 | BG61: 2064687 | BH61: 2095011 | BI61: 2164169 | BJ61: 2216386 | BK61: 2218552 | BL61: 2205451 | BM61: 2224599 | BN61: 2155825 | BO61: 2118872 | BP61: 2096220 | BQ61: 2057009 | BR61: 1956697 | BS61: 1906112 | BT61: 1827009 | BU61: 1749846 | BV61: 1670177 | BW61: 1596323 | BX61: 1507922 | BY61: 1471966 | BZ61: 1435667 | CA61: 1518352 | CB61: 1056512 | CC61: 1011610 | CD61: 968392 | CE61: 979954 | CF61: 820681 | CG61: 730176 | CH61: 657136 | CI61: 602335 | CJ61: 551681 | CK61: 484804 | CL61: 439771 | CM61: 390364 | CN61: 325031 | CO61: 289827 | CP61: 252990 | CQ61: 219764 | CR61: 181792 | CS61: 146251 | CT61: 118417 | CU61: 91706 | CV61: 69132 | CW61: 51798 | CX61: 37716 | CY61: 26267 | CZ61: 17825 | DA61: 11622 | DB61: 16252
B62: SSA | C62: M | D62: 2021 | E62: 167634381 | F62: 1852458 | G62: 1924477 | H62: 1955569 | I62: 2006351 | J62: 2048439 | K62: 2099108 | L62: 2118596 | M62: 2114470 | N62: 2106877 | O62: 2111569 | P62: 2150226 | Q62: 2176576 | R62: 2239014 | S62: 2313645 | T62: 2311117 | U62: 2256019 | V62: 2244225 | W62: 2249800 | X62: 2238042 | Y62: 2230060 | Z62: 2271469 | AA62: 2269624 | AB62: 2234018 | AC62: 2227258 | AD62: 2228505 | AE62: 2241397 | AF62: 2278306 | AG62: 2313154 | AH62: 2362680 | AI62: 2411488 | AJ62: 2436058 | AK62: 2444282 | AL62: 2377222 | AM62: 2330560 | AN62: 2310393 | AO62: 2319080 | AP62: 2312312 | AQ62: 2248295 | AR62: 2298270 | AS62: 2280954 | AT62: 2259100 | AU62: 2233634 | AV62: 2148294 | AW62: 2083196 | AX62: 2070864 | AY62: 1984030 | AZ62: 2015549 | BA62: 1957403 | BB62: 2000020 | BC62: 2081666 | BD62: 2235105 | BE62: 2178480 | BF62: 2104023 | BG62: 2043003 | BH62: 2050448 | BI62: 2078315 | BJ62: 2144897 | BK62: 2195271 | BL62: 2195626 | BM62: 2181542 | BN62: 2198017 | BO62: 2127595 | BP62: 2090660 | BQ62: 2066358 | BR62: 2025287 | BS62: 1924173 | BT62: 1872712 | BU62: 1793792 | BV62: 1715808 | BW62: 1635361 | BX62: 1559356 | BY62: 1469820 | BZ62: 1432829 | CA62: 1394201 | CB62: 1470787 | CC62: 1019093 | CD62: 969972 | CE62: 924044 | CF62: 930317 | CG62: 774749 | CH62: 684842 | CI62: 611923 | CJ62: 556529 | CK62: 505243 | CL62: 439953 | CM62: 395093 | CN62: 346447 | CO62: 284583 | CP62: 249927 | CQ62: 214533 | CR62: 182739 | CS62: 147970 | CT62: 116171 | CU62: 91711 | CV62: 69188 | CW62: 50751 | CX62: 36977 | CY62: 26191 | CZ62: 17746 | DA62: 11721 | DB62: 16783
B63: SSA | C63: M | D63: 2022 | E63: 168291117 | F63: 1898702 | G63: 1846366 | H63: 1929933 | I63: 1962771 | J63: 2014237 | K63: 2057235 | L63: 2108436 | M63: 2128271 | N63: 2124925 | O63: 2117893 | P63: 2122844 | Q63: 2162177 | R63: 2187771 | S63: 2249549 | T63: 2324382 | U63: 2321874 | V63: 2267994 | W63: 2257569 | X63: 2263525 | Y63: 2251613 | Z63: 2244051 | AA63: 2286362 | AB63: 2283061 | AC63: 2245462 | AD63: 2238470 | AE63: 2239803 | AF63: 2252453 | AG63: 2289090 | AH63: 2323610 | AI63: 2372696 | AJ63: 2420988 | AK63: 2444374 | AL63: 2451397 | AM63: 2383658 | AN63: 2336086 | AO63: 2315047 | AP63: 2323154 | AQ63: 2315296 | AR63: 2250080 | AS63: 2298974 | AT63: 2280009 | AU63: 2257482 | AV63: 2230943 | AW63: 2144688 | AX63: 2079465 | AY63: 2066376 | AZ63: 1979118 | BA63: 2009892 | BB63: 1951245 | BC63: 1992752 | BD63: 2073263 | BE63: 2224853 | BF63: 2167039 | BG63: 2091793 | BH63: 2029654 | BI63: 2035220 | BJ63: 2060846 | BK63: 2124955 | BL63: 2173183 | BM63: 2171557 | BN63: 2155964 | BO63: 2169886 | BP63: 2097976 | BQ63: 2060055 | BR63: 2033824 | BS63: 1990974 | BT63: 1889319 | BU63: 1836744 | BV63: 1757433 | BW63: 1678565 | BX63: 1597321 | BY63: 1519786 | BZ63: 1429368 | CA63: 1390665 | CB63: 1349524 | CC63: 1419321 | CD63: 979376 | CE63: 927263 | CF63: 879067 | CG63: 880348 | CH63: 728799 | CI63: 639868 | CJ63: 567498 | CK63: 511868 | CL63: 460416 | CM63: 396849 | CN63: 352334 | CO63: 304836 | CP63: 246708 | CQ63: 213119 | CR63: 179669 | CS63: 149843 | CT63: 118582 | CU63: 90721 | CV63: 69761 | CW63: 51248 | CX63: 36593 | CY63: 25959 | CZ63: 17921 | DA63: 11835 | DB63: 17399
B64: SSA | C64: M | D64: 2023 | E64: 169257473 | F64: 1913257 | G64: 1905630 | H64: 1858217 | I64: 1943117 | J64: 1975239 | K64: 2026423 | L64: 2069441 | M64: 2120752 | N64: 2141007 | O64: 2138566 | P64: 2132282 | Q64: 2137537 | R64: 2177103 | S64: 2202850 | T64: 2265146 | U64: 2341252 | V64: 2340811 | W64: 2289425 | X64: 2280936 | Y64: 2286655 | Z64: 2273921 | AA64: 2266293 | AB64: 2308150 | AC64: 2303953 | AD64: 2265477 | AE64: 2257633 | AF64: 2258011 | AG64: 2269556 | AH64: 2305232 | AI64: 2338722 | AJ64: 2386764 | AK64: 2433887 | AL64: 2455780 | AM64: 2461426 | AN64: 2392268 | AO64: 2343258 | AP64: 2320806 | AQ64: 2327581 | AR64: 2318532 | AS64: 2252277 | AT64: 2300239 | AU64: 2280427 | AV64: 2257153 | AW64: 2229978 | AX64: 2143228 | AY64: 2077370 | AZ64: 2063564 | BA64: 1975731 | BB64: 2005727 | BC64: 1946578 | BD64: 1987190 | BE64: 2066384 | BF64: 2216127 | BG64: 2157251 | BH64: 2080989 | BI64: 2017651 | BJ64: 2021511 | BK64: 2045144 | BL64: 2106829 | BM64: 2152635 | BN64: 2148902 | BO64: 2131265 | BP64: 2142706 | BQ64: 2069380 | BR64: 2029648 | BS64: 2001532 | BT64: 1957146 | BU64: 1855040 | BV64: 1801151 | BW64: 1720954 | BX64: 1641042 | BY64: 1558727 | BZ64: 1479887 | CA64: 1388398 | CB64: 1347057 | CC64: 1303101 | CD64: 1365607 | CE64: 938623 | CF64: 884668 | CG64: 834521 | CH64: 831094 | CI64: 683754 | CJ64: 596054 | CK64: 524436 | CL64: 468796 | CM64: 417606 | CN64: 355851 | CO64: 311803 | CP64: 265816 | CQ64: 211622 | CR64: 179490 | CS64: 148329 | CT64: 120900 | CU64: 93374 | CV64: 69527 | CW64: 52015 | CX64: 37169 | CY64: 25815 | CZ64: 17827 | DA64: 11991 | DB64: 17970
B65: SSA | C65: M | D65: 2024 | E65: 170401348 | F65: 1927608 | G65: 1921448 | H65: 1919406 | I65: 1873026 | J65: 1957732 | K65: 1989271 | L65: 2040576 | M65: 2083480 | N65: 2135196 | O65: 2156404 | P65: 2154799 | Q65: 2148863 | R65: 2154271 | S65: 2194213 | T65: 2220497 | U65: 2284162 | V65: 2362794 | W65: 2365328 | X65: 2315791 | Y65: 2307461 | Z65: 2312519 | AA65: 2299437 | AB65: 2290766 | AC65: 2331217 | AD65: 2326081 | AE65: 2286813 | AF65: 2278199 | AG65: 2277728 | AH65: 2288259 | AI65: 2323088 | AJ65: 2355574 | AK65: 2402330 | AL65: 2447957 | AM65: 2468155 | AN65: 2472304 | AO65: 2401617 | AP65: 2351205 | AQ65: 2327438 | AR65: 2332911 | AS65: 2322703 | AT65: 2255462 | AU65: 2302606 | AV65: 2282074 | AW65: 2258154 | AX65: 2230402 | AY65: 2143156 | AZ65: 2076601 | BA65: 2062059 | BB65: 1973612 | BC65: 2002854 | BD65: 1943065 | BE65: 1982604 | BF65: 2060293 | BG65: 2208006 | BH65: 2147869 | BI65: 2070462 | BJ65: 2005842 | BK65: 2007929 | BL65: 2029497 | BM65: 2088715 | BN65: 2132106 | BO65: 2126277 | BP65: 2106562 | BQ65: 2115488 | BR65: 2040805 | BS65: 1999473 | BT65: 1969745 | BU65: 1924044 | BV65: 1821606 | BW65: 1766417 | BX65: 1685231 | BY65: 1604041 | BZ65: 1520314 | CA65: 1439797 | CB65: 1346922 | CC65: 1302729 | CD65: 1255903 | CE65: 1311220 | CF65: 897612 | CG65: 842018 | CH65: 790055 | CI65: 782100 | CJ65: 639142 | CK65: 552823 | CL65: 482141 | CM65: 426780 | CN65: 376160 | CO65: 316539 | CP65: 273416 | CQ65: 229407 | CR65: 179430 | CS65: 149193 | CT65: 120685 | CU65: 96054 | CV65: 72415 | CW65: 52551 | CX65: 38331 | CY65: 26711 | CZ65: 18106 | DA65: 12204 | DB65: 18906
B66: SSA | C66: M | D66: 2025 | E66: 171551862 | F66: 1973383 | G66: 1934891 | H66: 1934294 | I66: 1933642 | J66: 1886592 | K66: 1971226 | L66: 2002653 | M66: 2054012 | N66: 2097117 | O66: 2149739 | P66: 2171723 | Q66: 2170459 | R66: 2164663 | S66: 2170293 | T66: 2210857 | U66: 2238273 | V66: 2304090 | W66: 2385592 | X66: 2390074 | Y66: 2340282 | Z66: 2331206 | AA66: 2335817 | AB66: 2321466 | AC66: 2310973 | AD66: 2350363 | AE66: 2344660 | AF66: 2304789 | AG66: 2295584 | AH66: 2294519 | AI66: 2304382 | AJ66: 2338604 | AK66: 2370046 | AL66: 2415395 | AM66: 2459535 | AN66: 2478107 | AO66: 2480861 | AP66: 2408884 | AQ66: 2357343 | AR66: 2332481 | AS66: 2336814 | AT66: 2325624 | AU66: 2257578 | AV66: 2304023 | AW66: 2282859 | AX66: 2258336 | AY66: 2229997 | AZ66: 2142219 | BA66: 2075007 | BB66: 2059806 | BC66: 1970854 | BD66: 1999324 | BE66: 1938804 | BF66: 1977179 | BG66: 2053280 | BH66: 2198824 | BI66: 2137413 | BJ66: 2058928 | BK66: 1993100 | BL66: 1993441 | BM66: 2013018 | BN66: 2069838 | BO66: 2110802 | BP66: 2102870 | BQ66: 2081141 | BR66: 2087673 | BS66: 2011833 | BT66: 1969034 | BU66: 1937715 | BV66: 1890704 | BW66: 1787870 | BX66: 1731184 | BY66: 1648746 | BZ66: 1566019 | CA66: 1480701 | CB66: 1398465 | CC66: 1304303 | CD66: 1257352 | CE66: 1207753 | CF66: 1255892 | CG66: 855990 | CH66: 798859 | CI66: 745215 | CJ66: 732875 | CK66: 594497 | CL66: 509787 | CM66: 440333 | CN66: 385521 | CO66: 335695 | CP66: 278557 | CQ66: 236907 | CR66: 195387 | CS66: 149941 | CT66: 122060 | CU66: 96551 | CV66: 75005 | CW66: 55207 | CX66: 39073 | CY66: 27817 | CZ66: 18938 | DA66: 12542 | DB66: 19912
B67: SSA | C67: M | D67: 2026 | E67: 172645845 | F67: 2015768 | G67: 1979905 | H67: 1946711 | I67: 1947365 | J67: 1946302 | K67: 1898734 | L67: 1983702 | M67: 2014959 | N67: 2066683 | O67: 2110498 | P67: 2163855 | Q67: 2186123 | R67: 2184992 | S67: 2179401 | T67: 2185502 | U67: 2227265 | V67: 2256588 | W67: 2324884 | X67: 2408199 | Y67: 2412440 | Z67: 2361510 | AA67: 2351866 | AB67: 2355100 | AC67: 2338818 | AD67: 2327034 | AE67: 2365766 | AF67: 2359639 | AG67: 2319328 | AH67: 2309748 | AI67: 2308411 | AJ67: 2317827 | AK67: 2351264 | AL67: 2381442 | AM67: 2425349 | AN67: 2468027 | AO67: 2485112 | AP67: 2486691 | AQ67: 2413735 | AR67: 2361311 | AS67: 2335532 | AT67: 2338918 | AU67: 2326932 | AV67: 2258259 | AW67: 2304075 | AX67: 2282330 | AY67: 2257191 | AZ67: 2228213 | BA67: 2139936 | BB67: 2072162 | BC67: 2056378 | BD67: 1966944 | BE67: 1994498 | BF67: 1933182 | BG67: 1970284 | BH67: 2044662 | BI67: 2187884 | BJ67: 2125257 | BK67: 2045750 | BL67: 1978758 | BM67: 1977394 | BN67: 1995023 | BO67: 2049364 | BP67: 2087806 | BQ67: 2077782 | BR67: 2054125 | BS67: 2058390 | BT67: 1981607 | BU67: 1937497 | BV67: 1904645 | BW67: 1856241 | BX67: 1752818 | BY67: 1694328 | BZ67: 1610360 | CA67: 1525878 | CB67: 1438914 | CC67: 1355023 | CD67: 1259685 | CE67: 1210019 | CF67: 1157682 | CG67: 1198507 | CH67: 812933 | CI67: 754351 | CJ67: 699135 | CK67: 682493 | CL67: 549020 | CM67: 466242 | CN67: 398358 | CO67: 344446 | CP67: 295878 | CQ67: 241762 | CR67: 202139 | CS67: 163613 | CT67: 122989 | CU67: 97888 | CV67: 75654 | CW67: 57345 | CX67: 41213 | CY67: 28462 | CZ67: 19801 | DA67: 13179 | DB67: 20857
B68: SSA | C68: M | D68: 2027 | E68: 173712300 | F68: 2055404 | G68: 2022030 | H68: 1991387 | I68: 1959361 | J68: 1959565 | K68: 1958156 | L68: 1910417 | M68: 1995636 | N68: 2027056 | O68: 2079658 | P68: 2124100 | Q68: 2177810 | R68: 2200213 | S68: 2199301 | T68: 2194174 | U68: 2201334 | V68: 2245117 | W68: 2276792 | X68: 2346759 | Y68: 2429953 | Z68: 2433169 | AA68: 2381381 | AB68: 2370501 | AC68: 2372009 | AD68: 2354427 | AE68: 2341740 | AF68: 2379817 | AG68: 2373237 | AH68: 2332538 | AI68: 2322730 | AJ68: 2321177 | AK68: 2329794 | AL68: 2362024 | AM68: 2390764 | AN68: 2433149 | AO68: 2474390 | AP68: 2490149 | AQ68: 2490753 | AR68: 2416993 | AS68: 2363802 | AT68: 2337233 | AU68: 2339797 | AV68: 2327115 | AW68: 2257881 | AX68: 2303036 | AY68: 2280643 | AZ68: 2254804 | BA68: 2225196 | BB68: 2136491 | BC68: 2068237 | BD68: 2051827 | BE68: 1961799 | BF68: 1988284 | BG68: 1926103 | BH68: 1961780 | BI68: 2034307 | BJ68: 2175096 | BK68: 2111295 | BL68: 2030788 | BM68: 1962690 | BN68: 1959641 | BO68: 1975247 | BP68: 2026990 | BQ68: 2062868 | BR68: 2050806 | BS68: 2025344 | BT68: 2027483 | BU68: 1949927 | BV68: 1904558 | BW68: 1870070 | BX68: 1820027 | BY68: 1715731 | BZ68: 1655108 | CA68: 1569382 | CB68: 1483071 | CC68: 1394516 | CD68: 1309047 | CE68: 1212639 | CF68: 1160259 | CG68: 1105191 | CH68: 1138521 | CI68: 768049 | CJ68: 708106 | CK68: 651445 | CL68: 630592 | CM68: 502468 | CN68: 422063 | CO68: 356242 | CP68: 303787 | CQ68: 257055 | CR68: 206498 | CS68: 169450 | CT68: 134371 | CU68: 98797 | CV68: 76800 | CW68: 57966 | CX68: 42873 | CY68: 30097 | CZ68: 20307 | DA68: 13813 | DB68: 21926
B70: HMD | C70: F | D70: 2000 | E70: 142712944 | F70: 1867013.125 | G70: 1852381.125 | H70: 1852960.875 | I70: 1868837.875 | J70: 1915542.5 | K70: 1941707.625 | L70: 1962829.75 | M70: 2015108.5 | N70: 2036636.75 | O70: 2062180.5 | P70: 2062304.75 | Q70: 1997410.75 | R70: 1974689.375 | S70: 1960706.875 | T70: 1964531.375 | U70: 1944088 | V70: 1940094.25 | W70: 1952222.375 | X70: 1960549.875 | Y70: 2011423.875 | Z70: 1959912.5 | AA70: 1869404.5 | AB70: 1825107 | AC70: 1783475 | AD70: 1786659.625 | AE70: 1819604.875 | AF70: 1805794.125 | AG70: 1903046.375 | AH70: 2008905 | AI70: 2076595.5 | AJ70: 2092777.625 | AK70: 1985595.375 | AL70: 2001470.625 | AM70: 2020654.5 | AN70: 2121586 | AO70: 2253876.5 | AP70: 2274790 | AQ70: 2285759.25 | AR70: 2280039.25 | AS70: 2321328 | AT70: 2346702 | AU70: 2262689 | AV70: 2275088.5 | AW70: 2221378.25 | AX70: 2167859.25 | AY70: 2166851.75 | AZ70: 2071176.5 | BA70: 2024849 | BB70: 1935974.5 | BC70: 1928463.75 | BD70: 1923904 | BE70: 1855103.625 | BF70: 1915893.25 | BG70: 1689781 | BH70: 1476225.625 | BI70: 1466186.875 | BJ70: 1481855.5 | BK70: 1416578.375 | BL70: 1295151.25 | BM70: 1227383.125 | BN70: 1211422.5 | BO70: 1150757.5 | BP70: 1119074.125 | BQ70: 1086700.875 | BR70: 1087125.375 | BS70: 1051163.75 | BT70: 1011441.875 | BU70: 1025057.25 | BV70: 1024789.438 | BW70: 1021234.938 | BX70: 1035357.75 | BY70: 1001516.062 | BZ70: 989831.625 | CA70: 973659.6875 | CB70: 966253.9375 | CC70: 950266.1875 | CD70: 908444.8125 | CE70: 874389.1875 | CF70: 841135.3125 | CG70: 782312.6875 | CH70: 673519 | CI70: 649936.125 | CJ70: 590795.625 | CK70: 541551.625 | CL70: 501295.6875 | CM70: 465924.9688 | CN70: 409421.0625 | CO70: 368687.0312 | CP70: 308947.0625 | CQ70: 275702.375 | CR70: 226637.4375 | CS70: 193817.6719 | CT70: 156553.6875 | CU70: 123546.9219 | CV70: 97053.78125 | CW70: 73088.77344 | CX70: 54887.91016 | CY70: 40610.78125 | CZ70: 26289.16016 | DA70: 20476.48047 | DB70: 33536.31641
B71: HMD | C71: F | D71: 2001 | E71: 144131568 | F71: 1922474.625 | G71: 1869378.875 | H71: 1856606.125 | I71: 1862912 | J71: 1888273.375 | K71: 1922267.125 | L71: 1945943 | M71: 1976138.625 | N71: 2016128.25 | O71: 2053727.375 | P71: 2095784.375 | Q71: 2071269.5 | R71: 2016824.5 | S71: 1987511 | T71: 1976102.875 | U71: 1981705.25 | V71: 1961779.875 | W71: 1951300.625 | X71: 1978261.75 | Y71: 2008941 | Z71: 2020047.875 | AA71: 1963060.875 | AB71: 1879676.25 | AC71: 1841194.375 | AD71: 1809850.625 | AE71: 1821000.75 | AF71: 1827722.125 | AG71: 1834774.375 | AH71: 1911351.625 | AI71: 2022580 | AJ71: 2109537 | AK71: 2071464.25 | AL71: 2007465.625 | AM71: 2001343.5 | AN71: 2039845.25 | AO71: 2145983.5 | AP71: 2246727.75 | AQ71: 2273212.75 | AR71: 2280298 | AS71: 2303112.25 | AT71: 2338066.75 | AU71: 2316497.75 | AV71: 2277699.75 | AW71: 2272273 | AX71: 2221905 | AY71: 2184204 | AZ71: 2148933.5 | BA71: 2078519.5 | BB71: 2014035 | BC71: 1960677.875 | BD71: 1935463.75 | BE71: 1902031.75 | BF71: 1862479.5 | BG71: 1901681.25 | BH71: 1707577.875 | BI71: 1464907.625 | BJ71: 1457760.125 | BK71: 1476198.375 | BL71: 1419420 | BM71: 1290991.5 | BN71: 1229906.625 | BO71: 1188244 | BP71: 1152523.125 | BQ71: 1115668.25 | BR71: 1079034.875 | BS71: 1076952.125 | BT71: 1039495.188 | BU71: 1003437.5 | BV71: 1006072.188 | BW71: 1004080.562 | BX71: 1015104.938 | BY71: 1003501.188 | BZ71: 981792.5 | CA71: 975355.5 | CB71: 953390.1875 | CC71: 939847.375 | CD71: 920901.8125 | CE71: 875665.6875 | CF71: 838733.6875 | CG71: 804794.5 | CH71: 729880.25 | CI71: 636571.75 | CJ71: 611029.875 | CK71: 551182 | CL71: 501234.4375 | CM71: 460011.5312 | CN71: 422476.9688 | CO71: 367367.7812 | CP71: 326619.5625 | CQ71: 270144.6875 | CR71: 236692.5156 | CS71: 191463.1406 | CT71: 160146.2656 | CU71: 126906.0938 | CV71: 97820.4375 | CW71: 75063.60156 | CX71: 55166.83984 | CY71: 40309.10938 | CZ71: 29042.55078 | DA71: 18330.41016 | DB71: 34729.69141
B72: HMD | C72: F | D72: 2002 | E72: 145489520 | F72: 1947881 | G72: 1921504.25 | H72: 1870221.125 | I72: 1858443.75 | J72: 1866586.125 | K72: 1892761.5 | L72: 1924447.125 | M72: 1950504.5 | N72: 1980050.5 | O72: 2024054.75 | P72: 2079811.875 | Q72: 2106596.75 | R72: 2088003.875 | S72: 2029715.125 | T72: 1997509.625 | U72: 1991858.625 | V72: 1998603.25 | W72: 1977367.5 | X72: 1974706 | Y72: 2002952.625 | Z72: 2026482.375 | AA72: 2038730.25 | AB72: 1976973.625 | AC72: 1896121.5 | AD72: 1858617.5 | AE72: 1831375.25 | AF72: 1835584.75 | AG72: 1846010 | AH72: 1846130.5 | AI72: 1916674.125 | AJ72: 2038930.75 | AK72: 2113080.75 | AL72: 2086669.625 | AM72: 2017637 | AN72: 2010751.875 | AO72: 2050250.375 | AP72: 2154353.5 | AQ72: 2252394 | AR72: 2279366.75 | AS72: 2285787.25 | AT72: 2306623.25 | AU72: 2342454.75 | AV72: 2318467.25 | AW72: 2280644.5 | AX72: 2270322.25 | AY72: 2220321.25 | AZ72: 2184582 | BA72: 2149825.75 | BB72: 2077107.75 | BC72: 2014416.75 | BD72: 1957709.625 | BE72: 1936739.5 | BF72: 1899316.75 | BG72: 1861600.5 | BH72: 1901147.625 | BI72: 1702946.75 | BJ72: 1463834.5 | BK72: 1453768.5 | BL72: 1472189.5 | BM72: 1413765.625 | BN72: 1282520.25 | BO72: 1226172.5 | BP72: 1182233.625 | BQ72: 1146095.75 | BR72: 1106194.875 | BS72: 1070876.625 | BT72: 1066593.875 | BU72: 1028663.75 | BV72: 991229.6875 | BW72: 991892 | BX72: 986914.25 | BY72: 998826.25 | BZ72: 983468.9375 | CA72: 960633.75 | CB72: 950756.625 | CC72: 925261.0625 | CD72: 912149.8125 | CE72: 889164.3125 | CF72: 843083.625 | CG72: 803753.6875 | CH72: 754778.5625 | CI72: 690993.875 | CJ72: 598521.8125 | CK72: 570463.1875 | CL72: 510363.5625 | CM72: 459564.875 | CN72: 417845.5312 | CO72: 379428.25 | CP72: 325185.7812 | CQ72: 285149.375 | CR72: 232343.0781 | CS72: 199968.1875 | CT72: 158850.8594 | CU72: 129964 | CV72: 100729.2031 | CW72: 75448.75781 | CX72: 56411.21875 | CY72: 40557.82031 | CZ72: 28697.26953 | DA72: 20345.11914 | DB72: 34091.49219
B73: HMD | C73: F | D73: 2003 | E73: 146778640 | F73: 1937799.75 | G73: 1943411.125 | H73: 1921354.75 | I73: 1872625.5 | J73: 1863409.125 | K73: 1872030 | L73: 1894021.5 | M73: 1929899.125 | N73: 1954366.125 | O73: 1990011.875 | P73: 2061119 | Q73: 2086742.875 | R73: 2124615.5 | S73: 2099065.75 | T73: 2036706.125 | U73: 2014354.5 | V73: 2008462.75 | W73: 2011401.375 | X73: 2001928.875 | Y73: 1998219 | Z73: 2014618.625 | AA73: 2041816.375 | AB73: 2047151.5 | AC73: 1990227.625 | AD73: 1911413 | AE73: 1880563.5 | AF73: 1841736.625 | AG73: 1854289 | AH73: 1853721.875 | AI73: 1847614 | AJ73: 1938146.5 | AK73: 2038513.25 | AL73: 2133184.75 | AM73: 2095931.25 | AN73: 2026125 | AO73: 2021663.25 | AP73: 2057796.125 | AQ73: 2158776 | AR73: 2258406.5 | AS73: 2284798.5 | AT73: 2288439.75 | AU73: 2311346 | AV73: 2343398 | AW73: 2321843 | AX73: 2276293 | AY73: 2268004.75 | AZ73: 2221636.25 | BA73: 2186396.25 | BB73: 2147537 | BC73: 2078270.75 | BD73: 2010022.125 | BE73: 1960924.625 | BF73: 1933024.75 | BG73: 1899706.125 | BH73: 1862312.625 | BI73: 1894224.5 | BJ73: 1703143.375 | BK73: 1459174.875 | BL73: 1450143.875 | BM73: 1465752.125 | BN73: 1402523.125 | BO73: 1280904.25 | BP73: 1220118.25 | BQ73: 1176112.375 | BR73: 1135353.75 | BS73: 1098647.75 | BT73: 1060421.625 | BU73: 1056014.5 | BV73: 1016435 | BW73: 977364.1875 | BX73: 974067.0625 | BY73: 972185.125 | BZ73: 978573.4375 | CA73: 962725.8125 | CB73: 936038.625 | CC73: 921904.75 | CD73: 899501.4375 | CE73: 880654.5 | CF73: 856882.6875 | CG73: 808389.875 | CH73: 734416.0625 | CI73: 714613 | CJ73: 649958.4375 | CK73: 558310.8125 | CL73: 528372.5 | CM73: 468261.0938 | CN73: 417504.4688 | CO73: 375246.1562 | CP73: 336138.5312 | CQ73: 283850.9062 | CR73: 245189.9062 | CS73: 196465.1562 | CT73: 165305.4531 | CU73: 128619.1719 | CV73: 102733.3438 | CW73: 77777.88281 | CX73: 56862.67969 | CY73: 41228.32031 | CZ73: 28735.53906 | DA73: 19841.74023 | DB73: 34789.08984
B74: HMD | C74: F | D74: 2004 | E74: 148058064 | F74: 1952451.875 | G74: 1929815 | H74: 1942271 | I74: 1924118.375 | J74: 1878834.5 | K74: 1869730.625 | L74: 1872307.375 | M74: 1900300.375 | N74: 1933564 | O74: 1966229.875 | P74: 2037841.75 | Q74: 2064191.375 | R74: 2105708.25 | S74: 2133712.25 | T74: 2102835.25 | U74: 2054616.375 | V74: 2030613.75 | W74: 2018356.125 | X74: 2037015.5 | Y74: 2024292.25 | Z74: 2004764.375 | AA74: 2027946.625 | AB74: 2046467.75 | AC74: 2058720.375 | AD74: 2004415.625 | AE74: 1934677 | AF74: 1887280.75 | AG74: 1861396.5 | AH74: 1858668 | AI74: 1851305.25 | AJ74: 1873969 | AK74: 1934449.125 | AL74: 2063277 | AM74: 2141833 | AN74: 2103744.25 | AO74: 2037843 | AP74: 2028618.75 | AQ74: 2061130.75 | AR74: 2164833.5 | AS74: 2264001.25 | AT74: 2286804.5 | AU74: 2293994 | AV74: 2311428.75 | AW74: 2347216 | AX74: 2315086.5 | AY74: 2273419.75 | AZ74: 2270300.25 | BA74: 2224464.25 | BB74: 2183317.75 | BC74: 2149612.75 | BD74: 2072435.875 | BE74: 2015382 | BF74: 1955965.875 | BG74: 1934465.75 | BH74: 1901717.625 | BI74: 1853897.625 | BJ74: 1895807.125 | BK74: 1696711.125 | BL74: 1455731.5 | BM74: 1443361.25 | BN74: 1452180.125 | BO74: 1403101.75 | BP74: 1274525 | BQ74: 1214116.375 | BR74: 1164063.75 | BS74: 1128348.75 | BT74: 1087708.5 | BU74: 1050239.625 | BV74: 1043596.688 | BW74: 1002328.375 | BX74: 958847.3125 | BY74: 960529.375 | BZ74: 951992.1875 | CA74: 958188 | CB74: 937588.875 | CC74: 906634 | CD74: 897648 | CE74: 868229.875 | CF74: 849194.875 | CG74: 821882.625 | CH74: 737370.5625 | CI74: 696034 | CJ74: 672927.4375 | CK74: 607652.9375 | CL74: 517715.375 | CM74: 485316.25 | CN74: 425744.7812 | CO74: 375020.0312 | CP74: 333175.3438 | CQ74: 293649.4062 | CR74: 244323.3125 | CS74: 207389.1719 | CT74: 162675.2969 | CU74: 133794.9531 | CV74: 102017.8828 | CW74: 79279.40625 | CX74: 58417.82031 | CY74: 41535.80078 | CZ74: 29232.58984 | DA74: 19815.65039 | DB74: 34776.23828
B75: HMD | C75: F | D75: 2005 | E75: 149392944 | F75: 1959441.375 | G75: 1941718.125 | H75: 1928840.125 | I75: 1946297.25 | J75: 1932392 | K75: 1886665.75 | L75: 1869620.75 | M75: 1880013.5 | N75: 1904354.5 | O75: 1947870.875 | P75: 2025306.375 | Q75: 2037746.75 | R75: 2084641.5 | S75: 2113352 | T75: 2134866.75 | U75: 2122766.25 | V75: 2071433.5 | W75: 2038546 | X75: 2046243.25 | Y75: 2060065 | Z75: 2027292.5 | AA75: 2017650.25 | AB75: 2030266.375 | AC75: 2058019.375 | AD75: 2073539.125 | AE75: 2030729.875 | AF75: 1939057.5 | AG75: 1909302.25 | AH75: 1863374 | AI75: 1853668.125 | AJ75: 1883972 | AK75: 1867756 | AL75: 1964083.625 | AM75: 2072193.5 | AN75: 2149862 | AO75: 2117153 | AP75: 2044968.875 | AQ75: 2031464.375 | AR75: 2067739 | AS75: 2171087.5 | AT75: 2265975 | AU75: 2293575.5 | AV75: 2293791.75 | AW75: 2316135.75 | AX75: 2338441.5 | AY75: 2312097 | AZ75: 2277212.75 | BA75: 2274449 | BB75: 2220642.75 | BC75: 2186632 | BD75: 2142482.5 | BE75: 2080445.25 | BF75: 2009333.75 | BG75: 1958672.875 | BH75: 1937950.75 | BI75: 1891614 | BJ75: 1857351.125 | BK75: 1887945.5 | BL75: 1693009.375 | BM75: 1448614.125 | BN75: 1428383.875 | BO75: 1455486.625 | BP75: 1396220.125 | BQ75: 1268590.125 | BR75: 1200799 | BS75: 1158062.5 | BT75: 1116978.375 | BU75: 1077772.125 | BV75: 1038084.125 | BW75: 1029197.562 | BX75: 982521.25 | BY75: 946566.875 | BZ75: 940178.4375 | CA75: 932458.4375 | CB75: 932767.125 | CC75: 907231 | CD75: 884163.125 | CE75: 866345.5 | CF75: 837809.875 | CG75: 814707.875 | CH75: 756329.625 | CI75: 700248.5 | CJ75: 656817.75 | CK75: 630756.75 | CL75: 565067.875 | CM75: 476999.125 | CN75: 443156.75 | CO75: 384370.3438 | CP75: 334358.75 | CQ75: 292837.4062 | CR75: 254618.125 | CS75: 207908.7031 | CT75: 173534.1719 | CU75: 133143.625 | CV75: 106958.2969 | CW75: 79935.65625 | CX75: 60471.75 | CY75: 43348.92969 | CZ75: 29991.09961 | DA75: 20478.35938 | DB75: 35569.08203
B76: HMD | C76: F | D76: 2006 | E76: 150751728 | F76: 1966326.875 | G76: 1946506.625 | H76: 1941403.25 | I76: 1934933.375 | J76: 1957250.5 | K76: 1942333.625 | L76: 1886614.75 | M76: 1879230.875 | N76: 1884966.75 | O76: 1921501.875 | P76: 2018448.375 | Q76: 2022572.625 | R76: 2060099.75 | S76: 2091361.25 | T76: 2112562.5 | U76: 2157391.5 | V76: 2141018 | W76: 2078091.25 | X76: 2069655.25 | Y76: 2070107.5 | Z76: 2059333.875 | AA76: 2039353 | AB76: 2017191.375 | AC76: 2041450.25 | AD76: 2073488.375 | AE76: 2103138.75 | AF76: 2032399 | AG76: 1963743.25 | AH76: 1908834.125 | AI76: 1855781.375 | AJ76: 1892640.125 | AK76: 1874599.875 | AL76: 1902115.875 | AM76: 1973304.5 | AN76: 2080569.875 | AO76: 2165204.25 | AP76: 2124608.5 | AQ76: 2047402.125 | AR76: 2038819 | AS76: 2074606.75 | AT76: 2173281 | AU76: 2273945.5 | AV76: 2293137.5 | AW76: 2299596.25 | AX76: 2305687.75 | AY76: 2335451.5 | AZ76: 2317711.5 | BA76: 2282914.75 | BB76: 2270074.5 | BC76: 2225322.5 | BD76: 2178391.75 | BE76: 2153458.75 | BF76: 2073369.75 | BG76: 2013427 | BH76: 1963474 | BI76: 1926126.75 | BJ76: 1897230 | BK76: 1849095.25 | BL76: 1884393.125 | BM76: 1684254.125 | BN76: 1432091.875 | BO76: 1434921.375 | BP76: 1448863.875 | BQ76: 1390323.125 | BR76: 1253841.625 | BS76: 1195817.5 | BT76: 1146568.5 | BU76: 1107537.5 | BV76: 1065745.5 | BW76: 1023873.25 | BX76: 1008183.875 | BY76: 971425.875 | BZ76: 926413.875 | CA76: 921611.875 | CB76: 907633.9375 | CC76: 902083.125 | CD76: 886702.125 | CE76: 853608.1875 | CF76: 837177.4375 | CG76: 804583.8125 | CH76: 743518.875 | CI76: 718353.5 | CJ76: 660938.875 | CK76: 615822.125 | CL76: 586685.1875 | CM76: 520683.9688 | CN76: 434796.5312 | CO76: 399818.2812 | CP76: 342197.625 | CQ76: 293322.0312 | CR76: 253012.75 | CS76: 215895.4531 | CT76: 173210.8125 | CU76: 141346.2188 | CV76: 106121.0312 | CW76: 83057.24219 | CX76: 60453.39062 | CY76: 44391.05859 | CZ76: 31087.40039 | DA76: 20854.7207 | DB76: 35898.62891
B77: HMD | C77: F | D77: 2007 | E77: 152165120 | F77: 2001620.25 | G77: 1950339.75 | H77: 1946353.375 | I77: 1949183.625 | J77: 1948265.25 | K77: 1968945.75 | L77: 1941826.375 | M77: 1897919.25 | N77: 1884742.125 | O77: 1904611.75 | P77: 2002652.375 | Q77: 2012777.5 | R77: 2046493.875 | S77: 2065581.125 | T77: 2088382.25 | U77: 2137035 | V77: 2176572.5 | W77: 2145769.5 | X77: 2111880.5 | Y77: 2093235.75 | Z77: 2065173.125 | AA77: 2069999.125 | AB77: 2035153.625 | AC77: 2027312.125 | AD77: 2056878.5 | AE77: 2105284.25 | AF77: 2101269.5 | AG77: 2059202.625 | AH77: 1959344.125 | AI77: 1897034.25 | AJ77: 1900178.625 | AK77: 1879335.5 | AL77: 1913706 | AM77: 1910853.75 | AN77: 1981480 | AO77: 2097098.125 | AP77: 2172365.5 | AQ77: 2125866.5 | AR77: 2055039.75 | AS77: 2045792.125 | AT77: 2076471 | AU77: 2181778 | AV77: 2273068.75 | AW77: 2299812.75 | AX77: 2287205 | AY77: 2302500.25 | AZ77: 2342431.75 | BA77: 2324965.5 | BB77: 2277948.75 | BC77: 2276038 | BD77: 2215813.5 | BE77: 2192101 | BF77: 2145189 | BG77: 2078704.875 | BH77: 2019523 | BI77: 1949568.75 | BJ77: 1933602.875 | BK77: 1888043.75 | BL77: 1846106.125 | BM77: 1873997.25 | BN77: 1662717.25 | BO77: 1441437.625 | BP77: 1428965.75 | BQ77: 1443527.5 | BR77: 1373240.125 | BS77: 1249529.375 | BT77: 1183737.375 | BU77: 1137473.75 | BV77: 1095398.375 | BW77: 1051159.875 | BX77: 1002068.75 | BY77: 998133.5625 | BZ77: 950579.5 | CA77: 908625.625 | CB77: 896849.5 | CC77: 877070.25 | CD77: 883378 | CE77: 856212.75 | CF77: 825780.4375 | CG77: 804678.4375 | CH77: 735368.1875 | CI77: 707112.5 | CJ77: 678986.875 | CK77: 620899.3125 | CL77: 574301.0625 | CM77: 542480.375 | CN77: 476702.2188 | CO77: 392934.5 | CP77: 357734.0312 | CQ77: 301988.625 | CR77: 254035.4531 | CS77: 216088.8438 | CT77: 180678.4844 | CU77: 141845.1562 | CV77: 113479.0391 | CW77: 83191.21875 | CX77: 63405.42188 | CY77: 45097.32031 | CZ77: 32146.07031 | DA77: 21730.99023 | DB77: 36930.20312
B78: HMD | C78: F | D78: 2008 | E78: 153604176 | F78: 2025029.125 | G78: 1981914.125 | H78: 1950114.875 | I78: 1955616.125 | J78: 1964653.125 | K78: 1961588 | L78: 1967760.625 | M78: 1954770.75 | N78: 1903791.5 | O78: 1906822.25 | P78: 1996202.375 | Q78: 1993989.5 | R78: 2038130.75 | S78: 2050579.75 | T78: 2060291.25 | U78: 2114471.5 | V78: 2156699.25 | W78: 2179279.75 | X78: 2182877 | Y78: 2135010.75 | Z78: 2083626.375 | AA78: 2074001.875 | AB78: 2061592.5 | AC78: 2043572.75 | AD78: 2042166.125 | AE78: 2089953.25 | AF78: 2099732 | AG78: 2129734.5 | AH78: 2049577.875 | AI78: 1942623 | AJ78: 1947168.625 | AK78: 1882597.5 | AL78: 1922832.875 | AM78: 1921680 | AN78: 1918418.5 | AO78: 1998622.5 | AP78: 2103794 | AQ78: 2172331.75 | AR78: 2133500 | AS78: 2061986.5 | AT78: 2047051.75 | AU78: 2085037.75 | AV78: 2180510 | AW78: 2280390.5 | AX78: 2285223 | AY78: 2283777.75 | AZ78: 2310588 | BA78: 2351042.25 | BB78: 2319129.25 | BC78: 2285080.75 | BD78: 2265172.5 | BE78: 2232255.25 | BF78: 2182639.5 | BG78: 2151946.75 | BH78: 2086472.5 | BI78: 2003265.75 | BJ78: 1958760.375 | BK78: 1923338.125 | BL78: 1885457.5 | BM78: 1835297.75 | BN78: 1847713.125 | BO78: 1677179.5 | BP78: 1435858.625 | BQ78: 1424484.125 | BR78: 1424592.25 | BS78: 1369712.5 | BT78: 1236649.875 | BU78: 1174819.625 | BV78: 1125225.125 | BW78: 1080391.875 | BX78: 1027835.688 | BY78: 993210.875 | BZ78: 976332.375 | CA78: 932700.5 | CB78: 883704 | CC78: 865687.0625 | CD78: 860225.5 | CE78: 852871.8125 | CF78: 829023.3125 | CG78: 793988.8125 | CH78: 743278.5 | CI78: 700302.5 | CJ78: 669305.6875 | CK78: 638182.25 | CL78: 580003 | CM78: 531703.625 | CN78: 497619.1875 | CO78: 432263.1875 | CP78: 351913.625 | CQ78: 316353.5 | CR78: 263070.7812 | CS78: 217440.6562 | CT78: 181405.125 | CU78: 148876.3438 | CV78: 114494.2031 | CW78: 89098.6875 | CX78: 64017.51172 | CY78: 47456.35938 | CZ78: 32721.89062 | DA78: 22694.73047 | DB78: 38240.02734
B79: HMD | C79: F | D79: 2009 | E79: 154988544 | F79: 1990941.75 | G79: 2001750 | H79: 1981638.875 | I79: 1960911.25 | J79: 1973048 | K79: 1979876.625 | L79: 1960147.875 | M79: 1982128.125 | N79: 1960978 | O79: 1928658.5 | P79: 2009534.125 | Q79: 1984519 | R79: 2020695 | S79: 2040836.125 | T79: 2042991.75 | U79: 2087930.75 | V79: 2134643 | W79: 2157626 | X79: 2219403 | Y79: 2205256 | Z79: 2120827 | AA79: 2090936.5 | AB79: 2061691.25 | AC79: 2068445.125 | AD79: 2057753.75 | AE79: 2076721.5 | AF79: 2081159.625 | AG79: 2129594.25 | AH79: 2115336.5 | AI79: 2027489.875 | AJ79: 1999071.375 | AK79: 1924858.875 | AL79: 1930673.75 | AM79: 1930149.125 | AN79: 1928705.25 | AO79: 1936111.5 | AP79: 2004954 | AQ79: 2103008.5 | AR79: 2180188 | AS79: 2140527.25 | AT79: 2062635.25 | AU79: 2055757.375 | AV79: 2083172.5 | AW79: 2188154.5 | AX79: 2263677.25 | AY79: 2281501.5 | AZ79: 2293096 | BA79: 2320292 | BB79: 2344351.75 | BC79: 2327564.25 | BD79: 2272878.75 | BE79: 2284463.5 | BF79: 2221520.25 | BG79: 2190822 | BH79: 2161479.5 | BI79: 2067670.75 | BJ79: 2014438.625 | BK79: 1947416.625 | BL79: 1921171 | BM79: 1873864.625 | BN79: 1806927.25 | BO79: 1867322.5 | BP79: 1671453.625 | BQ79: 1431969 | BR79: 1404305.375 | BS79: 1422108.75 | BT79: 1355711 | BU79: 1227896.125 | BV79: 1162582.75 | BW79: 1109950.375 | BX79: 1055475.75 | BY79: 1020048 | BZ79: 971136.3125 | CA79: 958507 | CB79: 906792.4375 | CC79: 852072.6875 | CD79: 850547.4375 | CE79: 830371.9375 | CF79: 826535.125 | CG79: 797552.75 | CH79: 731864.6875 | CI79: 707585.75 | CJ79: 663157.1875 | CK79: 629282.6875 | CL79: 595483.6875 | CM79: 536860.4375 | CN79: 487499.0312 | CO79: 451310.4688 | CP79: 387089.0312 | CQ79: 310451.6875 | CR79: 274903.4375 | CS79: 224827.4062 | CT79: 181928.875 | CU79: 148831.9531 | CV79: 119510.7578 | CW79: 89541.82031 | CX79: 67818.90625 | CY79: 47327.92188 | CZ79: 34077.35156 | DA79: 22981.53906 | DB79: 39287.51172
B80: HMD | C80: F | D80: 2010 | E80: 156303312 | F80: 1946038.125 | G80: 1967668.875 | H80: 2003709.25 | I80: 1990069 | J80: 1981977.875 | K80: 1989823.75 | L80: 1980159.875 | M80: 1974235.125 | N80: 1986594.125 | O80: 1982262.75 | P80: 2032278.25 | Q80: 1998457.625 | R80: 2009891.75 | S80: 2023943.625 | T80: 2031116.75 | U80: 2067605.125 | V80: 2109819.5 | W80: 2135579.75 | X80: 2196781.5 | Y80: 2244157.5 | Z80: 2189159.5 | AA80: 2126599.25 | AB80: 2079784.125 | AC80: 2067216.5 | AD80: 2082099.125 | AE80: 2090401.75 | AF80: 2066384.375 | AG80: 2109995 | AH80: 2118355.25 | AI80: 2089619.75 | AJ80: 2085009.875 | AK80: 1978145.5 | AL80: 1970786.875 | AM80: 1938859.375 | AN80: 1936257.875 | AO80: 1944697.625 | AP80: 1942528.25 | AQ80: 2004101.375 | AR80: 2109715.25 | AS80: 2187504.5 | AT80: 2139653 | AU80: 2071011.75 | AV80: 2053644.375 | AW80: 2089998.25 | AX80: 2172317.5 | AY80: 2259229.25 | AZ80: 2290703 | BA80: 2301500 | BB80: 2313455.75 | BC80: 2353204.25 | BD80: 2313588 | BE80: 2291735 | BF80: 2273096.75 | BG80: 2228586.5 | BH80: 2199972.25 | BI80: 2141510.5 | BJ80: 2078411.75 | BK80: 2002575.875 | BL80: 1943911.125 | BM80: 1910408.625 | BN80: 1843045 | BO80: 1825857.5 | BP80: 1860686.5 | BQ80: 1665883.625 | BR80: 1412383.25 | BS80: 1400882.875 | BT80: 1407473 | BU80: 1346311 | BV80: 1214484.75 | BW80: 1147971.875 | BX80: 1083982.75 | BY80: 1047285.75 | BZ80: 997403.4375 | CA80: 953515.25 | CB80: 932950 | CC80: 874615.25 | CD80: 837574.0625 | CE80: 821318.6875 | CF80: 805153.75 | CG80: 795772.0625 | CH80: 718899.8125 | CI80: 698463 | CJ80: 671422.4375 | CK80: 624932.75 | CL80: 588917.625 | CM80: 553072 | CN80: 493790.1562 | CO80: 443666.25 | CP80: 406121.0625 | CQ80: 344104.2812 | CR80: 271945.75 | CS80: 236916 | CT80: 190513.2188 | CU80: 150918.9062 | CV80: 120689.1406 | CW80: 95109.1875 | CX80: 69453.04688 | CY80: 51306.85156 | CZ80: 34823.12109 | DA80: 24487.67969 | DB80: 41365.78516
B81: HMD | C81: F | D81: 2011 | E81: 157500608 | F81: 1933864.875 | G81: 1939398.5 | H81: 1973336.25 | I81: 2009425.75 | J81: 2004651.25 | K81: 1993251.125 | L81: 1993481.125 | M81: 1989491.125 | N81: 1978244.375 | O81: 1997433.75 | P81: 2034398.75 | Q81: 2030701.125 | R81: 2013084.375 | S81: 2015036.5 | T81: 2021670.75 | U81: 2044926.875 | V81: 2083227.125 | W81: 2115813.5 | X81: 2160436 | Y81: 2217534.25 | Z81: 2243307.25 | AA81: 2198619.75 | AB81: 2130122.25 | AC81: 2090299.5 | AD81: 2082184.625 | AE81: 2105411 | AF81: 2093107 | AG81: 2087199.625 | AH81: 2113771 | AI81: 2111049.5 | AJ81: 2122381.5 | AK81: 2081009.125 | AL81: 2002579.625 | AM81: 1978971.25 | AN81: 1944710.375 | AO81: 1946103.625 | AP81: 1950449 | AQ81: 1944217.875 | AR81: 2008489.875 | AS81: 2114778.25 | AT81: 2187337.25 | AU81: 2144112.75 | AV81: 2070182.75 | AW81: 2056479.75 | AX81: 2082751.875 | AY81: 2169177.75 | AZ81: 2262314.5 | BA81: 2292382 | BB81: 2296242 | BC81: 2315361 | BD81: 2342909.25 | BE81: 2319023.5 | BF81: 2282698 | BG81: 2272119 | BH81: 2228586.75 | BI81: 2185854.75 | BJ81: 2141755.75 | BK81: 2067900.625 | BL81: 1995319.125 | BM81: 1934208.875 | BN81: 1889420.625 | BO81: 1846058.25 | BP81: 1816134.625 | BQ81: 1850114.75 | BR81: 1649043.375 | BS81: 1403742 | BT81: 1386927.375 | BU81: 1395021.25 | BV81: 1330624.75 | BW81: 1199513.75 | BX81: 1126476.25 | BY81: 1070716.75 | BZ81: 1026656.812 | CA81: 978715.125 | CB81: 931254.75 | CC81: 905864.0625 | CD81: 855556.9375 | CE81: 811280.8125 | CF81: 795876.8125 | CG81: 776144.625 | CH81: 736741.3125 | CI81: 685908.3125 | CJ81: 662827.875 | CK81: 633138.6875 | CL81: 585310.0625 | CM81: 546311.25 | CN81: 508210.5 | CO81: 449892.8125 | CP81: 399237.3438 | CQ81: 360747.5625 | CR81: 300692.9688 | CS81: 234134.5938 | CT81: 199933.7656 | CU81: 158212.1875 | CV81: 122276.5469 | CW81: 95444.85156 | CX81: 73433 | CY81: 52232.98828 | CZ81: 37720.44922 | DA81: 24690.19922 | DB81: 43509.37109
B82: HMD | C82: F | D82: 2012 | E82: 158584064 | F82: 1926803.75 | G82: 1941935 | H82: 1946421.75 | I82: 1979378.625 | J82: 2014820.25 | K82: 2009743.625 | L82: 1998381.25 | M82: 1998797 | N82: 1994836.625 | O82: 1983689.375 | P82: 2003012.375 | Q82: 2040141.5 | R82: 2036542.25 | S82: 2018734.625 | T82: 2020897.5 | U82: 2028226.25 | V82: 2052590.375 | W82: 2093116.75 | X82: 2128023 | Y82: 2173747.25 | Z82: 2230939.75 | AA82: 2257132.25 | AB82: 2213452.5 | AC82: 2145865.25 | AD82: 2106523.75 | AE82: 2098589.75 | AF82: 2120835.25 | AG82: 2107570.75 | AH82: 2100488.75 | AI82: 2125487.25 | AJ82: 2121344 | AK82: 2131390 | AL82: 2088793.75 | AM82: 2009468.75 | AN82: 1985196.625 | AO82: 1950213.625 | AP82: 1950831.375 | AQ82: 1954478.875 | AR82: 1947624.25 | AS82: 2011154.25 | AT82: 2116548.75 | AU82: 2188284.75 | AV82: 2144398.25 | AW82: 2070006 | AX82: 2055981.625 | AY82: 2081446.375 | AZ82: 2166907.5 | BA82: 2259223.25 | BB82: 2288586 | BC82: 2291677 | BD82: 2309956 | BE82: 2336827.5 | BF82: 2312151 | BG82: 2275339.5 | BH82: 2264163.25 | BI82: 2220035.25 | BJ82: 2177022.5 | BK82: 2132458.75 | BL82: 2058270.375 | BM82: 1985342.625 | BN82: 1923774.375 | BO82: 1878370.375 | BP82: 1833958.625 | BQ82: 1802700 | BR82: 1835094.5 | BS82: 1634734 | BT82: 1390452.75 | BU82: 1372454.25 | BV82: 1378736.375 | BW82: 1313531.875 | BX82: 1182552.75 | BY82: 1109130.5 | BZ82: 1052523.375 | CA82: 1007383.062 | CB82: 958397.4375 | CC82: 909967.125 | CD82: 882918.25 | CE82: 831473.75 | CF82: 785971.5625 | CG82: 768329.5 | CH82: 712229.5625 | CI82: 702986.9375 | CJ82: 650536.3125 | CK82: 625181.375 | CL82: 592829.5625 | CM82: 543365.9375 | CN82: 502710.0312 | CO82: 462714.2812 | CP82: 404331.0938 | CQ82: 354424.1562 | CR82: 314929.3125 | CS82: 258383.7969 | CT82: 197402.1406 | CU82: 165229.8438 | CV82: 128081.8594 | CW82: 96397.85938 | CX82: 73357.25 | CY82: 55066.01172 | CZ82: 38096.10938 | DA82: 26707.59961 | DB82: 44746
B83: HMD | C83: F | D83: 2013 | E83: 159660384 | F83: 1920266.75 | G83: 1934962.5 | H83: 1949141.125 | I83: 1952749.125 | J83: 1985075.5 | K83: 2020091.375 | L83: 2014882 | M83: 2003752.625 | N83: 2004380.625 | O83: 2000484.625 | P83: 1989297.375 | Q83: 2008732.5 | R83: 2045927.25 | S83: 2042136.375 | T83: 2024570.5 | U83: 2027383.375 | V83: 2035913.25 | W83: 2062398 | X83: 2105159.5 | Y83: 2140835.25 | Z83: 2186394.75 | AA83: 2244528 | AB83: 2272084.5 | AC83: 2229148.75 | AD83: 2161891.75 | AE83: 2122571 | AF83: 2113932.25 | AG83: 2135328 | AH83: 2120714 | AI83: 2112328.5 | AJ83: 2136117.5 | AK83: 2130373 | AL83: 2139189.5 | AM83: 2095696.125 | AN83: 2015577.5 | AO83: 1990568.125 | AP83: 1954995.625 | AQ83: 1955018.5 | AR83: 1957990.875 | AS83: 1950421.625 | AT83: 2013079.75 | AU83: 2117644 | AV83: 2188662 | AW83: 2144206 | AX83: 2069487.625 | AY83: 2054661.625 | AZ83: 2079240.5 | BA83: 2164101.5 | BB83: 2255657.5 | BC83: 2284175 | BD83: 2286476.5 | BE83: 2303849.75 | BF83: 2329746.5 | BG83: 2304641.25 | BH83: 2267297.25 | BI83: 2255424.5 | BJ83: 2210710.5 | BK83: 2167328 | BL83: 2122350.75 | BM83: 2047894.75 | BN83: 1974374.125 | BO83: 1912257.5 | BP83: 1866196.75 | BQ83: 1820771.375 | BR83: 1788199.625 | BS83: 1819040 | BT83: 1619193.625 | BU83: 1376124.875 | BV83: 1356629.25 | BW83: 1360962.875 | BX83: 1295015.625 | BY83: 1164532.125 | BZ83: 1090549.25 | CA83: 1032991 | CB83: 986657.125 | CC83: 936637.3125 | CD83: 887062.625 | CE83: 858259.3125 | CF83: 805662.125 | CG83: 758834.0625 | CH83: 716815.5625 | CI83: 680006.4375 | CJ83: 667178.5625 | CK83: 613964.5 | CL83: 585681.375 | CM83: 551136.5 | CN83: 500358.875 | CO83: 457936.375 | CP83: 416415.5625 | CQ83: 359073.4062 | CR83: 309705 | CS83: 271061.1562 | CT83: 218434.8281 | CU83: 163977.4062 | CV83: 133894.125 | CW83: 101201.3828 | CX83: 74491.57812 | CY83: 55084.55078 | CZ83: 40185.96094 | DA83: 27210.24023 | DB83: 46990.6875
B84: HMD | C84: F | D84: 2014 | E84: 160736656 | F84: 1926007 | G84: 1929018.625 | H84: 1942838.125 | I84: 1956209.875 | J84: 1959167.25 | K84: 1990986.625 | L84: 2025725.375 | M84: 2020638.625 | N84: 2009750 | O84: 2010390.625 | P84: 2006411.5 | Q84: 1995146.5 | R84: 2014521.375 | S84: 2051801.875 | T84: 2048372.625 | U84: 2031632.75 | V84: 2035749.25 | W84: 2046294.25 | X84: 2075111.75 | Y84: 2118513.5 | Z84: 2153527 | AA84: 2200099 | AB84: 2260015.25 | AC84: 2288585.75 | AD84: 2245928.25 | AE84: 2178436 | AF84: 2138480.75 | AG84: 2129121.25 | AH84: 2149110.25 | AI84: 2133342.75 | AJ84: 2124079.5 | AK84: 2145859 | AL84: 2138620.25 | AM84: 2146543.75 | AN84: 2102187 | AO84: 2021130 | AP84: 1995554.75 | AQ84: 1959456.75 | AR84: 1958929.125 | AS84: 1961144.875 | AT84: 1952621 | AU84: 2014512.75 | AV84: 2118345.25 | AW84: 2188500.25 | AX84: 2143630.25 | AY84: 2068281 | AZ84: 2052757.75 | BA84: 2076847.25 | BB84: 2160844.5 | BC84: 2251457 | BD84: 2279007.5 | BE84: 2280307.25 | BF84: 2296824.75 | BG84: 2322188.75 | BH84: 2296556.25 | BI84: 2258497 | BJ84: 2245802.75 | BK84: 2200635.5 | BL84: 2156868 | BM84: 2111528.5 | BN84: 2036519.125 | BO84: 1962475.5 | BP84: 1899921.125 | BQ84: 1853114.75 | BR84: 1806604.125 | BS84: 1772622.5 | BT84: 1801686.875 | BU84: 1602408.875 | BV84: 1360556 | BW84: 1339478 | BX84: 1342043 | BY84: 1275589.875 | BZ84: 1145397.375 | CA84: 1070661.25 | CB84: 1012026.812 | CC84: 964530.25 | CD84: 913400.9375 | CE84: 862547.375 | CF84: 831907.4375 | CG84: 778126.5625 | CH84: 698140.4375 | CI84: 684337.625 | CJ84: 645982.4375 | CK84: 629486 | CL84: 575560.9375 | CM84: 544194.6875 | CN84: 507472.6875 | CO84: 456088.625 | CP84: 412017.0312 | CQ84: 370006.75 | CR84: 314400.625 | CS84: 266658.2812 | CT84: 229148.9375 | CU84: 181029.2656 | CV84: 132823.5156 | CW84: 106037.3281 | CX84: 78066.70312 | CY84: 55998.05859 | CZ84: 39995.12109 | DA84: 28382.61914 | DB84: 48778.20703
B85: HMD | C85: F | D85: 2015 | E85: 161892480 | F85: 1938414.5 | G85: 1935269.875 | H85: 1937577.375 | I85: 1950631.875 | J85: 1963389.75 | K85: 1965841.75 | L85: 1997270.875 | M85: 2031938.875 | N85: 2026906.375 | O85: 2016054.875 | P85: 2016811.125 | Q85: 2012558.125 | R85: 2001164.875 | S85: 2020891.5 | T85: 2058584.125 | U85: 2056210.5 | V85: 2040695.25 | W85: 2046830.25 | X85: 2059830.75 | Y85: 2089171.5 | Z85: 2131848.25 | AA85: 2167782.5 | AB85: 2216285.5 | AC85: 2277459.5 | AD85: 2306538.5 | AE85: 2263726 | AF85: 2195703 | AG85: 2155239 | AH85: 2144471.5 | AI85: 2163081.5 | AJ85: 2146435.75 | AK85: 2135247 | AL85: 2155312 | AM85: 2147189.25 | AN85: 2154364 | AO85: 2108781.75 | AP85: 2026845.375 | AQ85: 2000668.875 | AR85: 1964106.125 | AS85: 1962859.75 | AT85: 1964017.875 | AU85: 1954844.125 | AV85: 2015994.125 | AW85: 2118761.5 | AX85: 2188299.75 | AY85: 2142705.5 | AZ85: 2066766.375 | BA85: 2050709 | BB85: 2073934.5 | BC85: 2157070.75 | BD85: 2246463 | BE85: 2273041 | BF85: 2273624.5 | BG85: 2289506.25 | BH85: 2314225.5 | BI85: 2287850.25 | BJ85: 2248987 | BK85: 2235605.5 | BL85: 2189896.75 | BM85: 2145850.25 | BN85: 2099941 | BO85: 2024357.5 | BP85: 1949870.125 | BQ85: 1886617.5 | BR85: 1839034.75 | BS85: 1791269 | BT85: 1755967 | BU85: 1783148.375 | BV85: 1584574 | BW85: 1343902.125 | BX85: 1321174.625 | BY85: 1321977.5 | BZ85: 1254697.375 | CA85: 1124591.375 | CB85: 1049048.125 | CC85: 989445.4375 | CD85: 940701.5 | CE85: 888280 | CF85: 836202.8125 | CG85: 803671.625 | CH85: 748639.1875 | CI85: 666966.1875 | CJ85: 650045 | CK85: 610488.5 | CL85: 590403.8125 | CM85: 535498.25 | CN85: 502230.1875 | CO85: 463471.7812 | CP85: 412184.0938 | CQ85: 367211.625 | CR85: 325031.5 | CS85: 271541.8125 | CT85: 226154.625 | CU85: 190585.2188 | CV85: 147208.2969 | CW85: 105824.4609 | CX85: 82325.21094 | CY85: 59246.57031 | CZ85: 41074.42188 | DA85: 28624.88086 | DB85: 51064.76562
B86: HMD | C86: F | D86: 2016 | E86: 163039648 | F86: 1941793.375 | G86: 1948076.125 | H86: 1944374.75 | I86: 1945925.625 | J86: 1958391.125 | K86: 1970714.625 | L86: 1972706.625 | M86: 2003890 | N86: 2038341 | O86: 2033296.75 | P86: 2022738.625 | Q86: 2023224.125 | R86: 2018919.75 | S86: 2008007 | T86: 2028184.25 | U86: 2066912.5 | V86: 2065578.25 | W86: 2052125.25 | X86: 2060734.75 | Y86: 2073979.75 | Z86: 2102623.75 | AA86: 2145963.5 | AB86: 2183848.5 | AC86: 2233741.75 | AD86: 2295554.5 | AE86: 2324923 | AF86: 2281723.5 | AG86: 2213280.5 | AH86: 2171579 | AI86: 2159164.25 | AJ86: 2176625.25 | AK86: 2158335.25 | AL86: 2145672.25 | AM86: 2165001.5 | AN86: 2156188.25 | AO86: 2161943.5 | AP86: 2114994.75 | AQ86: 2032177.875 | AR86: 2005584.75 | AS86: 1968477.75 | AT86: 1966235.5 | AU86: 1966871.5 | AV86: 1956892.25 | AW86: 2016880.75 | AX86: 2118993.75 | AY86: 2187590.75 | AZ86: 2141299 | BA86: 2064870.5 | BB86: 2047985.75 | BC86: 2070429.625 | BD86: 2152462.75 | BE86: 2240832 | BF86: 2266710 | BG86: 2266561.75 | BH86: 2281669.75 | BI86: 2305394.5 | BJ86: 2278268 | BK86: 2238731 | BL86: 2224611.25 | BM86: 2178411.25 | BN86: 2133891.25 | BO86: 2087358.5 | BP86: 2011109.625 | BQ86: 1936025.875 | BR86: 1872059.75 | BS86: 1823561 | BT86: 1774818.5 | BU86: 1738046.75 | BV86: 1763306.25 | BW86: 1565211.5 | BX86: 1325612.125 | BY86: 1301490.625 | BZ86: 1300326.375 | CA86: 1231989.625 | CB86: 1102020.875 | CC86: 1025720.5 | CD86: 965012 | CE86: 914919.125 | CF86: 861363.5 | CG86: 807977.6875 | CH86: 773383.25 | CI86: 717145.25 | CJ86: 633820.125 | CK86: 613198.5625 | CL86: 572448.5625 | CM86: 549069.6875 | CN86: 493572.6875 | CO86: 457774.7812 | CP86: 417560.25 | CQ86: 366790.0938 | CR86: 321438.7812 | CS86: 279444.0312 | CT86: 229688.4844 | CU86: 187202.3594 | CV86: 154240.0156 | CW86: 116565.3516 | CX86: 81629.67969 | CY86: 61767.94922 | CZ86: 42945.64844 | DA86: 29192.03906 | DB86: 51910.77344
B87: HMD | C87: F | D87: 2017 | E87: 164138896 | F87: 1916944.625 | G87: 1951451.75 | H87: 1957208 | I87: 1952801.25 | J87: 1953776.25 | K87: 1965909.375 | L87: 1977836.5 | M87: 1979460.375 | N87: 2010181 | O87: 2044586.25 | P87: 2039886.875 | Q87: 2029205.25 | R87: 2029644.25 | S87: 2025668.875 | T87: 2015225.125 | U87: 2036294.625 | V87: 2075885.25 | W87: 2076633.25 | X87: 2065667.75 | Y87: 2074394.875 | Z87: 2086615.25 | AA87: 2115640.5 | AB87: 2160844 | AC87: 2200212.25 | AD87: 2250695.75 | AE87: 2312718.25 | AF87: 2341859 | AG87: 2298561 | AH87: 2229022.25 | AI87: 2185621.5 | AJ87: 2171907.25 | AK87: 2187947 | AL87: 2168396.75 | AM87: 2155221.25 | AN87: 2173898.25 | AO87: 2163550.25 | AP87: 2167768.5 | AQ87: 2119840 | AR87: 2036616.25 | AS87: 2009406.625 | AT87: 1971412.75 | AU87: 1968746 | AV87: 1968728.875 | AW87: 1957763.5 | AX87: 2017136 | AY87: 2118144.25 | AZ87: 2185765.25 | BA87: 2139003.75 | BB87: 2061889.625 | BC87: 2044293.625 | BD87: 2065855 | BE87: 2146959.25 | BF87: 2234620.25 | BG87: 2259616.25 | BH87: 2258521.75 | BI87: 2272507.75 | BJ87: 2295604.25 | BK87: 2267778.25 | BL87: 2227454.75 | BM87: 2212452.25 | BN87: 2165684.75 | BO87: 2120581.75 | BP87: 2073296.25 | BQ87: 1996384.5 | BR87: 1920559.625 | BS87: 1856035 | BT87: 1806692.25 | BU87: 1756712.375 | BV87: 1718516.75 | BW87: 1741467.375 | BX87: 1543892.25 | BY87: 1306022.375 | BZ87: 1280430.875 | CA87: 1277050.625 | CB87: 1207611.75 | CC87: 1077802.125 | CD87: 1000726.875 | CE87: 938969.6875 | CF87: 887641.125 | CG87: 832832.3125 | CH87: 777995.8125 | CI87: 741300.625 | CJ87: 683784.8125 | CK87: 598967.875 | CL87: 575849.875 | CM87: 533081 | CN87: 506980.0938 | CO87: 450913.1562 | CP87: 413682.375 | CQ87: 372274 | CR87: 322620.7812 | CS87: 277526.4688 | CT87: 237181.7031 | CU87: 191426.4062 | CV87: 152506.0625 | CW87: 123010.6875 | CX87: 90582.24219 | CY87: 61636.07812 | CZ87: 45327.39844 | DA87: 30541.33984 | DB87: 53500.01953
B88: HMD | C88: F | D88: 2018 | E88: 165094080 | F88: 1883931.875 | G88: 1925574.5 | H88: 1959627.75 | I88: 1964809.125 | J88: 1959889 | K88: 1960631.625 | L88: 1972433.75 | M88: 1983986.5 | N88: 1985129.125 | O88: 2015898.375 | P88: 2050573 | Q88: 2045794.625 | R88: 2035049.125 | S88: 2035641.5 | T88: 2032108.625 | U88: 2022419.625 | V88: 2044137.375 | W88: 2085583 | X88: 2088566.875 | Y88: 2077546.25 | Z88: 2084970.75 | AA88: 2097526.75 | AB88: 2128258 | AC88: 2174788.25 | AD88: 2214514 | AE88: 2264863.25 | AF88: 2326834 | AG88: 2356048.25 | AH88: 2311609.25 | AI88: 2240508.25 | AJ88: 2195963.5 | AK88: 2181098.5 | AL88: 2196012.25 | AM88: 2175994.25 | AN88: 2162372.75 | AO88: 2179756.75 | AP88: 2167971 | AQ88: 2171322.25 | AR88: 2122948 | AS88: 2039020.5 | AT88: 2011043 | AU88: 1972758.5 | AV88: 1969668.625 | AW88: 1968790.375 | AX88: 1957290.875 | AY88: 2015633.75 | AZ88: 2115567.75 | BA88: 2182577 | BB88: 2135240 | BC88: 2057581.125 | BD88: 2039201.75 | BE88: 2060096 | BF88: 2140627 | BG88: 2227337 | BH88: 2251216.25 | BI88: 2248996.5 | BJ88: 2262378.75 | BK88: 2284511.25 | BL88: 2255813.75 | BM88: 2214608.25 | BN88: 2198642.75 | BO88: 2151108.75 | BP88: 2105527.75 | BQ88: 2057405.125 | BR88: 1979803.75 | BS88: 1903508 | BT88: 1838159.375 | BU88: 1787844 | BV88: 1736741.5 | BW88: 1696860.5 | BX88: 1717372.5 | BY88: 1520796.375 | BZ88: 1284544 | CA88: 1257282.5 | CB88: 1251528.875 | CC88: 1180842.5 | CD88: 1051340.125 | CE88: 973569.125 | CF88: 910811.75 | CG88: 858113.5625 | CH88: 801849.375 | CI88: 745547 | CJ88: 706705.125 | CK88: 647977.4375 | CL88: 561995.875 | CM88: 536098.8125 | CN88: 492025.2812 | CO88: 462950.4688 | CP88: 407186.9375 | CQ88: 368948.8438 | CR88: 326847.0312 | CS88: 278655.5625 | CT88: 234874.2812 | CU88: 196829.5938 | CV88: 155504.4062 | CW88: 120945.1875 | CX88: 94941.90625 | CY88: 67970.61719 | CZ88: 44977.62109 | DA88: 31970.0293 | DB88: 54798.55078
B89: HMD | C89: F | D89: 2019 | E89: 165918736 | F89: 1856137 | G89: 1891787.875 | H89: 1932848.5 | I89: 1966252.875 | J89: 1970842 | K89: 1965607 | L89: 1965965.375 | M89: 1977428.625 | N89: 1988605.875 | O89: 1989722.625 | P89: 2020676.75 | Q89: 2055314 | R89: 2050501.75 | S89: 2039913.125 | T89: 2040941.625 | U89: 2038130.375 | V89: 2028994.375 | W89: 2052412.75 | X89: 2095802.75 | Y89: 2098484.5 | Z89: 2086174.625 | AA89: 2093923.375 | AB89: 2108055.5 | AC89: 2139980 | AD89: 2186763.5 | AE89: 2226195.25 | AF89: 2276284 | AG89: 2338161 | AH89: 2366245.75 | AI89: 2320358.25 | AJ89: 2248130 | AK89: 2202591.25 | AL89: 2186867.25 | AM89: 2201315 | AN89: 2180948.25 | AO89: 2166073.75 | AP89: 2182146.5 | AQ89: 2169729.25 | AR89: 2172754.5 | AS89: 2123708.75 | AT89: 2039091.25 | AU89: 2010809.375 | AV89: 1972286.625 | AW89: 1968567.5 | AX89: 1967262.125 | AY89: 1954850.5 | AZ89: 2012286.125 | BA89: 2111636.5 | BB89: 2177923.5 | BC89: 2130040.75 | BD89: 2051870.25 | BE89: 2032995.125 | BF89: 2053459.875 | BG89: 2133210 | BH89: 2218649.5 | BI89: 2241319 | BJ89: 2238378.75 | BK89: 2250830.5 | BL89: 2272073 | BM89: 2242302 | BN89: 2200210.5 | BO89: 2183297.75 | BP89: 2135087.5 | BQ89: 2088773.5 | BR89: 2039982.125 | BS89: 1961795.125 | BT89: 1884669 | BU89: 1818580.625 | BV89: 1767338.75 | BW89: 1714883.75 | BX89: 1673381.625 | BY89: 1691887.25 | BZ89: 1495829.75 | CA89: 1261301 | CB89: 1232328.375 | CC89: 1224064.625 | CD89: 1152081.125 | CE89: 1022977.125 | CF89: 944655.9375 | CG89: 880775.4375 | CH89: 826494.25 | CI89: 768775.0625 | CJ89: 711101.875 | CK89: 670188.5625 | CL89: 610204 | CM89: 523897.9062 | CN89: 494838.75 | CO89: 450019.2188 | CP89: 418473.3438 | CQ89: 362894.8125 | CR89: 324035.7188 | CS89: 282501.9062 | CT89: 236563.5156 | CU89: 195578.2969 | CV89: 160280.6875 | CW89: 123616.6094 | CX89: 93333.49219 | CY89: 71413.3125 | CZ89: 49691.14844 | DA89: 31899.28906 | DB89: 56456.82422
B90: HMD | C90: F | D90: 2020 | E90: 166829984 | F90: 1825421.375 | G90: 1860313.5 | H90: 1897625 | I90: 1940361.75 | J90: 1975991.75 | K90: 1981143 | L90: 1974593.125 | M90: 1974765.5 | N90: 1984959.625 | O90: 1994659.875 | P90: 2017468 | Q90: 2070768.75 | R90: 2113950.75 | S90: 2102925.5 | T90: 2083480.125 | U90: 2075940.5 | V90: 2075939 | W90: 2063814.125 | X90: 2086236 | Y90: 2121832.5 | Z90: 2107777 | AA90: 2093593.125 | AB90: 2098549 | AC90: 2110545.5 | AD90: 2140505 | AE90: 2183624 | AF90: 2223269.25 | AG90: 2276270.25 | AH90: 2333478.75 | AI90: 2353724.5 | AJ90: 2312662.25 | AK90: 2252780.75 | AL90: 2213896.25 | AM90: 2203514.5 | AN90: 2215882.5 | AO90: 2185451.75 | AP90: 2180625.75 | AQ90: 2197634.75 | AR90: 2185181.75 | AS90: 2185167.25 | AT90: 2116995.5 | AU90: 2055720.5 | AV90: 2024822.875 | AW90: 1984350.75 | AX90: 1976450.375 | AY90: 1959621.75 | AZ90: 1957724.125 | BA90: 2013460.875 | BB90: 2117479.25 | BC90: 2185243.5 | BD90: 2112525.75 | BE90: 2052191.25 | BF90: 2034807.875 | BG90: 2060073.25 | BH90: 2138827 | BI90: 2208020 | BJ90: 2235337.25 | BK90: 2236910.25 | BL90: 2257720 | BM90: 2264417.5 | BN90: 2210535 | BO90: 2188138.5 | BP90: 2170741 | BQ90: 2117967.75 | BR90: 2067493 | BS90: 2007280.5 | BT90: 1937812.625 | BU90: 1861921 | BV90: 1801527.375 | BW90: 1738735.75 | BX90: 1672211.75 | BY90: 1638822 | BZ90: 1651402.5 | CA90: 1465519.375 | CB90: 1219608 | CC90: 1178210.25 | CD90: 1174016.375 | CE90: 1099916.625 | CF90: 972329.375 | CG90: 893146.625 | CH90: 824560.5625 | CI90: 774270.25 | CJ90: 715453.0625 | CK90: 656225.3125 | CL90: 612783.8125 | CM90: 551127.8125 | CN90: 484605.4375 | CO90: 453081.625 | CP90: 407665.875 | CQ90: 374103.7812 | CR90: 319725.5938 | CS90: 280724.3438 | CT90: 240680.5625 | CU90: 197612.2656 | CV90: 159895.1562 | CW90: 127673.6406 | CX90: 96373.74219 | CY90: 70581.77344 | CZ90: 52600.71094 | DA90: 35648.71094 | DB90: 58239.14453
B91: HMD | C91: F | D91: 2021 | E91: 167453408 | F91: 1777142.5 | G91: 1827087 | H91: 1864208 | I91: 1903544.875 | J91: 1948759.375 | K91: 1985091 | L91: 1989097.625 | M91: 1982473.625 | N91: 1981512.375 | O91: 1990284.25 | P91: 2021459.25 | Q91: 2066476.875 | R91: 2128217 | S91: 2165067.5 | T91: 2145052.75 | U91: 2116826 | V91: 2111922 | W91: 2108384.75 | X91: 2094636.5 | Y91: 2109441.75 | Z91: 2128736 | AA91: 2112653 | AB91: 2095343.125 | AC91: 2097812.5 | AD91: 2107919 | AE91: 2134477.75 | AF91: 2178084 | AG91: 2220650.25 | AH91: 2269308.25 | AI91: 2319154.25 | AJ91: 2344597.5 | AK91: 2315952.25 | AL91: 2262864.5 | AM91: 2229220.5 | AN91: 2216673 | AO91: 2219442 | AP91: 2199427 | AQ91: 2195549.25 | AR91: 2212412.75 | AS91: 2197065.25 | AT91: 2178143 | AU91: 2133044 | AV91: 2068986.125 | AW91: 2036337.5 | AX91: 1991758.125 | AY91: 1968669.25 | AZ91: 1962394 | BA91: 1958835.75 | BB91: 2019357.875 | BC91: 2124750.25 | BD91: 2167393.75 | BE91: 2112412.75 | BF91: 2053595 | BG91: 2040984 | BH91: 2065471.875 | BI91: 2128142.25 | BJ91: 2201627.5 | BK91: 2233190.25 | BL91: 2242839.25 | BM91: 2249075.5 | BN91: 2231360.5 | BO91: 2196955 | BP91: 2174058.25 | BQ91: 2151689.25 | BR91: 2094398.5 | BS91: 2032674.125 | BT91: 1980991.125 | BU91: 1912607.375 | BV91: 1842426.25 | BW91: 1770543.75 | BX91: 1694001.75 | BY91: 1635425 | BZ91: 1596870.125 | CA91: 1615722.125 | CB91: 1416933.375 | CC91: 1163306.75 | CD91: 1126883.25 | CE91: 1118626.625 | CF91: 1043881.312 | CG91: 916839.5 | CH91: 833453.125 | CI91: 769289.4375 | CJ91: 717439.875 | CK91: 656907.875 | CL91: 596155.4375 | CM91: 549960.5 | CN91: 490491.75 | CO91: 437890.0312 | CP91: 403943 | CQ91: 357927.5625 | CR91: 323180.625 | CS91: 271131.4688 | CT91: 233426.25 | CU91: 195528.5312 | CV91: 156608.3281 | CW91: 123809.3203 | CX91: 95597.54688 | CY91: 70195.49219 | CZ91: 49517.28125 | DA91: 35661.25 | DB91: 58053.10547
B92: HMD | C92: F | D92: 2022 | E92: 167973392 | F92: 1770531.875 | G92: 1783256 | H92: 1833379.5 | I92: 1870397.375 | J92: 1909404.75 | K92: 1954228.125 | L92: 1990281.75 | M92: 1994027 | N92: 1987225.75 | O92: 1986117.25 | P92: 1994717.375 | Q92: 2025765.125 | R92: 2070606.5 | S92: 2132233.25 | T92: 2169126.25 | U92: 2149459.25 | V92: 2121825 | W92: 2118082 | X92: 2115929.25 | Y92: 2102398.75 | Z92: 2116363 | AA92: 2136029.25 | AB92: 2121109.75 | AC92: 2104523.75 | AD92: 2107460 | AE92: 2118261 | AF92: 2145177.75 | AG92: 2188471 | AH92: 2230374 | AI92: 2278297.25 | AJ92: 2327440 | AK92: 2352039 | AL92: 2322557.25 | AM92: 2268649.5 | AN92: 2233967.25 | AO92: 2220454.75 | AP92: 2222682.5 | AQ92: 2202038 | AR92: 2197380.25 | AS92: 2213658.25 | AT92: 2197503 | AU92: 2177757 | AV92: 2131978.75 | AW92: 2067551.5 | AX92: 2034505.125 | AY92: 1989387.125 | AZ92: 1965794.125 | BA92: 1958839.5 | BB92: 1954765.875 | BC92: 2014472 | BD92: 2118575.5 | BE92: 2160342.75 | BF92: 2105052 | BG92: 2045830 | BH92: 2032413.5 | BI92: 2055724.125 | BJ92: 2117026.75 | BK92: 2189085 | BL92: 2219113.75 | BM92: 2227185 | BN92: 2231891.75 | BO92: 2213001.5 | BP92: 2177271.5 | BQ92: 2152941.25 | BR92: 2129122.75 | BS92: 2071075.5 | BT92: 2008468.75 | BU92: 1955980.5 | BV92: 1886574.625 | BW92: 1815190.625 | BX92: 1742537.75 | BY92: 1665192.875 | BZ92: 1604749.375 | CA92: 1563658.875 | CB92: 1578684.375 | CC92: 1381132.5 | CD92: 1130609.375 | CE92: 1091899.875 | CF92: 1079985.75 | CG92: 1003727.312 | CH92: 877390.125 | CI92: 793456.75 | CJ92: 728015.0625 | CK92: 674219.6875 | CL92: 612413 | CM92: 550677.9375 | CN92: 502957.5 | CO92: 443558.9062 | CP92: 393619.3438 | CQ92: 358285.375 | CR92: 312653.9062 | CS92: 277515.9688 | CT92: 228713.875 | CU92: 192818.6719 | CV92: 157750.9844 | CW92: 123612.8594 | CX92: 94843.90625 | CY92: 71602.21094 | CZ92: 51184.21875 | DA92: 34745.07812 | DB92: 60810.89844
B93: HMD | C93: F | D93: 2023 | E93: 168736512 | F93: 1790138 | G93: 1780528.125 | H93: 1793237.125 | I93: 1843156 | J93: 1879648.25 | K93: 1918061.75 | L93: 1962383 | M93: 1998003 | N93: 2001417.125 | O93: 1994352.75 | P93: 1992996.875 | Q93: 2001374 | R93: 2032177.625 | S93: 2076854.875 | T93: 2138539.75 | U93: 2175936.5 | V93: 2157256 | W93: 2131420 | X93: 2129893.75 | Y93: 2128089 | Z93: 2113582 | AA93: 2128540.5 | AB93: 2149809.5 | AC93: 2135916.75 | AD93: 2119911.5 | AE93: 2123957 | AF93: 2135487.5 | AG93: 2162045.5 | AH93: 2204437.5 | AI93: 2245434.5 | AJ93: 2292327.75 | AK93: 2340426.75 | AL93: 2363861 | AM93: 2333117 | AN93: 2277712.25 | AO93: 2241640.25 | AP93: 2227495.25 | AQ93: 2228838 | AR93: 2207142.75 | AS93: 2201780.75 | AT93: 2216857.75 | AU93: 2199489 | AV93: 2178844.25 | AW93: 2132398.5 | AX93: 2067441.5 | AY93: 2033882.5 | AZ93: 1988317.25 | BA93: 1963931.125 | BB93: 1956384.75 | BC93: 1951720.875 | BD93: 2010101.625 | BE93: 2113039.75 | BF93: 2154299.25 | BG93: 2098653 | BH93: 2038872 | BI93: 2024324.75 | BJ93: 2046578 | BK93: 2106480.25 | BL93: 2176814.5 | BM93: 2205161.75 | BN93: 2211753.25 | BO93: 2215223.75 | BP93: 2194830.75 | BQ93: 2157673.75 | BR93: 2132077.75 | BS93: 2107185.25 | BT93: 2048101.75 | BU93: 1984765.5 | BV93: 1931198.625 | BW93: 1860515 | BX93: 1788252.125 | BY93: 1714826.125 | BZ93: 1636006.125 | CA93: 1573477.5 | CB93: 1529743.625 | CC93: 1540859.125 | CD93: 1344680.125 | CE93: 1097303.25 | CF93: 1056207.375 | CG93: 1040455.938 | CH93: 962674.8125 | CI93: 837288.25 | CJ93: 752960.75 | CK93: 686246.75 | CL93: 630680.125 | CM93: 567954.75 | CN93: 505751.125 | CO93: 457070.1875 | CP93: 398360.3125 | CQ93: 349542.875 | CR93: 313096.9062 | CS93: 269445.4688 | CT93: 233936.5156 | CU93: 189259.4688 | CV93: 155883.2969 | CW93: 124176.6484 | CX93: 94836.5625 | CY93: 70756.67188 | CZ93: 51724.87109 | DA93: 35760.21094 | DB93: 61470.64062
B94: HMD | C94: F | D94: 2024 | E94: 169292912 | F94: 1764536.75 | G94: 1794751.25 | H94: 1785544.875 | I94: 1798194.125 | J94: 1847872.875 | K94: 1884097.625 | L94: 1922248.75 | M94: 1966354.75 | N94: 2001784.75 | O94: 2005055.75 | P94: 1997880.5 | Q94: 1996398.125 | R94: 2004639.25 | S94: 2035305.625 | T94: 2079992.375 | U94: 2141897.25 | V94: 2179765 | W94: 2161961 | X94: 2137206.25 | Y94: 2135740.75 | Z94: 2133516.75 | AA94: 2119560.25 | AB94: 2135327.25 | AC94: 2157109 | AD94: 2143442 | AE94: 2127916.5 | AF94: 2132381.25 | AG94: 2143732.25 | AH94: 2169733 | AI94: 2211587.5 | AJ94: 2251942 | AK94: 2298194.25 | AL94: 2345671.5 | AM94: 2368261.25 | AN94: 2336711.75 | AO94: 2280567.25 | AP94: 2244210.5 | AQ94: 2229503 | AR94: 2230185.25 | AS94: 2208117 | AT94: 2201954 | AU94: 2216254.75 | AV94: 2198331 | AW94: 2177296 | AX94: 2130429.75 | AY94: 2065266.375 | AZ94: 2031324.625 | BA94: 1985419.5 | BB94: 1960530.875 | BC94: 1952669.375 | BD94: 1947149.5 | BE94: 2004658.125 | BF94: 2106726 | BG94: 2147368.25 | BH94: 2091336.25 | BI94: 2030816.875 | BJ94: 2015516.25 | BK94: 2036561.625 | BL94: 2095050.5 | BM94: 2163712.5 | BN94: 2190712.25 | BO94: 2195968.5 | BP94: 2197868.75 | BQ94: 2176153.5 | BR94: 2137947.25 | BS94: 2111311.75 | BT94: 2084967.625 | BU94: 2025114.375 | BV94: 1960899.25 | BW94: 1905927.875 | BX94: 1834464.75 | BY94: 1760675.25 | BZ94: 1685800.375 | CA94: 1605665 | CB94: 1540759 | CC94: 1494624.5 | CD94: 1500477.25 | CE94: 1310226.375 | CF94: 1063188.5 | CG94: 1019019.188 | CH94: 998425.5 | CI94: 921651 | CJ94: 796969.8125 | CK94: 712198.125 | CL94: 644435.5 | CM94: 586830.6875 | CN94: 524617.875 | CO94: 462081.7188 | CP94: 412710.4375 | CQ94: 355695.8125 | CR94: 308141.1875 | CS94: 272067.3438 | CT94: 229448.1719 | CU94: 196025.875 | CV94: 154654.0312 | CW94: 124652 | CX94: 97100.89062 | CY94: 72040.07031 | CZ94: 52258.01172 | DA94: 37253.60938 | DB94: 64594.02344
B95: HMD | C95: F | D95: 2025 | E95: =SUM(F95:DB95) -> 170410222.8 | F95: =F94*F37/F36 -> 1806500.466 | G95: =F94*G37/F36 -> 1770845.403 | H95: 1806158.325 | I95: 1798398.347 | J95: 1810622.941 | K95: 1860025.592 | L95: 1896451.519 | M95: 1934737.969 | N95: 1978727.783 | O95: 2014248.294 | P95: 2017744.893 | Q95: 2011044.948 | R95: 2010151.325 | S95: 2018957.118 | T95: 2050221.037 | U95: 2095598.941 | V95: 2158260.692 | W95: 2196796.907 | X95: 2179599.877 | Y95: 2155541.595 | Z95: 2155166.364 | AA95: 2153819.844 | AB95: 2139786.854 | AC95: 2155329.242 | AD95: 2177078.659 | AE95: 2163612.074 | AF95: 2148111.584 | AG95: 2152120.13 | AH95: 2162563.69 | AI95: 2187357.383 | AJ95: 2227973.259 | AK95: 2266858.832 | AL95: 2311562.741 | AM95: =AL94*AM37/AL36 -> 2357616.646 | AN95: 2378890.669 | AO95: 2346226.122 | AP95: 2289250.356 | AQ95: 2252286.625 | AR95: 2237006.131 | AS95: 2237049.416 | AT95: 2214393.091 | AU95: 2207733.794 | AV95: 2221373.844 | AW95: 2202763.023 | AX95: 2181079.234 | AY95: 2133548.574 | AZ95: 2067744.796 | BA95: 2033134.058 | BB95: 1986674.459 | BC95: 1961312.251 | BD95: 1952892.888 | BE95: 1946847.759 | BF95: 2003681.008 | BG95: 2104725.924 | BH95: 2144171.511 | BI95: 2087233.337 | BJ95: 2025919.831 | BK95: 2009576.827 | BL95: 2029312.127 | BM95: 2086272.466 | BN95: 2153316.312 | BO95: 2178946.623 | BP95: 2182943.252 | BQ95: 2183514.47 | BR95: 2160571.355 | BS95: =BR94*BS37/BR36 -> 2121300.201 | BT95: 2093423.874 | BU95: 2065614.692 | BV95: 2004435.347 | BW95: 1938770.701 | BX95: 1882007.347 | BY95: 1808765.432 | BZ95: 1733015.492 | CA95: 1656151.968 | CB95: 1574128.562 | CC95: 1507069.722 | CD95: 1458344.231 | CE95: 1460032.333 | CF95: 1270929.325 | CG95: 1027650.97 | CH95: 980805.6297 | CI95: 956304.7842 | CJ95: 877909.4886 | CK95: 754485.0226 | CL95: 669501.5304 | CM95: 601137.5437 | CN95: 542654.3609 | CO95: 480480.6171 | CP95: 418483.2167 | CQ95: 369057.7942 | CR95: 313575.2358 | CS95: 267384.7719 | CT95: 231917.2132 | CU95: 191930.146 | CV95: 160596.956 | CW95: 124088.2739 | CX95: 97828.95074 | CY95: 74552.87793 | CZ95: 54122.55088 | DA95: 38407.56684 | DB95: 73374.62019
B96: HMD | C96: F | D96: 2026 | E96: =SUM(F96:DB96) -> 171482651 | F96: =F95*F38/F37 -> 1845286.361 | G96: =F95*G38/F37 -> 1812190.624 | H96: =G95*H38/G37 -> 1781169.962 | I96: =H95*I38/H37 -> 1818003.982 | J96: =I95*J38/I37 -> 1809645.014 | K96: =J95*K38/J37 -> 1821770.01 | L96: =K95*L38/K37 -> 1871521.406 | M96: =L95*M38/L37 -> 1907949.458 | N96: =M95*N38/M37 -> 1946194.305 | O96: =N95*O38/N37 -> 1990263.945 | P96: =O95*P38/O37 -> 2026048.998 | Q96: =P95*Q38/P37 -> 2029896.162 | R96: =Q95*R38/Q37 -> 2023717.713 | S96: =R95*S38/R37 -> 2023331.962 | T96: =S95*T38/S37 -> 2032628.392 | U96: =T95*U38/T37 -> 2064518.639 | V96: =U95*V38/U37 -> 2110627.596 | W96: =V95*W38/V37 -> 2174074.252 | X96: =W95*X38/W37 -> 2213171.353 | Y96: =X95*Y38/X37 -> 2196416.93 | Z96: =Y95*Z38/Y37 -> 2173231.89 | AA96: =Z95*AA38/Z37 -> 2173736.371 | AB96: =AA95*AB38/AA37 -> 2172185.114 | AC96: =AB95*AC38/AB37 -> 2157474.502 | AD96: =AC95*AD38/AC37 -> 2173005.375 | AE96: =AD95*AE38/AD37 -> 2194887.372 | AF96: =AE95*AF38/AE37 -> 2181356.317 | AG96: =AF95*AG38/AF37 -> 2165463.488 | AH96: =AG95*AH38/AG37 -> 2168708.539 | AI96: =AH95*AI38/AH37 -> 2178183.153 | AJ96: =AI95*AJ38/AI37 -> 2201857.554 | AK96: =AJ95*AK38/AJ37 -> 2241291.589 | AL96: =AK95*AL38/AK37 -> 2278870.388 | AM96: =AL95*AM38/AL37 -> 2322254.777 | AN96: =AM95*AN38/AM37 -> 2367013.925 | AO96: =AN95*AO38/AN37 -> 2387134.649 | AP96: =AO95*AP38/AO37 -> 2353663.251 | AQ96: =AP95*AQ38/AP37 -> 2296156.738 | AR96: =AQ95*AR38/AQ37 -> 2258754.512 | AS96: =AR95*AS38/AR37 -> 2243028.163 | AT96: =AS95*AT38/AS37 -> 2242558.684 | AU96: =AT95*AU38/AT37 -> 2219366.215 | AV96: =AU95*AV38/AU37 -> 2212191.276 | AW96: =AV95*AW38/AV37 -> 2225225.353 | AX96: =AW95*AX38/AW37 -> 2205990.29 | AY96: =AX95*AY38/AX37 -> 2183630.198 | AZ96: =AY95*AZ38/AY37 -> 2135413.527 | BA96: =AZ95*BA38/AZ37 -> 2069066.105 | BB96: =BA95*BB38/BA37 -> 2033956.351 | BC96: =BB95*BC38/BB37 -> 1987068.491 | BD96: =BC95*BD38/BC37 -> 1961272.887 | BE96: =BD95*BE38/BD37 -> 1952325.881 | BF96: =BE95*BF38/BE37 -> 1945746.999 | BG96: =BF95*BG38/BF37 -> 2001805.703 | BH96: =BG95*BH38/BG37 -> 2101677.225 | BI96: =BH95*BI38/BH37 -> 2139814.079 | BJ96: =BI95*BJ38/BI37 -> 2081951.958 | BK96: =BJ95*BK38/BJ37 -> 2019841.376 | BL96: =BK95*BL38/BK37 -> 2002451.696 | BM96: =BL95*BM38/BL37 -> 2020927.607 | BN96: =BM95*BN38/BM37 -> 2076436.294 | BO96: =BN95*BO38/BN37 -> 2141910.254 | BP96: =BO95*BP38/BO37 -> 2166163.167 | BQ96: =BP95*BQ38/BP37 -> 2168855.762 | BR96: =BQ95*BR38/BQ37 -> 2168092.116 | BS96: =BR95*BS38/BR37 -> 2143948.527 | BT96: =BS95*BT38/BS37 -> 2103572.25 | BU96: =BT95*BU38/BT37 -> 2074317.104 | BV96: =BU95*BV38/BU37 -> 2044861.083 | BW96: =BV95*BW38/BV37 -> 1982177.078 | BX96: =BW95*BX38/BW37 -> 1914854.681 | BY96: =BX95*BY38/BX37 -> 1856066.113 | BZ96: =BY95*BZ38/BY37 -> 1780843.881 | CA96: =BZ95*CA38/BZ37 -> 1703002.263 | CB96: =CA95*CB38/CA37 -> 1624151.002 | CC96: =CB95*CC38/CB37 -> 1540310.076 | CD96: =CC95*CD38/CC37 -> 1471116.587 | CE96: =CD95*CE38/CD37 -> 1419715.131 | CF96: =CE95*CF38/CE37 -> 1416966.843 | CG96: =CF95*CG38/CF37 -> 1229050.724 | CH96: =CG95*CH38/CG37 -> 989775.9295 | CI96: =CH95*CI38/CH37 -> 940155.7668 | CJ96: =CI95*CJ38/CI37 -> 911663.9152 | CK96: =CJ95*CK38/CJ37 -> 831798.8956 | CL96: =CK95*CL38/CK37 -> 709994.6142 | CM96: =CL95*CM38/CL37 -> 625144.5969 | CN96: =CM95*CN38/CM37 -> 556480.1239 | CO96: =CN95*CO38/CN37 -> 497400.0254 | CP96: =CO95*CP38/CO37 -> 435644.4087 | CQ96: =CP95*CQ38/CP37 -> 374696.7317 | CR96: =CQ95*CR38/CQ37 -> 325807.35 | CS96: =CR95*CS38/CR37 -> 272506.7503 | CT96: =CS95*CT38/CS37 -> 228384.762 | CU96: =CT95*CU38/CT37 -> 194338.4375 | CV96: =CU95*CV38/CU37 -> 157670.3639 | CW96: =CV95*CW38/CV37 -> 129137.5399 | CX96: =CW95*CX38/CW37 -> 97697.01787 | CY96: =CX95*CY38/CX37 -> 75342.3462 | CZ96: =CY95*CZ38/CY37 -> 56195.7805 | DA96: =CZ95*DA38/CZ37 -> 39932.07694 | DB96: =DA95*DB38/DA37 -> 77506.04033
B97: HMD | C97: F | D97: 2027 | E97: 172524995.7 | F97: =F96*F39/F38 -> 1881563.755 | G97: 1850744.464 | H97: 1822210.249 | I97: 1792393.976 | J97: 1828872.618 | K97: 1820184.686 | L97: 1832721.746 | M97: 1882634.519 | N97: 1918927.284 | O97: 1957325.401 | P97: 2001664.586 | Q97: 2037868.332 | R97: 2042153.45 | S97: 2036460.58 | T97: 2036548.628 | U97: 2046385.617 | V97: 2078954.076 | W97: 2125849.216 | X97: 2189996.212 | Y97: 2229485.677 | Z97: 2213375.61 | AA97: 2190962.987 | AB97: 2191505.341 | AC97: 2189365.996 | AD97: 2174330.972 | AE97: 2190029.8 | AF97: 2211754.357 | AG97: 2197711.211 | AH97: 2181073.92 | AI97: 2183413.641 | AJ97: 2191918.696 | AK97: 2214404.238 | AL97: 2252620.499 | AM97: 2288981.811 | AN97: 2331080.481 | AO97: 2374619.383 | AP97: 2393810.162 | AQ97: 2359768.098 | AR97: 2301849.393 | AS97: 2264080.038 | AT97: 2247970.369 | AU97: 2246978.185 | AV97: 2223190.058 | AW97: 2215487.658 | AX97: 2227897.033 | AY97: 2207944.736 | AZ97: 2184833.337 | BA97: 2135992.902 | BB97: 2069233.201 | BC97: 2033711.516 | BD97: 1986426.151 | BE97: 1960200.217 | BF97: 1950700.331 | BG97: 1943495.851 | BH97: 1998627.576 | BI97: 2097168.956 | BJ97: 2133948.716 | BK97: 2075172.644 | BL97: 2012275.506 | BM97: 1993895.605 | BN97: 2011191.352 | BO97: 2065290.237 | BP97: 2129172.958 | BQ97: 2152011.111 | BR97: 2153390.309 | BS97: 2151299.347 | BT97: 2125910.99 | BU97: 2084297.494 | BV97: 2053476.471 | BW97: 2022167.401 | BX97: 1957765.124 | BY97: 1888545.993 | BZ97: 1827503.266 | CA97: 1750165.915 | CB97: 1670223.635 | CC97: 1589439.686 | CD97: 1503818.252 | CE97: 1432416.77 | CF97: 1378135.975 | CG97: 1370592.955 | CH97: 1183969.054 | CI97: 949066.2209 | CJ97: 896607.6574 | CK97: 864103.7198 | CL97: 782995.9991 | CM97: 663260.0252 | CN97: 578949.0586 | CO97: 510401.0115 | CP97: 451170.2115 | CQ97: 390346.3428 | CR97: 331050.7494 | CS97: 283377.7793 | CT97: 232960.0563 | CU97: 191630.2709 | CV97: 159798.9954 | CW97: 127013.8395 | CX97: 101784.3674 | CY97: 75388.36548 | CZ97: 56882.65498 | DA97: 41535.96875 | DB97: 81135.88225
B99: HMD | C99: M | D99: 2000 | E99: 137431008 | F99: 1958928.25 | G99: 1938985 | H99: 1938981.125 | I99: 1954964.25 | J99: 2008382.875 | K99: 2039969.375 | L99: 2061756.625 | M99: 2113452.5 | N99: 2135226.5 | O99: 2166092.5 | P99: 2169673 | Q99: 2096923.625 | R99: 2073341.375 | S99: 2058964.625 | T99: 2067565.375 | U99: 2055801 | V99: 2062429.375 | W99: 2089179.25 | X99: 2074529.375 | Y99: 2099749.25 | Z99: 2051016.625 | AA99: 1959171.375 | AB99: 1908566.5 | AC99: 1858931 | AD99: 1852523.375 | AE99: 1880550.75 | AF99: 1849276.5 | AG99: 1940307.625 | AH99: 2039719.75 | AI99: 2103455.5 | AJ99: 2144463 | AK99: 2013773.375 | AL99: 2020657.625 | AM99: 2029199.625 | AN99: 2133505.5 | AO99: 2269771 | AP99: 2261611.75 | AQ99: 2268451 | AR99: 2259104.5 | AS99: 2291651.5 | AT99: 2333266.5 | AU99: 2225141 | AV99: 2240168.25 | AW99: 2165942.25 | AX99: 2118268.25 | AY99: 2122547.25 | AZ99: 2004898.375 | BA99: 1956752.625 | BB99: 1869090 | BC99: 1857037.75 | BD99: 1855809.375 | BE99: 1778375.75 | BF99: 1841227.25 | BG99: 1612133.625 | BH99: 1404248.25 | BI99: 1388332.875 | BJ99: 1395327.5 | BK99: 1321837.125 | BL99: 1202014.125 | BM99: 1131371.25 | BN99: 1112605.125 | BO99: 1054234.75 | BP99: 1014629.5 | BQ99: 975974.1875 | BR99: 965875.75 | BS99: 923689.375 | BT99: 875559.0625 | BU99: 875284.8125 | BV99: 868336.375 | BW99: 856122.5 | BX99: 841382.5 | BY99: 808538.75 | BZ99: 777255.6875 | CA99: 751710.3125 | CB99: 723189.375 | CC99: 692157.3125 | CD99: 645771.3125 | CE99: 611787.375 | CF99: 572011.125 | CG99: 512468.6875 | CH99: 422057.6875 | CI99: 391917.0312 | CJ99: 343189.125 | CK99: 298163.375 | CL99: 262947.9062 | CM99: 230410.2031 | CN99: 191355.0625 | CO99: 161730.7969 | CP99: 127803.2266 | CQ99: 105130.1797 | CR99: 81626.95312 | CS99: 64645.48047 | CT99: 49598.10938 | CU99: 35653.69141 | CV99: 26382.28906 | CW99: 18646.06055 | CX99: 12947.67969 | CY99: 8942.530273 | CZ99: 5450.689941 | DA99: 3993.949951 | DB99: 5426.02002
B100: HMD | C100: M | D100: 2001 | E100: 138977920 | F100: 2012047.125 | G100: 1957747.875 | H100: 1943513.875 | I100: 1948976.75 | J100: 1976488.75 | K100: 2016587.25 | L100: 2042434.875 | M100: 2075510.5 | N100: 2115988.75 | O100: 2153483.25 | P100: 2202053.5 | Q100: 2177427.75 | R100: 2117655 | S100: 2086501.125 | T100: 2077524.375 | U100: 2092599 | V100: 2084188.875 | W100: 2087230 | X100: 2112998.5 | Y100: 2116835.5 | Z100: 2109033.5 | AA100: 2050849.125 | AB100: 1965779.625 | AC100: 1919412.875 | AD100: 1878948.75 | AE100: 1882607.25 | AF100: 1878542.375 | AG100: 1873284 | AH100: 1945136.125 | AI100: 2052175 | AJ100: 2148355 | AK100: 2111587.5 | AL100: 2033734 | AM100: 2015665.25 | AN100: 2049382.375 | AO100: 2157474 | AP100: 2246505.5 | AQ100: 2255932 | AR100: 2257959.5 | AS100: 2275611.5 | AT100: 2313263.5 | AU100: 2290643.25 | AV100: 2240734.25 | AW100: 2227935.25 | AX100: 2168302.25 | AY100: 2134363.5 | AZ100: 2094687.125 | BA100: 2010493.5 | BB100: 1944788.125 | BC100: 1889209.75 | BD100: 1862633.375 | BE100: 1828368.625 | BF100: 1783705.125 | BG100: 1821640.125 | BH100: 1629028.25 | BI100: 1387830.375 | BJ100: 1374364.25 | BK100: 1383201.875 | BL100: 1321325.5 | BM100: 1192008.75 | BN100: 1129252.5 | BO100: 1088846.5 | BP100: 1049322.75 | BQ100: 1005208.75 | BR100: 962091.3125 | BS100: 948814.25 | BT100: 905804.5625 | BU100: 863206.625 | BV100: 854185.3125 | BW100: 841075.25 | BX100: 835882.5625 | BY100: 813072.5 | BZ100: 781006.25 | CA100: 759146.0625 | CB100: 722683.125 | CC100: 690398.9375 | CD100: 657906.4375 | CE100: 612292.375 | CF100: 573051.75 | CG100: 533446.375 | CH100: 462317.8125 | CI100: 388385.3125 | CJ100: 357511.4688 | CK100: 310053.0938 | CL100: 266457.1875 | CM100: 232367 | CN100: 200592.375 | CO100: 164121.9531 | CP100: 136825.6094 | CQ100: 106065.0312 | CR100: 85632.35156 | CS100: 65424.07031 | CT100: 50542.51953 | CU100: 37806.71094 | CV100: 26519.01953 | CW100: 19027.39062 | CX100: 13181.83984 | CY100: 8939.700195 | CZ100: 5929.790039 | DA100: 3536.540039 | DB100: 5681.75
B101: HMD | C101: M | D101: 2002 | E101: 140385392 | F101: 2034094.75 | G101: 2008740.625 | H101: 1957960.625 | I101: 1945081.5 | J101: 1953370.25 | K101: 1980748.625 | L101: 2018252.375 | M101: 2046659.375 | N101: 2080097.875 | O101: 2124900.5 | P101: 2180674.75 | Q101: 2213652.5 | R101: 2194418.25 | S101: 2131524.25 | T101: 2098530 | U101: 2099037.5 | V101: 2119054.75 | W101: 2111459.75 | X101: 2118852 | Y101: 2139646 | Z101: 2131331 | AA101: 2119331.75 | AB101: 2055862.625 | AC101: 1971808.5 | AD101: 1925932.625 | AE101: 1888232.375 | AF101: 1883314.125 | AG101: 1884365 | AH101: 1877819.25 | AI101: 1945662.625 | AJ101: 2066974.25 | AK101: 2143594.5 | AL101: 2120609.75 | AM101: 2037695 | AN101: 2019305.5 | AO101: 2055262.75 | AP101: 2158288.25 | AQ101: 2244521.5 | AR101: 2254734.75 | AS101: 2257945 | AT101: 2272558.25 | AU101: 2313081 | AV101: 2288601.5 | AW101: 2238822 | AX101: 2221158.5 | AY101: 2161564.25 | AZ101: 2131717.75 | BA101: 2091646.25 | BB101: 2004188.125 | BC101: 1941023.625 | BD101: 1880984.125 | BE101: 1860350.25 | BF101: 1820658.875 | BG101: 1779137.5 | BH101: 1816022.625 | BI101: 1617938.375 | BJ101: 1382940.25 | BK101: 1365787.625 | BL101: 1374145.5 | BM101: 1310312.625 | BN101: 1178217 | BO101: 1120923.875 | BP101: 1077606.625 | BQ101: 1037873.875 | BR101: 991034.875 | BS101: 947965.875 | BT101: 933360.25 | BU101: 890028.0625 | BV101: 845693.9375 | BW101: 834157.3125 | BX101: 818360.875 | BY101: 814479.5 | BZ101: 787461.8125 | CA101: 754856.75 | CB101: 730142.875 | CC101: 690604.5 | CD101: 659591.75 | CE101: 623856.25 | CF101: 578016.8125 | CG101: 537475.6875 | CH101: 483807.1875 | CI101: 426390.2812 | CJ101: 354695.3125 | CK101: 323348.2188 | CL101: 277903.6875 | CM101: 235911.25 | CN101: 202944.8594 | CO101: 172723.125 | CP101: 139071.5469 | CQ101: 113949.6328 | CR101: 86721.24219 | CS101: 68734.6875 | CT101: 51382.17969 | CU101: 38740.76953 | CV101: 28120.5293 | CW101: 19316.01953 | CX101: 13385.7998 | CY101: 9058.169922 | CZ101: 5954.430176 | DA101: 3928.179932 | DB101: 5625.370605
B102: HMD | C102: M | D102: 2003 | E102: 141644864 | F102: 2025899.625 | G102: 2026901.5 | H102: 2008321.25 | I102: 1959983.25 | J102: 1951336.625 | K102: 1958328.75 | L102: 1981282.875 | M102: 2023292.25 | N102: 2051615.5 | O102: 2091441.375 | P102: 2163257 | Q102: 2188083.5 | R102: 2231988.75 | S102: 2206406.75 | T102: 2140612.75 | U102: 2121013 | V102: 2124604.75 | W102: 2143066.25 | X102: 2141307.75 | Y102: 2139665.75 | Z102: 2143265.25 | AA102: 2133279 | AB102: 2113404 | AC102: 2052413.25 | AD102: 1970614.75 | AE102: 1930341.625 | AF102: 1879215.25 | AG102: 1885749.25 | AH102: 1884852.125 | AI102: 1873489 | AJ102: 1965456 | AK102: 2053481.375 | AL102: 2154719.5 | AM102: 2120815 | AN102: 2038630.375 | AO102: 2024746.5 | AP102: 2052224.375 | AQ102: 2153018.75 | AR102: 2241938 | AS102: 2253653.5 | AT102: 2252179.75 | AU102: 2272425 | AV102: 2309305.25 | AW102: 2285864 | AX102: 2228645.75 | AY102: 2212723 | AZ102: 2160348.75 | BA102: 2128859.75 | BB102: 2083336.625 | BC102: 2001013.125 | BD102: 1930049.75 | BE102: 1880868.75 | BF102: 1850569.375 | BG102: 1817375.5 | BH102: 1774228 | BI102: 1800421.125 | BJ102: 1614332.875 | BK102: 1373434.375 | BL102: 1357115.5 | BM102: 1361989.25 | BN102: 1292971.125 | BO102: 1171979.75 | BP102: 1109088.125 | BQ102: 1066512 | BR102: 1022632.375 | BS102: 977160.5 | BT102: 932825.25 | BU102: 917789.25 | BV102: 872315.6875 | BW102: 825928.1875 | BX102: 810959.8125 | BY102: 798984.5 | BZ102: 788490.6875 | CA102: 761867.875 | CB102: 726084.0625 | CC102: 697150.4375 | CD102: 661568.5625 | CE102: 625640.1875 | CF102: 589735.8125 | CG102: 542760.75 | CH102: 474090.5625 | CI102: 446629.2188 | CJ102: 390202.1875 | CK102: 321444.2188 | CL102: 289933.2188 | CM102: 246271.2656 | CN102: 205971.7344 | CO102: 174775.25 | CP102: 146233.8594 | CQ102: 115623.0469 | CR102: 93043.1875 | CS102: 69471.71094 | CT102: 53585.98828 | CU102: 39103.42969 | CV102: 28610.90039 | CW102: 20434.17969 | CX102: 13573.20996 | CY102: 9107.269531 | CZ102: 5932.419922 | DA102: 3833.47998 | DB102: 5787.650391
B103: HMD | C103: M | D103: 2004 | E103: 142940080 | F103: 2042665.25 | G103: 2014809.25 | H103: 2025919.875 | I103: 2010557.25 | J103: 1967988.375 | K103: 1956865.125 | L103: 1957596.125 | M103: 1987012.875 | N103: 2028474.75 | O103: 2065234.625 | P103: 2140582 | Q103: 2166629.25 | R103: 2207506.25 | S103: 2242013.75 | T103: 2212491.5 | U103: 2164268.5 | V103: 2145940 | W103: 2145464 | X103: 2170949.25 | Y103: 2158761.75 | Z103: 2139525.25 | AA103: 2145943.25 | AB103: 2127714.75 | AC103: 2111566.75 | AD103: 2051907.25 | AE103: 1977506.875 | AF103: 1917777.875 | AG103: 1883919.25 | AH103: 1887365.125 | AI103: 1879882.625 | AJ103: 1901665.5 | AK103: 1947655.625 | AL103: 2070847.5 | AM103: 2155404 | AN103: 2122582.25 | AO103: 2047125.625 | AP103: 2021647.625 | AQ103: 2047162.75 | AR103: 2152810.75 | AS103: 2243696.25 | AT103: 2248370.25 | AU103: 2254593.5 | AV103: 2269242.75 | AW103: 2307415.75 | AX103: 2273733.25 | AY103: 2219830.5 | AZ103: 2214006.5 | BA103: 2158601 | BB103: 2119353 | BC103: 2081532.75 | BD103: 1987689.625 | BE103: 1932890.75 | BF103: 1869250.625 | BG103: 1848664.5 | BH103: 1813150.5 | BI103: 1755970.625 | BJ103: 1798705.75 | BK103: 1602214.75 | BL103: 1364947 | BM103: 1344605.375 | BN103: 1341902.125 | BO103: 1289108.375 | BP103: 1159442.625 | BQ103: 1098295.25 | BR103: 1050212.625 | BS103: 1008878.562 | BT103: 961709.75 | BU103: 917898.5 | BV103: 899787.375 | BW103: 851948.875 | BX103: 802227.75 | BY103: 793272.375 | BZ103: 773048.9375 | CA103: 763490.25 | CB103: 732822.25 | CC103: 692530.9375 | CD103: 669541.8125 | CE103: 627614.6875 | CF103: 592100.75 | CG103: 554193.0625 | CH103: 481517.7188 | CI103: 438365.6562 | CJ103: 409641.75 | CK103: 354912.3125 | CL103: 288674.5625 | CM103: 257503.3125 | CN103: 216299.6406 | CO103: 178021.4844 | CP103: 148545.3906 | CQ103: 122120.9297 | CR103: 94732.42969 | CS103: 74518.95312 | CT103: 54557.42969 | CU103: 41044.10156 | CV103: 29221.35938 | CW103: 20814.09961 | CX103: 14327.87012 | CY103: 9296.719727 | CZ103: 6107.040039 | DA103: 3853.75 | DB103: 5754.550781
B104: HMD | C104: M | D104: 2005 | E104: 144330752 | F104: 2049870.625 | G104: 2028375.875 | H104: 2014369.25 | I104: 2029331.125 | J104: 2021186.75 | K104: 1974788.75 | L104: 1955508.625 | M104: 1964713.375 | N104: 1993066.75 | O104: 2044959.875 | P104: 2125727.75 | Q104: 2140647.75 | R104: 2187656.5 | S104: 2216116.25 | T104: 2245795.25 | U104: 2238413 | V104: 2189649.25 | W104: 2164961.5 | X104: 2173365.5 | Y104: 2189465.5 | Z104: 2159341.25 | AA104: 2147733.75 | AB104: 2144324.25 | AC104: 2130133.25 | AD104: 2114613.75 | AE104: 2063385.25 | AF104: 1963592 | AG104: 1926649.375 | AH104: 1888284.5 | AI104: 1883425.5 | AJ104: 1918464.75 | AK104: 1880416 | AL104: 1971588.5 | AM104: 2073721.375 | AN104: 2159064.25 | AO104: 2135246 | AP104: 2044683.875 | AQ104: 2016937.625 | AR104: 2049423.125 | AS104: 2157843.5 | AT104: 2239584.5 | AU104: 2253615.25 | AV104: 2252332.5 | AW104: 2268719 | AX104: 2293785.25 | AY104: 2264799.75 | AZ104: 2224210.5 | BA104: 2214060.25 | BB104: 2148252.75 | BC104: 2119341.75 | BD104: 2065982.25 | BE104: 1994058.75 | BF104: 1919458.375 | BG104: 1868838 | BH104: 1845182.125 | BI104: 1791688.5 | BJ104: 1757226.125 | BK104: 1784660.625 | BL104: 1592470.625 | BM104: 1351845.5 | BN104: 1322983.75 | BO104: 1341242.25 | BP104: 1275417.375 | BQ104: 1148816 | BR104: 1080866.5 | BS104: 1036708.562 | BT104: 993248.25 | BU104: 947225.1875 | BV104: 899998.6875 | BW104: 879033.625 | BX104: 826969.75 | BY104: 786250.4375 | BZ104: 767180.5 | CA104: 749235.125 | CB104: 734471.4375 | CC104: 698277.6875 | CD104: 666849.875 | CE104: 635408.75 | CF104: 594787.5 | CG104: 556925.9375 | CH104: 494885.1875 | CI104: 446767.1875 | CJ104: 403800.7812 | CK104: 373513.7812 | CL104: 320479.375 | CM104: 257870.125 | CN104: 227106.7188 | CO104: 188276.2031 | CP104: 152309.0625 | CQ104: 124962.4922 | CR104: 100879.9922 | CS104: 76648.28125 | CT104: 59163.37891 | CU104: 42256.62891 | CV104: 30873.24023 | CW104: 21340.0293 | CX104: 14798.25977 | CY104: 9849.780273 | CZ104: 6272.419922 | DA104: 4038.469971 | DB104: 5798.19043
B105: HMD | C105: M | D105: 2006 | E105: 145728560 | F105: 2056789.75 | G105: 2033051 | H105: 2029020.875 | I105: 2019716.375 | J105: 2043172.375 | K105: 2029737.125 | L105: 1973212.75 | M105: 1964581.75 | N105: 1972091.125 | O105: 2012820.125 | P105: 2117125.25 | Q105: 2123016.5 | R105: 2163847 | S105: 2195370.25 | T105: 2218209.25 | U105: 2274281.25 | V105: 2264820 | W105: 2207535.75 | X105: 2193536.75 | Y105: 2190964.5 | Z105: 2185321.5 | AA105: 2165519 | AB105: 2141575.25 | AC105: 2143595 | AD105: 2131321.5 | AE105: 2127297.25 | AF105: 2044425.25 | AG105: 1973710 | AH105: 1931099.875 | AI105: 1882719.75 | AJ105: 1930056 | AK105: 1890492.25 | AL105: 1908068.75 | AM105: 1974061 | AN105: 2078043.375 | AO105: 2174524.25 | AP105: 2131235.5 | AQ105: 2038462.625 | AR105: 2019822.625 | AS105: 2055452.625 | AT105: 2153816 | AU105: 2247043 | AV105: 2251662.25 | AW105: 2252618.25 | AX105: 2253385.5 | AY105: 2284561 | AZ105: 2272017 | BA105: 2225996 | BB105: 2202588.75 | BC105: 2149999.25 | BD105: 2101692.5 | BE105: 2076183 | BF105: 1978763.125 | BG105: 1920743.625 | BH105: 1865973.625 | BI105: 1820498.25 | BJ105: 1796025.375 | BK105: 1742922.625 | BL105: 1774020.25 | BM105: 1576698.375 | BN105: 1328249.75 | BO105: 1326126.125 | BP105: 1327354.625 | BQ105: 1264610.5 | BR105: 1129923.25 | BS105: 1067677.375 | BT105: 1021303 | BU105: 979157.875 | BV105: 929152.0625 | BW105: 879457.5 | BX105: 852922.625 | BY105: 812410 | BZ105: 760248.5625 | CA105: 744550.5625 | CB105: 721110.9375 | CC105: 699474.25 | CD105: 674561.625 | CE105: 633337.125 | CF105: 603383.5625 | CG105: 560387.4375 | CH105: 492273.5938 | CI105: 459302.875 | CJ105: 411410.5 | CK105: 368693.7188 | CL105: 337788.375 | CM105: 286324.3125 | CN105: 227544.2969 | CO105: 197354.8906 | CP105: 161253.8125 | CQ105: 128129.2031 | CR105: 103088.9688 | CS105: 81244.78125 | CT105: 60545.19141 | CU105: 45475.14062 | CV105: 31546.91992 | CW105: 22354.82031 | CX105: 15250.59961 | CY105: 10129 | CZ105: 6497.720215 | DA105: 4120.609863 | DB105: 5937.008789
B106: HMD | C106: M | D106: 2007 | E106: 147157664 | F106: 2093392.875 | G106: 2036870.875 | H106: 2034425.5 | I106: 2035885 | J106: 2036342.25 | K106: 2053011.625 | L106: 2027251.625 | M106: 1983921.625 | N106: 1972949.75 | O106: 1994702.625 | P106: 2095697 | Q106: 2111404.75 | R106: 2147940.5 | S106: 2170369.75 | T106: 2195527.75 | U106: 2248412.25 | V106: 2300981.5 | W106: 2280759.25 | X106: 2236091.75 | Y106: 2207380.75 | Z106: 2180068.5 | AA106: 2188079.5 | AB106: 2153763.25 | AC106: 2137813.25 | AD106: 2142883.25 | AE106: 2144810.75 | AF106: 2103368 | AG106: 2055545.125 | AH106: 1977804.5 | AI106: 1923284 | AJ106: 1936768.5 | AK106: 1894966.5 | AL106: 1922468.375 | AM106: 1909583.75 | AN106: 1978468.75 | AO106: 2095770.625 | AP106: 2169067.75 | AQ106: 2123020.75 | AR106: 2041908.75 | AS106: 2026663.25 | AT106: 2051341.375 | AU106: 2163055 | AV106: 2245695.75 | AW106: 2252832.25 | AX106: 2235549.5 | AY106: 2244095 | AZ106: 2294482.75 | BA106: 2275461 | BB106: 2213538.25 | BC106: 2206177.75 | BD106: 2130099.25 | BE106: 2115427 | BF106: 2058792.5 | BG106: 1982008.25 | BH106: 1918647.125 | BI106: 1837903.75 | BJ106: 1827539.25 | BK106: 1780566.25 | BL106: 1732727.75 | BM106: 1755839.5 | BN106: 1546791.875 | BO106: 1334896.5 | BP106: 1312862.875 | BQ106: 1317100.625 | BR106: 1243479.625 | BS106: 1116571.375 | BT106: 1052033.75 | BU106: 1007661.562 | BV106: 960804.25 | BW106: 907919.375 | BX106: 852583.875 | BY106: 839701.5625 | BZ106: 785292.8125 | CA106: 738619.25 | CB106: 716812.3125 | CC106: 686203.3125 | CD106: 677676.5625 | CE106: 640970.625 | CF106: 602410.3125 | CG106: 569253.875 | CH106: 498226.2188 | CI106: 457836.1875 | CJ106: 423896.8125 | CK106: 376571.0312 | CL106: 334588.875 | CM106: 303213.3438 | CN106: 253853.1719 | CO106: 198973.3906 | CP106: 169789.9531 | CQ106: 136650.8125 | CR106: 106363.0781 | CS106: 83800.22656 | CT106: 64694.92969 | CU106: 47020.78906 | CV106: 34204.5 | CW106: 23183.25977 | CX106: 16040.87012 | CY106: 10606.99023 | CZ106: 6852.009766 | DA106: 4253.819824 | DB106: 6115.179688
B107: HMD | C107: M | D107: 2008 | E107: 148581888 | F107: 2115316 | G107: 2069706.375 | H107: 2038739.625 | I107: 2042533.375 | J107: 2055120.625 | K107: 2047347.25 | L107: 2049419 | M107: 2039463.375 | N107: 1993117.375 | O107: 1998320.75 | P107: 2088521.25 | Q107: 2086880.5 | R107: 2137564.25 | S107: 2153081.25 | T107: 2168423.5 | U107: 2227204.5 | V107: 2274957.5 | W107: 2314698.75 | X107: 2308768.5 | Y107: 2245576.25 | Z107: 2189152.75 | AA107: 2180651.25 | AB107: 2172820.5 | AC107: 2147241.25 | AD107: 2134620.75 | AE107: 2155938.75 | AF107: 2114962.25 | AG107: 2115101.5 | AH107: 2058427.25 | AI107: 1967126 | AJ107: 1985294 | AK107: 1893897.25 | AL107: 1930653.5 | AM107: 1922583 | AN107: 1912843.25 | AO107: 1997023.75 | AP107: 2089104.75 | AQ107: 2158663.25 | AR107: 2126410 | AS107: 2049039.875 | AT107: 2021466.125 | AU107: 2060984.125 | AV107: 2161545.75 | AW107: 2247381.5 | AX107: 2233464 | AY107: 2225715.5 | AZ107: 2256051 | BA107: 2298996.5 | BB107: 2261428.5 | BC107: 2218586.25 | BD107: 2183692.25 | BE107: 2147446 | BF107: 2095931.625 | BG107: 2064195.875 | BH107: 1980758 | BI107: 1886510.875 | BJ107: 1847406 | BK107: 1810701.5 | BL107: 1770415.375 | BM107: 1714009.5 | BN107: 1720035.75 | BO107: 1559474.125 | BP107: 1321762 | BQ107: 1303655.875 | BR107: 1294239.125 | BS107: 1229541.375 | BT107: 1100406 | BU107: 1038739.125 | BV107: 988960.25 | BW107: 938700.0625 | BX107: 879313.1875 | BY107: 840981.375 | BZ107: 811345.8125 | CA107: 763656.625 | CB107: 711082 | CC107: 681358.4375 | CD107: 666526.8125 | CE107: 644014.3125 | CF107: 610493.1875 | CG107: 568788.875 | CH107: 511934.8438 | CI107: 464397 | CJ107: 423507.9375 | CK107: 389134 | CL107: 342313.75 | CM107: 300868.75 | CN107: 269347.5938 | CO107: 222583.6562 | CP107: 171904.1562 | CQ107: 144412.2969 | CR107: 114013.9531 | CS107: 87077.21875 | CT107: 66916.11719 | CU107: 50557.16016 | CV107: 35764.87891 | CW107: 25152.40039 | CX107: 16644.43945 | CY107: 11276.2002 | CZ107: 7221.640137 | DA107: 4519.120117 | DB107: 6287.100098
B108: HMD | C108: M | D108: 2009 | E108: 149949408 | F108: 2077042.375 | G108: 2087996.5 | H108: 2072070.5 | I108: 2048131.875 | J108: 2064255 | K108: 2067467.375 | L108: 2043051.875 | M108: 2062952.375 | N108: 2049485.375 | O108: 2021651 | P108: 2103905 | Q108: 2076492.875 | R108: 2114264.5 | S108: 2141329.5 | T108: 2148978.5 | U108: 2201433 | V108: 2253551.25 | W108: 2286512 | X108: 2341902.25 | Y108: 2313563.25 | Z108: 2222591.5 | AA108: 2188821.5 | AB108: 2163517.5 | AC108: 2165318.25 | AD108: 2142743.25 | AE108: 2148627.5 | AF108: 2121081 | AG108: 2127974.5 | AH108: 2117827.75 | AI108: 2044875.875 | AJ108: 2038274.125 | AK108: 1934373.25 | AL108: 1934002.875 | AM108: 1929848.75 | AN108: 1925468.5 | AO108: 1932517.25 | AP108: 1989518.875 | AQ108: 2078116.375 | AR108: 2162786.5 | AS108: 2134476.75 | AT108: 2042920 | AU108: 2031914 | AV108: 2059327.875 | AW108: 2163679.25 | AX108: 2225740 | AY108: 2222770.25 | AZ108: 2239419.5 | BA108: 2261370.75 | BB108: 2283329.5 | BC108: 2267970 | BD108: 2193769 | BE108: 2205025.5 | BF108: 2125618.75 | BG108: 2103280.25 | BH108: 2063801.375 | BI108: 1944271.375 | BJ108: 1899016.375 | BK108: 1829230 | BL108: 1800650.25 | BM108: 1750494.25 | BN108: 1676013.75 | BO108: 1738722 | BP108: 1545030.5 | BQ108: 1313321.75 | BR108: 1279752.375 | BS108: 1280385.25 | BT108: 1212435.125 | BU108: 1087343.75 | BV108: 1019604.25 | BW108: 966026.6875 | BX108: 908254.6875 | BY108: 869015.75 | BZ108: 812181.875 | CA108: 789738.125 | CB108: 735191.3125 | CC108: 675053.3125 | CD108: 663604.625 | CE108: 633480.75 | CF108: 614212.625 | CG108: 576902.75 | CH108: 512530.7188 | CI108: 477558.9375 | CJ108: 430181.6562 | CK108: 388879.0625 | CL108: 353605.0312 | CM108: 307925.875 | CN108: 267440 | CO108: 236247.7969 | CP108: 192328.125 | CQ108: 145787 | CR108: 120246.7812 | CS108: 93150.71875 | CT108: 69467.25 | CU108: 52266.91016 | CV108: 38257.12891 | CW108: 26338.09961 | CX108: 18132.32031 | CY108: 11614.5 | CZ108: 7597.879883 | DA108: 4741.950195 | DB108: 6482.889648
B109: HMD | C109: M | D109: 2010 | E109: 151237824 | F109: 2031431.5 | G109: 2050516 | H109: 2093174.5 | I109: 2078821.125 | J109: 2073566.5 | K109: 2077627.5 | L109: 2065530.625 | M109: 2055862.5 | N109: 2071102.75 | O109: 2074165.25 | P109: 2127878.25 | Q109: 2092665.375 | R109: 2102048.5 | S109: 2118009.5 | T109: 2134532.5 | U109: 2177765.75 | V109: 2229329 | W109: 2263126 | X109: 2315792.75 | Y109: 2347094 | Z109: 2286980.75 | AA109: 2221024.25 | AB109: 2172433.75 | AC109: 2156216.25 | AD109: 2162206.75 | AE109: 2156574 | AF109: 2112781.5 | AG109: 2133398.5 | AH109: 2130591.25 | AI109: 2103004.25 | AJ109: 2119295.25 | AK109: 1988289.875 | AL109: 1973540.125 | AM109: 1934379.75 | AN109: 1932747.875 | AO109: 1944115.625 | AP109: 1925044.75 | AQ109: 1979373 | AR109: 2081810.5 | AS109: 2173104.25 | AT109: 2126692.75 | AU109: 2053205.625 | AV109: 2030388.625 | AW109: 2061109 | AX109: 2143523.25 | AY109: 2214301 | AZ109: 2235696.75 | BA109: 2244636 | BB109: 2244896 | BC109: 2290667.25 | BD109: 2240600.25 | BE109: 2214931.75 | BF109: 2181673.5 | BG109: 2131873.75 | BH109: 2102589 | BI109: 2025029.25 | BJ109: 1956078 | BK109: 1880633.25 | BL109: 1817884.75 | BM109: 1781433.875 | BN109: 1710006.625 | BO109: 1692891.125 | BP109: 1723079.875 | BQ109: 1534212.25 | BR109: 1290208.375 | BS109: 1264992.375 | BT109: 1262723.375 | BU109: 1198079.875 | BV109: 1067698.75 | BW109: 996453.25 | BX109: 934408.375 | BY109: 897632.25 | BZ109: 839654.25 | CA109: 790565.125 | CB109: 761150.5625 | CC109: 698122.625 | CD109: 658228.6875 | CE109: 631127.25 | CF109: 604694.75 | CG109: 580873.3125 | CH109: 510311.1562 | CI109: 479600.9375 | CJ109: 443613.0312 | CK109: 396143.2188 | CL109: 354982.6562 | CM109: 319400.5625 | CN109: 275003.625 | CO109: 235595.3906 | CP109: 205730.3594 | CQ109: 164457.5938 | CR109: 122434.1484 | CS109: 99070.71875 | CT109: 75070.59375 | CU109: 54476.60156 | CV109: 39988.12891 | CW109: 28606.73047 | CX109: 19058.03906 | CY109: 12755.5498 | CZ109: 7956.970215 | DA109: 5121.459961 | DB109: 6858.259277
B110: HMD | C110: M | D110: 2011 | E110: 152440144 | F110: 2023530.75 | G110: 2022949.625 | H110: 2057648.875 | I110: 2097710.25 | J110: 2095291.5 | K110: 2082992.125 | L110: 2080613.75 | M110: 2073813.625 | N110: 2061262.125 | O110: 2083077.125 | P110: 2126952.5 | Q110: 2125963.75 | R110: 2106675.25 | S110: 2106889.75 | T110: 2116698.5 | U110: 2149740 | V110: 2196731.25 | W110: 2239460.25 | X110: 2285783.5 | Y110: 2327714.25 | Z110: 2340460.5 | AA110: 2292981.75 | AB110: 2220363 | AC110: 2174885.25 | AD110: 2161067.25 | AE110: 2173527.5 | AF110: 2143644.25 | AG110: 2122210 | AH110: 2138245.75 | AI110: 2126536.25 | AJ110: 2142244.75 | AK110: 2099177.75 | AL110: 2007953.125 | AM110: 1976365.875 | AN110: 1937262.625 | AO110: 1942382.125 | AP110: 1941428.25 | AQ110: 1920938.125 | AR110: 1980760.625 | AS110: 2087693.625 | AT110: 2167763 | AU110: 2130021 | AV110: 2051067.875 | AW110: 2029366.375 | AX110: 2050419.25 | AY110: 2135132 | AZ110: 2216903 | BA110: 2234463.75 | BB110: 2232101 | BC110: 2243759.25 | BD110: 2270930.25 | BE110: 2244231.25 | BF110: 2196913 | BG110: 2176881.75 | BH110: 2123687 | BI110: 2075337.375 | BJ110: 2021486.625 | BK110: 1938628.625 | BL110: 1865399.375 | BM110: 1799896.125 | BN110: 1751401.875 | BO110: 1707223 | BP110: 1675223.75 | BQ110: 1705508.5 | BR110: 1511606.125 | BS110: 1272662.125 | BT110: 1246227.25 | BU110: 1244189.25 | BV110: 1176134.625 | BW110: 1045050.188 | BX110: 969351.9375 | BY110: 917285 | BZ110: 871141.625 | CA110: 816347.375 | CB110: 764328.0625 | CC110: 729277.9375 | CD110: 676056.5 | CE110: 628698.0625 | CF110: 602539.3125 | CG110: 573252.75 | CH110: 532622.25 | CI110: 477846.4375 | CJ110: 445608.5625 | CK110: 408971.5938 | CL110: 362286.9062 | CM110: 320232.1875 | CN110: 285244.6562 | CO110: 242848.9062 | CP110: 204688.2656 | CQ110: 175830.625 | CR110: 138115.8438 | CS110: 100632.6797 | CT110: 79868.35156 | CU110: 58954.46094 | CV110: 41491.21094 | CW110: 29951.41016 | CX110: 20603.7207 | CY110: 13376.63965 | CZ110: 8800.269531 | DA110: 5287.720215 | DB110: 7347.459473
B111: HMD | C111: M | D111: 2012 | E111: 153582576 | F111: 2018143.625 | G111: 2030569.625 | H111: 2029408.5 | I111: 2063175.75 | J111: 2102717.5 | K111: 2100377 | L111: 2088156.375 | M111: 2085532.625 | N111: 2078651.5 | O111: 2066106.75 | P111: 2087939.75 | Q111: 2131875.25 | R111: 2130909 | S111: 2111850.25 | T111: 2112475.75 | U111: 2122978.5 | V111: 2157866.25 | W111: 2207809 | X111: 2252567.5 | Y111: 2300562.25 | Z111: 2342974.5 | AA111: 2356149.5 | AB111: 2307395.25 | AC111: 2233670.75 | AD111: 2187121.5 | AE111: 2172411.75 | AF111: 2183986 | AG111: 2153097.75 | AH111: 2130754.25 | AI111: 2146173.25 | AJ111: 2133384.25 | AK111: 2148084 | AL111: 2104117.5 | AM111: 2012124.5 | AN111: 1979882.75 | AO111: 1940276.75 | AP111: 1944369.375 | AQ111: 1942785.875 | AR111: 1921588.5 | AS111: 1980880.625 | AT111: 2086614 | AU111: 2165589.5 | AV111: 2127386 | AW111: 2047896.25 | AX111: 2025669.75 | AY111: 2045779.5 | AZ111: 2129542.5 | BA111: 2210149.75 | BB111: 2226333.25 | BC111: 2222861.5 | BD111: 2233388.25 | BE111: 2259173.25 | BF111: 2231480.5 | BG111: 2183137 | BH111: 2162160.5 | BI111: 2107934.25 | BJ111: 2058839 | BK111: 2004222 | BL111: 1920868.5 | BM111: 1847106.75 | BN111: 1781046.75 | BO111: 1732087.75 | BP111: 1687219.5 | BQ111: 1654013.125 | BR111: 1682579.25 | BS111: 1489774 | BT111: 1252822.375 | BU111: 1225013 | BV111: 1220934.375 | BW111: 1152420.75 | BX111: 1022451.375 | BY111: 946678.5 | BZ111: 893889.625 | CA111: 846771.5625 | CB111: 791330.75 | CC111: 738667.3125 | CD111: 702399.8125 | CE111: 648659.4375 | CF111: 600639 | CG111: 572920.3125 | CH111: 522666.9062 | CI111: 499062.625 | CJ111: 444339.3438 | CK111: 410957.3438 | CL111: 373552.7812 | CM111: 327790.7188 | CN111: 286242.5625 | CO111: 251909.0469 | CP111: 211088.4375 | CQ111: 175547.4844 | CR111: 147793.9219 | CS111: 113627.9297 | CT111: 80885.14844 | CU111: 62716 | CV111: 45154.37891 | CW111: 30954.39062 | CX111: 21704.75977 | CY111: 14365.23047 | CZ111: 9257.320312 | DA111: 5814.419922 | DB111: 7787.430176
B112: HMD | C112: M | D112: 2013 | E112: 154730832 | F112: 2008810.75 | G112: 2025768.75 | H112: 2037469.5 | I112: 2035187.375 | J112: 2068456.375 | K112: 2107943.75 | L112: 2105571.25 | M112: 2093133.25 | N112: 2090415.75 | O112: 2083620.75 | P112: 2071074.375 | Q112: 2092993.375 | R112: 2136971.75 | S112: 2136157.25 | T112: 2117531 | U112: 2118927.75 | V112: 2131188.5 | W112: 2168821.25 | X112: 2220912 | Y112: 2266948 | Z112: 2315495.75 | AA112: 2359316.25 | AB112: 2372754.5 | AC112: 2322762.25 | AD112: 2247561 | AE112: 2200046.75 | AF112: 2184581 | AG112: 2195272.25 | AH112: 2163054.25 | AI112: 2140247.25 | AJ112: 2154604 | AK112: 2140537.5 | AL112: 2154360.5 | AM112: 2109091.25 | AN112: 2016352 | AO112: 1983556 | AP112: 1942677.625 | AQ112: 1946224.625 | AR112: 1943989 | AS112: 1922202.875 | AT112: 1980603.5 | AU112: 2085521.875 | AV112: 2163448 | AW112: 2124245.5 | AX112: 2044306.125 | AY112: 2021331.375 | AZ112: 2040627.125 | BA112: 2123327.25 | BB112: 2202412.75 | BC112: 2217417 | BD112: 2212707.75 | BE112: 2221682.25 | BF112: 2246292 | BG112: 2217691.5 | BH112: 2168584.75 | BI112: 2146284.5 | BJ112: 2091002.875 | BK112: 2041195.625 | BL112: 1985863.5 | BM112: 1901918.5 | BN112: 1827652.875 | BO112: 1761024.5 | BP112: 1711361.75 | BQ112: 1665649.625 | BR112: 1631278.875 | BS112: 1658135.25 | BT112: 1466500.375 | BU112: 1231559.5 | BV112: 1202335.875 | BW112: 1196403 | BX112: 1127573.875 | BY112: 998641.6875 | BZ112: 922643.125 | CA112: 869035.375 | CB112: 820996.625 | CC112: 764935.5625 | CD112: 711641 | CE112: 674190.1875 | CF112: 619899.625 | CG112: 571295.75 | CH112: 532281.9375 | CI112: 490691.9375 | CJ112: 465020.9375 | CK112: 410413.6875 | CL112: 376086.0938 | CM112: 338513.5312 | CN112: 293647.5625 | CO112: 253183.9375 | CP112: 219457.4844 | CQ112: 180990.5625 | CR112: 147798.8438 | CS112: 121937.8906 | CT112: 91843.21875 | CU112: 63982.82031 | CV112: 47955.78906 | CW112: 33623.46094 | CX112: 22347.7793 | CY112: 15186.25 | CZ112: 9744.870117 | DA112: 6046.529785 | DB112: 8333.000977
B113: HMD | C113: M | D113: 2014 | E113: 155865664 | F113: 2017217.25 | G113: 2017443.375 | H113: 2033647.625 | I113: 2044156.25 | J113: 2041322 | K113: 2074287.625 | L113: 2113595.25 | M113: 2111125 | N113: 2098538 | O113: 2095825.75 | P113: 2088954.625 | Q113: 2076527.25 | R113: 2098494.75 | S113: 2142670 | T113: 2142496.25 | U113: 2124877 | V113: 2127881.75 | W113: 2142755.75 | X113: 2182779.5 | Y113: 2236154.75 | Z113: 2281054.25 | AA113: 2329892.75 | AB113: 2375189.25 | AC113: 2388436 | AD113: 2336780.25 | AE113: 2260219 | AF113: 2212158.25 | AG113: 2196348.75 | AH113: 2205775 | AI113: 2172974.5 | AJ113: 2149427.5 | AK113: 2162428.5 | AL113: 2147411.25 | AM113: 2159916.25 | AN113: 2113519.75 | AO113: 2020024.875 | AP113: 1986048.375 | AQ113: 1944604 | AR113: 1947617.375 | AS113: 1945042.875 | AT113: 1922380.75 | AU113: 1979965.25 | AV113: 2083913.375 | AW113: 2160579.5 | AX113: 2120672.75 | AY113: 2039868.75 | AZ113: 2016151.75 | BA113: 2034831.125 | BB113: 2116087 | BC113: 2193793.75 | BD113: 2207316.25 | BE113: 2201160 | BF113: 2209111.25 | BG113: 2232514 | BH113: 2202884 | BI113: 2152573.75 | BJ113: 2128859 | BK113: 2072868 | BL113: 2022156.25 | BM113: 1966059.25 | BN113: 1881638.5 | BO113: 1806689 | BP113: 1739373.5 | BQ113: 1688879 | BR113: 1642528.375 | BS113: 1607274.125 | BT113: 1632274.75 | BU113: 1441837.5 | BV113: 1208950.25 | BW113: 1178362.375 | BX113: 1170526.5 | BY113: 1101488.375 | BZ113: 973402.25 | CA113: 897175.6875 | CB113: 842790.5625 | CC113: 793821.1875 | CD113: 737223.5 | CE113: 683342.875 | CF113: 644624.75 | CG113: 589881 | CH113: 523631.5312 | CI113: 499636.0625 | CJ113: 457068.5 | CK113: 429894.8438 | CL113: 375875.7188 | CM113: 341066.0312 | CN113: 303268.9688 | CO113: 259571.5625 | CP113: 220521.5625 | CQ113: 188070.6875 | CR113: 152408.9844 | CS113: 122045.9766 | CT113: 98698.20312 | CU113: 71940.25 | CV113: 49046.25 | CW113: 35888.91016 | CX113: 24323.7793 | CY113: 15671.2998 | CZ113: 10392.90039 | DA113: 6417.569824 | DB113: 8779.189453
B114: HMD | C114: M | D114: 2015 | E114: 157068592 | F114: 2031184 | G114: 2026456.875 | H114: 2026276.625 | I114: 2041389.375 | J114: 2051228.625 | K114: 2047982.5 | L114: 2080654.125 | M114: 2119881.5 | N114: 2117279 | O114: 2104686 | P114: 2101877.25 | Q114: 2095021.875 | R114: 2082602 | S114: 2104825.5 | T114: 2149769 | U114: 2150759.25 | V114: 2134554 | W114: 2140081.75 | X114: 2157794.75 | Y114: 2199429.75 | Z114: 2251233.5 | AA114: 2296241.5 | AB114: 2346552.5 | AC114: 2392368.75 | AD114: 2404157.25 | AE114: 2351233.5 | AF114: 2274195 | AG114: 2225780.25 | AH114: 2209258.5 | AI114: 2217885.25 | AJ114: 2184109 | AK114: 2159518.75 | AL114: 2171403.5 | AM114: 2154971.5 | AN114: 2166218.75 | AO114: 2118582.75 | AP114: 2023901.75 | AQ114: 1989218.375 | AR114: 1947097.25 | AS114: 1949605.125 | AT114: 1946142.5 | AU114: 1922623.875 | AV114: 1979415.625 | AW114: 2082309.375 | AX114: 2157937.5 | AY114: 2116741 | AZ114: 2035072.5 | BA114: 2010930.25 | BB114: 2028453.125 | BC114: 2108330.5 | BD114: 2184305.25 | BE114: 2196284.25 | BF114: 2189235.25 | BG114: 2195823.5 | BH114: 2217629.75 | BI114: 2186814.5 | BJ114: 2135261.5 | BK114: 2110464.25 | BL114: 2053569.625 | BM114: 2001995.5 | BN114: 1945066.75 | BO114: 1859794.875 | BP114: 1784310.625 | BQ114: 1716297.5 | BR114: 1665359.25 | BS114: 1618464.875 | BT114: 1582136.625 | BU114: 1604864 | BV114: 1415682.125 | BW114: 1185041.5 | BX114: 1153026.875 | BY114: 1143410.75 | BZ114: 1073687.25 | CA114: 946544.9375 | CB114: 870171.4375 | CC114: 815025.375 | CD114: 765226.3125 | CE114: 708108.875 | CF114: 653563.25 | CG114: 613641.25 | CH114: 558484.6875 | CI114: 492211.3125 | CJ114: 466523.375 | CK114: 423085.875 | CL114: 394259.9375 | CM114: 341618.6562 | CN114: 306512.375 | CO114: 268927.8438 | CP114: 226825.3125 | CQ114: 189358.0156 | CR114: 159178.8438 | CS114: 126216.0938 | CT114: 98839.03125 | CU114: 77968.60938 | CV114: 55468.51172 | CW114: 36882.25 | CX114: 26235.15039 | CY114: 17004.41992 | CZ114: 10709.16992 | DA114: 6882.759766 | DB114: 9344.550781
B115: HMD | C115: M | D115: 2016 | E115: 158263904 | F115: 2031884 | G115: 2040671.625 | H115: 2035824 | I115: 2034717.375 | J115: 2049080.125 | K115: 2058565 | L115: 2055011.875 | M115: 2087486.375 | N115: 2126604.75 | O115: 2124016 | P115: 2111385.75 | Q115: 2108438 | R115: 2101635.25 | S115: 2089498.25 | T115: 2112302.5 | U115: 2158345.25 | V115: 2160774.25 | W115: 2147129.5 | X115: 2155577 | Y115: 2174119.25 | Z115: 2214313.75 | AA115: 2266410.75 | AB115: 2313283.5 | AC115: 2364024.5 | AD115: 2408370 | AE115: 2419538.75 | AF115: 2365856.5 | AG115: 2288432.5 | AH115: 2239417.5 | AI115: 2222294.75 | AJ115: 2229917.25 | AK115: 2195126.5 | AL115: 2169596.25 | AM115: 2180143.5 | AN115: 2162328.25 | AO115: 2172166.25 | AP115: 2123097.5 | AQ115: 2027574.25 | AR115: 1992155.375 | AS115: 1949302.125 | AT115: 1950913.5 | AU115: 1946671.125 | AV115: 1922584.875 | AW115: 1978422.875 | AX115: 2080354.375 | AY115: 2154197.5 | AZ115: 2112068.75 | BA115: 2029944.625 | BB115: 2004838.5 | BC115: 2021305.375 | BD115: 2099380.5 | BE115: 2173759.75 | BF115: 2184612 | BG115: 2176133.5 | BH115: 2181119.25 | BI115: 2201467.25 | BJ115: 2169622.75 | BK115: 2116973.75 | BL115: 2090958 | BM115: 2032982.625 | BN115: 1980473 | BO115: 1922458.75 | BP115: 1836761.5 | BQ115: 1760580.75 | BR115: 1691803.625 | BS115: 1640526.125 | BT115: 1592947.375 | BU115: 1555421.625 | BV115: 1575884.25 | BW115: 1387875.25 | BX115: 1159639.25 | BY115: 1126379.375 | BZ115: 1114652.125 | CA115: 1044247.562 | CB115: 918229.5625 | CC115: 841707.6875 | CD115: 785856.6875 | CE115: 735208 | CF115: 677486.1875 | CG115: 622372.1875 | CH115: 581284.375 | CI115: 525807.875 | CJ115: 459188.1562 | CK115: 432005.1875 | CL115: 388391.4688 | CM115: 358125.8438 | CN115: 306881.875 | CO115: 271608.9375 | CP115: 234618.0469 | CQ115: 194982.5312 | CR115: 159884.9844 | CS115: 131469.7344 | CT115: 102119.0391 | CU115: 77769.10938 | CV115: 59840.39062 | CW115: 41303.53125 | CX115: 26711.53906 | CY115: 18362.59961 | CZ115: 11536.04004 | DA115: 6982.589844 | DB115: 9799.149414
B116: HMD | C116: M | D116: 2017 | E116: 159374544 | F116: 2005797.125 | G116: 2041243.5 | H116: 2049790.25 | I116: 2044254.25 | J116: 2042552.5 | K116: 2056676 | L116: 2065886 | M116: 2061951.375 | N116: 2094297.375 | O116: 2133482.5 | P116: 2130856.75 | Q116: 2117949.5 | R116: 2115067.75 | S116: 2108574 | T116: 2096854.625 | U116: 2120660 | V116: 2168082 | W116: 2173148.5 | X116: 2161931.25 | Y116: 2170119.25 | Z116: 2186499 | AA116: 2226994.25 | AB116: 2281019.75 | AC116: 2328108.5 | AD116: 2377583.75 | AE116: 2421548.75 | AF116: 2432309.5 | AG116: 2378339.75 | AH116: 2300136.25 | AI116: 2250694 | AJ116: 2232878.5 | AK116: 2239510.5 | AL116: 2203946.5 | AM116: 2177299.25 | AN116: 2186423 | AO116: 2167123.75 | AP116: 2175640.5 | AQ116: 2125804.5 | AR116: 2029615.75 | AS116: 1993436 | AT116: 1949665.625 | AU116: 1950664.75 | AV116: 1946031 | AW116: 1921142.875 | AX116: 1976225.75 | AY116: 2076512.875 | AZ116: 2149257.25 | BA116: 2106377.5 | BB116: 2023380.625 | BC116: 1997538.375 | BD116: 2012497.25 | BE116: 2089203.875 | BF116: 2162227.25 | BG116: 2171305.75 | BH116: 2161546.5 | BI116: 2164941.75 | BJ116: 2184128.75 | BK116: 2151236.5 | BL116: 2097367 | BM116: 2069743.25 | BN116: 2010708.625 | BO116: 1957252.875 | BP116: 1898540.625 | BQ116: 1812130 | BR116: 1735093 | BS116: 1665970 | BT116: 1614289.125 | BU116: 1566014.75 | BV116: 1527104.875 | BW116: 1544980.5 | BX116: 1358522.625 | BY116: 1133159.25 | BZ116: 1098501.875 | CA116: 1084544.5 | CB116: 1013549.375 | CC116: 888661.3125 | CD116: 812015 | CE116: 755483.0625 | CF116: 703908.25 | CG116: 645661.5625 | CH116: 590069.6875 | CI116: 547824.0625 | CJ116: 492075.5 | CK116: 426285.875 | CL116: 397349.4062 | CM116: 354103.5 | CN116: 322497.9062 | CO116: 273008.9688 | CP116: 238000.625 | CQ116: 202251.8125 | CR116: 164827.8438 | CS116: 132587.6875 | CT116: 106663.0312 | CU116: 81046.57812 | CV116: 60090.87891 | CW116: 45015.03125 | CX116: 30342.10938 | CY116: 18846 | CZ116: 12609.26953 | DA116: 7579.689941 | DB116: 10320.2793
B117: HMD | C117: M | D117: 2018 | E117: 160317536 | F117: 1970664.625 | G117: 2014201 | H117: 2049340.125 | I117: 2057282.875 | J117: 2051291 | K117: 2049387 | L117: 2063287.5 | M117: 2072072.875 | N117: 2068057 | O117: 2100587.5 | P117: 2139726.25 | Q117: 2136733.75 | R117: 2123807.75 | S117: 2121234.25 | T117: 2115123 | U117: 2104282.75 | V117: 2129251.75 | W117: 2179030.75 | X117: 2186238.5 | Y117: 2174230 | Z117: 2179433.75 | AA117: 2195978.75 | AB117: 2237693 | AC117: 2291763.5 | AD117: 2338109.5 | AE117: 2386820.75 | AF117: 2430972.5 | AG117: 2441513.75 | AH117: 2386791 | AI117: 2308300.75 | AJ117: 2258163.75 | AK117: 2239803.5 | AL117: 2245820 | AM117: 2209165.25 | AN117: 2181295.75 | AO117: 2188862.5 | AP117: 2168725.75 | AQ117: 2176748.25 | AR117: 2126045.5 | AS117: 2029228.5 | AT117: 1992189.5 | AU117: 1948071.25 | AV117: 1948685.75 | AW117: 1943473.5 | AX117: 1918035 | AY117: 1971904 | AZ117: 2070922.375 | BA117: 2142603.75 | BB117: 2098847.75 | BC117: 2015241.5 | BD117: 1988342.5 | BE117: 2002258.625 | BF117: 2077744.625 | BG117: 2148969.25 | BH117: 2156544.25 | BI117: 2145198 | BJ117: 2147308.25 | BK117: 2165287.5 | BL117: 2131086.5 | BM117: 2075646 | BN117: 2046617 | BO117: 1986640.375 | BP117: 1932375.375 | BQ117: 1872563 | BR117: 1785444 | BS117: 1707921.875 | BT117: 1638331.625 | BU117: 1586170.625 | BV117: 1537039.25 | BW117: 1496741.5 | BX117: 1512164.125 | BY117: 1327545.875 | BZ117: 1104902.125 | CA117: 1068753.5 | CB117: 1052560.625 | CC117: 980848.5625 | CD117: 857143.5 | CE117: 780483.4375 | CF117: 723234.125 | CG117: 670771.3125 | CH117: 612102.5625 | CI117: 556043.4375 | CJ117: 512686.5625 | CK117: 456886.875 | CL117: 391798.6875 | CM117: 361897.1875 | CN117: 318901.3438 | CO117: 286490.5625 | CP117: 238972.8125 | CQ117: 204965.5312 | CR117: 170995.6875 | CS117: 136729.2188 | CT117: 107511.1094 | CU117: 84292.61719 | CV117: 62597.41016 | CW117: 45073.92969 | CX117: 32706.25 | CY117: 21284.5293 | CZ117: 12917.62012 | DA117: 8208.990234 | DB117: 10833.51855
B118: HMD | C118: M | D118: 2019 | E118: 161115296 | F118: 1938341.875 | G118: 1978222.875 | H118: 2021317.25 | I118: 2055756.5 | J118: 2063142.5 | K118: 2056929.625 | L118: 2054808.125 | M118: 2068283.875 | N118: 2076963 | O118: 2073053.375 | P118: 2105497.75 | Q118: 2144391.25 | R118: 2141378.5 | S118: 2128710.25 | T118: 2126529.75 | U118: 2121203 | V118: 2111460 | W118: 2138609.5 | X118: 2190325.75 | Y118: 2196306.75 | Z118: 2181791.25 | AA118: 2186994 | AB118: 2204482.25 | AC118: 2246426.25 | AD118: 2299703.25 | AE118: 2345048.25 | AF118: 2393654.25 | AG118: 2437604.75 | AH118: 2447400.5 | AI118: 2392372.25 | AJ118: 2312956.75 | AK118: 2262320.25 | AL118: 2243737.75 | AM118: 2248678 | AN118: 2210948.25 | AO118: 2181623.75 | AP118: 2188572.25 | AQ118: 2168060.25 | AR118: 2175204.25 | AS118: 2123828.75 | AT118: 2026336 | AU118: 1988982 | AV118: 1944698.375 | AW118: 1944941 | AX118: 1939198.625 | AY118: 1912790.375 | AZ118: 1965541.25 | BA118: 2063631.625 | BB118: 2134184.5 | BC118: 2089608 | BD118: 2005346.5 | BE118: 1977702 | BF118: 1990683.5 | BG118: 2064662.25 | BH118: 2133945.5 | BI118: 2139898.5 | BJ118: 2127217.5 | BK118: 2128124.25 | BL118: 2144578.75 | BM118: 2108807.5 | BN118: 2052211.875 | BO118: 2021787.125 | BP118: 1960764.25 | BQ118: 1905329.5 | BR118: 1844567.375 | BS118: 1757043.75 | BT118: 1678935.125 | BU118: 1608975.875 | BV118: 1556456.5 | BW118: 1506175.25 | BX118: 1464515 | BY118: 1478121.375 | BZ118: 1294758.5 | CA118: 1075092.375 | CB118: 1037511.938 | CC118: 1018964.438 | CD118: 946443.4375 | CE118: 824087.875 | CF118: 747464.75 | CG118: 689535.5625 | CH118: 636272.1875 | CI118: 577159.3125 | CJ118: 520767.0625 | CK118: 476536.0625 | CL118: 421013.9688 | CM118: 357273.125 | CN118: 326418.5312 | CO118: 284347.75 | CP118: 251373.9531 | CQ118: 206265.375 | CR118: 174020.2188 | CS118: 142182.5469 | CT118: 111220.3203 | CU118: 85300.45312 | CV118: 65183.19922 | CW118: 47131.25 | CX118: 32913.01953 | CY118: 23016.5293 | CZ118: 14455.01953 | DA118: 8513.740234 | DB118: 11656.51074
B119: HMD | C119: M | D119: 2020 | E119: 162877264 | F119: 1907094 | G119: 1942807.125 | H119: 1985102.5 | I119: 2030622.75 | J119: 2065884.5 | K119: 2072199.625 | L119: 2067951.75 | M119: 2063975.125 | N119: 2079370.25 | O119: 2089995.5 | P119: 2109932 | Q119: 2165621.75 | R119: 2213733.5 | S119: 2202851 | T119: 2177660.75 | U119: 2167387.25 | V119: 2165404.5 | W119: 2152827.5 | X119: 2177604.25 | Y119: 2217920 | Z119: 2202034 | AA119: 2185009 | AB119: 2185608.5 | AC119: 2199294.5 | AD119: 2235650.5 | AE119: 2279478.75 | AF119: 2323661 | AG119: 2369634.25 | AH119: 2408505 | AI119: 2417819 | AJ119: 2370992.25 | AK119: 2308447.25 | AL119: 2267448.5 | AM119: 2258930.5 | AN119: 2265628.5 | AO119: 2222407.5 | AP119: 2208821 | AQ119: 2220002.5 | AR119: 2201450 | AS119: 2207265.25 | AT119: 2127001 | AU119: 2056041.375 | AV119: 2016866.25 | AW119: 1971495.5 | AX119: 1966871.5 | AY119: 1940950.875 | AZ119: 1930938 | BA119: 1986272.125 | BB119: 2090870.375 | BC119: 2171404.25 | BD119: 2093491.125 | BE119: 2027743.25 | BF119: 2000262.375 | BG119: 2016755.875 | BH119: 2087879.375 | BI119: 2134810 | BJ119: 2153515.75 | BK119: 2144876.25 | BL119: 2154539.25 | BM119: 2158994 | BN119: 2093937.125 | BO119: 2057219.75 | BP119: 2026980.625 | BQ119: 1961771.25 | BR119: 1898185.625 | BS119: 1824317.5 | BT119: 1746626.25 | BU119: 1667319.875 | BV119: 1600651.875 | BW119: 1533892.25 | BX119: 1466785.625 | BY119: 1432410.5 | BZ119: 1441066.5 | CA119: 1278221.125 | CB119: 1035684.188 | CC119: 986993.375 | CD119: 972655 | CE119: 898914.5 | CF119: 777977.8125 | CG119: 701930 | CH119: 638071.3125 | CI119: 587216.875 | CJ119: 528592.375 | CK119: 472463.875 | CL119: 428169.8125 | CM119: 372997 | CN119: 323326.75 | CO119: 291276.0625 | CP119: 250321.375 | CQ119: 217824.6094 | CR119: 175855.2344 | CS119: 145558.2344 | CT119: 116165.7188 | CU119: 88615.74219 | CV119: 66438.13281 | CW119: 49194.08984 | CX119: 34627.37891 | CY119: 23425.35938 | CZ119: 15830.03027 | DA119: 9641.360352 | DB119: 12506.0498
B120: HMD | C120: M | D120: 2021 | E120: 164326048 | F120: 1860243.75 | G120: 1909180.75 | H120: 1947840.5 | I120: 1992921.5 | J120: 2039558.5 | K120: 2073797.375 | L120: 2082118.125 | M120: 2076225.875 | N120: 2074226.75 | O120: 2091522.875 | P120: 2125870 | Q120: 2168967.75 | R120: 2233798.75 | S120: 2273906.25 | T120: 2250324 | U120: 2216742.5 | V120: 2209359.75 | W120: 2203750.75 | X120: 2187969.25 | Y120: 2201722.75 | Z120: 2220989 | AA120: 2202077 | AB120: 2179995 | AC120: 2177018.25 | AD120: 2185728.5 | AE120: 2213115.25 | AF120: 2255805 | AG120: 2297393 | AH120: 2338359.75 | AI120: 2376713.75 | AJ120: 2394588.75 | AK120: 2364480.25 | AL120: 2311541.5 | AM120: 2280696.75 | AN120: 2274359.25 | AO120: 2275937.5 | AP120: 2248418.25 | AQ120: 2239050.5 | AR120: 2252266.5 | AS120: 2232403 | AT120: 2209525.75 | AU120: 2155491.75 | AV120: 2082718.875 | AW120: 2042567.5 | AX120: 1992473.875 | AY120: 1968080.25 | AZ120: 1958539.125 | BA120: 1951126.5 | BB120: 2013029.625 | BC120: 2127350.25 | BD120: 2174120.25 | BE120: 2114492 | BF120: 2048996.375 | BG120: 2025220 | BH120: 2039307.5 | BI120: 2088142.375 | BJ120: 2147216 | BK120: 2169398.25 | BL120: 2169331.75 | BM120: 2167039.75 | BN120: 2141732 | BO120: 2096247.75 | BP120: 2059646.125 | BQ120: 2024652 | BR120: 1951127.875 | BS120: 1874459.125 | BT120: 1810105.375 | BU120: 1730995.25 | BV120: 1654625.75 | BW120: 1573980 | BX120: 1491110.875 | BY120: 1431064.25 | BZ120: 1392755.875 | CA120: 1416653.625 | CB120: 1228591.25 | CC120: 981558.625 | CD120: 938223.4375 | CE120: 920353.1875 | CF120: 845510.5 | CG120: 727048.6875 | CH120: 645965.6875 | CI120: 585106.25 | CJ120: 534105.1875 | CK120: 475748.5 | CL120: 420587.8438 | CM120: 375724 | CN120: 323753.0625 | CO120: 284280 | CP120: 251917.3125 | CQ120: 212417.6875 | CR120: 181191.9688 | CS120: 143344.8125 | CT120: 115580.8594 | CU120: 89594.53906 | CV120: 66644.75781 | CW120: 48345.32031 | CX120: 34515.44141 | CY120: 23506.89062 | CZ120: 15358 | DA120: 10037.08984 | DB120: 12702.65039
B121: HMD | C121: M | D121: 2022 | E121: 164703248 | F121: 1852322.625 | G121: 1866208.75 | H121: 1915465.75 | I121: 1953951.25 | J121: 1998843.375 | K121: 2045177.875 | L121: 2079093.125 | M121: 2087161.625 | N121: 2081193.875 | O121: 2079071.375 | P121: 2096118.375 | Q121: 2130465.75 | R121: 2173452.25 | S121: 2237948.75 | T121: 2277923.75 | U121: 2254678.25 | V121: 2221770.25 | W121: 2215812.75 | X121: 2211239.5 | Y121: 2195467 | Z121: 2207978.5 | AA121: 2226775.75 | AB121: 2207977 | AC121: 2186178.25 | AD121: 2183459.75 | AE121: 2192111 | AF121: 2219086.5 | AG121: 2261020.25 | AH121: 2302138.5 | AI121: 2343111.5 | AJ121: 2380986.25 | AK121: 2398129.75 | AL121: 2367508.25 | AM121: 2313836 | AN121: 2282453.25 | AO121: 2275130.75 | AP121: 2275731.75 | AQ121: 2247518.25 | AR121: 2237470 | AS121: 2249627.75 | AT121: 2228749.25 | AU121: 2205090.5 | AV121: 2150801.5 | AW121: 2077778.875 | AX121: 2037092.5 | AY121: 1986425.625 | AZ121: 1961388.875 | BA121: 1950825.875 | BB121: 1942442.125 | BC121: 2002992.5 | BD121: 2115638.25 | BE121: 2160941 | BF121: 2100523.75 | BG121: 2033977.875 | BH121: 2009325.25 | BI121: 2021695 | BJ121: 2068383.625 | BK121: 2125125.25 | BL121: 2145097.25 | BM121: 2143174.5 | BN121: 2138850 | BO121: 2111615.75 | BP121: 2064416.75 | BQ121: 2025940.125 | BR121: 1989287.875 | BS121: 1914758.125 | BT121: 1837418.5 | BU121: 1772296.875 | BV121: 1692353.125 | BW121: 1615248.125 | BX121: 1534675.375 | BY121: 1451594.875 | BZ121: 1389698.25 | CA121: 1348724.25 | CB121: 1367981.125 | CC121: 1182485 | CD121: 940854.6875 | CE121: 895684.0625 | CF121: 874373.625 | CG121: 798953.1875 | CH121: 682692.375 | CI121: 602338.375 | CJ121: 541212.75 | CK121: 489558.375 | CL121: 431713.0625 | CM121: 377470.2812 | CN121: 333233.9688 | CO121: 283385.4688 | CP121: 247751.0938 | CQ121: 215864.9375 | CR121: 179081.4062 | CS121: 149286.7656 | CT121: 115620.75 | CU121: 90809.92188 | CV121: 68658.74219 | CW121: 49684.10938 | CX121: 35004.80859 | CY121: 24100.03906 | CZ121: 15800.58984 | DA121: 10006.79004 | DB121: 13699.40918
B122: HMD | C122: M | D122: 2023 | E122: 165360992 | F122: 1870788.75 | G122: 1862105.625 | H122: 1876184.25 | I122: 1925140.75 | J122: 1963323.25 | K122: 2007660.875 | L122: 2053483.25 | M122: 2087000.5 | N122: 2094914.25 | O122: 2088766.125 | P122: 2086271.625 | Q122: 2103367 | R122: 2137517.75 | S122: 2179946.25 | T122: 2244297 | U122: 2284835.5 | V122: 2262773.5 | W122: 2232196.5 | X122: 2228206.25 | Y122: 2224116.5 | Z122: 2206964 | AA122: 2219649 | AB122: 2239034.75 | AC122: 2220383.75 | AD122: 2198351.5 | AE122: 2195606 | AF122: 2203815.5 | AG122: 2229688.75 | AH122: 2271252 | AI122: 2312817.75 | AJ122: 2353115 | AK122: 2390210.75 | AL122: 2406485.25 | AM122: 2374861.5 | AN122: 2320219 | AO122: 2287627 | AP122: 2279135.75 | AQ122: 2278525.75 | AR122: 2249368.25 | AS122: 2238104.75 | AT122: 2248739.5 | AU122: 2226932.25 | AV122: 2202792.75 | AW122: 2147952.25 | AX122: 2074223.125 | AY122: 2032657.125 | AZ122: 1981423.125 | BA122: 1955442 | BB122: 1943885 | BC122: 1934553.25 | BD122: 1993710.125 | BE122: 2104491.5 | BF122: 2148407.25 | BG122: 2086792.75 | BH122: 2019821.875 | BI122: 1993909.25 | BJ122: 2004583.5 | BK122: 2049050.5 | BL122: 2103318.75 | BM122: 2121342.75 | BN122: 2117578 | BO122: 2111230.75 | BP122: 2082251.625 | BQ122: 2033276.875 | BR122: 1993139.75 | BS122: 1954948.75 | BT122: 1879758.75 | BU122: 1801871.625 | BV122: 1735677.125 | BW122: 1654949.125 | BX122: 1577738.125 | BY122: 1497059.125 | BZ122: 1412822.5 | CA122: 1349069.625 | CB122: 1305534.875 | CC122: 1320126 | CD122: 1137470.125 | CE122: 901050.5625 | CF122: 854053.5625 | CG122: 829396.25 | CH122: 753602.25 | CI122: 639637.1875 | CJ122: 560151.0625 | CK122: 499059.625 | CL122: 447198.9062 | CM122: 390356.4375 | CN122: 337528.2812 | CO122: 294424.8125 | CP122: 247058.1562 | CQ122: 213904.3906 | CR122: 182867.2656 | CS122: 148655.875 | CT122: 121050.3281 | CU122: 91534.53125 | CV122: 69990.86719 | CW122: 51346.85938 | CX122: 36004.42188 | CY122: 24582.28906 | CZ122: 16398.66016 | DA122: 10426.78027 | DB122: 14097.24902
B123: HMD | C123: M | D123: 2024 | E123: 165846608 | F123: 1845071.375 | G123: 1875168.75 | H123: 1867003.5 | I123: 1881022.875 | J123: 1929899.75 | K123: 1967805.125 | L123: 2011913.625 | M123: 2057535.75 | N123: 2090957.375 | O123: 2098781.5 | P123: 2092442.375 | Q123: 2089956.125 | R123: 2106918 | S123: 2140710.25 | T123: 2183006 | U123: 2247483.25 | V123: 2288429.25 | W123: 2267408.75 | X123: 2237587.25 | Y123: 2233524.5 | Z123: 2228906.75 | AA123: 2211732.75 | AB123: 2224908.25 | AC123: 2244407.75 | AD123: 2225412.75 | AE123: 2203143.75 | AF123: 2200074.5 | AG123: 2207735.75 | AH123: 2233242 | AI123: 2274872.5 | AJ123: 2315937.75 | AK123: 2355644 | AL123: 2392243.75 | AM123: 2407677 | AN123: 2375525.75 | AO123: 2320287.75 | AP123: 2287132.75 | AQ123: 2277848.75 | AR123: 2276558.25 | AS123: 2246770.75 | AT123: 2234613 | AU123: 2244648.75 | AV123: 2222444.5 | AW123: 2197828.5 | AX123: 2142553.75 | AY123: 2068374.375 | AZ123: 2026391.375 | BA123: 1974893.875 | BB123: 1948200.375 | BC123: 1935964.625 | BD123: 1925806.5 | BE123: 1983669.5 | BF123: 2092748.5 | BG123: 2135303.75 | BH123: 2073310.625 | BI123: 2005700 | BJ123: 1978429.375 | BK123: 1987259.875 | BL123: 2029528.25 | BM123: 2081647.25 | BN123: 2097910 | BO123: 2092219.875 | BP123: 2083973.875 | BQ123: 2053328.625 | BR123: 2002749.5 | BS123: 1961424.875 | BT123: 1921715.75 | BU123: 1845955.875 | BV123: 1767094.125 | BW123: 1699813.125 | BX123: 1618917.625 | BY123: 1540778.25 | BZ123: 1459236.875 | CA123: 1374281.75 | CB123: 1308492.75 | CC123: 1262828.75 | CD123: 1271658.375 | CE123: 1097364 | CF123: 862437.125 | CG123: 812851.625 | CH123: 784161.625 | CI123: 710574.0625 | CJ123: 598598.6875 | CK123: 520115.1875 | CL123: 459454.9375 | CM123: 407336.0312 | CN123: 352406.6562 | CO123: 300871.7812 | CP123: 259059.9844 | CQ123: 214603.1719 | CR123: 183400.4844 | CS123: 154366.375 | CT123: 122623.6797 | CU123: 97903.61719 | CV123: 71876.64062 | CW123: 53705.98828 | CX123: 38473.05078 | CY123: 26076.82031 | CZ123: 17168.59961 | DA123: 11227.55957 | DB123: 15570.4502
B124: HMD | C124: M | D124: 2025 | E124: =SUM(F124:DB124) -> 166949125.2 | F124: =F123*F66/F65 -> 1888886.374 | G124: =F123*G66/F65 -> 1852042.53 | H124: 1887705.346 | I124: 1880850.837 | J124: 1894646.795 | K124: 1943201.911 | L124: 1981042.722 | M124: 2025160.9 | N124: 2071002.937 | O124: 2105199.062 | P124: 2113691.152 | Q124: 2107649.198 | R124: 2105322.999 | S124: 2122587.821 | T124: 2156948.41 | U124: 2200481.869 | V124: 2267091.249 | W124: 2310509.723 | X124: 2291130.321 | Y124: 2261251.194 | Z124: 2256508.654 | AA124: 2251362.379 | AB124: 2232921.528 | AC124: 2244534.314 | AD124: 2262840.796 | AE124: 2243187.687 | AF124: 2220462.049 | AG124: 2216863.33 | AH124: 2224010.78 | AI124: 2248977.352 | AJ124: 2290066.467 | AK124: 2330166.236 | AL124: 2368455.1 | AM124: =AL123*AM66/AL65 -> 2403558.245 | AN124: 2417385.143 | AO124: 2383747.787 | AP124: 2327308.658 | AQ124: 2293103.485 | AR124: 2282784.302 | AS124: 2280366.971 | AT124: 2249596.259 | AU124: 2236709.44 | AV124: 2246030.084 | AW124: 2223208.988 | AX124: 2198005.638 | AY124: 2142164.702 | AZ124: 2067470.07 | BA124: 2024835.916 | BB124: 1972736.111 | BC124: 1945477.886 | BD124: 1932552.517 | BE124: 1921583.347 | BF124: 1978241.584 | BG124: 2085625.025 | BH124: 2126424.083 | BI124: 2063217.581 | BJ124: 1994526.772 | BK124: 1965861.512 | BL124: 1972921.011 | BM124: 2013048.996 | BN124: 2062834.126 | BO124: 2076947.686 | BP124: 2069187.791 | BQ124: 2058825.458 | BR124: 2026330.913 | BS124: =BR123*BS66/BR65 -> 1974317.75 | BT124: 1931565.101 | BU124: 1890466.753 | BV124: 1813968.993 | BW124: 1734367.681 | BX124: 1665908.608 | BY124: 1583868.3 | BZ124: 1504255.823 | CA124: 1421215.288 | CB124: 1334830.485 | CC124: 1267089.72 | CD124: 1218841.566 | CE124: 1222904.33 | CF124: 1051059.829 | CG124: 822446.1734 | CH124: 771187.5949 | CI124: 739656.1067 | CJ124: 665850.8708 | CK124: 556785.697 | CL124: 479625.4155 | CM124: 419614.1191 | CN124: 367956.7789 | CO124: 314496.8962 | CP124: 264769.7149 | CQ124: 224467.9306 | CR124: 182778.5113 | CS124: 153258.9424 | CT124: 126292.5186 | CU124: 98101.99194 | CV124: 76449.29734 | CW124: 54796.57114 | CX124: 39931.76305 | CY124: 27920.08697 | CZ124: 18488.36895 | DA124: 11892.66411 | DB124: 18318.84351
B125: HMD | C125: M | D125: 2026 | E125: =SUM(F125:DB125) -> 167995177.5 | F125: =F124*F67/F66 -> 1929456.526 | G125: =F124*G67/F66 -> 1895129.114 | H125: =G124*H67/G66 -> 1863356.42 | I125: =H124*I67/H66 -> 1900461.523 | J125: =I124*J67/I66 -> 1893165.201 | K125: =J124*K67/J66 -> 1906840.635 | L125: =K124*L67/K66 -> 1955500.545 | M125: =L124*M67/L66 -> 1993215.93 | N125: =M124*N67/M66 -> 2037653.92 | O125: =N124*O67/N66 -> 2084217.312 | P125: =O124*P67/O66 -> 2119022.596 | Q125: =P124*Q67/P66 -> 2127706.362 | R125: =Q124*R67/Q66 -> 2121761.635 | S125: =R124*S67/R66 -> 2119656.985 | T125: =S124*T67/S66 -> 2137462.512 | U125: =T124*U67/T66 -> 2172956.324 | V125: =U124*V67/U66 -> 2218487.637 | W125: =V124*W67/V66 -> 2287551.342 | X125: =W124*X67/W66 -> 2332405.208 | Y125: =X124*Y67/X66 -> 2312570.419 | Z125: =Y124*Z67/Y66 -> 2281762.329 | AA125: =Z124*AA67/Z66 -> 2276506.659 | AB125: =AA124*AB67/AA66 -> 2269948.176 | AC125: =AB124*AC67/AB66 -> 2249611.695 | AD125: =AC124*AD67/AC66 -> 2260133.573 | AE125: =AD124*AE67/AD66 -> 2277670.223 | AF125: =AE124*AF67/AE66 -> 2257518.425 | AG125: =AF124*AG67/AF66 -> 2234469.101 | AH125: =AG124*AH67/AG66 -> 2230541.615 | AI125: =AH124*AI67/AH66 -> 2237475.893 | AJ125: =AI124*AJ67/AI66 -> 2262099.092 | AK125: =AJ124*AK67/AJ66 -> 2302463.709 | AL125: =AK124*AL67/AK66 -> 2341370.48 | AM125: =AL124*AM67/AL66 -> 2378215.657 | AN125: =AM124*AN67/AM66 -> 2411856.975 | AO125: =AN124*AO67/AN66 -> 2424218.497 | AP125: =AO124*AP67/AO66 -> 2389349.571 | AQ125: =AP124*AQ67/AP66 -> 2331995.382 | AR125: =AQ124*AR67/AQ66 -> 2296963.353 | AS125: =AR124*AS67/AR66 -> 2285770.296 | AT125: =AS124*AT67/AS66 -> 2282420.148 | AU125: =AT124*AU67/AT66 -> 2250861.498 | AV125: =AU124*AV67/AU66 -> 2237384.145 | AW125: =AV124*AW67/AV66 -> 2246080.775 | AX125: =AW124*AX67/AW66 -> 2222693.811 | AY125: =AX124*AY67/AX66 -> 2196891.226 | AZ125: =AY124*AZ67/AY66 -> 2140450.968 | BA125: =AZ124*BA67/AZ66 -> 2065266.731 | BB125: =BA124*BB67/BA66 -> 2022059.704 | BC125: =BB124*BC67/BB66 -> 1969453.016 | BD125: =BC124*BD67/BC66 -> 1941618.23 | BE125: =BD124*BE67/BD66 -> 1927887.691 | BF125: =BE124*BF67/BE66 -> 1916011.282 | BG125: =BF124*BG67/BF66 -> 1971342.879 | BH125: =BG124*BH67/BG66 -> 2076871.267 | BI125: =BH124*BI67/BH66 -> 2115844.3 | BJ125: =BI124*BJ67/BI66 -> 2051483.549 | BK125: =BJ124*BK67/BJ66 -> 1981760.967 | BL125: =BK124*BL67/BK66 -> 1951715.516 | BM125: =BL124*BM67/BL66 -> 1957039.195 | BN125: =BM124*BN67/BM66 -> 1995053.719 | BO125: =BN124*BO67/BN66 -> 2042429.405 | BP125: =BO124*BP67/BO66 -> 2054320.51 | BQ125: =BP124*BQ67/BP66 -> 2044501.632 | BR125: =BQ124*BR67/BQ66 -> 2032099.144 | BS125: =BR124*BS67/BR66 -> 1997908.335 | BT125: =BS124*BT67/BS66 -> 1944655.383 | BU125: =BT124*BU67/BT66 -> 1900628.221 | BV125: =BU124*BV67/BU66 -> 1858203.115 | BW125: =BV124*BW67/BV66 -> 1780904.688 | BX125: =BW124*BX67/BW66 -> 1700364.618 | BY125: =BX124*BY67/BX66 -> 1630442.287 | BZ125: =BY124*BZ67/BY66 -> 1546992.778 | CA125: =BZ124*CA67/BZ66 -> 1465697.968 | CB125: =CA124*CB67/CA66 -> 1381107.04 | CC125: =CB124*CC67/CB66 -> 1293365.231 | CD125: =CC124*CD67/CC66 -> 1223744.723 | CE125: =CD124*CE67/CD66 -> 1172958.291 | CF125: =CE124*CF67/CE66 -> 1172205.187 | CG125: =CF124*CG67/CF66 -> 1003034.148 | CH125: =CG124*CH67/CG66 -> 781076.4555 | CI125: =CH124*CI67/CH66 -> 728221.2924 | CJ125: =CI124*CJ67/CI66 -> 693919.8381 | CK125: =CJ124*CK67/CJ66 -> 620076.491 | CL125: =CK124*CL67/CK66 -> 514193.4835 | CM125: =CL124*CM67/CL66 -> 438656.7586 | CN125: =CM124*CN67/CM66 -> 379614.1585 | CO125: =CN124*CO67/CN66 -> 328753.1436 | CP125: =CO124*CP67/CO66 -> 277194.2169 | CQ125: =CP124*CQ67/CP66 -> 229795.8974 | CR125: =CQ124*CR67/CQ66 -> 191525.4637 | CS125: =CR124*CS67/CR66 -> 153054.9145 | CT125: =CS124*CT67/CS66 -> 125710.5399 | CU125: =CT124*CU67/CT66 -> 101282.3371 | CV125: =CU124*CV67/CU66 -> 76869.30325 | CW125: =CV124*CW67/CV66 -> 58449.23613 | CX125: =CW124*CX67/CW66 -> 40906.60761 | CY125: =CX124*CY67/CX66 -> 29087.54997 | CZ125: =CY124*CZ67/CY66 -> 19874.38049 | DA125: =CZ124*DA67/CZ66 -> 12866.10067 | DB125: =DA124*DB67/DA66 -> 19777.17232
B126: HMD | C126: M | D126: 2027 | E126: 169014389.5 | F126: 1967395.386 | G126: 1935450.399 | H126: 1906119.476 | I126: 1875464.77 | J126: 1912367.679 | K126: 1904695.57 | L126: 1918573.516 | M126: 1967264.885 | N126: 2005182.394 | O126: 2050446.671 | P126: 2097649.935 | Q126: 2132688.466 | R126: 2141419.855 | S126: 2135656.554 | T126: 2134025.013 | U126: 2152946.509 | V126: 2190373.029 | W126: 2238350.512 | X126: 2309075.076 | Y126: 2353474.54 | Z126: 2332441.285 | AA126: 2300962.29 | AB126: 2294544.55 | AC126: 2286245.809 | AD126: 2264625.342 | AE126: 2274416.787 | AF126: 2291197.996 | AG126: 2270527.93 | AH126: 2247195.777 | AI126: 2243078.433 | AJ126: 2249849.607 | AK126: 2273778.367 | AL126: 2313000.387 | AM126: 2350535.623 | AN126: 2385864.075 | AO126: 2418075.159 | AP126: 2429132.074 | AQ126: 2393252.565 | AR126: 2335143.051 | AS126: 2299386.471 | AT126: 2287435.054 | AU126: 2283277.915 | AV126: 2251038.516 | AW126: 2237009.639 | AX126: 2245067.927 | AY126: 2221050.891 | AZ126: 2194567.994 | BA126: 2137552.797 | BB126: 2061941.938 | BC126: 2018229.606 | BD126: 1965094.391 | BE126: 1936539.476 | BF126: 1921881.22 | BG126: 1908995.158 | BH126: 1962834.309 | BI126: 2066353.146 | BJ126: 2103477.366 | BK126: 2038006.208 | BL126: 1967266.963 | BM126: 1935867.107 | BN126: 1939468.94 | BO126: 1975277.415 | BP126: 2020131.114 | BQ126: 2029782.481 | BR126: 2017957.713 | BS126: 2003626.755 | BT126: 1967909.476 | BU126: 1913566.129 | BV126: 1868316.02 | BW126: 1824471.174 | BX126: 1746160.448 | BY126: 1664387.453 | BZ126: 1592701.102 | CA126: 1507627.251 | CB126: 1424579.26 | CC126: 1338492.686 | CD126: 1249481.282 | CE126: 1178041 | CF126: 1124722.35 | CG126: 1119055.684 | CH126: 952831.6824 | CI126: 737951.3324 | CJ126: 683578.1572 | CK126: 646585.5792 | CL126: 572922.0294 | CM126: 470594.4615 | CN126: 397091.6123 | CO126: 339479.8323 | CP126: 289946.5554 | CQ126: 240822.7696 | CR126: 196277.3026 | CS126: 160552.8365 | CT126: 125699.9255 | CU126: 100983.2116 | CV126: 79463.09545 | CW126: 58897.16383 | CX126: 43698.5631 | CY126: 29873.24799 | CZ126: 20753.3159 | DA126: 13864.18957 | DB126: 21405.42706

Sheet 8 Death Counts
B2: Death Counts by Cause, Sex, Year, and Age
B3: Source: CDC WONDER. The data was downloaded on June 4, 2025. Any age/sex specific death counts falling between 1 and 9 have been set equal to 4 to reflect CDC privacy rules.
B6: # | C6: Cause | D6: Sex | E6: Year | F6: Month | G6: Total | H6: 0 | I6: 1 | J6: 2 | K6: 3 | L6: 4 | M6: 5 | N6: 6 | O6: 7 | P6: 8 | Q6: 9 | R6: 10 | S6: 11 | T6: 12 | U6: 13 | V6: 14 | W6: 15 | X6: 16 | Y6: 17 | Z6: 18 | AA6: 19 | AB6: 20 | AC6: 21 | AD6: 22 | AE6: 23 | AF6: 24 | AG6: 25 | AH6: 26 | AI6: 27 | AJ6: 28 | AK6: 29 | AL6: 30 | AM6: 31 | AN6: 32 | AO6: 33 | AP6: 34 | AQ6: 35 | AR6: 36 | AS6: 37 | AT6: 38 | AU6: 39 | AV6: 40 | AW6: 41 | AX6: 42 | AY6: 43 | AZ6: 44 | BA6: 45 | BB6: 46 | BC6: 47 | BD6: 48 | BE6: 49 | BF6: 50 | BG6: 51 | BH6: 52 | BI6: 53 | BJ6: 54 | BK6: 55 | BL6: 56 | BM6: 57 | BN6: 58 | BO6: 59 | BP6: 60 | BQ6: 61 | BR6: 62 | BS6: 63 | BT6: 64 | BU6: 65 | BV6: 66 | BW6: 67 | BX6: 68 | BY6: 69 | BZ6: 70 | CA6: 71 | CB6: 72 | CC6: 73 | CD6: 74 | CE6: 75 | CF6: 76 | CG6: 77 | CH6: 78 | CI6: 79 | CJ6: 80 | CK6: 81 | CL6: 82 | CM6: 83 | CN6: 84 | CO6: 85 | CP6: 86 | CQ6: 87 | CR6: 88 | CS6: 89 | CT6: 90 | CU6: 91 | CV6: 92 | CW6: 93 | CX6: 94 | CY6: 95 | CZ6: 96 | DA6: 97 | DB6: 98 | DC6: 99 | DD6: 100+ | DE6: NS
B8: 0 | C8: Total | D8: F | E8: 2000 | F8: 1 | G8: 128543 | H8: 1065 | I8: 82 | J8: 62 | K8: 43 | L8: 44 | M8: 30 | N8: 22 | O8: 16 | P8: 32 | Q8: 20 | R8: 17 | S8: 22 | T8: 23 | U8: 31 | V8: 36 | W8: 49 | X8: 53 | Y8: 73 | Z8: 86 | AA8: 71 | AB8: 82 | AC8: 94 | AD8: 75 | AE8: 73 | AF8: 69 | AG8: 94 | AH8: 92 | AI8: 95 | AJ8: 113 | AK8: 122 | AL8: 116 | AM8: 114 | AN8: 141 | AO8: 160 | AP8: 172 | AQ8: 165 | AR8: 211 | AS8: 238 | AT8: 249 | AU8: 299 | AV8: 314 | AW8: 350 | AX8: 344 | AY8: 383 | AZ8: 411 | BA8: 450 | BB8: 434 | BC8: 480 | BD8: 474 | BE8: 537 | BF8: 570 | BG8: 623 | BH8: 698 | BI8: 708 | BJ8: 616 | BK8: 683 | BL8: 798 | BM8: 857 | BN8: 819 | BO8: 874 | BP8: 926 | BQ8: 1037 | BR8: 1094 | BS8: 1089 | BT8: 1272 | BU8: 1317 | BV8: 1397 | BW8: 1574 | BX8: 1676 | BY8: 1809 | BZ8: 1964 | CA8: 2170 | CB8: 2393 | CC8: 2536 | CD8: 2786 | CE8: 3034 | CF8: 3084 | CG8: 3460 | CH8: 3703 | CI8: 3778 | CJ8: 3876 | CK8: 3976 | CL8: 4139 | CM8: 4301 | CN8: 4387 | CO8: 4734 | CP8: 4573 | CQ8: 4788 | CR8: 4409 | CS8: 4415 | CT8: 4168 | CU8: 3929 | CV8: 3541 | CW8: 3100 | CX8: 2742 | CY8: 2286 | CZ8: 1807 | DA8: 1443 | DB8: 1067 | DC8: 858 | DD8: 1824 | DE8: 4
B9: 0 | C9: Total | D9: F | E9: 2000 | F9: 2 | G9: 104781 | H9: 949 | I9: 64 | J9: 47 | K9: 34 | L9: 30 | M9: 25 | N9: 20 | O9: 36 | P9: 17 | Q9: 23 | R9: 16 | S9: 15 | T9: 19 | U9: 23 | V9: 34 | W9: 38 | X9: 47 | Y9: 63 | Z9: 79 | AA9: 72 | AB9: 76 | AC9: 70 | AD9: 57 | AE9: 49 | AF9: 57 | AG9: 54 | AH9: 70 | AI9: 92 | AJ9: 80 | AK9: 100 | AL9: 101 | AM9: 110 | AN9: 104 | AO9: 133 | AP9: 151 | AQ9: 178 | AR9: 177 | AS9: 220 | AT9: 228 | AU9: 263 | AV9: 290 | AW9: 285 | AX9: 317 | AY9: 368 | AZ9: 329 | BA9: 356 | BB9: 400 | BC9: 374 | BD9: 414 | BE9: 482 | BF9: 489 | BG9: 487 | BH9: 619 | BI9: 607 | BJ9: 593 | BK9: 587 | BL9: 706 | BM9: 780 | BN9: 714 | BO9: 762 | BP9: 770 | BQ9: 868 | BR9: 935 | BS9: 979 | BT9: 980 | BU9: 1158 | BV9: 1144 | BW9: 1329 | BX9: 1375 | BY9: 1567 | BZ9: 1697 | CA9: 1724 | CB9: 1946 | CC9: 2085 | CD9: 2315 | CE9: 2544 | CF9: 2621 | CG9: 2693 | CH9: 3034 | CI9: 3144 | CJ9: 3216 | CK9: 3295 | CL9: 3398 | CM9: 3434 | CN9: 3631 | CO9: 3775 | CP9: 3695 | CQ9: 3760 | CR9: 3431 | CS9: 3445 | CT9: 3154 | CU9: 3074 | CV9: 2790 | CW9: 2466 | CX9: 2086 | CY9: 1794 | CZ9: 1389 | DA9: 1137 | DB9: 835 | DC9: 671 | DD9: 1410 | DE9: 4
B10: 0 | C10: Total | D10: F | E10: 2000 | F10: 3 | G10: 103062 | H10: 1080 | I10: 70 | J10: 47 | K10: 39 | L10: 26 | M10: 30 | N10: 21 | O10: 15 | P10: 26 | Q10: 24 | R10: 20 | S10: 22 | T10: 21 | U10: 29 | V10: 34 | W10: 34 | X10: 53 | Y10: 65 | Z10: 70 | AA10: 60 | AB10: 69 | AC10: 71 | AD10: 81 | AE10: 58 | AF10: 63 | AG10: 84 | AH10: 89 | AI10: 98 | AJ10: 92 | AK10: 84 | AL10: 121 | AM10: 111 | AN10: 103 | AO10: 135 | AP10: 131 | AQ10: 179 | AR10: 165 | AS10: 213 | AT10: 229 | AU10: 261 | AV10: 276 | AW10: 310 | AX10: 345 | AY10: 351 | AZ10: 365 | BA10: 382 | BB10: 387 | BC10: 421 | BD10: 444 | BE10: 429 | BF10: 545 | BG10: 559 | BH10: 577 | BI10: 631 | BJ10: 555 | BK10: 604 | BL10: 694 | BM10: 717 | BN10: 776 | BO10: 746 | BP10: 792 | BQ10: 919 | BR10: 937 | BS10: 921 | BT10: 1027 | BU10: 1149 | BV10: 1263 | BW10: 1331 | BX10: 1352 | BY10: 1516 | BZ10: 1692 | CA10: 1869 | CB10: 1995 | CC10: 2094 | CD10: 2260 | CE10: 2545 | CF10: 2690 | CG10: 2764 | CH10: 3042 | CI10: 3076 | CJ10: 3141 | CK10: 3230 | CL10: 3332 | CM10: 3354 | CN10: 3543 | CO10: 3517 | CP10: 3534 | CQ10: 3572 | CR10: 3446 | CS10: 3292 | CT10: 3044 | CU10: 2899 | CV10: 2607 | CW10: 2223 | CX10: 1928 | CY10: 1682 | CZ10: 1359 | DA10: 1114 | DB10: 750 | DC10: 644 | DD10: 1273 | DE10: 4
B11: 0 | C11: Total | D11: F | E11: 2000 | F11: 4 | G11: 96544 | H11: 1105 | I11: 59 | J11: 53 | K11: 30 | L11: 33 | M11: 16 | N11: 25 | O11: 31 | P11: 4 | Q11: 19 | R11: 23 | S11: 25 | T11: 25 | U11: 31 | V11: 32 | W11: 42 | X11: 53 | Y11: 72 | Z11: 61 | AA11: 71 | AB11: 60 | AC11: 66 | AD11: 74 | AE11: 76 | AF11: 74 | AG11: 75 | AH11: 69 | AI11: 82 | AJ11: 84 | AK11: 96 | AL11: 120 | AM11: 103 | AN11: 135 | AO11: 151 | AP11: 130 | AQ11: 175 | AR11: 199 | AS11: 192 | AT11: 235 | AU11: 244 | AV11: 261 | AW11: 285 | AX11: 318 | AY11: 323 | AZ11: 373 | BA11: 386 | BB11: 393 | BC11: 408 | BD11: 440 | BE11: 457 | BF11: 452 | BG11: 515 | BH11: 568 | BI11: 586 | BJ11: 522 | BK11: 581 | BL11: 650 | BM11: 684 | BN11: 706 | BO11: 689 | BP11: 796 | BQ11: 829 | BR11: 845 | BS11: 926 | BT11: 1053 | BU11: 1100 | BV11: 1104 | BW11: 1240 | BX11: 1410 | BY11: 1467 | BZ11: 1562 | CA11: 1712 | CB11: 1893 | CC11: 1947 | CD11: 2108 | CE11: 2268 | CF11: 2512 | CG11: 2626 | CH11: 2867 | CI11: 2844 | CJ11: 3062 | CK11: 3009 | CL11: 3064 | CM11: 3099 | CN11: 3167 | CO11: 3363 | CP11: 3358 | CQ11: 3294 | CR11: 3012 | CS11: 3069 | CT11: 2857 | CU11: 2645 | CV11: 2410 | CW11: 2140 | CX11: 1782 | CY11: 1565 | CZ11: 1244 | DA11: 1010 | DB11: 714 | DC11: 568 | DD11: 1146 | DE11: 4
B12: 0 | C12: Total | D12: F | E12: 2000 | F12: 5 | G12: 97791 | H12: 1014 | I12: 70 | J12: 55 | K12: 21 | L12: 29 | M12: 31 | N12: 22 | O12: 23 | P12: 28 | Q12: 29 | R12: 27 | S12: 28 | T12: 28 | U12: 25 | V12: 28 | W12: 50 | X12: 60 | Y12: 60 | Z12: 71 | AA12: 71 | AB12: 89 | AC12: 86 | AD12: 91 | AE12: 80 | AF12: 70 | AG12: 98 | AH12: 77 | AI12: 65 | AJ12: 94 | AK12: 100 | AL12: 95 | AM12: 106 | AN12: 136 | AO12: 130 | AP12: 157 | AQ12: 163 | AR12: 213 | AS12: 233 | AT12: 244 | AU12: 263 | AV12: 296 | AW12: 302 | AX12: 317 | AY12: 331 | AZ12: 366 | BA12: 384 | BB12: 384 | BC12: 402 | BD12: 479 | BE12: 457 | BF12: 513 | BG12: 487 | BH12: 532 | BI12: 660 | BJ12: 543 | BK12: 600 | BL12: 652 | BM12: 706 | BN12: 748 | BO12: 798 | BP12: 805 | BQ12: 935 | BR12: 918 | BS12: 919 | BT12: 1067 | BU12: 1143 | BV12: 1155 | BW12: 1267 | BX12: 1434 | BY12: 1512 | BZ12: 1627 | CA12: 1768 | CB12: 1903 | CC12: 2049 | CD12: 2244 | CE12: 2377 | CF12: 2548 | CG12: 2537 | CH12: 2684 | CI12: 2861 | CJ12: 2940 | CK12: 3051 | CL12: 3053 | CM12: 3252 | CN12: 3205 | CO12: 3391 | CP12: 3297 | CQ12: 3194 | CR12: 3008 | CS12: 3139 | CT12: 2908 | CU12: 2664 | CV12: 2450 | CW12: 2101 | CX12: 1890 | CY12: 1486 | CZ12: 1209 | DA12: 974 | DB12: 755 | DC12: 553 | DD12: 1195 | DE12: 4
B13: 0 | C13: Total | D13: F | E13: 2000 | F13: 6 | G13: 92158 | H13: 1017 | I13: 67 | J13: 38 | K13: 27 | L13: 26 | M13: 24 | N13: 24 | O13: 18 | P13: 24 | Q13: 20 | R13: 21 | S13: 28 | T13: 22 | U13: 36 | V13: 45 | W13: 43 | X13: 56 | Y13: 75 | Z13: 80 | AA13: 70 | AB13: 77 | AC13: 94 | AD13: 66 | AE13: 71 | AF13: 73 | AG13: 63 | AH13: 85 | AI13: 77 | AJ13: 83 | AK13: 113 | AL13: 113 | AM13: 105 | AN13: 108 | AO13: 127 | AP13: 149 | AQ13: 174 | AR13: 188 | AS13: 206 | AT13: 224 | AU13: 258 | AV13: 272 | AW13: 288 | AX13: 310 | AY13: 343 | AZ13: 334 | BA13: 398 | BB13: 364 | BC13: 414 | BD13: 436 | BE13: 473 | BF13: 474 | BG13: 509 | BH13: 539 | BI13: 638 | BJ13: 521 | BK13: 543 | BL13: 648 | BM13: 756 | BN13: 694 | BO13: 674 | BP13: 744 | BQ13: 843 | BR13: 813 | BS13: 889 | BT13: 1024 | BU13: 1069 | BV13: 1132 | BW13: 1140 | BX13: 1275 | BY13: 1373 | BZ13: 1523 | CA13: 1658 | CB13: 1807 | CC13: 1938 | CD13: 2022 | CE13: 2380 | CF13: 2367 | CG13: 2383 | CH13: 2681 | CI13: 2738 | CJ13: 2864 | CK13: 2837 | CL13: 2903 | CM13: 2929 | CN13: 2985 | CO13: 3167 | CP13: 3051 | CQ13: 3052 | CR13: 2900 | CS13: 2829 | CT13: 2736 | CU13: 2479 | CV13: 2389 | CW13: 1940 | CX13: 1688 | CY13: 1397 | CZ13: 1188 | DA13: 935 | DB13: 701 | DC13: 532 | DD13: 1012 | DE13: 4
B14: 0 | C14: Total | D14: F | E14: 2000 | F14: 7 | G14: 95098 | H14: 1002 | I14: 85 | J14: 56 | K14: 46 | L14: 25 | M14: 23 | N14: 33 | O14: 26 | P14: 25 | Q14: 13 | R14: 23 | S14: 30 | T14: 31 | U14: 39 | V14: 46 | W14: 68 | X14: 69 | Y14: 72 | Z14: 84 | AA14: 76 | AB14: 72 | AC14: 86 | AD14: 52 | AE14: 86 | AF14: 71 | AG14: 75 | AH14: 64 | AI14: 83 | AJ14: 84 | AK14: 94 | AL14: 103 | AM14: 113 | AN14: 113 | AO14: 134 | AP14: 166 | AQ14: 166 | AR14: 195 | AS14: 240 | AT14: 238 | AU14: 254 | AV14: 266 | AW14: 294 | AX14: 327 | AY14: 366 | AZ14: 343 | BA14: 391 | BB14: 416 | BC14: 428 | BD14: 430 | BE14: 463 | BF14: 492 | BG14: 541 | BH14: 586 | BI14: 660 | BJ14: 539 | BK14: 588 | BL14: 644 | BM14: 753 | BN14: 702 | BO14: 743 | BP14: 791 | BQ14: 821 | BR14: 891 | BS14: 936 | BT14: 976 | BU14: 1061 | BV14: 1165 | BW14: 1225 | BX14: 1311 | BY14: 1385 | BZ14: 1605 | CA14: 1666 | CB14: 1873 | CC14: 1886 | CD14: 2063 | CE14: 2338 | CF14: 2462 | CG14: 2594 | CH14: 2779 | CI14: 2797 | CJ14: 2873 | CK14: 2816 | CL14: 2960 | CM14: 3017 | CN14: 3137 | CO14: 3277 | CP14: 3270 | CQ14: 3266 | CR14: 3121 | CS14: 2881 | CT14: 2775 | CU14: 2535 | CV14: 2386 | CW14: 2084 | CX14: 1764 | CY14: 1456 | CZ14: 1181 | DA14: 943 | DB14: 751 | DC14: 500 | DD14: 1143 | DE14: 4
B15: 0 | C15: Total | D15: F | E15: 2000 | F15: 8 | G15: 95169 | H15: 1009 | I15: 76 | J15: 42 | K15: 27 | L15: 38 | M15: 31 | N15: 23 | O15: 33 | P15: 12 | Q15: 23 | R15: 23 | S15: 29 | T15: 30 | U15: 23 | V15: 30 | W15: 45 | X15: 62 | Y15: 65 | Z15: 63 | AA15: 79 | AB15: 62 | AC15: 81 | AD15: 71 | AE15: 67 | AF15: 64 | AG15: 74 | AH15: 56 | AI15: 80 | AJ15: 82 | AK15: 94 | AL15: 95 | AM15: 128 | AN15: 120 | AO15: 134 | AP15: 152 | AQ15: 174 | AR15: 174 | AS15: 191 | AT15: 232 | AU15: 283 | AV15: 268 | AW15: 325 | AX15: 298 | AY15: 341 | AZ15: 378 | BA15: 366 | BB15: 392 | BC15: 460 | BD15: 449 | BE15: 444 | BF15: 539 | BG15: 527 | BH15: 565 | BI15: 667 | BJ15: 564 | BK15: 630 | BL15: 602 | BM15: 707 | BN15: 726 | BO15: 718 | BP15: 789 | BQ15: 809 | BR15: 888 | BS15: 947 | BT15: 1009 | BU15: 1093 | BV15: 1106 | BW15: 1273 | BX15: 1290 | BY15: 1468 | BZ15: 1577 | CA15: 1612 | CB15: 1821 | CC15: 1912 | CD15: 2191 | CE15: 2360 | CF15: 2519 | CG15: 2473 | CH15: 2745 | CI15: 2755 | CJ15: 3000 | CK15: 2869 | CL15: 3057 | CM15: 3063 | CN15: 3063 | CO15: 3305 | CP15: 3339 | CQ15: 3107 | CR15: 3043 | CS15: 2954 | CT15: 2744 | CU15: 2632 | CV15: 2373 | CW15: 2036 | CX15: 1800 | CY15: 1480 | CZ15: 1250 | DA15: 920 | DB15: 702 | DC15: 508 | DD15: 1138 | DE15: 4
B16: 0 | C16: Total | D16: F | E16: 2000 | F16: 9 | G16: 94958 | H16: 1013 | I16: 76 | J16: 41 | K16: 31 | L16: 25 | M16: 29 | N16: 25 | O16: 22 | P16: 27 | Q16: 24 | R16: 13 | S16: 34 | T16: 20 | U16: 21 | V16: 38 | W16: 52 | X16: 73 | Y16: 56 | Z16: 85 | AA16: 95 | AB16: 74 | AC16: 63 | AD16: 64 | AE16: 72 | AF16: 54 | AG16: 61 | AH16: 72 | AI16: 75 | AJ16: 72 | AK16: 105 | AL16: 95 | AM16: 125 | AN16: 132 | AO16: 133 | AP16: 134 | AQ16: 166 | AR16: 185 | AS16: 194 | AT16: 234 | AU16: 241 | AV16: 276 | AW16: 305 | AX16: 317 | AY16: 337 | AZ16: 374 | BA16: 434 | BB16: 361 | BC16: 405 | BD16: 426 | BE16: 474 | BF16: 500 | BG16: 485 | BH16: 557 | BI16: 651 | BJ16: 568 | BK16: 565 | BL16: 657 | BM16: 675 | BN16: 670 | BO16: 745 | BP16: 704 | BQ16: 801 | BR16: 909 | BS16: 885 | BT16: 1016 | BU16: 1035 | BV16: 1094 | BW16: 1207 | BX16: 1304 | BY16: 1378 | BZ16: 1565 | CA16: 1582 | CB16: 1803 | CC16: 1877 | CD16: 2040 | CE16: 2300 | CF16: 2317 | CG16: 2485 | CH16: 2709 | CI16: 2805 | CJ16: 2989 | CK16: 2805 | CL16: 3022 | CM16: 3033 | CN16: 3187 | CO16: 3302 | CP16: 3189 | CQ16: 3264 | CR16: 3218 | CS16: 2979 | CT16: 2833 | CU16: 2540 | CV16: 2527 | CW16: 2134 | CX16: 1727 | CY16: 1563 | CZ16: 1272 | DA16: 1057 | DB16: 760 | DC16: 572 | DD16: 1228 | DE16: 4
B17: 0 | C17: Total | D17: F | E17: 2000 | F17: 10 | G17: 102455 | H17: 1052 | I17: 69 | J17: 30 | K17: 27 | L17: 18 | M17: 27 | N17: 18 | O17: 21 | P17: 23 | Q17: 27 | R17: 22 | S17: 22 | T17: 20 | U17: 25 | V17: 37 | W17: 32 | X17: 71 | Y17: 64 | Z17: 88 | AA17: 84 | AB17: 68 | AC17: 71 | AD17: 85 | AE17: 74 | AF17: 80 | AG17: 66 | AH17: 78 | AI17: 81 | AJ17: 103 | AK17: 94 | AL17: 99 | AM17: 123 | AN17: 118 | AO17: 117 | AP17: 160 | AQ17: 151 | AR17: 198 | AS17: 235 | AT17: 230 | AU17: 269 | AV17: 286 | AW17: 313 | AX17: 328 | AY17: 389 | AZ17: 357 | BA17: 413 | BB17: 430 | BC17: 468 | BD17: 469 | BE17: 492 | BF17: 483 | BG17: 537 | BH17: 576 | BI17: 648 | BJ17: 574 | BK17: 603 | BL17: 664 | BM17: 726 | BN17: 759 | BO17: 791 | BP17: 791 | BQ17: 828 | BR17: 924 | BS17: 1002 | BT17: 1023 | BU17: 1105 | BV17: 1153 | BW17: 1217 | BX17: 1469 | BY17: 1528 | BZ17: 1647 | CA17: 1755 | CB17: 1955 | CC17: 2191 | CD17: 2201 | CE17: 2456 | CF17: 2479 | CG17: 2666 | CH17: 2846 | CI17: 3161 | CJ17: 3264 | CK17: 3013 | CL17: 3359 | CM17: 3351 | CN17: 3361 | CO17: 3429 | CP17: 3600 | CQ17: 3442 | CR17: 3468 | CS17: 3147 | CT17: 3186 | CU17: 2887 | CV17: 2728 | CW17: 2352 | CX17: 2012 | CY17: 1673 | CZ17: 1385 | DA17: 1065 | DB17: 862 | DC17: 604 | DD17: 1284 | DE17: 4
B18: 0 | C18: Total | D18: F | E18: 2000 | F18: 11 | G18: 101686 | H18: 969 | I18: 75 | J18: 43 | K18: 19 | L18: 28 | M18: 19 | N18: 12 | O18: 22 | P18: 25 | Q18: 16 | R18: 19 | S18: 21 | T18: 20 | U18: 27 | V18: 35 | W18: 45 | X18: 66 | Y18: 52 | Z18: 88 | AA18: 74 | AB18: 83 | AC18: 78 | AD18: 69 | AE18: 68 | AF18: 66 | AG18: 79 | AH18: 71 | AI18: 78 | AJ18: 86 | AK18: 91 | AL18: 89 | AM18: 111 | AN18: 122 | AO18: 135 | AP18: 150 | AQ18: 168 | AR18: 188 | AS18: 207 | AT18: 217 | AU18: 252 | AV18: 273 | AW18: 312 | AX18: 297 | AY18: 380 | AZ18: 346 | BA18: 379 | BB18: 391 | BC18: 427 | BD18: 461 | BE18: 459 | BF18: 516 | BG18: 553 | BH18: 570 | BI18: 673 | BJ18: 593 | BK18: 637 | BL18: 618 | BM18: 749 | BN18: 718 | BO18: 753 | BP18: 812 | BQ18: 837 | BR18: 938 | BS18: 926 | BT18: 1005 | BU18: 1136 | BV18: 1171 | BW18: 1246 | BX18: 1319 | BY18: 1434 | BZ18: 1631 | CA18: 1756 | CB18: 1825 | CC18: 2092 | CD18: 2181 | CE18: 2396 | CF18: 2528 | CG18: 2791 | CH18: 2857 | CI18: 3054 | CJ18: 3244 | CK18: 3073 | CL18: 3372 | CM18: 3330 | CN18: 3478 | CO18: 3493 | CP18: 3620 | CQ18: 3539 | CR18: 3412 | CS18: 3197 | CT18: 3115 | CU18: 2857 | CV18: 2652 | CW18: 2346 | CX18: 1981 | CY18: 1681 | CZ18: 1322 | DA18: 1029 | DB18: 877 | DC18: 552 | DD18: 1388 | DE18: 4
B19: 0 | C19: Total | D19: F | E19: 2000 | F19: 12 | G19: 113528 | H19: 1042 | I19: 63 | J19: 57 | K19: 30 | L19: 32 | M19: 29 | N19: 28 | O19: 32 | P19: 12 | Q19: 23 | R19: 30 | S19: 25 | T19: 20 | U19: 29 | V19: 41 | W19: 42 | X19: 53 | Y19: 67 | Z19: 72 | AA19: 76 | AB19: 99 | AC19: 64 | AD19: 78 | AE19: 76 | AF19: 81 | AG19: 71 | AH19: 77 | AI19: 93 | AJ19: 95 | AK19: 108 | AL19: 113 | AM19: 117 | AN19: 132 | AO19: 131 | AP19: 137 | AQ19: 171 | AR19: 198 | AS19: 242 | AT19: 242 | AU19: 267 | AV19: 324 | AW19: 312 | AX19: 351 | AY19: 378 | AZ19: 395 | BA19: 396 | BB19: 459 | BC19: 461 | BD19: 434 | BE19: 494 | BF19: 527 | BG19: 555 | BH19: 652 | BI19: 719 | BJ19: 679 | BK19: 662 | BL19: 736 | BM19: 820 | BN19: 860 | BO19: 859 | BP19: 876 | BQ19: 908 | BR19: 1000 | BS19: 1088 | BT19: 1117 | BU19: 1170 | BV19: 1291 | BW19: 1335 | BX19: 1504 | BY19: 1553 | BZ19: 1814 | CA19: 1878 | CB19: 2010 | CC19: 2279 | CD19: 2422 | CE19: 2665 | CF19: 2892 | CG19: 2875 | CH19: 3062 | CI19: 3322 | CJ19: 3607 | CK19: 3487 | CL19: 3663 | CM19: 3790 | CN19: 3897 | CO19: 3805 | CP19: 4094 | CQ19: 3958 | CR19: 3955 | CS19: 3752 | CT19: 3661 | CU19: 3217 | CV19: 3146 | CW19: 2620 | CX19: 2364 | CY19: 1896 | CZ19: 1622 | DA19: 1322 | DB19: 951 | DC19: 666 | DD19: 1519 | DE19: 4
B20: 0 | C20: Total | D20: M | E20: 2000 | F20: 1 | G20: 119285 | H20: 1330 | I20: 99 | J20: 60 | K20: 46 | L20: 45 | M20: 41 | N20: 33 | O20: 29 | P20: 25 | Q20: 42 | R20: 37 | S20: 35 | T20: 44 | U20: 52 | V20: 56 | W20: 75 | X20: 127 | Y20: 144 | Z20: 209 | AA20: 262 | AB20: 222 | AC20: 227 | AD20: 213 | AE20: 211 | AF20: 194 | AG20: 173 | AH20: 221 | AI20: 216 | AJ20: 241 | AK20: 255 | AL20: 231 | AM20: 271 | AN20: 250 | AO20: 264 | AP20: 298 | AQ20: 388 | AR20: 421 | AS20: 413 | AT20: 431 | AU20: 434 | AV20: 536 | AW20: 581 | AX20: 626 | AY20: 648 | AZ20: 678 | BA20: 732 | BB20: 764 | BC20: 846 | BD20: 847 | BE20: 891 | BF20: 953 | BG20: 952 | BH20: 1089 | BI20: 1149 | BJ20: 977 | BK20: 1143 | BL20: 1195 | BM20: 1327 | BN20: 1252 | BO20: 1306 | BP20: 1302 | BQ20: 1468 | BR20: 1566 | BS20: 1594 | BT20: 1759 | BU20: 1831 | BV20: 1907 | BW20: 2151 | BX20: 2204 | BY20: 2445 | BZ20: 2636 | CA20: 2641 | CB20: 3077 | CC20: 3108 | CD20: 3173 | CE20: 3335 | CF20: 3450 | CG20: 3494 | CH20: 3795 | CI20: 3786 | CJ20: 3566 | CK20: 3628 | CL20: 3599 | CM20: 3455 | CN20: 3387 | CO20: 3430 | CP20: 3122 | CQ20: 2974 | CR20: 2552 | CS20: 2227 | CT20: 1951 | CU20: 1720 | CV20: 1406 | CW20: 1182 | CX20: 987 | CY20: 705 | CZ20: 574 | DA20: 392 | DB20: 276 | DC20: 206 | DD20: 330 | DE20: 37
B21: 0 | C21: Total | D21: M | E21: 2000 | F21: 2 | G21: 98537 | H21: 1278 | I21: 105 | J21: 67 | K21: 36 | L21: 33 | M21: 35 | N21: 26 | O21: 37 | P21: 17 | Q21: 26 | R21: 24 | S21: 25 | T21: 37 | U21: 22 | V21: 44 | W21: 77 | X21: 96 | Y21: 121 | Z21: 153 | AA21: 180 | AB21: 172 | AC21: 212 | AD21: 206 | AE21: 184 | AF21: 191 | AG21: 171 | AH21: 188 | AI21: 171 | AJ21: 216 | AK21: 197 | AL21: 210 | AM21: 217 | AN21: 227 | AO21: 258 | AP21: 269 | AQ21: 301 | AR21: 386 | AS21: 359 | AT21: 414 | AU21: 470 | AV21: 502 | AW21: 499 | AX21: 508 | AY21: 591 | AZ21: 580 | BA21: 638 | BB21: 705 | BC21: 707 | BD21: 773 | BE21: 795 | BF21: 871 | BG21: 884 | BH21: 977 | BI21: 917 | BJ21: 869 | BK21: 903 | BL21: 1000 | BM21: 1073 | BN21: 1129 | BO21: 1104 | BP21: 1107 | BQ21: 1174 | BR21: 1363 | BS21: 1354 | BT21: 1476 | BU21: 1512 | BV21: 1587 | BW21: 1771 | BX21: 1815 | BY21: 2030 | BZ21: 2130 | CA21: 2415 | CB21: 2435 | CC21: 2516 | CD21: 2724 | CE21: 2892 | CF21: 2828 | CG21: 2956 | CH21: 3011 | CI21: 3059 | CJ21: 2982 | CK21: 2815 | CL21: 2937 | CM21: 2788 | CN21: 2634 | CO21: 2678 | CP21: 2451 | CQ21: 2272 | CR21: 2035 | CS21: 1803 | CT21: 1561 | CU21: 1345 | CV21: 1133 | CW21: 914 | CX21: 660 | CY21: 535 | CZ21: 411 | DA21: 349 | DB21: 180 | DC21: 168 | DD21: 225 | DE21: 23
B22: 0 | C22: Total | D22: M | E22: 2000 | F22: 3 | G22: 98774 | H22: 1349 | I22: 78 | J22: 60 | K22: 41 | L22: 42 | M22: 27 | N22: 37 | O22: 20 | P22: 18 | Q22: 28 | R22: 21 | S22: 37 | T22: 40 | U22: 53 | V22: 72 | W22: 81 | X22: 132 | Y22: 150 | Z22: 186 | AA22: 217 | AB22: 227 | AC22: 227 | AD22: 220 | AE22: 180 | AF22: 217 | AG22: 210 | AH22: 175 | AI22: 204 | AJ22: 202 | AK22: 239 | AL22: 217 | AM22: 234 | AN22: 251 | AO22: 266 | AP22: 311 | AQ22: 319 | AR22: 356 | AS22: 379 | AT22: 444 | AU22: 432 | AV22: 488 | AW22: 483 | AX22: 545 | AY22: 559 | AZ22: 670 | BA22: 655 | BB22: 707 | BC22: 733 | BD22: 798 | BE22: 778 | BF22: 864 | BG22: 817 | BH22: 976 | BI22: 976 | BJ22: 815 | BK22: 977 | BL22: 1097 | BM22: 1125 | BN22: 1122 | BO22: 1120 | BP22: 1163 | BQ22: 1198 | BR22: 1306 | BS22: 1313 | BT22: 1493 | BU22: 1574 | BV22: 1590 | BW22: 1747 | BX22: 1834 | BY22: 2045 | BZ22: 2166 | CA22: 2342 | CB22: 2522 | CC22: 2690 | CD22: 2652 | CE22: 2886 | CF22: 2830 | CG22: 2968 | CH22: 2952 | CI22: 2988 | CJ22: 3026 | CK22: 2913 | CL22: 2766 | CM22: 2683 | CN22: 2733 | CO22: 2631 | CP22: 2369 | CQ22: 2139 | CR22: 1885 | CS22: 1803 | CT22: 1477 | CU22: 1251 | CV22: 1115 | CW22: 856 | CX22: 692 | CY22: 510 | CZ22: 403 | DA22: 300 | DB22: 205 | DC22: 157 | DD22: 266 | DE22: 31
B23: 0 | C23: Total | D23: M | E23: 2000 | F23: 4 | G23: 93882 | H23: 1271 | I23: 83 | J23: 62 | K23: 45 | L23: 29 | M23: 47 | N23: 31 | O23: 33 | P23: 35 | Q23: 26 | R23: 28 | S23: 35 | T23: 35 | U23: 43 | V23: 67 | W23: 86 | X23: 110 | Y23: 164 | Z23: 193 | AA23: 209 | AB23: 228 | AC23: 244 | AD23: 201 | AE23: 201 | AF23: 179 | AG23: 210 | AH23: 178 | AI23: 222 | AJ23: 192 | AK23: 198 | AL23: 232 | AM23: 215 | AN23: 229 | AO23: 252 | AP23: 268 | AQ23: 312 | AR23: 328 | AS23: 385 | AT23: 397 | AU23: 464 | AV23: 493 | AW23: 519 | AX23: 564 | AY23: 622 | AZ23: 609 | BA23: 667 | BB23: 662 | BC23: 739 | BD23: 746 | BE23: 789 | BF23: 839 | BG23: 864 | BH23: 870 | BI23: 955 | BJ23: 770 | BK23: 906 | BL23: 993 | BM23: 1080 | BN23: 1048 | BO23: 1056 | BP23: 1130 | BQ23: 1221 | BR23: 1239 | BS23: 1337 | BT23: 1433 | BU23: 1476 | BV23: 1536 | BW23: 1717 | BX23: 1818 | BY23: 1927 | BZ23: 2154 | CA23: 2160 | CB23: 2359 | CC23: 2429 | CD23: 2566 | CE23: 2583 | CF23: 2730 | CG23: 2719 | CH23: 2887 | CI23: 2870 | CJ23: 2758 | CK23: 2701 | CL23: 2736 | CM23: 2529 | CN23: 2481 | CO23: 2360 | CP23: 2239 | CQ23: 2063 | CR23: 1823 | CS23: 1658 | CT23: 1328 | CU23: 1164 | CV23: 1038 | CW23: 786 | CX23: 672 | CY23: 507 | CZ23: 368 | DA23: 258 | DB23: 168 | DC23: 128 | DD23: 240 | DE23: 28
B24: 0 | C24: Total | D24: M | E24: 2000 | F24: 5 | G24: 95320 | H24: 1322 | I24: 104 | J24: 58 | K24: 47 | L24: 49 | M24: 43 | N24: 39 | O24: 30 | P24: 28 | Q24: 20 | R24: 33 | S24: 38 | T24: 36 | U24: 47 | V24: 64 | W24: 108 | X24: 116 | Y24: 197 | Z24: 211 | AA24: 210 | AB24: 240 | AC24: 219 | AD24: 256 | AE24: 221 | AF24: 214 | AG24: 219 | AH24: 203 | AI24: 226 | AJ24: 227 | AK24: 242 | AL24: 234 | AM24: 277 | AN24: 233 | AO24: 323 | AP24: 308 | AQ24: 320 | AR24: 353 | AS24: 383 | AT24: 404 | AU24: 462 | AV24: 495 | AW24: 554 | AX24: 577 | AY24: 623 | AZ24: 649 | BA24: 695 | BB24: 711 | BC24: 729 | BD24: 784 | BE24: 781 | BF24: 800 | BG24: 835 | BH24: 962 | BI24: 1059 | BJ24: 799 | BK24: 938 | BL24: 1055 | BM24: 1087 | BN24: 1095 | BO24: 1168 | BP24: 1185 | BQ24: 1220 | BR24: 1315 | BS24: 1336 | BT24: 1455 | BU24: 1588 | BV24: 1541 | BW24: 1739 | BX24: 1820 | BY24: 1926 | BZ24: 2161 | CA24: 2254 | CB24: 2308 | CC24: 2405 | CD24: 2482 | CE24: 2572 | CF24: 2767 | CG24: 2776 | CH24: 2855 | CI24: 2923 | CJ24: 2802 | CK24: 2752 | CL24: 2736 | CM24: 2481 | CN24: 2462 | CO24: 2442 | CP24: 2208 | CQ24: 1964 | CR24: 1777 | CS24: 1586 | CT24: 1390 | CU24: 1173 | CV24: 1042 | CW24: 808 | CX24: 677 | CY24: 465 | CZ24: 338 | DA24: 263 | DB24: 177 | DC24: 138 | DD24: 232 | DE24: 19
B25: 0 | C25: Total | D25: M | E25: 2000 | F25: 6 | G25: 90964 | H25: 1374 | I25: 108 | J25: 66 | K25: 34 | L25: 25 | M25: 31 | N25: 28 | O25: 17 | P25: 43 | Q25: 27 | R25: 36 | S25: 32 | T25: 37 | U25: 47 | V25: 63 | W25: 90 | X25: 158 | Y25: 193 | Z25: 224 | AA25: 267 | AB25: 242 | AC25: 223 | AD25: 225 | AE25: 221 | AF25: 233 | AG25: 209 | AH25: 193 | AI25: 204 | AJ25: 234 | AK25: 235 | AL25: 239 | AM25: 219 | AN25: 231 | AO25: 253 | AP25: 306 | AQ25: 330 | AR25: 335 | AS25: 363 | AT25: 445 | AU25: 446 | AV25: 482 | AW25: 520 | AX25: 517 | AY25: 639 | AZ25: 624 | BA25: 662 | BB25: 699 | BC25: 705 | BD25: 809 | BE25: 811 | BF25: 825 | BG25: 830 | BH25: 951 | BI25: 973 | BJ25: 854 | BK25: 875 | BL25: 988 | BM25: 1037 | BN25: 1045 | BO25: 1062 | BP25: 1176 | BQ25: 1122 | BR25: 1250 | BS25: 1274 | BT25: 1371 | BU25: 1516 | BV25: 1506 | BW25: 1632 | BX25: 1681 | BY25: 1884 | BZ25: 1987 | CA25: 2122 | CB25: 2155 | CC25: 2371 | CD25: 2429 | CE25: 2538 | CF25: 2608 | CG25: 2585 | CH25: 2679 | CI25: 2824 | CJ25: 2693 | CK25: 2548 | CL25: 2494 | CM25: 2414 | CN25: 2243 | CO25: 2219 | CP25: 2081 | CQ25: 1993 | CR25: 1719 | CS25: 1501 | CT25: 1299 | CU25: 1055 | CV25: 895 | CW25: 709 | CX25: 578 | CY25: 470 | CZ25: 346 | DA25: 256 | DB25: 206 | DC25: 121 | DD25: 201 | DE25: 19
B26: 0 | C26: Total | D26: M | E26: 2000 | F26: 7 | G26: 93472 | H26: 1279 | I26: 95 | J26: 73 | K26: 53 | L26: 44 | M26: 43 | N26: 38 | O26: 38 | P26: 41 | Q26: 39 | R26: 37 | S26: 43 | T26: 53 | U26: 56 | V26: 75 | W26: 106 | X26: 145 | Y26: 204 | Z26: 245 | AA26: 274 | AB26: 277 | AC26: 297 | AD26: 223 | AE26: 227 | AF26: 232 | AG26: 235 | AH26: 222 | AI26: 223 | AJ26: 233 | AK26: 268 | AL26: 269 | AM26: 239 | AN26: 275 | AO26: 286 | AP26: 302 | AQ26: 330 | AR26: 317 | AS26: 449 | AT26: 440 | AU26: 454 | AV26: 500 | AW26: 537 | AX26: 572 | AY26: 631 | AZ26: 619 | BA26: 744 | BB26: 715 | BC26: 748 | BD26: 796 | BE26: 846 | BF26: 801 | BG26: 903 | BH26: 985 | BI26: 997 | BJ26: 832 | BK26: 979 | BL26: 994 | BM26: 1165 | BN26: 1047 | BO26: 1074 | BP26: 1210 | BQ26: 1257 | BR26: 1255 | BS26: 1369 | BT26: 1406 | BU26: 1471 | BV26: 1474 | BW26: 1647 | BX26: 1778 | BY26: 1833 | BZ26: 1964 | CA26: 2173 | CB26: 2286 | CC26: 2410 | CD26: 2492 | CE26: 2517 | CF26: 2555 | CG26: 2640 | CH26: 2768 | CI26: 2774 | CJ26: 2703 | CK26: 2584 | CL26: 2581 | CM26: 2454 | CN26: 2392 | CO26: 2283 | CP26: 2233 | CQ26: 1956 | CR26: 1737 | CS26: 1567 | CT26: 1348 | CU26: 1178 | CV26: 940 | CW26: 799 | CX26: 604 | CY26: 466 | CZ26: 355 | DA26: 247 | DB26: 165 | DC26: 120 | DD26: 195 | DE26: 22
B27: 0 | C27: Total | D27: M | E27: 2000 | F27: 8 | G27: 93519 | H27: 1284 | I27: 88 | J27: 56 | K27: 46 | L27: 35 | M27: 38 | N27: 30 | O27: 32 | P27: 31 | Q27: 37 | R27: 35 | S27: 45 | T27: 49 | U27: 43 | V27: 68 | W27: 82 | X27: 149 | Y27: 175 | Z27: 231 | AA27: 273 | AB27: 240 | AC27: 266 | AD27: 260 | AE27: 228 | AF27: 227 | AG27: 204 | AH27: 187 | AI27: 227 | AJ27: 223 | AK27: 246 | AL27: 269 | AM27: 261 | AN27: 254 | AO27: 276 | AP27: 336 | AQ27: 317 | AR27: 370 | AS27: 413 | AT27: 440 | AU27: 460 | AV27: 497 | AW27: 524 | AX27: 560 | AY27: 623 | AZ27: 649 | BA27: 643 | BB27: 696 | BC27: 770 | BD27: 763 | BE27: 822 | BF27: 849 | BG27: 880 | BH27: 930 | BI27: 1083 | BJ27: 846 | BK27: 978 | BL27: 1010 | BM27: 1021 | BN27: 1082 | BO27: 1113 | BP27: 1166 | BQ27: 1154 | BR27: 1246 | BS27: 1309 | BT27: 1425 | BU27: 1497 | BV27: 1419 | BW27: 1712 | BX27: 1799 | BY27: 1858 | BZ27: 2036 | CA27: 2115 | CB27: 2336 | CC27: 2313 | CD27: 2357 | CE27: 2616 | CF27: 2628 | CG27: 2741 | CH27: 2795 | CI27: 2795 | CJ27: 2841 | CK27: 2565 | CL27: 2742 | CM27: 2516 | CN27: 2416 | CO27: 2334 | CP27: 2183 | CQ27: 1958 | CR27: 1747 | CS27: 1588 | CT27: 1377 | CU27: 1124 | CV27: 958 | CW27: 762 | CX27: 594 | CY27: 463 | CZ27: 389 | DA27: 262 | DB27: 154 | DC27: 126 | DD27: 206 | DE27: 27
B28: 0 | C28: Total | D28: M | E28: 2000 | F28: 9 | G28: 92004 | H28: 1274 | I28: 77 | J28: 62 | K28: 63 | L28: 28 | M28: 20 | N28: 35 | O28: 31 | P28: 24 | Q28: 19 | R28: 38 | S28: 43 | T28: 40 | U28: 43 | V28: 41 | W28: 67 | X28: 114 | Y28: 167 | Z28: 219 | AA28: 231 | AB28: 246 | AC28: 268 | AD28: 210 | AE28: 218 | AF28: 211 | AG28: 208 | AH28: 194 | AI28: 208 | AJ28: 204 | AK28: 266 | AL28: 205 | AM28: 254 | AN28: 236 | AO28: 233 | AP28: 276 | AQ28: 305 | AR28: 372 | AS28: 357 | AT28: 422 | AU28: 421 | AV28: 502 | AW28: 502 | AX28: 542 | AY28: 597 | AZ28: 608 | BA28: 636 | BB28: 719 | BC28: 736 | BD28: 762 | BE28: 762 | BF28: 842 | BG28: 894 | BH28: 881 | BI28: 1021 | BJ28: 870 | BK28: 875 | BL28: 974 | BM28: 1112 | BN28: 1024 | BO28: 1108 | BP28: 1069 | BQ28: 1156 | BR28: 1235 | BS28: 1323 | BT28: 1407 | BU28: 1494 | BV28: 1488 | BW28: 1551 | BX28: 1766 | BY28: 1804 | BZ28: 2002 | CA28: 2169 | CB28: 2273 | CC28: 2295 | CD28: 2534 | CE28: 2554 | CF28: 2634 | CG28: 2616 | CH28: 2802 | CI28: 2797 | CJ28: 2828 | CK28: 2576 | CL28: 2580 | CM28: 2495 | CN28: 2397 | CO28: 2304 | CP28: 2120 | CQ28: 2024 | CR28: 1750 | CS28: 1562 | CT28: 1355 | CU28: 1109 | CV28: 987 | CW28: 832 | CX28: 605 | CY28: 457 | CZ28: 367 | DA28: 239 | DB28: 185 | DC28: 132 | DD28: 195 | DE28: 19
B29: 0 | C29: Total | D29: M | E29: 2000 | F29: 10 | G29: 97370 | H29: 1344 | I29: 90 | J29: 60 | K29: 46 | L29: 27 | M29: 34 | N29: 18 | O29: 31 | P29: 37 | Q29: 30 | R29: 35 | S29: 37 | T29: 31 | U29: 39 | V29: 58 | W29: 93 | X29: 130 | Y29: 163 | Z29: 228 | AA29: 235 | AB29: 246 | AC29: 213 | AD29: 223 | AE29: 230 | AF29: 209 | AG29: 213 | AH29: 205 | AI29: 192 | AJ29: 201 | AK29: 232 | AL29: 226 | AM29: 252 | AN29: 243 | AO29: 266 | AP29: 292 | AQ29: 309 | AR29: 344 | AS29: 380 | AT29: 439 | AU29: 446 | AV29: 462 | AW29: 517 | AX29: 568 | AY29: 564 | AZ29: 636 | BA29: 700 | BB29: 719 | BC29: 739 | BD29: 807 | BE29: 821 | BF29: 838 | BG29: 911 | BH29: 922 | BI29: 1074 | BJ29: 924 | BK29: 946 | BL29: 1001 | BM29: 1174 | BN29: 1130 | BO29: 1148 | BP29: 1165 | BQ29: 1213 | BR29: 1252 | BS29: 1399 | BT29: 1433 | BU29: 1500 | BV29: 1578 | BW29: 1600 | BX29: 1781 | BY29: 1945 | BZ29: 2085 | CA29: 2153 | CB29: 2408 | CC29: 2473 | CD29: 2619 | CE29: 2699 | CF29: 2772 | CG29: 2956 | CH29: 2923 | CI29: 3120 | CJ29: 2972 | CK29: 2707 | CL29: 2839 | CM29: 2699 | CN29: 2657 | CO29: 2440 | CP29: 2409 | CQ29: 2091 | CR29: 1900 | CS29: 1690 | CT29: 1459 | CU29: 1303 | CV29: 1104 | CW29: 885 | CX29: 663 | CY29: 541 | CZ29: 387 | DA29: 264 | DB29: 208 | DC29: 105 | DD29: 222 | DE29: 23
B30: 0 | C30: Total | D30: M | E30: 2000 | F30: 11 | G30: 97608 | H30: 1274 | I30: 68 | J30: 54 | K30: 39 | L30: 28 | M30: 33 | N30: 33 | O30: 28 | P30: 25 | Q30: 18 | R30: 36 | S30: 37 | T30: 27 | U30: 43 | V30: 55 | W30: 90 | X30: 123 | Y30: 137 | Z30: 165 | AA30: 202 | AB30: 223 | AC30: 230 | AD30: 204 | AE30: 208 | AF30: 209 | AG30: 166 | AH30: 185 | AI30: 188 | AJ30: 177 | AK30: 214 | AL30: 200 | AM30: 227 | AN30: 216 | AO30: 224 | AP30: 275 | AQ30: 312 | AR30: 334 | AS30: 360 | AT30: 393 | AU30: 448 | AV30: 513 | AW30: 516 | AX30: 540 | AY30: 609 | AZ30: 674 | BA30: 699 | BB30: 732 | BC30: 755 | BD30: 773 | BE30: 837 | BF30: 838 | BG30: 898 | BH30: 933 | BI30: 1036 | BJ30: 966 | BK30: 950 | BL30: 959 | BM30: 1185 | BN30: 1173 | BO30: 1126 | BP30: 1183 | BQ30: 1209 | BR30: 1349 | BS30: 1333 | BT30: 1422 | BU30: 1535 | BV30: 1576 | BW30: 1650 | BX30: 1820 | BY30: 1900 | BZ30: 2116 | CA30: 2122 | CB30: 2487 | CC30: 2559 | CD30: 2507 | CE30: 2718 | CF30: 2791 | CG30: 2940 | CH30: 2996 | CI30: 3023 | CJ30: 3048 | CK30: 2728 | CL30: 2871 | CM30: 2778 | CN30: 2626 | CO30: 2476 | CP30: 2459 | CQ30: 2160 | CR30: 2014 | CS30: 1726 | CT30: 1475 | CU30: 1302 | CV30: 1105 | CW30: 886 | CX30: 667 | CY30: 498 | CZ30: 404 | DA30: 298 | DB30: 234 | DC30: 123 | DD30: 253 | DE30: 21
B31: 0 | C31: Total | D31: M | E31: 2000 | F31: 12 | G31: 106843 | H31: 1339 | I31: 95 | J31: 68 | K31: 62 | L31: 45 | M31: 38 | N31: 32 | O31: 21 | P31: 25 | Q31: 32 | R31: 30 | S31: 34 | T31: 33 | U31: 45 | V31: 62 | W31: 64 | X31: 93 | Y31: 137 | Z31: 176 | AA31: 233 | AB31: 249 | AC31: 229 | AD31: 208 | AE31: 217 | AF31: 196 | AG31: 187 | AH31: 198 | AI31: 202 | AJ31: 211 | AK31: 229 | AL31: 233 | AM31: 223 | AN31: 273 | AO31: 265 | AP31: 292 | AQ31: 318 | AR31: 359 | AS31: 383 | AT31: 430 | AU31: 456 | AV31: 533 | AW31: 540 | AX31: 612 | AY31: 633 | AZ31: 684 | BA31: 699 | BB31: 750 | BC31: 809 | BD31: 873 | BE31: 892 | BF31: 936 | BG31: 946 | BH31: 1012 | BI31: 1124 | BJ31: 1033 | BK31: 1028 | BL31: 1068 | BM31: 1211 | BN31: 1209 | BO31: 1255 | BP31: 1296 | BQ31: 1265 | BR31: 1456 | BS31: 1570 | BT31: 1664 | BU31: 1620 | BV31: 1758 | BW31: 1741 | BX31: 1966 | BY31: 2024 | BZ31: 2253 | CA31: 2341 | CB31: 2521 | CC31: 2728 | CD31: 2777 | CE31: 3061 | CF31: 3134 | CG31: 3139 | CH31: 3283 | CI31: 3394 | CJ31: 3385 | CK31: 2999 | CL31: 3172 | CM31: 3058 | CN31: 2941 | CO31: 2804 | CP31: 2638 | CQ31: 2515 | CR31: 2222 | CS31: 1983 | CT31: 1751 | CU31: 1431 | CV31: 1179 | CW31: 1036 | CX31: 757 | CY31: 609 | CZ31: 441 | DA31: 325 | DB31: 251 | DC31: 157 | DD31: 309 | DE31: 20
B32: 0 | C32: Total | D32: F | E32: 2001 | F32: 1 | G32: 117060 | H32: 1032 | I32: 75 | J32: 54 | K32: 47 | L32: 33 | M32: 37 | N32: 28 | O32: 28 | P32: 22 | Q32: 23 | R32: 24 | S32: 19 | T32: 29 | U32: 22 | V32: 47 | W32: 42 | X32: 63 | Y32: 78 | Z32: 77 | AA32: 77 | AB32: 63 | AC32: 85 | AD32: 63 | AE32: 91 | AF32: 76 | AG32: 87 | AH32: 89 | AI32: 85 | AJ32: 84 | AK32: 106 | AL32: 111 | AM32: 107 | AN32: 120 | AO32: 123 | AP32: 165 | AQ32: 193 | AR32: 200 | AS32: 207 | AT32: 281 | AU32: 299 | AV32: 259 | AW32: 331 | AX32: 365 | AY32: 405 | AZ32: 402 | BA32: 465 | BB32: 472 | BC32: 458 | BD32: 484 | BE32: 534 | BF32: 551 | BG32: 598 | BH32: 656 | BI32: 745 | BJ32: 704 | BK32: 668 | BL32: 754 | BM32: 831 | BN32: 913 | BO32: 829 | BP32: 919 | BQ32: 943 | BR32: 1084 | BS32: 1109 | BT32: 1118 | BU32: 1272 | BV32: 1293 | BW32: 1352 | BX32: 1605 | BY32: 1599 | BZ32: 1766 | CA32: 1856 | CB32: 2055 | CC32: 2444 | CD32: 2378 | CE32: 2708 | CF32: 2872 | CG32: 3018 | CH32: 3222 | CI32: 3532 | CJ32: 3658 | CK32: 3599 | CL32: 3909 | CM32: 3826 | CN32: 3949 | CO32: 3997 | CP32: 4142 | CQ32: 4218 | CR32: 4148 | CS32: 3814 | CT32: 3850 | CU32: 3312 | CV32: 3099 | CW32: 2758 | CX32: 2373 | CY32: 2017 | CZ32: 1622 | DA32: 1323 | DB32: 990 | DC32: 736 | DD32: 1651 | DE32: 4
B33: 0 | C33: Total | D33: F | E33: 2001 | F33: 2 | G33: 102295 | H33: 1031 | I33: 93 | J33: 36 | K33: 35 | L33: 26 | M33: 22 | N33: 29 | O33: 17 | P33: 19 | Q33: 22 | R33: 16 | S33: 18 | T33: 27 | U33: 29 | V33: 39 | W33: 36 | X33: 64 | Y33: 65 | Z33: 62 | AA33: 51 | AB33: 75 | AC33: 78 | AD33: 64 | AE33: 71 | AF33: 67 | AG33: 58 | AH33: 65 | AI33: 60 | AJ33: 97 | AK33: 93 | AL33: 105 | AM33: 105 | AN33: 118 | AO33: 109 | AP33: 136 | AQ33: 171 | AR33: 186 | AS33: 182 | AT33: 223 | AU33: 263 | AV33: 292 | AW33: 293 | AX33: 330 | AY33: 352 | AZ33: 376 | BA33: 369 | BB33: 426 | BC33: 407 | BD33: 458 | BE33: 470 | BF33: 518 | BG33: 582 | BH33: 589 | BI33: 613 | BJ33: 654 | BK33: 579 | BL33: 690 | BM33: 733 | BN33: 759 | BO33: 790 | BP33: 778 | BQ33: 871 | BR33: 866 | BS33: 923 | BT33: 1030 | BU33: 1034 | BV33: 1145 | BW33: 1200 | BX33: 1299 | BY33: 1400 | BZ33: 1631 | CA33: 1720 | CB33: 1870 | CC33: 2060 | CD33: 2127 | CE33: 2392 | CF33: 2659 | CG33: 2790 | CH33: 2722 | CI33: 3063 | CJ33: 3187 | CK33: 3087 | CL33: 3334 | CM33: 3398 | CN33: 3632 | CO33: 3543 | CP33: 3613 | CQ33: 3518 | CR33: 3512 | CS33: 3279 | CT33: 3179 | CU33: 2940 | CV33: 2645 | CW33: 2436 | CX33: 2038 | CY33: 1706 | CZ33: 1423 | DA33: 1117 | DB33: 872 | DC33: 581 | DD33: 1321 | DE33: 11
B34: 0 | C34: Total | D34: F | E34: 2001 | F34: 3 | G34: 111155 | H34: 1047 | I34: 74 | J34: 44 | K34: 36 | L34: 40 | M34: 21 | N34: 22 | O34: 29 | P34: 25 | Q34: 23 | R34: 13 | S34: 20 | T34: 23 | U34: 35 | V34: 37 | W34: 41 | X34: 62 | Y34: 79 | Z34: 68 | AA34: 63 | AB34: 64 | AC34: 64 | AD34: 75 | AE34: 83 | AF34: 59 | AG34: 81 | AH34: 66 | AI34: 85 | AJ34: 98 | AK34: 101 | AL34: 121 | AM34: 102 | AN34: 132 | AO34: 138 | AP34: 141 | AQ34: 159 | AR34: 199 | AS34: 204 | AT34: 253 | AU34: 248 | AV34: 306 | AW34: 315 | AX34: 366 | AY34: 383 | AZ34: 407 | BA34: 413 | BB34: 464 | BC34: 486 | BD34: 504 | BE34: 510 | BF34: 514 | BG34: 549 | BH34: 597 | BI34: 681 | BJ34: 755 | BK34: 639 | BL34: 747 | BM34: 723 | BN34: 854 | BO34: 792 | BP34: 829 | BQ34: 903 | BR34: 966 | BS34: 1081 | BT34: 1108 | BU34: 1134 | BV34: 1273 | BW34: 1385 | BX34: 1397 | BY34: 1615 | BZ34: 1701 | CA34: 1835 | CB34: 2063 | CC34: 2135 | CD34: 2339 | CE34: 2627 | CF34: 2855 | CG34: 2895 | CH34: 3070 | CI34: 3426 | CJ34: 3480 | CK34: 3487 | CL34: 3626 | CM34: 3616 | CN34: 3669 | CO34: 3804 | CP34: 3950 | CQ34: 3954 | CR34: 3799 | CS34: 3599 | CT34: 3317 | CU34: 3262 | CV34: 2933 | CW34: 2656 | CX34: 2263 | CY34: 1897 | CZ34: 1570 | DA34: 1197 | DB34: 998 | DC34: 680 | DD34: 1475 | DE34: 4
B35: 0 | C35: Total | D35: F | E35: 2001 | F35: 4 | G35: 104017 | H35: 1015 | I35: 83 | J35: 45 | K35: 33 | L35: 22 | M35: 31 | N35: 22 | O35: 26 | P35: 25 | Q35: 15 | R35: 22 | S35: 27 | T35: 18 | U35: 23 | V35: 35 | W35: 54 | X35: 67 | Y35: 84 | Z35: 55 | AA35: 76 | AB35: 90 | AC35: 70 | AD35: 70 | AE35: 72 | AF35: 73 | AG35: 97 | AH35: 62 | AI35: 80 | AJ35: 72 | AK35: 90 | AL35: 114 | AM35: 99 | AN35: 117 | AO35: 154 | AP35: 143 | AQ35: 165 | AR35: 215 | AS35: 197 | AT35: 239 | AU35: 296 | AV35: 304 | AW35: 285 | AX35: 323 | AY35: 337 | AZ35: 367 | BA35: 415 | BB35: 452 | BC35: 415 | BD35: 431 | BE35: 508 | BF35: 499 | BG35: 512 | BH35: 596 | BI35: 692 | BJ35: 685 | BK35: 558 | BL35: 679 | BM35: 762 | BN35: 825 | BO35: 782 | BP35: 791 | BQ35: 878 | BR35: 953 | BS35: 991 | BT35: 1049 | BU35: 1090 | BV35: 1201 | BW35: 1268 | BX35: 1332 | BY35: 1503 | BZ35: 1629 | CA35: 1759 | CB35: 1912 | CC35: 2088 | CD35: 2247 | CE35: 2414 | CF35: 2582 | CG35: 2756 | CH35: 2949 | CI35: 3197 | CJ35: 3311 | CK35: 3254 | CL35: 3405 | CM35: 3365 | CN35: 3492 | CO35: 3574 | CP35: 3614 | CQ35: 3746 | CR35: 3501 | CS35: 3422 | CT35: 3128 | CU35: 2871 | CV35: 2593 | CW35: 2360 | CX35: 2074 | CY35: 1652 | CZ35: 1449 | DA35: 1172 | DB35: 823 | DC35: 567 | DD35: 1331 | DE35: 4
B36: 0 | C36: Total | D36: F | E36: 2001 | F36: 5 | G36: 102115 | H36: 1082 | I36: 68 | J36: 37 | K36: 35 | L36: 27 | M36: 32 | N36: 30 | O36: 25 | P36: 25 | Q36: 23 | R36: 13 | S36: 17 | T36: 22 | U36: 23 | V36: 28 | W36: 49 | X36: 55 | Y36: 69 | Z36: 83 | AA36: 84 | AB36: 70 | AC36: 94 | AD36: 70 | AE36: 73 | AF36: 83 | AG36: 56 | AH36: 82 | AI36: 98 | AJ36: 84 | AK36: 92 | AL36: 127 | AM36: 117 | AN36: 138 | AO36: 142 | AP36: 163 | AQ36: 188 | AR36: 219 | AS36: 233 | AT36: 228 | AU36: 274 | AV36: 312 | AW36: 318 | AX36: 310 | AY36: 347 | AZ36: 398 | BA36: 414 | BB36: 369 | BC36: 416 | BD36: 445 | BE36: 484 | BF36: 506 | BG36: 508 | BH36: 600 | BI36: 675 | BJ36: 691 | BK36: 598 | BL36: 656 | BM36: 737 | BN36: 791 | BO36: 820 | BP36: 840 | BQ36: 836 | BR36: 911 | BS36: 1008 | BT36: 957 | BU36: 1067 | BV36: 1166 | BW36: 1269 | BX36: 1362 | BY36: 1504 | BZ36: 1617 | CA36: 1742 | CB36: 1924 | CC36: 2082 | CD36: 2194 | CE36: 2369 | CF36: 2594 | CG36: 2606 | CH36: 2796 | CI36: 3115 | CJ36: 3138 | CK36: 3304 | CL36: 3235 | CM36: 3350 | CN36: 3389 | CO36: 3499 | CP36: 3564 | CQ36: 3472 | CR36: 3483 | CS36: 3367 | CT36: 3012 | CU36: 2745 | CV36: 2636 | CW36: 2296 | CX36: 1999 | CY36: 1700 | CZ36: 1344 | DA36: 1035 | DB36: 859 | DC36: 603 | DD36: 1262 | DE36: 11
